Workbook

Sheet RESUMO MODULO MÍNIMO
E1: Ministério da Integração e do Desenvolvimento Regional
E2: Companhia de Desenvolvimento dos Vales do São Francisco e do Parnaíba
B5: OBRA: | C5: =B56 -> EXECUÇÃO DE SERVIÇOS DE IMPLANTAÇÃO DE PAVIMENTAÇÃO EM BLOCO DE CONCRETO INTERTRAVADO, EM VIAS URBANAS E RURAIS INSERIDAS NA ÁREA DE ATUAÇÃO DA CODEVASF, NO ESTADO DO CEARÁ | I5: BDI Serviços (%): | L5: =BDI!C14 -> 0.2206
B6: DATA: | C6: JULHO / 2025 | I6: BDI Diferenciado Serviços (%): | L6: =BDI!C69 -> 0.15
B7: PRAZO DE EXECUÇÃO: | G7: R$/m² | H7: =L53/H24 -> 281.9522773 | I7: BDI Fornecimentos (%): | L7: =L6 -> 0.15
B8: PLANILHA DE ORÇAMENTAÇÃO
B9: ITEM | C9: CÓDIGO | D9: FONTE | E9: DISCRIMINAÇÃO | F9: TIPO | G9: UNID. | H9: QUANT. | I9: VR.UNIT.S/BDI | J9: PR. UNIT.C/BDI | K9: C. TOT.S/BDI | L9: P. TOT.C/BDI | M9: =L53 -> 1500000
B10: 1 | E10: SERVIÇOS PRELIMINARES | K10: =SUM(K11:K12) -> 17996.02 | L10: =SUM(L11:L12) -> 21965.72 | M10: =L10/$L$53 -> 0.01464381333
B11: =[241]MEMÓRIA!B11 -> 1.1 | C11: CPU.1 | D11: Codevasf | E11: Mobilização | F11: SERV | G11: kmxfrente | H11: 114.0010552 | I11: =Mob!B63 -> 78.929205 | J11: =TRUNC(_xlfn.IFS(F11="SERV",I11*(1+$L$5),F11="SERV DIF",I11*(1+$L$6),F11="FORN",I11*(1+$L$7)),2) -> 96.34 | K11: =TRUNC(H11*I11,2) -> 8998.01 | L11: =TRUNC(H11*J11,2) -> 10982.86 | M11: 0.007321906667 | N11: INCC | O11: =H11*$N$55 -> 114.0010552 | P11: TERRAPLENAGEM | Q11: =(SUMIF(N:N,"TERRAPLENAGEM",L:L)/$L$53) -> 0.01214247333 | R11: =(SUMIF(N:N,"TERRAPLENAGEM",L:L)) -> 18213.71
B12: =[241]MEMÓRIA!B14 -> 1.2 | C12: CPU.2 | D12: Codevasf | E12: Desmobilização | F12: SERV | G12: kmxfrente | H12: 114.0010552 | I12: =Mob!B63 -> 78.929205 | J12: =TRUNC(_xlfn.IFS(F12="SERV",I12*(1+$L$5),F12="SERV DIF",I12*(1+$L$6),F12="FORN",I12*(1+$L$7)),2) -> 96.34 | K12: =TRUNC(H12*I12,2) -> 8998.01 | L12: =TRUNC(H12*J12,2) -> 10982.86 | M12: 0.007321906667 | N12: INCC | O12: =H12*$N$55 -> 114.0010552 | P12: PAVIMENTAÇÃO | Q12: =SUMIF(N:N,"PAVIMENTAÇÃO",L:L)/$L$53 -> 0.7120140267 | R12: =(SUMIF(N:N,"PAVIMENTAÇÃO",L:L)) -> 1068021.04
B13: =[241]MEMÓRIA!B34 -> 2 | E13: INSTALAÇÃO DE CANTEIRO | K13: =SUM(K14:K16) -> 123389.93 | L13: =SUM(L14:L16) -> 150609.74 | M13: 0.1004064933 | O13: 0 | P13: CONSULTORIA | R13: =(SUMIF(N:N,"CONSULTORIA",M:M)) -> 0
B14: =[241]MEMÓRIA!B36 -> 2.1 | C14: Canteiro | D14: Codevasf | E14: Canteiro de Obras | F14: SERV | G14: und | H14: 0.7600070349 | I14: =' Canteiro'!F11 -> 34499.88 | J14: =TRUNC(_xlfn.IFS(F14="SERV",I14*(1+$L$5),F14="SERV DIF",I14*(1+$L$6),F14="FORN",I14*(1+$L$7)),2) -> 42110.55 | K14: =TRUNC(H14*I14,2) -> 26220.15 | L14: =TRUNC(H14*J14,2) -> 32004.31 | M14: 0.02133620667 | N14: INCC | O14: 0.7600070349 | P14: DRENAGEM | Q14: =SUMIF(N:N,"DRENAGEM",L:L)/$L$53 -> 0.04980579333 | R14: =(SUMIF(N:N,"DRENAGEM",L:L)) -> 74708.69
B15: =[241]MEMÓRIA!B48 -> 2.2 | C15: 903808 | D15: SICRO | E15: Instalação da usina misturadora de solos com capacidade de 300 t/h | F15: SERV | G15: und | H15: 0.7600070349 | I15: =VLOOKUP(C15,'SINTÉTICO SICRO'!A:D,4,FALSE) -> 120628.37 | J15: =TRUNC(_xlfn.IFS(F15="SERV",I15*(1+$L$5),F15="SERV DIF",I15*(1+$L$6),F15="FORN",I15*(1+$L$7)),2) -> 147238.98 | K15: 91678.4 | L15: 111902.66 | M15: 0.07460177333 | N15: INCC | O15: 0.7600070349
B16: =[241]MEMÓRIA!B61 -> 2.3 | C16: 103689 | D16: SINAPI | E16: Fornecimento e instalação de placa de obra com chapa galvanizada e estrutura de madeira. af_03/2022_ps | F16: SERV | G16: m² | H16: 12.16011256 | I16: =VLOOKUP(C16,'COMP Sint. Sinapi'!$A:$E,4,0) -> 451.59 | J16: =TRUNC(_xlfn.IFS(F16="SERV",I16*(1+$L$5),F16="SERV DIF",I16*(1+$L$6),F16="FORN",I16*(1+$L$7)),2) -> 551.21 | K16: 5491.38 | L16: 6702.77 | M16: 0.004468513333 | N16: INCC | O16: 12.16011256 | P16: ADMINISTRAÇÃO LOCAL | R16: =(SUMIF(N:N,"ADMINISTRAÇÃO LOCAL",M:M)) -> 0
B17: =[241]MEMÓRIA!B128 -> 3 | E17: ADMINISTRAÇÃO LOCAL DA OBRA | K17: =SUM(K18:K18) -> 101151.32 | L17: =SUM(L18:L18) -> 123465.3 | M17: 0.0823102 | O17: 0 | P17: SINALIZAÇÃO VERTICAL | R17: =(SUMIF(N:N,"SINALIZAÇÃO VERTICAL",M:M)) -> 0
B18: =[241]MEMÓRIA!B130 -> 3.1 | C18: Adm Local | D18: Codevasf | E18: Administração Local da Obra | F18: SERV | G18: und | H18: 0.05066713566 | I18: ='Adm Local'!J249 -> 1996389.212 | J18: =TRUNC(_xlfn.IFS(F18="SERV",I18*(1+$L$5),F18="SERV DIF",I18*(1+$L$6),F18="FORN",I18*(1+$L$7)),2) -> 2436792.67 | K18: =TRUNC(H18*I18,2) -> 101151.32 | L18: =TRUNC(H18*J18,2) -> 123465.3 | M18: =L18/$L$53 -> 0.0823102 | N18: INCC | O18: 0.05066713566 | P18: SINALIZAÇÃO HORIZONTAL | R18: =(SUMIF(N:N,"SINALIZAÇÃO HORIZONTAL",M:M)) -> 0
B19: =[241]MEMÓRIA!B156 -> 4 | E19: TERRAPLANAGEM | K19: =SUM(K20:K21) -> 14938.69 | L19: =SUM(L20:L21) -> 18213.71 | M19: =L19/$L$53 -> 0.01214247333 | O19: 0 | P19: CAP | R19: =(SUMIF(N:N,"CAP",M:M)) -> 0
B20: =[241]MEMÓRIA!B158 -> 4.1 | C20: 5502114 | D20: SICRO | E20: Escavação, carga e transporte de material de 1ª categoria - DMT de 1.000 a 1.200 m - caminho de serviço em leito natural - com escavadeira e caminhão basculante de 14 m³ | F20: SERV | G20: m³ | H20: 1436.413296 | I20: =ROUND(IF(D20="CODEVASF",VLOOKUP(C20,'CPU CODEVASF'!E:I,5,FALSE),VLOOKUP(C20,'SINTÉTICO SICRO'!A:D,4,FALSE)),6) -> 8.38 | J20: =TRUNC(_xlfn.IFS(F20="SERV",I20*(1+$L$5),F20="SERV DIF",I20*(1+$L$6),F20="FORN",I20*(1+$L$7)),2) -> 10.22 | K20: =TRUNC(H20*I20,2) -> 12037.14 | L20: =TRUNC(H20*J20,2) -> 14680.14 | M20: 0.00978676 | N20: TERRAPLENAGEM | O20: 1436.413296 | P20: IMPRIMAÇÃO | R20: =(SUMIF(N:N,"IMPRIMAÇÃO",M:M)) -> 0
B21: =[241]MEMÓRIA!B170 -> 4.2 | C21: 4413942 | D21: SICRO | E21: Espalhamento de material em bota-fora | F21: SERV | G21: m³ | H21: 1436.413296 | I21: =ROUND(IF(D21="CODEVASF",VLOOKUP(C21,'CPU CODEVASF'!E:I,5,FALSE),VLOOKUP(C21,'SINTÉTICO SICRO'!A:D,4,FALSE)),6) -> 2.02 | J21: =TRUNC(_xlfn.IFS(F21="SERV",I21*(1+$L$5),F21="SERV DIF",I21*(1+$L$6),F21="FORN",I21*(1+$L$7)),2) -> 2.46 | K21: 2901.55 | L21: 3533.57 | M21: 0.002355713333 | N21: TERRAPLENAGEM | O21: 1436.413296 | P21: EMULSÃO ASFÁLTICA | R21: =(SUMIF(N:N,"EMULSÃO ASFÁLTICA",M:M)) -> 0
B22: =[241]MEMÓRIA!B363 -> 5 | E22: PAVIMENTAÇÃO | K22: =SUM(K23:K30) -> 576478.22 | L22: =SUM(L23:L30) -> 680276.42 | M22: 0.4535176133 | O22: 0 | P22: OBRAS COMPLEMENTARES | R22: =(SUMIF(N:N,"OBRAS COMPLEMENTARES",M:M)) -> 0
B23: 5.1 | C23: 36170 | D23: SINAPI | E23: bloquete/piso intertravado de concreto - modelo onda/16 faces/retangular/t ijolinho/paver/holandes/paralelepipedo, *22 cm x 11* cm, e = 8 cm, resistencia de 35 mpa (nbr 9781), cor natural | F23: FORN | G23: m² | H23: 5341.329441 | I23: =ROUND(VLOOKUP(C23,'INSUMOS SINAPI'!$A:$E,5,0),6) -> 59.5 | J23: =TRUNC(_xlfn.IFS(F23="SERV",I23*(1+$L$5),F23="SERV DIF",I23*(1+$L$6),F23="FORN",I23*(1+$L$7)),2) -> 68.42 | K23: =TRUNC(H23*I23,2) -> 317809.1 | L23: =TRUNC(H23*J23,2) -> 365453.76 | M23: 0.24363584 | N23: PAVIMENTAÇÃO | O23: 5341.329441 | P23: MOBILIZAÇÃO | R23: =(SUMIF(N:N,"MOBILIZAÇÃO",M:M)) -> 0
B24: 5.2 | C24: 92404 ADAPTADA | D24: SINAPI | E24: execução de pavimento em piso intertravado, com bloco 16 faces de 22 x 11 cm, espessura 8 cm. af_10/2022 - exclusive fornecimento de bloquete | F24: SERV | G24: m² | H24: 5320.049244 | I24: =ROUND('CPU SINAPI'!G15,6) -> 15.81 | J24: =TRUNC(_xlfn.IFS(F24="SERV",I24*(1+$L$5),F24="SERV DIF",I24*(1+$L$6),F24="FORN",I24*(1+$L$7)),2) -> 19.29 | K24: 84109.97 | L24: 102623.74 | M24: 0.06841582667 | N24: PAVIMENTAÇÃO | O24: 5320.049244 | P24: INCC | Q24: =(SUMIF(N:N,"INCC",L:L))/$L$53 -> 0.2260377067 | R24: =(SUMIF(N:N,"INCC",L:L)) -> 339056.56
B25: 5.3 | C25: 5914640 | D25: SICRO | E25: Transporte com cavalo mecânico com semirreboque com capacidade de 30 t - rodovia pavimentada | F25: SERV | G25: tkm | H25: 107677.7967 | I25: =ROUND(IF(D25="CODEVASF",VLOOKUP(C25,'CPU CODEVASF'!E:I,5,FALSE),VLOOKUP(C25,'SINTÉTICO SICRO'!A:D,4,FALSE)),6) -> 0.58 | J25: =TRUNC(_xlfn.IFS(F25="SERV",I25*(1+$L$5),F25="SERV DIF",I25*(1+$L$6),F25="FORN",I25*(1+$L$7)),2) -> 0.7 | K25: 62453.12 | L25: 75374.45 | M25: 0.05024963333 | N25: PAVIMENTAÇÃO | O25: 107677.7967
B26: 5.4 | C26: 5915373 | D26: SICRO | E26: Carga, manobra e descarga de materiais diversos em caminhão carroceria com capacidade de 7 t e com guindauto de 20 t.m | F26: SERV | G26: t | H26: 1076.777967 | I26: =ROUND(IF(D26="CODEVASF",VLOOKUP(C26,'CPU CODEVASF'!E:I,5,FALSE),VLOOKUP(C26,'SINTÉTICO SICRO'!A:D,4,FALSE)),6) -> 18.03 | J26: =TRUNC(_xlfn.IFS(F26="SERV",I26*(1+$L$5),F26="SERV DIF",I26*(1+$L$6),F26="FORN",I26*(1+$L$7)),2) -> 22 | K26: 19414.3 | L26: 23689.11 | M26: 0.01579274 | N26: PAVIMENTAÇÃO | O26: 1076.777967
B27: 5.5 | C27: 5915321 | D27: SICRO | E27: Transporte com caminhão basculante de 14 m³ - rodovia pavimentada (areia) | F27: SERV | G27: tkm | H27: 15960.14773 | I27: =ROUND(IF(D27="CODEVASF",VLOOKUP(C27,'CPU CODEVASF'!E:I,5,FALSE),VLOOKUP(C27,'SINTÉTICO SICRO'!A:D,4,FALSE)),6) -> 0.68 | J27: =TRUNC(_xlfn.IFS(F27="SERV",I27*(1+$L$5),F27="SERV DIF",I27*(1+$L$6),F27="FORN",I27*(1+$L$7)),2) -> 0.83 | K27: 10852.9 | L27: 13246.92 | M27: 0.00883128 | N27: PAVIMENTAÇÃO | O27: 15960.14773
B28: 5.6 | C28: 5915321 | D28: SICRO | E28: Transporte com caminhão basculante de 14 m³ - rodovia pavimentada (pó de pedra) | F28: SERV | G28: tkm | H28: 5027.446536 | I28: =ROUND(IF(D28="CODEVASF",VLOOKUP(C28,'CPU CODEVASF'!E:I,5,FALSE),VLOOKUP(C28,'SINTÉTICO SICRO'!A:D,4,FALSE)),6) -> 0.68 | J28: =TRUNC(_xlfn.IFS(F28="SERV",I28*(1+$L$5),F28="SERV DIF",I28*(1+$L$6),F28="FORN",I28*(1+$L$7)),2) -> 0.83 | K28: 3418.66 | L28: 4172.78 | M28: 0.002781853333 | N28: PAVIMENTAÇÃO | O28: 5027.446536
B29: 5.7 | C29: 4011318 | D29: SICRO | E29: Base ou sub-base estabilizada granulometricamente com mistura solo brita (70% - 30%) em usina com material de jazida e brita comercial - 100% Proctor modificado | F29: SERV | G29: m³ | H29: 798.0073867 | I29: =ROUND(IF(D29="CODEVASF",VLOOKUP(C29,'CPU CODEVASF'!E:I,5,FALSE),VLOOKUP(C29,'SINTÉTICO SICRO'!A:D,4,FALSE)),6) -> 87.67 | J29: =TRUNC(_xlfn.IFS(F29="SERV",I29*(1+$L$5),F29="SERV DIF",I29*(1+$L$6),F29="FORN",I29*(1+$L$7)),2) -> 107.01 | K29: 69961.3 | L29: 85394.77 | M29: 0.05692984667 | N29: PAVIMENTAÇÃO | O29: 798.0073867
B30: 5.8 | C30: 4011209 | D30: SICRO | E30: Regularização do subleito - 100% Proctor intermediário | F30: SERV | G30: m² | H30: 5320.049244 | I30: =ROUND(IF(D30="CODEVASF",VLOOKUP(C30,'CPU CODEVASF'!E:I,5,FALSE),VLOOKUP(C30,'SINTÉTICO SICRO'!A:D,4,FALSE)),6) -> 1.59 | J30: =TRUNC(_xlfn.IFS(F30="SERV",I30*(1+$L$5),F30="SERV DIF",I30*(1+$L$6),F30="FORN",I30*(1+$L$7)),2) -> 1.94 | K30: 8458.87 | L30: 10320.89 | M30: 0.006880593333 | N30: PAVIMENTAÇÃO | O30: 5320.049244
B31: 6 | E31: SINALIZAÇÃO | K31: =SUM(K32:K35) -> 7279.08 | L31: =SUM(L32:L35) -> 8883.6 | M31: 0.0059224 | O31: 0
B32: 6.1 | C32: 5213440 | D32: SICRO | E32: Placa de regulamentação em aço D = 0,60 m - película retrorrefletiva tipo I + SI - fornecimento e implantação | F32: SERV | G32: und | H32: 2.280021105 | I32: =ROUND(IF(D32="CODEVASF",VLOOKUP(C32,'CPU CODEVASF'!E:I,5,FALSE),VLOOKUP(C32,'SINTÉTICO SICRO'!A:D,4,FALSE)),6) -> 285.72 | J32: =TRUNC(_xlfn.IFS(F32="SERV",I32*(1+$L$5),F32="SERV DIF",I32*(1+$L$6),F32="FORN",I32*(1+$L$7)),2) -> 348.74 | K32: =TRUNC(H32*I32,2) -> 651.44 | L32: =TRUNC(H32*J32,2) -> 795.13 | M32: 0.0005300866667 | N32: INCC | O32: 2.280021105
B33: 6.2 | C33: 5213464 | D33: SICRO | E33: Placa de advertência em aço, lado de 0,60 m - película retrorrefletiva tipo I + SI - fornecimento e implantação | F33: SERV | G33: und | H33: 2.280021105 | I33: =ROUND(IF(D33="CODEVASF",VLOOKUP(C33,'CPU CODEVASF'!E:I,5,FALSE),VLOOKUP(C33,'SINTÉTICO SICRO'!A:D,4,FALSE)),6) -> 285.76 | J33: =TRUNC(_xlfn.IFS(F33="SERV",I33*(1+$L$5),F33="SERV DIF",I33*(1+$L$6),F33="FORN",I33*(1+$L$7)),2) -> 348.79 | K33: 651.53 | L33: 795.24 | M33: 0.00053016 | N33: INCC | O33: 2.280021105
B34: 6.3 | C34: 5213863 | D34: SICRO | E34: Suporte metálico galvanizado para placa de advertência ou regulamentação - lado ou diâmetro de 0,60 m - fornecimento e implantação | F34: SERV | G34: und | H34: 4.56004221 | I34: =ROUND(IF(D34="CODEVASF",VLOOKUP(C34,'CPU CODEVASF'!E:I,5,FALSE),VLOOKUP(C34,'SINTÉTICO SICRO'!A:D,4,FALSE)),6) -> 458.94 | J34: =TRUNC(_xlfn.IFS(F34="SERV",I34*(1+$L$5),F34="SERV DIF",I34*(1+$L$6),F34="FORN",I34*(1+$L$7)),2) -> 560.18 | K34: 2092.78 | L34: 2554.44 | M34: 0.00170296 | N34: INCC | O34: 4.56004221
B35: 6.4 | C35: 5213400 | D35: SICRO | E35: Pintura de faixa com tinta acrílica - espessura de 0,4 mm | F35: SERV | G35: m² | H35: 182.4016884 | I35: =ROUND(IF(D35="CODEVASF",VLOOKUP(C35,'CPU CODEVASF'!E:I,5,FALSE),VLOOKUP(C35,'SINTÉTICO SICRO'!A:D,4,FALSE)),6) -> 21.29 | J35: =TRUNC(_xlfn.IFS(F35="SERV",I35*(1+$L$5),F35="SERV DIF",I35*(1+$L$6),F35="FORN",I35*(1+$L$7)),2) -> 25.98 | K35: 3883.33 | L35: 4738.79 | M35: 0.003159193333 | N35: INCC | O35: 182.4016884
B36: 7 | E36: DRENAGEM | K36: =SUM(K37:K38) -> 61579.41 | L36: =SUM(L37:L38) -> 75157.39 | M36: 0.05010492667 | O36: 0
B37: 7.1 | C37: 94273 | D37: SINAPI | E37: ASSENTAMENTO DE GUIA (MEIO-FIO) EM TRECHO RETO, CONFECCIONADA EM CONCRETO PRÉ-FABRICADO, DIMENSÕES 100X15X13X30 CM (COMPRIMENTO X BASE INFERIOR X BASE SUPERIOR X ALTURA). AF_01/2024 | F37: SERV | G37: m | H37: 1520.01407 | I37: =VLOOKUP(C37,'COMP Sint. Sinapi'!$A:$E,4,0) -> 40.27 | J37: =TRUNC(_xlfn.IFS(F37="SERV",I37*(1+$L$5),F37="SERV DIF",I37*(1+$L$6),F37="FORN",I37*(1+$L$7)),2) -> 49.15 | K37: =TRUNC(H37*I37,2) -> 61210.96 | L37: =TRUNC(H37*J37,2) -> 74708.69 | M37: 0.04980579333 | N37: DRENAGEM | O37: 1520.01407
B38: 7.2 | C38: 4915724 | D38: SICRO | E38: Caiação mecanizada com fixador de cal | F38: SERV | G38: m² | H38: 182.4016884 | I38: =ROUND(IF(D38="CODEVASF",VLOOKUP(C38,'CPU CODEVASF'!E:I,5,FALSE),VLOOKUP(C38,'SINTÉTICO SICRO'!A:D,4,FALSE)),6) -> 2.02 | J38: =TRUNC(_xlfn.IFS(F38="SERV",I38*(1+$L$5),F38="SERV DIF",I38*(1+$L$6),F38="FORN",I38*(1+$L$7)),2) -> 2.46 | K38: 368.45 | L38: 448.7 | M38: 0.0002991333333 | N38: INCC | O38: 182.4016884
B39: 8 | E39: SERVIÇOS COMPLEMENTARES | K39: =SUM(K40:K40) -> 1183.36 | L39: =SUM(L40:L40) -> 1444.01 | M39: 0.0009626733333 | O39: 0
B40: 8.1 | C40: CPU-02 | D40: Codevasf | E40: Conserto de quebra no ramal na rua sem pavimento com fornecimento de material hidráulico | F40: SERV | G40: m | H40: 76.00070349 | I40: =ROUND(IF(D40="CODEVASF",VLOOKUP(C40,'CPU CODEVASF'!E:I,5,FALSE),VLOOKUP(C40,'SINTÉTICO SICRO'!A:D,4,FALSE)),6) -> 15.57049 | J40: =TRUNC(_xlfn.IFS(F40="SERV",I40*(1+$L$5),F40="SERV DIF",I40*(1+$L$6),F40="FORN",I40*(1+$L$7)),2) -> 19 | K40: =TRUNC(H40*I40,2) -> 1183.36 | L40: =TRUNC(H40*J40,2) -> 1444.01 | M40: 0.0009626733333 | N40: INCC | O40: 76.00070349
B41: 9 | E41: PROJETO EXECUTIVO | K41: =SUM(K42:K42) -> 26434.07 | L41: =SUM(L42:L42) -> 32239.49 | M41: 0.02149299333 | O41: 0
B42: 9.1 | C42: CPU.7 | D42: Codevasf | E42: Projeto Executivo | F42: SERV | G42: m² | H42: 5320.049244 | I42: =ROUND(('Projeto Executivo'!G29)/(1+$L$5),6) -> 4.968766 | J42: =TRUNC(_xlfn.IFS(F42="SERV",I42*(1+$L$5),F42="SERV DIF",I42*(1+$L$6),F42="FORN",I42*(1+$L$7)),2) -> 6.06 | K42: =TRUNC(H42*I42,2) -> 26434.07 | L42: =TRUNC(H42*J42,2) -> 32239.49 | M42: 0.02149299333 | N42: INCC | O42: 5320.049244
B43: 10 | E43: MOMENTO DE TRANSPORTE | K43: =SUM(K44:K52) -> 320422.47 | L43: =SUM(L44:L52) -> 387744.62 | M43: 0.2584964133 | O43: 0
B44: 10.1 | C44: 5914359 | D44: SICRO | E44: Transporte com caminhão basculante de 10 m³ - rodovia em leito natural | F44: SERV | G44: tkm | H44: 5177.321147 | I44: =ROUND(IF(D44="CODEVASF",VLOOKUP(C44,'CPU CODEVASF'!E:I,5,FALSE),VLOOKUP(C44,'SINTÉTICO SICRO'!A:D,4,FALSE)),6) -> 1.23 | J44: =TRUNC(_xlfn.IFS(F44="SERV",I44*(1+$L$5),F44="SERV DIF",I44*(1+$L$6),F44="FORN",I44*(1+$L$7)),2) -> 1.5 | K44: =TRUNC(H44*I44,2) -> 6368.1 | L44: =TRUNC(H44*J44,2) -> 7765.98 | M44: 0.00517732 | N44: PAVIMENTAÇÃO | O44: 5177.321147
B45: 10.2 | C45: 5914374 | D45: SICRO | E45: Transporte com caminhão basculante de 10 m³ - rodovia em revestimento primário | F45: SERV | G45: tkm | H45: 5177.321147 | I45: =ROUND(IF(D45="CODEVASF",VLOOKUP(C45,'CPU CODEVASF'!E:I,5,FALSE),VLOOKUP(C45,'SINTÉTICO SICRO'!A:D,4,FALSE)),6) -> 0.99 | J45: =TRUNC(_xlfn.IFS(F45="SERV",I45*(1+$L$5),F45="SERV DIF",I45*(1+$L$6),F45="FORN",I45*(1+$L$7)),2) -> 1.2 | K45: 5125.54 | L45: 6212.78 | M45: 0.004141853333 | N45: PAVIMENTAÇÃO | O45: 5177.321147
B46: 10.3 | C46: 5914389 | D46: SICRO | E46: Transporte com caminhão basculante de 10 m³ - rodovia pavimentada | F46: SERV | G46: tkm | H46: 381259.9543 | I46: =ROUND(IF(D46="CODEVASF",VLOOKUP(C46,'CPU CODEVASF'!E:I,5,FALSE),VLOOKUP(C46,'SINTÉTICO SICRO'!A:D,4,FALSE)),6) -> 0.81 | J46: =TRUNC(_xlfn.IFS(F46="SERV",I46*(1+$L$5),F46="SERV DIF",I46*(1+$L$6),F46="FORN",I46*(1+$L$7)),2) -> 0.98 | K46: 308820.56 | L46: =TRUNC(H46*J46,2)+0.25 -> 373635 | M46: 0.24909 | N46: PAVIMENTAÇÃO | O46: 381259.9543
B47: 10.4 | C47: 5914449 | D47: SICRO | E47: Transporte com caminhão carroceria de 15 t - rodovia em leito natural | F47: SERV | G47: tkm | H47: 1.817815226 | I47: =ROUND(IF(D47="CODEVASF",VLOOKUP(C47,'CPU CODEVASF'!E:I,5,FALSE),VLOOKUP(C47,'SINTÉTICO SICRO'!A:D,4,FALSE)),6) -> 1.09 | J47: =TRUNC(_xlfn.IFS(F47="SERV",I47*(1+$L$5),F47="SERV DIF",I47*(1+$L$6),F47="FORN",I47*(1+$L$7)),2) -> 1.33 | K47: 1.98 | L47: 2.41 | M47: 1.606666667e-06 | N47: PAVIMENTAÇÃO | O47: 1.817815226
B48: 10.5 | C48: 5914464 | D48: SICRO | E48: Transporte com caminhão carroceria de 15 t - rodovia em revestimento primário | F48: SERV | G48: tkm | H48: 1.817815226 | I48: =ROUND(IF(D48="CODEVASF",VLOOKUP(C48,'CPU CODEVASF'!E:I,5,FALSE),VLOOKUP(C48,'SINTÉTICO SICRO'!A:D,4,FALSE)),6) -> 0.88 | J48: =TRUNC(_xlfn.IFS(F48="SERV",I48*(1+$L$5),F48="SERV DIF",I48*(1+$L$6),F48="FORN",I48*(1+$L$7)),2) -> 1.07 | K48: 1.59 | L48: 1.94 | M48: 1.293333333e-06 | N48: PAVIMENTAÇÃO | O48: 1.817815226
B49: 10.6 | C49: 5914479 | D49: SICRO | E49: Transporte com caminhão carroceria de 15 t - rodovia pavimentada | F49: SERV | G49: tkm | H49: 145.4252181 | I49: =ROUND(IF(D49="CODEVASF",VLOOKUP(C49,'CPU CODEVASF'!E:I,5,FALSE),VLOOKUP(C49,'SINTÉTICO SICRO'!A:D,4,FALSE)),6) -> 0.72 | J49: =TRUNC(_xlfn.IFS(F49="SERV",I49*(1+$L$5),F49="SERV DIF",I49*(1+$L$6),F49="FORN",I49*(1+$L$7)),2) -> 0.87 | K49: 104.7 | L49: 126.51 | M49: 8.434e-05 | N49: PAVIMENTAÇÃO | O49: 145.4252181
B50: 10.7 | C50: 5914569 | D50: SICRO | E50: Transporte com caminhão betoneira - rodovia pavimentada | F50: SERV | G50: tkm | H50: 0 | I50: =ROUND(IF(D50="CODEVASF",VLOOKUP(C50,'CPU CODEVASF'!E:I,5,FALSE),VLOOKUP(C50,'SINTÉTICO SICRO'!A:D,4,FALSE)),6) -> 0.74 | J50: =TRUNC(_xlfn.IFS(F50="SERV",I50*(1+$L$5),F50="SERV DIF",I50*(1+$L$6),F50="FORN",I50*(1+$L$7)),2) -> 0.9 | K50: 0 | L50: 0 | M50: 0 | N50: PAVIMENTAÇÃO | O50: 0
B51: 10.8 | C51: 5914554 | D51: SICRO | E51: Transporte com caminhão betoneira - rodovia em revestimento primário | F51: SERV | G51: tkm | H51: 0 | I51: =ROUND(IF(D51="CODEVASF",VLOOKUP(C51,'CPU CODEVASF'!E:I,5,FALSE),VLOOKUP(C51,'SINTÉTICO SICRO'!A:D,4,FALSE)),6) -> 0.9 | J51: =TRUNC(_xlfn.IFS(F51="SERV",I51*(1+$L$5),F51="SERV DIF",I51*(1+$L$6),F51="FORN",I51*(1+$L$7)),2) -> 1.09 | K51: 0 | L51: 0 | M51: 0 | N51: PAVIMENTAÇÃO | O51: 0
B52: 10.9 | C52: 5914539 | D52: SICRO | E52: Transporte com caminhão betoneira - rodovia em leito natural | F52: SERV | G52: tkm | H52: 0 | I52: =ROUND(IF(D52="CODEVASF",VLOOKUP(C52,'CPU CODEVASF'!E:I,5,FALSE),VLOOKUP(C52,'SINTÉTICO SICRO'!A:D,4,FALSE)),6) -> 1.13 | J52: =TRUNC(_xlfn.IFS(F52="SERV",I52*(1+$L$5),F52="SERV DIF",I52*(1+$L$6),F52="FORN",I52*(1+$L$7)),2) -> 1.37 | K52: 0 | L52: 0 | M52: 0 | N52: PAVIMENTAÇÃO | O52: 0
B53: TOTAL GERAL DA OBRA COM BDI | K53: =SUM(K10,K13,K17,K19,K22,K31,K36,K39,K41,K43) -> 1250852.57 | L53: =SUM(L10,L13,L17,L19,L22,L31,L36,L39,L41,L43) -> 1500000
M55: 1500000 | N55: =M55/L53 -> 1
B56: EXECUÇÃO DE SERVIÇOS DE IMPLANTAÇÃO DE PAVIMENTAÇÃO EM BLOCO DE CONCRETO INTERTRAVADO, EM VIAS URBANAS E RURAIS INSERIDAS NA ÁREA DE ATUAÇÃO DA CODEVASF, NO ESTADO DO CEARÁ | M56: =M55-L53 -> 0
L59: =TRUNC(L53/15,2) -> 100000

Sheet RESUMO MODULO TOTAL
E1: Ministério da Integração e do Desenvolvimento Regional
E2: Companhia de Desenvolvimento dos Vales do São Francisco e do Parnaíba
B5: OBRA: | C5: =B56 -> EXECUÇÃO DE SERVIÇOS DE IMPLANTAÇÃO DE PAVIMENTAÇÃO EM BLOCO DE CONCRETO INTERTRAVADO, EM VIAS URBANAS E RURAIS INSERIDAS NA ÁREA DE ATUAÇÃO DA CODEVASF, NO ESTADO DO CEARÁ | I5: BDI Serviços (%): | L5: =BDI!C14 -> 0.2206
B6: DATA: | C6: JULHO / 2025 | I6: BDI Diferenciado Serviços (%): | L6: =BDI!C69 -> 0.15
B7: PRAZO DE EXECUÇÃO: | G7: R$/m² | H7: =L53/H24 -> 281.9522773 | I7: BDI Fornecimentos (%): | L7: =L6 -> 0.15
B8: PLANILHA DE ORÇAMENTAÇÃO
B9: ITEM | C9: CÓDIGO | D9: FONTE | E9: DISCRIMINAÇÃO | F9: TIPO | G9: UNID. | H9: QUANT. | I9: VR.UNIT.S/BDI | J9: PR. UNIT.C/BDI | K9: C. TOT.S/BDI | L9: P. TOT.C/BDI | M9: =L53 -> 29604989.12
B10: 1 | E10: SERVIÇOS PRELIMINARES | K10: =SUM(K11:K12) -> 355181.42 | L10: =SUM(L11:L12) -> 433530 | M10: =L10/$L$53 -> 0.01464381555
B11: =[241]MEMÓRIA!B11 -> 1.1 | C11: CPU.1 | D11: Codevasf | E11: Mobilização | F11: SERV | G11: kmxfrente | H11: =Mob!B66*Mob!H6 -> 2250 | I11: =Mob!B63 -> 78.929205 | J11: =TRUNC(_xlfn.IFS(F11="SERV",I11*(1+$L$5),F11="SERV DIF",I11*(1+$L$6),F11="FORN",I11*(1+$L$7)),2) -> 96.34 | K11: =TRUNC(H11*I11,2) -> 177590.71 | L11: =TRUNC(H11*J11,2) -> 216765 | M11: 0.007321907774 | N11: INCC | P11: TERRAPLENAGEM | Q11: =(SUMIF(N:N,"TERRAPLENAGEM",L:L)/$L$53) -> 0.0121424804 | R11: =(SUMIF(N:N,"TERRAPLENAGEM",L:L)) -> 359478
B12: =[241]MEMÓRIA!B14 -> 1.2 | C12: CPU.2 | D12: Codevasf | E12: Desmobilização | F12: SERV | G12: kmxfrente | H12: =Mob!B66*Mob!H6 -> 2250 | I12: =Mob!B63 -> 78.929205 | J12: =TRUNC(_xlfn.IFS(F12="SERV",I12*(1+$L$5),F12="SERV DIF",I12*(1+$L$6),F12="FORN",I12*(1+$L$7)),2) -> 96.34 | K12: =TRUNC(H12*I12,2) -> 177590.71 | L12: =TRUNC(H12*J12,2) -> 216765 | M12: 0.007321907774 | N12: INCC | P12: PAVIMENTAÇÃO | Q12: =SUMIF(N:N,"PAVIMENTAÇÃO",L:L)/$L$53 -> 0.7120139773 | R12: =(SUMIF(N:N,"PAVIMENTAÇÃO",L:L)) -> 21079166.05
B13: =[241]MEMÓRIA!B34 -> 2 | E13: INSTALAÇÃO DE CANTEIRO | K13: =SUM(K14:K16) -> 2435305.35 | L13: =SUM(L14:L16) -> 2972533.35 | M13: 0.1004065003 | P13: CONSULTORIA | R13: =(SUMIF(N:N,"CONSULTORIA",M:M)) -> 0
B14: =[241]MEMÓRIA!B36 -> 2.1 | C14: Canteiro | D14: Codevasf | E14: Canteiro de Obras | F14: SERV | G14: und | H14: ='MC MODULO'!D10 -> 15 | I14: =' Canteiro'!F11 -> 34499.88 | J14: =TRUNC(_xlfn.IFS(F14="SERV",I14*(1+$L$5),F14="SERV DIF",I14*(1+$L$6),F14="FORN",I14*(1+$L$7)),2) -> 42110.55 | K14: =TRUNC(H14*I14,2) -> 517498.2 | L14: =TRUNC(H14*J14,2) -> 631658.25 | M14: 0.0213362095 | N14: INCC | P14: DRENAGEM | Q14: =SUMIF(N:N,"DRENAGEM",L:L)/$L$53 -> 0.04980579436 | R14: =(SUMIF(N:N,"DRENAGEM",L:L)) -> 1474500
B15: =[241]MEMÓRIA!B48 -> 2.2 | C15: 903808 | D15: SICRO | E15: Instalação da usina misturadora de solos com capacidade de 300 t/h | F15: SERV | G15: und | H15: ='MC MODULO'!D10 -> 15 | I15: =VLOOKUP(C15,'SINTÉTICO SICRO'!A:D,4,FALSE) -> 120628.37 | J15: =TRUNC(_xlfn.IFS(F15="SERV",I15*(1+$L$5),F15="SERV DIF",I15*(1+$L$6),F15="FORN",I15*(1+$L$7)),2) -> 147238.98 | K15: 1809425.55 | L15: 2208584.7 | M15: 0.07460177374 | N15: INCC
B16: =[241]MEMÓRIA!B61 -> 2.3 | C16: 103689 | D16: SINAPI | E16: Fornecimento e instalação de placa de obra com chapa galvanizada e estrutura de madeira. af_03/2022_ps | F16: SERV | G16: m² | H16: ='MC MODULO'!H25 -> 240 | I16: =VLOOKUP(C16,'COMP Sint. Sinapi'!$A:$E,4,0) -> 451.59 | J16: =TRUNC(_xlfn.IFS(F16="SERV",I16*(1+$L$5),F16="SERV DIF",I16*(1+$L$6),F16="FORN",I16*(1+$L$7)),2) -> 551.21 | K16: 108381.6 | L16: 132290.4 | M16: 0.004468517096 | N16: INCC | P16: ADMINISTRAÇÃO LOCAL | R16: =(SUMIF(N:N,"ADMINISTRAÇÃO LOCAL",M:M)) -> 0
B17: =[241]MEMÓRIA!B128 -> 3 | E17: ADMINISTRAÇÃO LOCAL DA OBRA | K17: =SUM(K18:K18) -> 1996389.21 | L17: =SUM(L18:L18) -> 2436792.67 | M17: 0.08231020319 | P17: SINALIZAÇÃO VERTICAL | R17: =(SUMIF(N:N,"SINALIZAÇÃO VERTICAL",M:M)) -> 0
B18: =[241]MEMÓRIA!B130 -> 3.1 | C18: Adm Local | D18: Codevasf | E18: Administração Local da Obra | F18: SERV | G18: und | H18: 1 | I18: ='Adm Local'!J249 -> 1996389.212 | J18: =TRUNC(_xlfn.IFS(F18="SERV",I18*(1+$L$5),F18="SERV DIF",I18*(1+$L$6),F18="FORN",I18*(1+$L$7)),2) -> 2436792.67 | K18: =TRUNC(H18*I18,2) -> 1996389.21 | L18: =TRUNC(H18*J18,2) -> 2436792.67 | M18: =L18/$L$53 -> 0.08231020319 | N18: INCC | P18: SINALIZAÇÃO HORIZONTAL | R18: =(SUMIF(N:N,"SINALIZAÇÃO HORIZONTAL",M:M)) -> 0
B19: =[241]MEMÓRIA!B156 -> 4 | E19: TERRAPLANAGEM | K19: =SUM(K20:K21) -> 294840 | L19: =SUM(L20:L21) -> 359478 | M19: 0.0121424804 | P19: CAP | R19: =(SUMIF(N:N,"CAP",M:M)) -> 0
B20: =[241]MEMÓRIA!B158 -> 4.1 | C20: 5502114 | D20: SICRO | E20: Escavação, carga e transporte de material de 1ª categoria - DMT de 1.000 a 1.200 m - caminho de serviço em leito natural - com escavadeira e caminhão basculante de 14 m³ | F20: SERV | G20: m³ | H20: ='MC MODULO'!H37 -> 28350 | I20: =ROUND(IF(D20="CODEVASF",VLOOKUP(C20,'CPU CODEVASF'!E:I,5,FALSE),VLOOKUP(C20,'SINTÉTICO SICRO'!A:D,4,FALSE)),6) -> 8.38 | J20: =TRUNC(_xlfn.IFS(F20="SERV",I20*(1+$L$5),F20="SERV DIF",I20*(1+$L$6),F20="FORN",I20*(1+$L$7)),2) -> 10.22 | K20: =TRUNC(H20*I20,2) -> 237573 | L20: =TRUNC(H20*J20,2) -> 289737 | M20: 0.00978676259 | N20: TERRAPLENAGEM | P20: IMPRIMAÇÃO | R20: =(SUMIF(N:N,"IMPRIMAÇÃO",M:M)) -> 0
B21: =[241]MEMÓRIA!B170 -> 4.2 | C21: 4413942 | D21: SICRO | E21: Espalhamento de material em bota-fora | F21: SERV | G21: m³ | H21: ='MC MODULO'!H44 -> 28350 | I21: =ROUND(IF(D21="CODEVASF",VLOOKUP(C21,'CPU CODEVASF'!E:I,5,FALSE),VLOOKUP(C21,'SINTÉTICO SICRO'!A:D,4,FALSE)),6) -> 2.02 | J21: =TRUNC(_xlfn.IFS(F21="SERV",I21*(1+$L$5),F21="SERV DIF",I21*(1+$L$6),F21="FORN",I21*(1+$L$7)),2) -> 2.46 | K21: 57267 | L21: 69741 | M21: 0.002355717805 | N21: TERRAPLENAGEM | P21: EMULSÃO ASFÁLTICA | R21: =(SUMIF(N:N,"EMULSÃO ASFÁLTICA",M:M)) -> 0
B22: =[241]MEMÓRIA!B363 -> 5 | E22: PAVIMENTAÇÃO | K22: =SUM(K23:K30) -> 11377755.06 | L22: =SUM(L23:L30) -> 13426384.65 | M22: 0.453517635 | P22: OBRAS COMPLEMENTARES | R22: =(SUMIF(N:N,"OBRAS COMPLEMENTARES",M:M)) -> 0
B23: 5.1 | C23: 36170 | D23: SINAPI | E23: bloquete/piso intertravado de concreto - modelo onda/16 faces/retangular/t ijolinho/paver/holandes/paralelepipedo, *22 cm x 11* cm, e = 8 cm, resistencia de 35 mpa (nbr 9781), cor natural | F23: FORN | G23: m² | H23: =H24*'CPU SINAPI'!E8 -> 105420 | I23: =ROUND(VLOOKUP(C23,'INSUMOS SINAPI'!$A:$E,5,0),6) -> 59.5 | J23: =TRUNC(_xlfn.IFS(F23="SERV",I23*(1+$L$5),F23="SERV DIF",I23*(1+$L$6),F23="FORN",I23*(1+$L$7)),2) -> 68.42 | K23: =TRUNC(H23*I23,2) -> 6272490 | L23: =TRUNC(H23*J23,2) -> 7212836.4 | M23: 0.2436358403 | N23: PAVIMENTAÇÃO | P23: MOBILIZAÇÃO | R23: =(SUMIF(N:N,"MOBILIZAÇÃO",M:M)) -> 0
B24: 5.2 | C24: 92404 ADAPTADA | D24: SINAPI | E24: execução de pavimento em piso intertravado, com bloco 16 faces de 22 x 11 cm, espessura 8 cm. af_10/2022 - exclusive fornecimento de bloquete | F24: SERV | G24: m² | H24: ='MC MODULO'!H51 -> 105000 | I24: =ROUND('CPU SINAPI'!G15,6) -> 15.81 | J24: =TRUNC(_xlfn.IFS(F24="SERV",I24*(1+$L$5),F24="SERV DIF",I24*(1+$L$6),F24="FORN",I24*(1+$L$7)),2) -> 19.29 | K24: 1660050 | L24: 2025450 | M24: 0.06841583328 | N24: PAVIMENTAÇÃO | P24: INCC | Q24: =(SUMIF(N:N,"INCC",L:L))/$L$53 -> 0.226037748 | R24: =(SUMIF(N:N,"INCC",L:L)) -> 6691845.07
B25: 5.3 | C25: 5914640 | D25: SICRO | E25: Transporte com cavalo mecânico com semirreboque com capacidade de 30 t - rodovia pavimentada | F25: SERV | G25: tkm | H25: ='MC MODULO'!H58 -> 2125200 | I25: =ROUND(IF(D25="CODEVASF",VLOOKUP(C25,'CPU CODEVASF'!E:I,5,FALSE),VLOOKUP(C25,'SINTÉTICO SICRO'!A:D,4,FALSE)),6) -> 0.58 | J25: =TRUNC(_xlfn.IFS(F25="SERV",I25*(1+$L$5),F25="SERV DIF",I25*(1+$L$6),F25="FORN",I25*(1+$L$7)),2) -> 0.7 | K25: 1232616 | L25: 1487640 | M25: 0.05024963846 | N25: PAVIMENTAÇÃO
B26: 5.4 | C26: 5915373 | D26: SICRO | E26: Carga, manobra e descarga de materiais diversos em caminhão carroceria com capacidade de 7 t e com guindauto de 20 t.m | F26: SERV | G26: t | H26: ='MC MODULO'!H64 -> 21252 | I26: =ROUND(IF(D26="CODEVASF",VLOOKUP(C26,'CPU CODEVASF'!E:I,5,FALSE),VLOOKUP(C26,'SINTÉTICO SICRO'!A:D,4,FALSE)),6) -> 18.03 | J26: =TRUNC(_xlfn.IFS(F26="SERV",I26*(1+$L$5),F26="SERV DIF",I26*(1+$L$6),F26="FORN",I26*(1+$L$7)),2) -> 22 | K26: 383173.56 | L26: 467544 | M26: 0.01579274352 | N26: PAVIMENTAÇÃO
B27: 5.5 | C27: 5915321 | D27: SICRO | E27: Transporte com caminhão basculante de 14 m³ - rodovia pavimentada (areia) | F27: SERV | G27: tkm | H27: ='MC MODULO'!H68 -> 315000 | I27: =ROUND(IF(D27="CODEVASF",VLOOKUP(C27,'CPU CODEVASF'!E:I,5,FALSE),VLOOKUP(C27,'SINTÉTICO SICRO'!A:D,4,FALSE)),6) -> 0.68 | J27: =TRUNC(_xlfn.IFS(F27="SERV",I27*(1+$L$5),F27="SERV DIF",I27*(1+$L$6),F27="FORN",I27*(1+$L$7)),2) -> 0.83 | K27: 214200 | L27: 261450 | M27: 0.008831281746 | N27: PAVIMENTAÇÃO
B28: 5.6 | C28: 5915321 | D28: SICRO | E28: Transporte com caminhão basculante de 14 m³ - rodovia pavimentada (pó de pedra) | F28: SERV | G28: tkm | H28: ='MC MODULO'!H73 -> 99225 | I28: =ROUND(IF(D28="CODEVASF",VLOOKUP(C28,'CPU CODEVASF'!E:I,5,FALSE),VLOOKUP(C28,'SINTÉTICO SICRO'!A:D,4,FALSE)),6) -> 0.68 | J28: =TRUNC(_xlfn.IFS(F28="SERV",I28*(1+$L$5),F28="SERV DIF",I28*(1+$L$6),F28="FORN",I28*(1+$L$7)),2) -> 0.83 | K28: 67473 | L28: 82356.75 | M28: 0.00278185375 | N28: PAVIMENTAÇÃO
B29: 5.7 | C29: 4011318 | D29: SICRO | E29: Base ou sub-base estabilizada granulometricamente com mistura solo brita (70% - 30%) em usina com material de jazida e brita comercial - 100% Proctor modificado | F29: SERV | G29: m³ | H29: ='MC MODULO'!H78 -> 15750 | I29: =ROUND(IF(D29="CODEVASF",VLOOKUP(C29,'CPU CODEVASF'!E:I,5,FALSE),VLOOKUP(C29,'SINTÉTICO SICRO'!A:D,4,FALSE)),6) -> 87.67 | J29: =TRUNC(_xlfn.IFS(F29="SERV",I29*(1+$L$5),F29="SERV DIF",I29*(1+$L$6),F29="FORN",I29*(1+$L$7)),2) -> 107.01 | K29: 1380802.5 | L29: 1685407.5 | M29: 0.05692984696 | N29: PAVIMENTAÇÃO
B30: 5.8 | C30: 4011209 | D30: SICRO | E30: Regularização do subleito - 100% Proctor intermediário | F30: SERV | G30: m² | H30: ='MC MODULO'!H83 -> 105000 | I30: =ROUND(IF(D30="CODEVASF",VLOOKUP(C30,'CPU CODEVASF'!E:I,5,FALSE),VLOOKUP(C30,'SINTÉTICO SICRO'!A:D,4,FALSE)),6) -> 1.59 | J30: =TRUNC(_xlfn.IFS(F30="SERV",I30*(1+$L$5),F30="SERV DIF",I30*(1+$L$6),F30="FORN",I30*(1+$L$7)),2) -> 1.94 | K30: 166950 | L30: 203700 | M30: 0.006880597023 | N30: PAVIMENTAÇÃO
B31: 6 | E31: SINALIZAÇÃO | K31: =SUM(K32:K35) -> 143665.2 | L31: =SUM(L32:L35) -> 175333.05 | M31: 0.00592241562
B32: 6.1 | C32: 5213440 | D32: SICRO | E32: Placa de regulamentação em aço D = 0,60 m - película retrorrefletiva tipo I + SI - fornecimento e implantação | F32: SERV | G32: und | H32: ='MC MODULO'!H90 -> 45 | I32: =ROUND(IF(D32="CODEVASF",VLOOKUP(C32,'CPU CODEVASF'!E:I,5,FALSE),VLOOKUP(C32,'SINTÉTICO SICRO'!A:D,4,FALSE)),6) -> 285.72 | J32: =TRUNC(_xlfn.IFS(F32="SERV",I32*(1+$L$5),F32="SERV DIF",I32*(1+$L$6),F32="FORN",I32*(1+$L$7)),2) -> 348.74 | K32: =TRUNC(H32*I32,2) -> 12857.4 | L32: =TRUNC(H32*J32,2) -> 15693.3 | M32: 0.0005300897067 | N32: INCC
B33: 6.2 | C33: 5213464 | D33: SICRO | E33: Placa de advertência em aço, lado de 0,60 m - película retrorrefletiva tipo I + SI - fornecimento e implantação | F33: SERV | G33: und | H33: ='MC MODULO'!H95 -> 45 | I33: =ROUND(IF(D33="CODEVASF",VLOOKUP(C33,'CPU CODEVASF'!E:I,5,FALSE),VLOOKUP(C33,'SINTÉTICO SICRO'!A:D,4,FALSE)),6) -> 285.76 | J33: =TRUNC(_xlfn.IFS(F33="SERV",I33*(1+$L$5),F33="SERV DIF",I33*(1+$L$6),F33="FORN",I33*(1+$L$7)),2) -> 348.79 | K33: 12859.2 | L33: 15695.55 | M33: 0.0005301657074 | N33: INCC
B34: 6.3 | C34: 5213863 | D34: SICRO | E34: Suporte metálico galvanizado para placa de advertência ou regulamentação - lado ou diâmetro de 0,60 m - fornecimento e implantação | F34: SERV | G34: und | H34: ='MC MODULO'!H101 -> 90 | I34: =ROUND(IF(D34="CODEVASF",VLOOKUP(C34,'CPU CODEVASF'!E:I,5,FALSE),VLOOKUP(C34,'SINTÉTICO SICRO'!A:D,4,FALSE)),6) -> 458.94 | J34: =TRUNC(_xlfn.IFS(F34="SERV",I34*(1+$L$5),F34="SERV DIF",I34*(1+$L$6),F34="FORN",I34*(1+$L$7)),2) -> 560.18 | K34: 41304.6 | L34: 50416.2 | M34: 0.001702962963 | N34: INCC
B35: 6.4 | C35: 5213400 | D35: SICRO | E35: Pintura de faixa com tinta acrílica - espessura de 0,4 mm | F35: SERV | G35: m² | H35: ='MC MODULO'!H106+'MC MODULO'!H111 -> 3600 | I35: =ROUND(IF(D35="CODEVASF",VLOOKUP(C35,'CPU CODEVASF'!E:I,5,FALSE),VLOOKUP(C35,'SINTÉTICO SICRO'!A:D,4,FALSE)),6) -> 21.29 | J35: =TRUNC(_xlfn.IFS(F35="SERV",I35*(1+$L$5),F35="SERV DIF",I35*(1+$L$6),F35="FORN",I35*(1+$L$7)),2) -> 25.98 | K35: 76644 | L35: 93528 | M35: 0.003159197243 | N35: INCC
B36: 7 | E36: DRENAGEM | K36: =SUM(K37:K38) -> 1215372 | L36: =SUM(L37:L38) -> 1483356 | M36: 0.05010493312
B37: 7.1 | C37: 94273 | D37: SINAPI | E37: ASSENTAMENTO DE GUIA (MEIO-FIO) EM TRECHO RETO, CONFECCIONADA EM CONCRETO PRÉ-FABRICADO, DIMENSÕES 100X15X13X30 CM (COMPRIMENTO X BASE INFERIOR X BASE SUPERIOR X ALTURA). AF_01/2024 | F37: SERV | G37: m | H37: ='MC MODULO'!H118 -> 30000 | I37: =VLOOKUP(C37,'COMP Sint. Sinapi'!$A:$E,4,0) -> 40.27 | J37: =TRUNC(_xlfn.IFS(F37="SERV",I37*(1+$L$5),F37="SERV DIF",I37*(1+$L$6),F37="FORN",I37*(1+$L$7)),2) -> 49.15 | K37: =TRUNC(H37*I37,2) -> 1208100 | L37: =TRUNC(H37*J37,2) -> 1474500 | M37: 0.04980579436 | N37: DRENAGEM
B38: 7.2 | C38: 4915724 | D38: SICRO | E38: Caiação mecanizada com fixador de cal | F38: SERV | G38: m² | H38: ='MC MODULO'!H123 -> 3600 | I38: =ROUND(IF(D38="CODEVASF",VLOOKUP(C38,'CPU CODEVASF'!E:I,5,FALSE),VLOOKUP(C38,'SINTÉTICO SICRO'!A:D,4,FALSE)),6) -> 2.02 | J38: =TRUNC(_xlfn.IFS(F38="SERV",I38*(1+$L$5),F38="SERV DIF",I38*(1+$L$6),F38="FORN",I38*(1+$L$7)),2) -> 2.46 | K38: 7272 | L38: 8856 | M38: 0.0002991387689 | N38: INCC
B39: 8 | E39: SERVIÇOS COMPLEMENTARES | K39: =SUM(K40:K40) -> 23355.73 | L39: =SUM(L40:L40) -> 28500 | M39: 0.0009626755776
B40: 8.1 | C40: CPU-02 | D40: Codevasf | E40: Conserto de quebra no ramal na rua sem pavimento com fornecimento de material hidráulico | F40: SERV | G40: m | H40: ='MC MODULO'!H130 -> 1500 | I40: =ROUND(IF(D40="CODEVASF",VLOOKUP(C40,'CPU CODEVASF'!E:I,5,FALSE),VLOOKUP(C40,'SINTÉTICO SICRO'!A:D,4,FALSE)),6) -> 15.57049 | J40: =TRUNC(_xlfn.IFS(F40="SERV",I40*(1+$L$5),F40="SERV DIF",I40*(1+$L$6),F40="FORN",I40*(1+$L$7)),2) -> 19 | K40: =TRUNC(H40*I40,2) -> 23355.73 | L40: =TRUNC(H40*J40,2) -> 28500 | M40: 0.0009626755776 | N40: INCC
B41: 9 | E41: PROJETO EXECUTIVO | K41: =SUM(K42:K42) -> 521720.43 | L41: =SUM(L42:L42) -> 636300 | M41: 0.02149299895
B42: 9.1 | C42: CPU.7 | D42: Codevasf | E42: Projeto Executivo | F42: SERV | G42: m² | H42: ='MC MODULO'!H137 -> 105000 | I42: =ROUND(('Projeto Executivo'!G29)/(1+$L$5),6) -> 4.968766 | J42: =TRUNC(_xlfn.IFS(F42="SERV",I42*(1+$L$5),F42="SERV DIF",I42*(1+$L$6),F42="FORN",I42*(1+$L$7)),2) -> 6.06 | K42: =TRUNC(H42*I42,2) -> 521720.43 | L42: =TRUNC(H42*J42,2) -> 636300 | M42: 0.02149299895 | N42: INCC
B43: 10 | E43: MOMENTO DE TRANSPORTE | K43: =SUM(K44:K52) -> 6324071.57 | L43: =SUM(L44:L52) -> 7652781.4 | M43: 0.2584963423
B44: 10.1 | C44: 5914359 | D44: SICRO | E44: Transporte com caminhão basculante de 10 m³ - rodovia em leito natural | F44: SERV | G44: tkm | H44: =SUMIF('MOMENTO DE TRANSPORTE - PRINC'!A:A,'RESUMO MODULO TOTAL'!C44,'MOMENTO DE TRANSPORTE - PRINC'!K:K)+SUMIF('MOMENTO DE TRANSPORTE - AUX'!A:A,'RESUMO MODULO TOTAL'!C44,'MOMENTO DE TRANSPORTE - AUX'!K:K) -> 102183.0241 | I44: =ROUND(IF(D44="CODEVASF",VLOOKUP(C44,'CPU CODEVASF'!E:I,5,FALSE),VLOOKUP(C44,'SINTÉTICO SICRO'!A:D,4,FALSE)),6) -> 1.23 | J44: =TRUNC(_xlfn.IFS(F44="SERV",I44*(1+$L$5),F44="SERV DIF",I44*(1+$L$6),F44="FORN",I44*(1+$L$7)),2) -> 1.5 | K44: =TRUNC(H44*I44,2) -> 125685.11 | L44: =TRUNC(H44*J44,2) -> 153274.53 | M44: 0.005177320937 | N44: PAVIMENTAÇÃO
B45: 10.2 | C45: 5914374 | D45: SICRO | E45: Transporte com caminhão basculante de 10 m³ - rodovia em revestimento primário | F45: SERV | G45: tkm | H45: =SUMIF('MOMENTO DE TRANSPORTE - PRINC'!A:A,'RESUMO MODULO TOTAL'!C45,'MOMENTO DE TRANSPORTE - PRINC'!K:K)+SUMIF('MOMENTO DE TRANSPORTE - AUX'!A:A,'RESUMO MODULO TOTAL'!C45,'MOMENTO DE TRANSPORTE - AUX'!K:K) -> 102183.0241 | I45: =ROUND(IF(D45="CODEVASF",VLOOKUP(C45,'CPU CODEVASF'!E:I,5,FALSE),VLOOKUP(C45,'SINTÉTICO SICRO'!A:D,4,FALSE)),6) -> 0.99 | J45: =TRUNC(_xlfn.IFS(F45="SERV",I45*(1+$L$5),F45="SERV DIF",I45*(1+$L$6),F45="FORN",I45*(1+$L$7)),2) -> 1.2 | K45: 101161.19 | L45: 122619.62 | M45: 0.004141856614 | N45: PAVIMENTAÇÃO
B46: 10.3 | C46: 5914389 | D46: SICRO | E46: Transporte com caminhão basculante de 10 m³ - rodovia pavimentada | F46: SERV | G46: tkm | H46: =SUMIF('MOMENTO DE TRANSPORTE - PRINC'!A:A,'RESUMO MODULO TOTAL'!C46,'MOMENTO DE TRANSPORTE - PRINC'!K:K)+SUMIF('MOMENTO DE TRANSPORTE - AUX'!A:A,'RESUMO MODULO TOTAL'!C46,'MOMENTO DE TRANSPORTE - AUX'!K:K) -> 7524800.082 | I46: =ROUND(IF(D46="CODEVASF",VLOOKUP(C46,'CPU CODEVASF'!E:I,5,FALSE),VLOOKUP(C46,'SINTÉTICO SICRO'!A:D,4,FALSE)),6) -> 0.81 | J46: =TRUNC(_xlfn.IFS(F46="SERV",I46*(1+$L$5),F46="SERV DIF",I46*(1+$L$6),F46="FORN",I46*(1+$L$7)),2) -> 0.98 | K46: 6095088.06 | L46: 7374304.08 | M46: 0.2490899102 | N46: PAVIMENTAÇÃO
B47: 10.4 | C47: 5914449 | D47: SICRO | E47: Transporte com caminhão carroceria de 15 t - rodovia em leito natural | F47: SERV | G47: tkm | H47: =SUMIF('MOMENTO DE TRANSPORTE - PRINC'!A:A,'RESUMO MODULO TOTAL'!C47,'MOMENTO DE TRANSPORTE - PRINC'!K:K)+SUMIF('MOMENTO DE TRANSPORTE - AUX'!A:A,'RESUMO MODULO TOTAL'!C47,'MOMENTO DE TRANSPORTE - AUX'!K:K) -> 35.8776 | I47: =ROUND(IF(D47="CODEVASF",VLOOKUP(C47,'CPU CODEVASF'!E:I,5,FALSE),VLOOKUP(C47,'SINTÉTICO SICRO'!A:D,4,FALSE)),6) -> 1.09 | J47: =TRUNC(_xlfn.IFS(F47="SERV",I47*(1+$L$5),F47="SERV DIF",I47*(1+$L$6),F47="FORN",I47*(1+$L$7)),2) -> 1.33 | K47: 39.1 | L47: 47.71 | M47: 1.611552695e-06 | N47: PAVIMENTAÇÃO
B48: 10.5 | C48: 5914464 | D48: SICRO | E48: Transporte com caminhão carroceria de 15 t - rodovia em revestimento primário | F48: SERV | G48: tkm | H48: =SUMIF('MOMENTO DE TRANSPORTE - PRINC'!A:A,'RESUMO MODULO TOTAL'!C48,'MOMENTO DE TRANSPORTE - PRINC'!K:K)+SUMIF('MOMENTO DE TRANSPORTE - AUX'!A:A,'RESUMO MODULO TOTAL'!C48,'MOMENTO DE TRANSPORTE - AUX'!K:K) -> 35.8776 | I48: =ROUND(IF(D48="CODEVASF",VLOOKUP(C48,'CPU CODEVASF'!E:I,5,FALSE),VLOOKUP(C48,'SINTÉTICO SICRO'!A:D,4,FALSE)),6) -> 0.88 | J48: =TRUNC(_xlfn.IFS(F48="SERV",I48*(1+$L$5),F48="SERV DIF",I48*(1+$L$6),F48="FORN",I48*(1+$L$7)),2) -> 1.07 | K48: 31.57 | L48: 38.38 | M48: 1.296403111e-06 | N48: PAVIMENTAÇÃO
B49: 10.6 | C49: 5914479 | D49: SICRO | E49: Transporte com caminhão carroceria de 15 t - rodovia pavimentada | F49: SERV | G49: tkm | H49: =SUMIF('MOMENTO DE TRANSPORTE - PRINC'!A:A,'RESUMO MODULO TOTAL'!C49,'MOMENTO DE TRANSPORTE - PRINC'!K:K)+SUMIF('MOMENTO DE TRANSPORTE - AUX'!A:A,'RESUMO MODULO TOTAL'!C49,'MOMENTO DE TRANSPORTE - AUX'!K:K) -> 2870.208 | I49: =ROUND(IF(D49="CODEVASF",VLOOKUP(C49,'CPU CODEVASF'!E:I,5,FALSE),VLOOKUP(C49,'SINTÉTICO SICRO'!A:D,4,FALSE)),6) -> 0.72 | J49: =TRUNC(_xlfn.IFS(F49="SERV",I49*(1+$L$5),F49="SERV DIF",I49*(1+$L$6),F49="FORN",I49*(1+$L$7)),2) -> 0.87 | K49: 2066.54 | L49: 2497.08 | M49: 8.434659408e-05 | N49: PAVIMENTAÇÃO
B50: 10.7 | C50: 5914569 | D50: SICRO | E50: Transporte com caminhão betoneira - rodovia pavimentada | F50: SERV | G50: tkm | H50: =SUMIF('MOMENTO DE TRANSPORTE - PRINC'!A:A,'RESUMO MODULO TOTAL'!C50,'MOMENTO DE TRANSPORTE - PRINC'!K:K)+SUMIF('MOMENTO DE TRANSPORTE - AUX'!A:A,'RESUMO MODULO TOTAL'!C50,'MOMENTO DE TRANSPORTE - AUX'!K:K) -> 0 | I50: =ROUND(IF(D50="CODEVASF",VLOOKUP(C50,'CPU CODEVASF'!E:I,5,FALSE),VLOOKUP(C50,'SINTÉTICO SICRO'!A:D,4,FALSE)),6) -> 0.74 | J50: =TRUNC(_xlfn.IFS(F50="SERV",I50*(1+$L$5),F50="SERV DIF",I50*(1+$L$6),F50="FORN",I50*(1+$L$7)),2) -> 0.9 | K50: 0 | L50: 0 | M50: 0 | N50: PAVIMENTAÇÃO
B51: 10.8 | C51: 5914554 | D51: SICRO | E51: Transporte com caminhão betoneira - rodovia em revestimento primário | F51: SERV | G51: tkm | H51: =SUMIF('MOMENTO DE TRANSPORTE - PRINC'!A:A,'RESUMO MODULO TOTAL'!C51,'MOMENTO DE TRANSPORTE - PRINC'!K:K)+SUMIF('MOMENTO DE TRANSPORTE - AUX'!A:A,'RESUMO MODULO TOTAL'!C51,'MOMENTO DE TRANSPORTE - AUX'!K:K) -> 0 | I51: =ROUND(IF(D51="CODEVASF",VLOOKUP(C51,'CPU CODEVASF'!E:I,5,FALSE),VLOOKUP(C51,'SINTÉTICO SICRO'!A:D,4,FALSE)),6) -> 0.9 | J51: =TRUNC(_xlfn.IFS(F51="SERV",I51*(1+$L$5),F51="SERV DIF",I51*(1+$L$6),F51="FORN",I51*(1+$L$7)),2) -> 1.09 | K51: 0 | L51: 0 | M51: 0 | N51: PAVIMENTAÇÃO
B52: 10.9 | C52: 5914539 | D52: SICRO | E52: Transporte com caminhão betoneira - rodovia em leito natural | F52: SERV | G52: tkm | H52: =SUMIF('MOMENTO DE TRANSPORTE - PRINC'!A:A,'RESUMO MODULO TOTAL'!C52,'MOMENTO DE TRANSPORTE - PRINC'!K:K)+SUMIF('MOMENTO DE TRANSPORTE - AUX'!A:A,'RESUMO MODULO TOTAL'!C52,'MOMENTO DE TRANSPORTE - AUX'!K:K) -> 0 | I52: =ROUND(IF(D52="CODEVASF",VLOOKUP(C52,'CPU CODEVASF'!E:I,5,FALSE),VLOOKUP(C52,'SINTÉTICO SICRO'!A:D,4,FALSE)),6) -> 1.13 | J52: =TRUNC(_xlfn.IFS(F52="SERV",I52*(1+$L$5),F52="SERV DIF",I52*(1+$L$6),F52="FORN",I52*(1+$L$7)),2) -> 1.37 | K52: 0 | L52: 0 | M52: 0 | N52: PAVIMENTAÇÃO
B53: TOTAL GERAL DA OBRA COM BDI | K53: =SUM(K10,K13,K17,K19,K22,K31,K36,K39,K41,K43) -> 24687655.97 | L53: =SUM(L10,L13,L17,L19,L22,L31,L36,L39,L41,L43) -> 29604989.12
M55: 2436792.672 | N55: =M55/L53 -> 0.08231020326
B56: EXECUÇÃO DE SERVIÇOS DE IMPLANTAÇÃO DE PAVIMENTAÇÃO EM BLOCO DE CONCRETO INTERTRAVADO, EM VIAS URBANAS E RURAIS INSERIDAS NA ÁREA DE ATUAÇÃO DA CODEVASF, NO ESTADO DO CEARÁ
L59: =TRUNC(L53/15,2) -> 1973665.94

Sheet CRONOGRAMA TOTAL
E1: Ministério da Integração e do Desenvolvimento Regional
A2: ='RESUMO MODULO TOTAL'!B56 -> EXECUÇÃO DE SERVIÇOS DE IMPLANTAÇÃO DE PAVIMENTAÇÃO EM BLOCO DE CONCRETO INTERTRAVADO, EM VIAS URBANAS E RURAIS INSERIDAS NA ÁREA DE ATUAÇÃO DA CODEVASF, NO ESTADO DO CEARÁ
A3: Cronograma Físico e Financeiro
A4: Item | B4: Descrição | C4: Total Por Etapa | D4: 30 DIAS | E4: 60 DIAS | F4: 90 DIAS | G4: 120 DIAS | H4: 150 DIAS | I4: 180 DIAS | J4: 210 DIAS | K4: 240 DIAS | L4: 270 DIAS | M4: 300 DIAS | N4: 330 DIAS | O4: 360 DIAS
B5: ='RESUMO MODULO TOTAL'!E10 -> SERVIÇOS PRELIMINARES | C5: =SUM(D5:O5) -> 1 | D5: 0.5 | O5: 0.5
C6: ='RESUMO MODULO TOTAL'!L10 -> 433530 | D6: =$C$6*D5 -> 216765 | O6: =$C$6*O5 -> 216765 | P6: =SUM(D6:O6) -> 433530 | Q6: =IF(P6=C6,"OK","") -> OK
B7: ='RESUMO MODULO TOTAL'!E13 -> INSTALAÇÃO DE CANTEIRO | C7: =SUM(D7:O7) -> 1 | D7: 0.1 | E7: 0.5 | F7: 0.4
C8: ='RESUMO MODULO TOTAL'!L13 -> 2972533.35 | D8: =$C$8*D7 -> 297253.335 | E8: =$C$8*E7 -> 1486266.675 | F8: 1189013.34 | G8: 0 | H8: 0 | I8: 0 | J8: 0 | K8: 0 | L8: 0 | M8: 0 | N8: 0 | O8: 0 | P8: =SUM(D8:O8) -> 2972533.35 | Q8: =IF(P8=C8,"OK","") -> OK
B9: ='RESUMO MODULO TOTAL'!E17 -> ADMINISTRAÇÃO LOCAL DA OBRA | C9: =SUM(D9:O9) -> 1 | D9: =(D6+D8+D12+D14+D16+D18+D20+D22+D24)/($O$31-$C$10) -> 0.01891985491 | E9: =(E6+E8+E12+E14+E16+E18+E20+E22+E24)/($O$31-$C$10) -> 0.0547061222 | F9: 0.07524095255 | G9: 0.03147605479 | H9: 0.04318643831 | I9: 0.1396363388 | J9: 0.1105339812 | K9: 0.1105339812 | L9: 0.1105339812 | M9: 0.1105339812 | N9: 0.1383579849 | O9: 0.05634032877
C10: ='RESUMO MODULO TOTAL'!L17 -> 2436792.67 | D10: =$C$10*D9 -> 46103.76376 | E10: =$C$10*E9 -> 133307.4776 | F10: =$C$10*F9 -> 183346.6017 | G10: 76700.61959 | H10: 105236.3963 | I10: 340264.8069 | J10: 269348.3951 | K10: 269348.3951 | L10: 269348.3951 | M10: 269348.3951 | N10: 337149.7235 | O10: 137289.7002 | P10: =SUM(D10:O10) -> 2436792.67 | Q10: =IF(P10=C10,"OK","") -> OK
B11: ='RESUMO MODULO TOTAL'!E19 -> TERRAPLANAGEM | C11: =SUM(D11:O11) -> 1 | F11: =1/4 -> 0.25 | G11: =1/4 -> 0.25 | H11: =1/4 -> 0.25 | I11: =1/4 -> 0.25
C12: ='RESUMO MODULO TOTAL'!L19 -> 359478 | D12: =$C$14*D11 -> 0 | E12: =$C$12*E11 -> 0 | F12: 89869.5 | G12: 89869.5 | H12: 89869.5 | I12: 89869.5 | J12: 0 | K12: 0 | L12: 0 | M12: 0 | N12: 0 | O12: 0 | P12: =SUM(D12:O12) -> 359478 | Q12: =IF(P12=C12,"OK","") -> OK
B13: ='RESUMO MODULO TOTAL'!E22 -> PAVIMENTAÇÃO | C13: =SUM(D13:O13) -> 1 | I13: =1/6 -> 0.1666666667 | J13: =1/6 -> 0.1666666667 | K13: 0.1666666667 | L13: 0.1666666667 | M13: 0.1666666667 | N13: 0.1666666667
C14: ='RESUMO MODULO TOTAL'!L22 -> 13426384.65 | D14: =$C$14*D13 -> 0 | E14: =$C$14*E13 -> 0 | F14: 0 | G14: 0 | H14: 0 | I14: 2237730.775 | J14: 2237730.775 | K14: 2237730.775 | L14: 2237730.775 | M14: 2237730.775 | N14: 2237730.775 | O14: 0 | P14: =SUM(D14:O14) -> 13426384.65 | Q14: =IF(P14=C14,"OK","") -> OK
B15: ='RESUMO MODULO TOTAL'!E31 -> SINALIZAÇÃO | C15: =SUM(D15:O15) -> 1 | O15: 1
C16: ='RESUMO MODULO TOTAL'!L31 -> 175333.05 | D16: =$C$16*D15 -> 0 | E16: =$C$16*E15 -> 0 | F16: 0 | G16: 0 | H16: 0 | I16: 0 | J16: 0 | K16: 0 | L16: 0 | M16: 0 | N16: 0 | O16: 175333.05 | P16: =SUM(D16:O16) -> 175333.05 | Q16: =IF(P16=C16,"OK","") -> OK
B17: ='RESUMO MODULO TOTAL'!E36 -> DRENAGEM | C17: =SUM(D17:O17) -> 1 | N17: 0.5 | O17: 0.5
C18: ='RESUMO MODULO TOTAL'!L36 -> 1483356 | D18: =$C$18*D17 -> 0 | E18: =$C$18*E17 -> 0 | F18: 0 | G18: 0 | H18: 0 | I18: 0 | J18: 0 | K18: 0 | L18: 0 | M18: 0 | N18: 741678 | O18: 741678 | P18: =SUM(D18:O18) -> 1483356 | Q18: =IF(P18=C18,"OK","") -> OK
B19: ='RESUMO MODULO TOTAL'!E39 -> SERVIÇOS COMPLEMENTARES | C19: =SUM(D19:O19) -> 1 | N19: 0.5 | O19: 0.5
C20: ='RESUMO MODULO TOTAL'!L39 -> 28500 | D20: =$C$20*D19 -> 0 | E20: =$C$20*E19 -> 0 | F20: 0 | G20: 0 | H20: 0 | I20: 0 | J20: 0 | K20: 0 | L20: 0 | M20: 0 | N20: 14250 | O20: 14250 | P20: =SUM(D20:O20) -> 28500 | Q20: =IF(P20=C20,"OK","") -> OK
B21: ='RESUMO MODULO TOTAL'!E41 -> PROJETO EXECUTIVO | C21: =SUM(D21:O21) -> 1 | H21: 0.5 | I21: 0.5
C22: ='RESUMO MODULO TOTAL'!L41 -> 636300 | D22: =$C$22*D21 -> 0 | E22: =$C$22*E21 -> 0 | F22: 0 | G22: 0 | H22: 318150 | I22: 318150 | J22: 0 | K22: 0 | L22: 0 | M22: 0 | N22: 0 | O22: 0 | P22: =SUM(D22:O22) -> 636300 | Q22: =IF(P22=C22,"OK","") -> OK
B23: ='RESUMO MODULO TOTAL'!E43 -> MOMENTO DE TRANSPORTE | C23: =SUM(D23:O23) -> 1 | F23: 0.1 | G23: 0.1 | H23: 0.1 | I23: 0.15 | J23: 0.1 | K23: 0.1 | L23: 0.1 | M23: 0.1 | N23: 0.1 | O23: 0.05
C24: ='RESUMO MODULO TOTAL'!L43 -> 7652781.4 | D24: =$C$24*D23 -> 0 | E24: =$C$24*E23 -> 0 | F24: 765278.14 | G24: 765278.14 | H24: 765278.14 | I24: 1147917.21 | J24: 765278.14 | K24: 765278.14 | L24: 765278.14 | M24: 765278.14 | N24: 765278.14 | O24: 382639.07 | P24: =SUM(D24:O24) -> 7652781.4 | Q24: =IF(P24=C24,"OK","") -> OK
A26: Porcentagem | D26: =SUM(D6+D8+D10+D12+D14+D16+D18+D20+D22+D24)/$O$31 -> 0.01891985491 | E26: =SUM(E6+E8+E10+E12+E14+E16+E18+E20+E22+E24)/$O$31 -> 0.0547061222 | F26: 0.07524095255 | G26: 0.03147605479 | H26: 0.04318643831 | I26: 0.1396363388 | J26: 0.1105339812 | K26: 0.1105339812 | L26: 0.1105339812 | M26: 0.1105339812 | N26: 0.1383579849 | O26: 0.05634032877
A27: Custo | D27: =$O$31*D26 -> 560122.0988 | E27: =$O$31*E26 -> 1619574.153 | F27: =$O$31*F26 -> 2227507.582 | G27: 931848.2596 | H27: 1278534.036 | I27: 4133932.292 | J27: 3272357.31 | K27: 3272357.31 | L27: 3272357.31 | M27: 3272357.31 | N27: 4096086.639 | O27: 1667954.82
A28: Porcentagem Acumulado | D28: =D26 -> 0.01891985491 | E28: =D28+E26 -> 0.07362597711 | F28: =E28+F26 -> 0.1488669297 | G28: 0.1803429845 | H28: 0.2235294228 | I28: 0.3631657616 | J28: 0.4736997428 | K28: 0.584233724 | L28: 0.6947677051 | M28: 0.8053016863 | N28: 0.9436596712 | O28: =N28+O26 -> 1
A29: Custo Acumulado | D29: =D27 -> 560122.0988 | E29: =D29+E27 -> 2179696.251 | F29: 4407203.833 | G29: 5339052.093 | H29: 6617586.129 | I29: 10751518.42 | J29: 14023875.73 | K29: 17296233.04 | L29: 20568590.35 | M29: 23840947.66 | N29: 27937034.3 | O29: =N29+O27 -> 29604989.12
D31: Total Geral | N31: R$ | O31: =C6+C8+C10+C12+C14+C16+C18+C20+C22+C24 -> 29604989.12
O36: =#REF! -> 

Sheet Mob
E1: Ministério da Integração e do Desenvolvimento Regional
A4: ='RESUMO MODULO TOTAL'!B56 -> EXECUÇÃO DE SERVIÇOS DE IMPLANTAÇÃO DE PAVIMENTAÇÃO EM BLOCO DE CONCRETO INTERTRAVADO, EM VIAS URBANAS E RURAIS INSERIDAS NA ÁREA DE ATUAÇÃO DA CODEVASF, NO ESTADO DO CEARÁ
A5: MOBILIZAÇÃO/DESMOBILIZAÇÃO (MOB) | F5: Frentes de serviços | H5: ='MC MODULO'!G1 -> 15
F6: Distância da Capital ao Canteiro: | H6: 150 | I6: Fica a cargo de cada SR colocar a distancia adequada de acordo com o historico de mobilização
F8: Velocidade média de transporte (pavim.): | H8: 60
A10: Transporte dos equipamentos
A11: CODIGO | B11: EQUIPAMENTO | C11: VEÍCULO TRANSPORTADOR | D11: QTDE | E11: K | F11: FU | G11: CUSTO DO TRANSPORTE
G12: (R$/h) | H12: (R$)/km
A13: E9524 | B13: =VLOOKUP(A13,Equipamentos!$A:$K,2,FALSE) -> Motoniveladora - 93 kW | C13: =IFERROR(INDEX('Tabelas 2 e 3 mob'!A:K,MATCH(A13,'Tabelas 2 e 3 mob'!A:A,0),9),"ERRO") -> E9665 | D13: 1 | E13: 2 | F13: 1 | G13: =IF(C13="Veículo(s) da própria frota.",0,INDEX(Equipamentos!B:K,MATCH(C13,Equipamentos!A:A,0),10)) -> 128.3686 | H13: =((D13*E13*F13)/$H$8)*G13 -> 4.278953333
A14: E9526 | B14: =VLOOKUP(A14,Equipamentos!$A:$K,2,FALSE) -> Retroescavadeira de pneus - capacidade da caçamba da pá-carregadeira de 0,76 m³ e da retroescavadeira de 0,29 m³ - 58 kW | C14: =IFERROR(INDEX('Tabelas 2 e 3 mob'!A:K,MATCH(A14,'Tabelas 2 e 3 mob'!A:A,0),9),"ERRO") -> E9665 | D14: 1 | E14: 2 | F14: 1 | G14: =IF(C14="Veículo(s) da própria frota.",0,INDEX(Equipamentos!B:K,MATCH(C14,Equipamentos!A:A,0),10)) -> 128.3686 | H14: =((D14*E14*F14)/$H$8)*G14 -> 4.278953333
A15: E9577 | B15: =VLOOKUP(A15,Equipamentos!$A:$K,2,FALSE) -> Trator agrícola sobre pneus - 77 kW | C15: =IFERROR(INDEX('Tabelas 2 e 3 mob'!A:K,MATCH(A15,'Tabelas 2 e 3 mob'!A:A,0),9),"ERRO") -> E9665 | D15: 1 | E15: 2 | F15: 0.5 | G15: =IF(C15="Veículo(s) da própria frota.",0,INDEX(Equipamentos!B:K,MATCH(C15,Equipamentos!A:A,0),10)) -> 128.3686 | H15: 2.139476667
A16: E9518 | B16: =VLOOKUP(A16,Equipamentos!$A:$K,2,FALSE) -> Grade de 24 discos rebocável de D = 60 cm (24") | C16: =IFERROR(INDEX('Tabelas 2 e 3 mob'!A:K,MATCH(A16,'Tabelas 2 e 3 mob'!A:A,0),9),"ERRO") -> Veículo(s) da própria frota. | D16: 1 | E16: 2 | F16: 0 | G16: =IF(C16="Veículo(s) da própria frota.",0,INDEX(Equipamentos!B:K,MATCH(C16,Equipamentos!A:A,0),10)) -> 0 | H16: 0
A17: E9615 | B17: =VLOOKUP(A17,Equipamentos!$A:$K,2,FALSE) -> Usina misturadora de solos com capacidade de 300 t/h - 44 kW | C17: =IFERROR(INDEX('Tabelas 2 e 3 mob'!A:K,MATCH(A17,'Tabelas 2 e 3 mob'!A:A,0),9),"ERRO") -> E9018 | D17: 1 | E17: 2 | F17: 2 | G17: =IF(C17="Veículo(s) da própria frota.",0,INDEX(Equipamentos!B:K,MATCH(C17,Equipamentos!A:A,0),10)) -> 162.4111 | H17: 10.82740667 | I17: E9686
A18: E9530 | B18: =VLOOKUP(A18,Equipamentos!$A:$K,2,FALSE) -> Rolo compactador liso vibratório autopropelido por pneus de 11 t - 97 kW | C18: =IFERROR(INDEX('Tabelas 2 e 3 mob'!A:K,MATCH(A18,'Tabelas 2 e 3 mob'!A:A,0),9),"ERRO") -> E9666 | D18: 1 | E18: 2 | F18: 0.5 | G18: =IF(C18="Veículo(s) da própria frota.",0,INDEX(Equipamentos!B:K,MATCH(C18,Equipamentos!A:A,0),10)) -> 140.9733 | H18: 2.349555
A19: E9558 | B19: =VLOOKUP(A19,Equipamentos!$A:$K,2,FALSE) -> Tanque de estocagem de asfalto com capacidade de 30.000 l | C19: =IFERROR(INDEX('Tabelas 2 e 3 mob'!A:K,MATCH(A19,'Tabelas 2 e 3 mob'!A:A,0),9),"ERRO") -> E9665 | D19: 0 | E19: 2 | F19: 1 | G19: =IF(C19="Veículo(s) da própria frota.",0,INDEX(Equipamentos!B:K,MATCH(C19,Equipamentos!A:A,0),10)) -> 128.3686 | H19: 0
A20: E9758 | B20: =VLOOKUP(A20,Equipamentos!$A:$K,2,FALSE) -> Vibroacabadora de asfalto sobre pneus - 97 kW | C20: =IFERROR(INDEX('Tabelas 2 e 3 mob'!A:K,MATCH(A20,'Tabelas 2 e 3 mob'!A:A,0),9),"ERRO") -> E9018 | D20: 0 | E20: 2 | F20: 0.5 | G20: =IF(C20="Veículo(s) da própria frota.",0,INDEX(Equipamentos!B:K,MATCH(C20,Equipamentos!A:A,0),10)) -> 162.4111 | H20: 0
A21: E9685 | B21: =VLOOKUP(A21,Equipamentos!$A:$K,2,FALSE) -> Rolo compactador pé de carneiro vibratório autopropelido por pneus de 11,6 t - 82 kW | C21: =IFERROR(INDEX('Tabelas 2 e 3 mob'!A:K,MATCH(A21,'Tabelas 2 e 3 mob'!A:A,0),9),"ERRO") -> E9666 | D21: 1 | E21: 2 | F21: 0.5 | G21: =IF(C21="Veículo(s) da própria frota.",0,INDEX(Equipamentos!B:K,MATCH(C21,Equipamentos!A:A,0),10)) -> 140.9733 | H21: 2.349555
A22: E9605 | B22: =VLOOKUP(A22,Equipamentos!$A:$K,2,FALSE) -> Caminhão tanque com capacidade de 6.000 l - 136 kW | C22: =IFERROR(INDEX('Tabelas 2 e 3 mob'!A:K,MATCH(A22,'Tabelas 2 e 3 mob'!A:A,0),9),"ERRO") -> E9605 | D22: 1 | E22: 1 | F22: 1 | G22: =IF(C22="Veículo(s) da própria frota.",0,INDEX(Equipamentos!B:K,MATCH(C22,Equipamentos!A:A,0),10)) -> 77.683 | H22: 1.294716667
A23: E9579 | B23: =VLOOKUP(A23,Equipamentos!$A:$K,2,FALSE) -> Caminhão basculante com capacidade de 10 m³ - 210 kW | C23: =IFERROR(INDEX('Tabelas 2 e 3 mob'!A:K,MATCH(A23,'Tabelas 2 e 3 mob'!A:A,0),9),"ERRO") -> E9579 | D23: 5 | E23: 1 | F23: 1 | G23: =IF(C23="Veículo(s) da própria frota.",0,INDEX(Equipamentos!B:K,MATCH(C23,Equipamentos!A:A,0),10)) -> 88.4993 | H23: 7.374941667
A24: E9509 | B24: =VLOOKUP(A24,Equipamentos!$A:$K,2,FALSE) -> Caminhão tanque distribuidor de asfalto com capacidade de 6.000 l - 7 kW/136 kW | C24: =IFERROR(INDEX('Tabelas 2 e 3 mob'!A:K,MATCH(A24,'Tabelas 2 e 3 mob'!A:A,0),9),"ERRO") -> E9509 | D24: 0 | E24: 1 | F24: 1 | G24: =IF(C24="Veículo(s) da própria frota.",0,INDEX(Equipamentos!B:K,MATCH(C24,Equipamentos!A:A,0),10)) -> 81.7147 | H24: 0
A25: E9762 | B25: =VLOOKUP(A25,Equipamentos!$A:$K,2,FALSE) -> Rolo compactador de pneus autopropelido de 27 t - 85 kW | C25: =IFERROR(INDEX('Tabelas 2 e 3 mob'!A:K,MATCH(A25,'Tabelas 2 e 3 mob'!A:A,0),9),"ERRO") -> E9666 | D25: 1 | E25: 2 | F25: 0.5 | G25: =IF(C25="Veículo(s) da própria frota.",0,INDEX(Equipamentos!B:K,MATCH(C25,Equipamentos!A:A,0),10)) -> 140.9733 | H25: 2.349555
A26: E9681 | B26: =VLOOKUP(A26,Equipamentos!$A:$K,2,FALSE) -> Rolo compactador liso tandem vibratório autopropelido de 10,4 t - 82 kW | C26: =IFERROR(INDEX('Tabelas 2 e 3 mob'!A:K,MATCH(A26,'Tabelas 2 e 3 mob'!A:A,0),9),"ERRO") -> E9666 | D26: 0 | E26: 2 | F26: 0.5 | G26: =IF(C26="Veículo(s) da própria frota.",0,INDEX(Equipamentos!B:K,MATCH(C26,Equipamentos!A:A,0),10)) -> 140.9733 | H26: 0
A27: E9545 | B27: =VLOOKUP(A27,Equipamentos!$A:$K,2,FALSE) -> Vibroacabadora de asfalto sobre esteiras - 97 kW | C27: =IFERROR(INDEX('Tabelas 2 e 3 mob'!A:K,MATCH(A27,'Tabelas 2 e 3 mob'!A:A,0),9),"ERRO") -> E9018 | D27: 0 | E27: 2 | F27: 0.5 | G27: =IF(C27="Veículo(s) da própria frota.",0,INDEX(Equipamentos!B:K,MATCH(C27,Equipamentos!A:A,0),10)) -> 162.4111 | H27: 0
A28: E9571 | B28: =VLOOKUP(A28,Equipamentos!$A:$K,2,FALSE) -> Caminhão tanque com capacidade de 10.000 l - 188 kW | C28: =IFERROR(INDEX('Tabelas 2 e 3 mob'!A:K,MATCH(A28,'Tabelas 2 e 3 mob'!A:A,0),9),"ERRO") -> E9571 | D28: 1 | E28: 1 | F28: 1 | G28: =IF(C28="Veículo(s) da própria frota.",0,INDEX(Equipamentos!B:K,MATCH(C28,Equipamentos!A:A,0),10)) -> 90.5881 | H28: 1.509801667
A29: E9514 | B29: =VLOOKUP(A29,Equipamentos!$A:$K,2,FALSE) -> Distribuidor de agregados sobre pneus autopropelido - 130 kW | C29: =IFERROR(INDEX('Tabelas 2 e 3 mob'!A:K,MATCH(A29,'Tabelas 2 e 3 mob'!A:A,0),9),"ERRO") -> E9665 | D29: 1 | E29: 2 | F29: 0.5 | G29: =IF(C29="Veículo(s) da própria frota.",0,INDEX(Equipamentos!B:K,MATCH(C29,Equipamentos!A:A,0),10)) -> 128.3686 | H29: 2.139476667
A30: E9511 | B30: =VLOOKUP(A30,Equipamentos!$A:$K,2,FALSE) -> Carregadeira de pneus com capacidade de 3,40 m³ - 195 kW | C30: =IFERROR(INDEX('Tabelas 2 e 3 mob'!A:K,MATCH(A30,'Tabelas 2 e 3 mob'!A:A,0),9),"ERRO") -> E9665 | D30: 1 | E30: 2 | F30: 1 | G30: =IF(C30="Veículo(s) da própria frota.",0,INDEX(Equipamentos!B:K,MATCH(C30,Equipamentos!A:A,0),10)) -> 128.3686 | H30: 4.278953333
A31: E9779 | B31: =VLOOKUP(A31,Equipamentos!$A:$K,2,FALSE) -> Grupo gerador - 113 kVA | C31: =IFERROR(INDEX('Tabelas 2 e 3 mob'!A:K,MATCH(A31,'Tabelas 2 e 3 mob'!A:A,0),9),"ERRO") -> Veículo(s) da própria frota. | D31: 1 | E31: 2 | F31: 0 | G31: =IF(C31="Veículo(s) da própria frota.",0,INDEX(Equipamentos!B:K,MATCH(C31,Equipamentos!A:A,0),10)) -> 0 | H31: 0
A32: E9559 | B32: =VLOOKUP(A32,Equipamentos!$A:$K,2,FALSE) -> Aquecedor de fluido térmico - 12 kW | C32: =IFERROR(INDEX('Tabelas 2 e 3 mob'!A:K,MATCH(A32,'Tabelas 2 e 3 mob'!A:A,0),9),"ERRO") -> Veículo(s) da própria frota. | D32: 1 | E32: 2 | F32: 0 | G32: =IF(C32="Veículo(s) da própria frota.",0,INDEX(Equipamentos!B:K,MATCH(C32,Equipamentos!A:A,0),10)) -> 0 | H32: 0
A33: E9584 | B33: =VLOOKUP(A33,Equipamentos!$A:$K,2,FALSE) -> Carregadeira de pneus com capacidade de 1,72 m³ - 113 kW | C33: =IFERROR(INDEX('Tabelas 2 e 3 mob'!A:K,MATCH(A33,'Tabelas 2 e 3 mob'!A:A,0),9),"ERRO") -> E9665 | D33: 1 | E33: 2 | F33: 1 | G33: =IF(C33="Veículo(s) da própria frota.",0,INDEX(Equipamentos!B:K,MATCH(C33,Equipamentos!A:A,0),10)) -> 128.3686 | H33: 4.278953333
A34: E9021 | B34: =VLOOKUP(A34,Equipamentos!$A:$K,2,FALSE) -> Grupo gerador - 456 kVA | C34: =IFERROR(INDEX('Tabelas 2 e 3 mob'!A:K,MATCH(A34,'Tabelas 2 e 3 mob'!A:A,0),9),"ERRO") -> E9508 | D34: 1 | E34: 2 | F34: 1 | G34: =IF(C34="Veículo(s) da própria frota.",0,INDEX(Equipamentos!B:K,MATCH(C34,Equipamentos!A:A,0),10)) -> 77.1356 | H34: 2.571186667
A35: E9687 | B35: =VLOOKUP(A35,Equipamentos!$A:$K,2,FALSE) -> Caminhão carroceria com capacidade de 5 t - 120 kW | C35: =IFERROR(INDEX('Tabelas 2 e 3 mob'!A:K,MATCH(A35,'Tabelas 2 e 3 mob'!A:A,0),9),"ERRO") -> E9687 | D35: 1 | E35: 1 | F35: 1 | G35: =IF(C35="Veículo(s) da própria frota.",0,INDEX(Equipamentos!B:K,MATCH(C35,Equipamentos!A:A,0),10)) -> 66.8803 | H35: 1.114671667
A36: E9667 | B36: =VLOOKUP(A36,Equipamentos!$A:$K,2,FALSE) -> Caminhão basculante com capacidade de 14 m³ - 210 kW | C36: =IFERROR(INDEX('Tabelas 2 e 3 mob'!A:K,MATCH(A36,'Tabelas 2 e 3 mob'!A:A,0),9),"ERRO") -> E9667 | D36: 1 | E36: 1 | F36: 1 | G36: =IF(C36="Veículo(s) da própria frota.",0,INDEX(Equipamentos!B:K,MATCH(C36,Equipamentos!A:A,0),10)) -> 98.4031 | H36: 1.640051667
A37: E9644 | B37: =VLOOKUP(A37,Equipamentos!$A:$K,2,FALSE) -> Caminhão demarcador de faixas com sistema de pintura a frio - 28 kW/129 kW | C37: =IFERROR(INDEX('Tabelas 2 e 3 mob'!A:K,MATCH(A37,'Tabelas 2 e 3 mob'!A:A,0),9),"ERRO") -> E9644 | D37: 1 | E37: 1 | F37: 1 | G37: =IF(C37="Veículo(s) da própria frota.",0,INDEX(Equipamentos!B:K,MATCH(C37,Equipamentos!A:A,0),10)) -> 171.1495 | H37: 2.852491667
A38: E9592 | B38: =VLOOKUP(A38,Equipamentos!$A:$K,2,FALSE) -> Caminhão carroceria com capacidade de 15 t - 188 kW | C38: =IFERROR(INDEX('Tabelas 2 e 3 mob'!A:K,MATCH(A38,'Tabelas 2 e 3 mob'!A:A,0),9),"ERRO") -> E9592 | D38: 1 | E38: 1 | F38: 1 | G38: =IF(C38="Veículo(s) da própria frota.",0,INDEX(Equipamentos!B:K,MATCH(C38,Equipamentos!A:A,0),10)) -> 85.6114 | H38: 1.426856667
A39: E9540 | B39: =VLOOKUP(A39,Equipamentos!$A:$K,2,FALSE) -> Trator sobre esteiras com lâmina - 127 kW | C39: =IFERROR(INDEX('Tabelas 2 e 3 mob'!A:K,MATCH(A39,'Tabelas 2 e 3 mob'!A:A,0),9),"ERRO") -> E9018 | D39: 1 | E39: 2 | F39: 0.5 | G39: =IF(C39="Veículo(s) da própria frota.",0,INDEX(Equipamentos!B:K,MATCH(C39,Equipamentos!A:A,0),10)) -> 162.4111 | H39: 2.706851667
A40: E9515 | B40: =VLOOKUP(A40,Equipamentos!$A:$K,2,FALSE) -> Escavadeira hidráulica sobre esteiras com caçamba com capacidade de 1,56 m³ - 118 kW | C40: =IFERROR(INDEX('Tabelas 2 e 3 mob'!A:K,MATCH(A40,'Tabelas 2 e 3 mob'!A:A,0),9),"ERRO") -> E9666 | D40: 1 | E40: 2 | F40: 1 | G40: =IF(C40="Veículo(s) da própria frota.",0,INDEX(Equipamentos!B:K,MATCH(C40,Equipamentos!A:A,0),10)) -> 140.9733 | H40: 4.69911
A41: E9506 | B41: =VLOOKUP(A41,Equipamentos!$A:$K,2,FALSE) -> Caminhão basculante com capacidade de 6 m³ - 136 kW | C41: =IFERROR(INDEX('Tabelas 2 e 3 mob'!A:K,MATCH(A41,'Tabelas 2 e 3 mob'!A:A,0),9),"ERRO") -> E9506 | D41: 1 | E41: 1 | F41: 1 | G41: =IF(C41="Veículo(s) da própria frota.",0,INDEX(Equipamentos!B:K,MATCH(C41,Equipamentos!A:A,0),10)) -> 78.0846 | H41: 1.30141
A42: E9256 | B42: =VLOOKUP(A42,Equipamentos!$A:$K,2,FALSE) -> Equipamento para pintura com cal rebocável com dois bicos aplicadores e capacidade de 2.200 l | C42: =IFERROR(INDEX('Tabelas 2 e 3 mob'!A:K,MATCH(A42,'Tabelas 2 e 3 mob'!A:A,0),9),"ERRO") -> Veículo(s) da própria frota. | D42: 1 | E42: 2 | F42: 0 | G42: =IF(C42="Veículo(s) da própria frota.",0,INDEX(Equipamentos!B:K,MATCH(C42,Equipamentos!A:A,0),10)) -> 0 | H42: 0
A43: E9156 | B43: =VLOOKUP(A43,Equipamentos!$A:$K,2,FALSE) -> Soprador de ar costal - 2,6 kW | C43: =IFERROR(INDEX('Tabelas 2 e 3 mob'!A:K,MATCH(A43,'Tabelas 2 e 3 mob'!A:A,0),9),"ERRO") -> Veículo(s) da própria frota. | D43: 1 | E43: 2 | F43: 0 | G43: =IF(C43="Veículo(s) da própria frota.",0,INDEX(Equipamentos!B:K,MATCH(C43,Equipamentos!A:A,0),10)) -> 0 | H43: 0
A44: E9146 | B44: =VLOOKUP(A44,Equipamentos!$A:$K,2,FALSE) -> Caminhão silo com capacidade de 30 m³ - 368 kW | C44: =IFERROR(INDEX('Tabelas 2 e 3 mob'!A:K,MATCH(A44,'Tabelas 2 e 3 mob'!A:A,0),9),"ERRO") -> E9146 | D44: 1 | E44: 1 | F44: 1 | G44: =IF(C44="Veículo(s) da própria frota.",0,INDEX(Equipamentos!B:K,MATCH(C44,Equipamentos!A:A,0),10)) -> 138.837 | H44: 2.31395
A45: E9599 | B45: =VLOOKUP(A45,Equipamentos!$A:$K,2,FALSE) -> Central de concreto com capacidade de 30 m³/h - dosadora RS | C45: =IFERROR(INDEX('Tabelas 2 e 3 mob'!A:K,MATCH(A45,'Tabelas 2 e 3 mob'!A:A,0),9),"ERRO") -> E9018 | D45: 1 | E45: 2 | F45: 1 | G45: =IF(C45="Veículo(s) da própria frota.",0,INDEX(Equipamentos!B:K,MATCH(C45,Equipamentos!A:A,0),10)) -> 162.4111 | H45: 5.413703333
A46: E9103 | B46: =VLOOKUP(A46,Equipamentos!$A:$K,2,FALSE) -> Extrusora para meio-fio de concreto - 10,44 kW | C46: =IFERROR(INDEX('Tabelas 2 e 3 mob'!A:K,MATCH(A46,'Tabelas 2 e 3 mob'!A:A,0),9),"ERRO") -> Veículo(s) da própria frota. | D46: 1 | E46: 2 | F46: 0 | G46: =IF(C46="Veículo(s) da própria frota.",0,INDEX(Equipamentos!B:K,MATCH(C46,Equipamentos!A:A,0),10)) -> 0 | H46: 0
A47: E9071 | B47: =VLOOKUP(A47,Equipamentos!$A:$K,2,FALSE) -> Transportador manual carrinho de mão com capacidade de 80 l | C47: =IFERROR(INDEX('Tabelas 2 e 3 mob'!A:K,MATCH(A47,'Tabelas 2 e 3 mob'!A:A,0),9),"ERRO") -> Veículo(s) da própria frota. | D47: 0 | E47: 2 | F47: 0 | G47: =IF(C47="Veículo(s) da própria frota.",0,INDEX(Equipamentos!B:K,MATCH(C47,Equipamentos!A:A,0),10)) -> 0 | H47: 0
A48: E9064 | B48: =VLOOKUP(A48,Equipamentos!$A:$K,2,FALSE) -> Transportador manual gerica com capacidade de 180 l | C48: =IFERROR(INDEX('Tabelas 2 e 3 mob'!A:K,MATCH(A48,'Tabelas 2 e 3 mob'!A:A,0),9),"ERRO") -> Veículo(s) da própria frota. | D48: 0 | E48: 2 | F48: 0 | G48: =IF(C48="Veículo(s) da própria frota.",0,INDEX(Equipamentos!B:K,MATCH(C48,Equipamentos!A:A,0),10)) -> 0 | H48: 0
A49: E9066 | B49: =VLOOKUP(A49,Equipamentos!$A:$K,2,FALSE) -> Grupo gerador - 14 kVA | C49: =IFERROR(INDEX('Tabelas 2 e 3 mob'!A:K,MATCH(A49,'Tabelas 2 e 3 mob'!A:A,0),9),"ERRO") -> Veículo(s) da própria frota. | D49: 0 | E49: 2 | F49: 0 | G49: =IF(C49="Veículo(s) da própria frota.",0,INDEX(Equipamentos!B:K,MATCH(C49,Equipamentos!A:A,0),10)) -> 0 | H49: 0
A50: E9535 | B50: =VLOOKUP(A50,Equipamentos!$A:$K,2,FALSE) -> Serra circular com bancada - D = 30 cm - 4 kW | C50: =IFERROR(INDEX('Tabelas 2 e 3 mob'!A:K,MATCH(A50,'Tabelas 2 e 3 mob'!A:A,0),9),"ERRO") -> Veículo(s) da própria frota. | D50: 0 | E50: 2 | F50: 0 | G50: =IF(C50="Veículo(s) da própria frota.",0,INDEX(Equipamentos!B:K,MATCH(C50,Equipamentos!A:A,0),10)) -> 0 | H50: 0
A51: E9507 | B51: =VLOOKUP(A51,Equipamentos!$A:$K,2,FALSE) -> Plotadora de recorte com computador e programa computacional | C51: =IFERROR(INDEX('Tabelas 2 e 3 mob'!A:K,MATCH(A51,'Tabelas 2 e 3 mob'!A:A,0),9),"ERRO") -> Veículo(s) da própria frota. | D51: 0 | E51: 2 | F51: 0 | G51: =IF(C51="Veículo(s) da própria frota.",0,INDEX(Equipamentos!B:K,MATCH(C51,Equipamentos!A:A,0),10)) -> 0 | H51: 0
A52: E9568 | B52: =VLOOKUP(A52,Equipamentos!$A:$K,2,FALSE) -> Furadeira de impacto de 12,5 mm - 0,80 kW | C52: =IFERROR(INDEX('Tabelas 2 e 3 mob'!A:K,MATCH(A52,'Tabelas 2 e 3 mob'!A:A,0),9),"ERRO") -> Veículo(s) da própria frota. | D52: 0 | E52: 2 | F52: 0 | G52: =IF(C52="Veículo(s) da própria frota.",0,INDEX(Equipamentos!B:K,MATCH(C52,Equipamentos!A:A,0),10)) -> 0 | H52: 0
A53: E9753 | B53: =VLOOKUP(A53,Equipamentos!$A:$K,2,FALSE) -> Grupo gerador - 23 kVA | C53: =IFERROR(INDEX('Tabelas 2 e 3 mob'!A:K,MATCH(A53,'Tabelas 2 e 3 mob'!A:A,0),9),"ERRO") -> Veículo(s) da própria frota. | D53: 0 | E53: 2 | F53: 0 | G53: =IF(C53="Veículo(s) da própria frota.",0,INDEX(Equipamentos!B:K,MATCH(C53,Equipamentos!A:A,0),10)) -> 0 | H53: 0
A54: E9623 | B54: =VLOOKUP(A54,Equipamentos!$A:$K,2,FALSE) -> Máquina de bancada guilhotina - 4,00 kW | C54: =IFERROR(INDEX('Tabelas 2 e 3 mob'!A:K,MATCH(A54,'Tabelas 2 e 3 mob'!A:A,0),9),"ERRO") -> Veículo(s) da própria frota. | D54: 0 | E54: 2 | F54: 0 | G54: =IF(C54="Veículo(s) da própria frota.",0,INDEX(Equipamentos!B:K,MATCH(C54,Equipamentos!A:A,0),10)) -> 0 | H54: 0
A55: E9622 | B55: =VLOOKUP(A55,Equipamentos!$A:$K,2,FALSE) -> Máquina de bancada universal para corte de chapa - 1,50 kW | C55: =IFERROR(INDEX('Tabelas 2 e 3 mob'!A:K,MATCH(A55,'Tabelas 2 e 3 mob'!A:A,0),9),"ERRO") -> Veículo(s) da própria frota. | D55: 0 | E55: 2 | F55: 0 | G55: =IF(C55="Veículo(s) da própria frota.",0,INDEX(Equipamentos!B:K,MATCH(C55,Equipamentos!A:A,0),10)) -> 0 | H55: 0
A56: E9678 | B56: =VLOOKUP(A56,Equipamentos!$A:$K,2,FALSE) -> Fresadora a frio - 455 kW | C56: =IFERROR(INDEX('Tabelas 2 e 3 mob'!A:K,MATCH(A56,'Tabelas 2 e 3 mob'!A:A,0),9),"ERRO") -> E9666 | D56: 0 | E56: 2 | F56: 1 | G56: =IF(C56="Veículo(s) da própria frota.",0,INDEX(Equipamentos!B:K,MATCH(C56,Equipamentos!A:A,0),10)) -> 140.9733 | H56: 0
A57: E9686 | B57: =VLOOKUP(A57,Equipamentos!$A:$K,2,FALSE) -> Caminhão guindauto com capacidade de elevação de 6,2 t e carroceria de 7 t - 136 kW | C57: =IFERROR(INDEX('Tabelas 2 e 3 mob'!A:K,MATCH(A57,'Tabelas 2 e 3 mob'!A:A,0),9),"ERRO") -> E9686 | D57: 1 | E57: 2 | F57: 1 | G57: =IF(C57="Veículo(s) da própria frota.",0,INDEX(Equipamentos!B:K,MATCH(C57,Equipamentos!A:A,0),10)) -> 103.1587 | H57: =((D57*E57*F57)/$H$8)*G57 -> 3.438623333
G58: TOTAL | H58: =SUM(H13:H57) -> 78.929205
A61: CUSTO TOTAL MOBILIZAÇÃO E DESMOBILIZAÇÃO
A62: DESCRIÇÃO | B62: VALOR
A63: Custo Mobilização (km) | B63: =H58 -> 78.929205
A64: BDI (%) | B64: =BDI!C14 -> 0.2206
A65: Custo Mobilização (R$/km) com BDI | B65: =B63+(B63*B64) -> 96.34098762
A66: Total de Frentes | B66: ='MC MODULO'!G1 -> 15
A67: Custo Mobilização (frentes x distancia) | B67: =B65*H6*B66 -> 216767.2222

Sheet Canteiro
E1: Ministério da Integração e do Desenvolvimento Regional
A4: CANTEIRO DE OBRAS PARA CONSTRUÇAO RODOVIÁRIA
A5: Descrição dos serviços | B5: Tipo de container | C5: Unidade | D5: Quantidade | E5: Preço unitário (R$) | F5: Total (R$)
A6: Escritório e seção técnica | C6: JUNHO / 2025
A7: =VLOOKUP(B7,'INSUMOS SINAPI'!A:E,2,0) -> LOCACAO DE CONTAINER 2,30 X 6,00 M, ALT. 2,50 M, PARA ESCRITORIO, SEM DIVISORIAS INTERNAS E SEM SANITARIO (NAO INCLUI MOBILIZACAO/DESMOBILIZACAO) | B7: 10776 | C7: und | D7: 1 | E7: =VLOOKUP(B7,'INSUMOS SINAPI'!$A:$E,5,0) -> 1171.87 | F7: =TRUNC(D7*E7,2) -> 1171.87
A8: Banheiro e vestiário
A9: =VLOOKUP(B9,'INSUMOS SINAPI'!A:E,2,0) -> LOCACAO DE CONTAINER 2,30 X 4,30 M, ALT. 2,50 M, PARA SANITARIO, COM 3 BACIAS, 4 CHUVEIROS, 1 LAVATORIO E 1 MICTORIO (NAO INCLUI MOBILIZACAO/DESMOBILIZACAO) | B9: 10777 | C9: und | D9: 1 | E9: =VLOOKUP(B9,'INSUMOS SINAPI'!$A:$E,5,0) -> 1703.12 | F9: =TRUNC(D9*E9,2) -> 1703.12
D10: TOTAL DO CANTEIRO | F10: =SUM(F7:F9) -> 2874.99
D11: DURAÇÃO (MESES) | E11: 12 | F11: =F10*E11 -> 34499.88
D12: BDI | F12: =BDI!C14 -> 0.2206
D13: TOTAL DO CANTEIRO (com BDI) | F13: =F11+(F11*F12) -> 42110.55353

Sheet Adm Local
A4: parcela fixa da administração local (mão de obra)
A5: Código | B5: Discriminação | C5: Unidade | D5: Quantidade | F5: Custo Unitário (R$) | H5: Custo Total (R$)
B6: Mão de Obra | C6: JUNHO / 2025
B7: Gerência Técnica
B8: Geral
A9: P9955 | B9: Engenheiro chefe | C9: mês | D9: 0.5 | F9: =VLOOKUP(A9,'Pessoal Sicro'!A:G,4,0) -> 31581.5059 | H9: =F9*D9 -> 15790.75295
A10: P9840 | B10: Encarregado geral | C10: mês | D10: 0.5 | F10: =VLOOKUP(A10,'Pessoal Sicro'!A:G,4,0) -> 11842.5433 | H10: =F10*D10 -> 5921.27165
A11: P9897 | B11: Técnico de meio ambiente | C11: mês | D11: 0 | F11: =VLOOKUP(A11,'Pessoal Sicro'!A:G,4,0) -> 7967.5844 | H11: =F11*D11 -> 0
A12: P9948 | B12: Motorista | C12: mês | D12: 0 | F12: =VLOOKUP(A12,'Pessoal Sicro'!A:G,4,0) -> 5700.4662 | H12: =F12*D12 -> 0
A13: P9878 | B13: Secretária | C13: mês | D13: 0 | F13: =VLOOKUP(A13,'Pessoal Sicro'!A:G,4,0) -> 6804.0415 | H13: =F13*D13 -> 0
F14: Subtotal do Item 1.1 | H14: =SUM(H9:I13) -> 21712.0246
B15: Auxiliar
A16: P9946 | B16: Engenheiro auxiliar | C16: mês | D16: 1 | F16: =VLOOKUP(A16,'Pessoal Sicro'!A:G,4,0) -> 23596.8902 | H16: =D16*F16 -> 23596.8902
A17: P9903 | B17: Auxiliar técnico | C17: mês | D17: 0 | F17: =VLOOKUP(A17,'Pessoal Sicro'!A:G,4,0) -> 4770.2828 | H17: =D17*F17 -> 0
F18: Subtotal do Item 1.2 | H18: =SUM(H16:I17) -> 23596.8902
B19: Gerência Administrativa
B20: Geral
A21: P9883 | B21: Chefe do setor administrativo | C21: mês | D21: 1 | F21: =VLOOKUP(A21,'Pessoal Sicro'!A:G,4,0) -> 7661.4187 | H21: =F21*D21 -> 7661.4187
A22: P9809 | B22: Encarregado administrativo | C22: mês | D22: 0 | F22: =VLOOKUP(A22,'Pessoal Sicro'!A:G,4,0) -> 7661.3137 | H22: =F22*D22 -> 0
A23: P9896 | B23: Porteiro | C23: mês | D23: 0 | F23: =VLOOKUP(A23,'Pessoal Sicro'!A:G,4,0) -> 4111.7836 | H23: =F23*D23 -> 0
A24: P9827 | B24: Vigia | C24: mês | D24: 0 | F24: =VLOOKUP(A24,'Pessoal Sicro'!A:G,4,0) -> 5270.4444 | H24: =F24*D24 -> 0
A25: P9948 | B25: Motorista | C25: mês | D25: 0 | F25: =VLOOKUP(A25,'Pessoal Sicro'!A:G,4,0) -> 5700.4662 | H25: =F25*D25 -> 0
F26: Subtotal do Item 1.3 | H26: =SUM(H21:I25) -> 7661.4187
B27: Auxiliar
A28: P9806 | B28: Auxiliar administrativo | C28: mês | D28: 1 | F28: =VLOOKUP(A28,'Pessoal Sicro'!A:G,4,0) -> 4450.8519 | H28: =F28*D28 -> 4450.8519
A29: P9842 | B29: Faxineiro | C29: mês | D29: 0 | F29: =VLOOKUP(A29,'Pessoal Sicro'!A:G,4,0) -> 4119.051 | H29: =F29*D29 -> 0
F30: Subtotal do Item 1.4 | H30: =SUM(H28:I29) -> 4450.8519
H31: Total da Mão de Obra da Parcela Fixa | I31: =H30+H26+H18+H14 -> 57421.1854
A33: parcela fixa da administração local (veículos)
A34: Código | B34: Discriminação | C34: Unidade | D34: Quantidade | E34: Utilização Produtiva | F34: Utilização Improdutiva | G34: Custo Horário Produtivo (R$) | H34: Custo Horário Improdutivo (R$) | I34: Custo Total (R$)
A35: 2 | B35: Veículos
B36: Gerência Técnica
A37: 2.1 | B37: Geral
A38: E9093 | B38: Veículo Leve 53 kw | C38: mês | D38: 1 | E38: 44 | F38: 176 | G38: =VLOOKUP(A38,Equipamentos!A:K,10,0) -> 37.7869 | H38: =VLOOKUP(A38,Equipamentos!A:K,11,0) -> 6.661 | I38: =((E38*G38)+(F38*H38))*D38 -> 2834.9596
A39: E9560 | B39: Ônibus coletivo - 175 kw | C39: mês | D39: 0 | E39: 44 | F39: 176 | G39: =VLOOKUP(A39,Equipamentos!A:K,10,0) -> 362.7329 | H39: =VLOOKUP(A39,Equipamentos!A:K,11,0) -> 107.9028 | I39: =((E39*G39)+(F39*H39))*D39 -> 0
H40: Subtotal do Item 2 | I40: =SUM(I38:I39) -> 2834.9596
A41: 2.2 | B41: Auxiliar
A42: E9093 | B42: Veículo Leve 53 kw | C42: mês | D42: 0 | E42: 44 | F42: 176 | G42: =VLOOKUP(A42,Equipamentos!A:K,10,0) -> 37.7869 | H42: =VLOOKUP(A42,Equipamentos!A:K,11,0) -> 6.661 | I42: =((E42*G42)+(F42*H42))*D42 -> 0
H43: Subtotal do Item 2 | I43: =SUM(I42) -> 0
A44: 2.3 | B44: Gerência Administrativa
A45: E9093 | B45: Veículo Leve 53 kw | C45: mês | D45: 0 | E45: 44 | F45: 176 | G45: =VLOOKUP(A45,Equipamentos!A:K,10,0) -> 37.7869 | H45: =VLOOKUP(A45,Equipamentos!A:K,11,0) -> 6.661 | I45: =((E45*G45)+(F45*H45))*D45 -> 0
H46: Subtotal do Item 2 | I46: =I45 -> 0
H47: Total dos Veículos da Parcela Fixa | I47: =I46+I43+I40 -> 2834.9596
A49: Composição de custo da equipe de produção de terraplenagem
A50: Código | B50: Discriminação | C50: Unidade | D50: Quantidade | F50: Custo Unitário (R$) | H50: Custo Total (R$)
B51: Equipe de Produção de Terraplenagem
A52: 3.1 | B52: Mão de Obra
A53: ='Pessoal Sicro'!A65 -> P9892 | B53: Encarregado de produção | C53: mês | D53: 1 | F53: =VLOOKUP(A53,'Pessoal Sicro'!A:G,4,0) -> 36.3856 | H53: =F53*D53 -> 36.3856
F54: Subtotal do Item 3.1 | H54: =SUM(H53:H53) -> 36.3856
A55: Código | B55: Discriminação | C55: Unidade | D55: Quantidade | E55: Utilização Produtiva | F55: Utilização Improdutiva | G55: Custo Horário Produtivo (R$) | H55: Custo Horário Improdutivo (R$) | I55: Custo Total (R$)
A56: 3.2 | B56: Veículos
A57: E9093 | B57: Veículo Leve 53 kw | C57: mês | D57: 1 | E57: 44 | F57: 176 | G57: =VLOOKUP(A57,Equipamentos!A:K,10,0) -> 37.7869 | H57: =VLOOKUP(A57,Equipamentos!A:K,11,0) -> 6.661 | I57: =((E57*G57)+(F57*H57))*D57 -> 2834.9596
H58: Subtotal do Item 3.2 | I58: =SUM(I57:I57) -> 2834.9596
H59: Total da Equipe de Produção de Terraplenagem | I59: =I58+H54 -> 2871.3452
A61: Composição de custo da equipe de produção de pavimentação
A62: Código | B62: Discriminação | C62: Unidade | D62: Quantidade | F62: Custo Unitário (R$) | H62: Custo Total (R$)
B63: Equipe de Produção de Pavimentação
A64: 3.1 | B64: Mão de Obra
A65: ='Pessoal Sicro'!A70 -> P9901 | B65: Encarregado de produção | C65: mês | D65: 1 | F65: =VLOOKUP(A65,'Pessoal Sicro'!A:G,4,0) -> 8326.019 | H65: =F65*D65 -> 8326.019
F66: Subtotal do Item 3.1 | H66: =SUM(H65:H65) -> 8326.019
A67: Código | B67: Discriminação | C67: Unidade | D67: Quantidade | E67: Utilização Produtiva | F67: Utilização Improdutiva | G67: Custo Horário Produtivo (R$) | H67: Custo Horário Improdutivo (R$) | I67: Custo Total (R$)
A68: 3.2 | B68: Veículos
A69: E9093 | B69: Veículo Leve 53 kw | C69: mês | D69: 1 | E69: 44 | F69: 176 | G69: =VLOOKUP(A69,Equipamentos!A:K,10,0) -> 37.7869 | H69: =VLOOKUP(A69,Equipamentos!A:K,11,0) -> 6.661 | I69: =((E69*G69)+(F69*H69))*D69 -> 2834.9596
H70: Subtotal do Item 3.2 | I70: =SUM(I69:I69) -> 2834.9596
H71: Total da Equipe de Produção de Pavimentação | I71: =I70+H66 -> 11160.9786
A73: Composição de custo da equipe de produção de drenagem
A74: Código | B74: Discriminação | C74: Unidade | D74: Quantidade | F74: Custo Unitário (R$) | H74: Custo Total (R$)
B75: Equipe de Produção de Pavimentação
A76: 3.1 | B76: Mão de Obra
A77: ='Pessoal Sicro'!A70 -> P9901 | B77: Encarregado de produção | C77: mês | D77: 1 | F77: =VLOOKUP(A77,'Pessoal Sicro'!A:G,4,0) -> 8326.019 | H77: =F77*D77 -> 8326.019
F78: Subtotal do Item 3.1 | H78: =SUM(H77:H77) -> 8326.019
A79: Código | B79: Discriminação | C79: Unidade | D79: Quantidade | E79: Utilização Produtiva | F79: Utilização Improdutiva | G79: Custo Horário Produtivo (R$) | H79: Custo Horário Improdutivo (R$) | I79: Custo Total (R$)
A80: 3.2 | B80: Veículos
A81: E9093 | B81: Veículo Leve 53 kw | C81: mês | D81: 1 | E81: 44 | F81: 176 | G81: =VLOOKUP(A81,Equipamentos!A:K,10,0) -> 37.7869 | H81: =VLOOKUP(A81,Equipamentos!A:K,11,0) -> 6.661 | I81: =((E81*G81)+(F81*H81))*D81 -> 2834.9596
H82: Subtotal do Item 3.2 | I82: =SUM(I81:I81) -> 2834.9596
H83: Total da Equipe de Produção de Pavimentação | I83: =I82+H78 -> 11160.9786
A85: Composição de custo da equipe de produção de sinalização
A86: Código | B86: Discriminação | C86: Unidade | D86: Quantidade | F86: Custo Unitário (R$) | H86: Custo Total (R$)
B87: Equipe de Produção de Pavimentação
A88: 3.1 | B88: Mão de Obra
A89: ='Pessoal Sicro'!A70 -> P9901 | B89: Encarregado de produção | C89: mês | D89: 1 | F89: =VLOOKUP(A89,'Pessoal Sicro'!A:G,4,0) -> 8326.019 | H89: =F89*D89 -> 8326.019
F90: Subtotal do Item 3.1 | H90: =SUM(H89:H89) -> 8326.019
A91: Código | B91: Discriminação | C91: Unidade | D91: Quantidade | E91: Utilização Produtiva | F91: Utilização Improdutiva | G91: Custo Horário Produtivo (R$) | H91: Custo Horário Improdutivo (R$) | I91: Custo Total (R$)
A92: 3.2 | B92: Veículos
A93: E9093 | B93: Veículo Leve 53 kw | C93: mês | D93: 1 | E93: 44 | F93: 176 | G93: =VLOOKUP(A93,Equipamentos!A:K,10,0) -> 37.7869 | H93: =VLOOKUP(A93,Equipamentos!A:K,11,0) -> 6.661 | I93: =((E93*G93)+(F93*H93))*D93 -> 2834.9596
H94: Subtotal do Item 3.2 | I94: =SUM(I93:I93) -> 2834.9596
H95: Total da Equipe de Produção de Pavimentação | I95: =I94+H90 -> 11160.9786
A97: Composição de custo da equipe topografia
A98: Código | B98: Discriminação | C98: Unidade | D98: Quantidade | F98: Custo Unitário (R$) | H98: Custo Total (R$)
B99: Equipe de Topografia
A100: 3.1 | B100: Mão de Obra
A101: P9949 | B101: Topográfo | C101: mês | D101: 1 | F101: =VLOOKUP(A101,'Pessoal Sicro'!A:G,4,0) -> 8842.8627 | H101: =F101*D101 -> 8842.8627
A102: P9950 | B102: Auxiliar de topografia | C102: mês | D102: 1 | F102: =VLOOKUP(A102,'Pessoal Sicro'!A:G,4,0) -> 5752.7159 | H102: =F102*D102 -> 5752.7159
F103: Subtotal do Item 3.1 | H103: =SUM(H101:I102) -> 14595.5786
A104: Código | B104: Discriminação | C104: Unidade | D104: Quantidade | E104: Utilização Produtiva | F104: Utilização Improdutiva | G104: Custo Horário Produtivo (R$) | H104: Custo Horário Improdutivo (R$) | I104: Custo Total (R$)
A105: 3.2 | B105: Veículos
A106: E9093 | B106: Veículo Leve 53 kw | C106: mês | D106: 1 | E106: 44 | F106: 176 | G106: =VLOOKUP(A106,Equipamentos!A:K,10,0) -> 37.7869 | H106: =VLOOKUP(A106,Equipamentos!A:K,11,0) -> 6.661 | I106: =((E106*G106)+(F106*H106))*D106 -> 2834.9596
H107: Subtotal do Item 3.2 | I107: =SUM(I106:I106) -> 2834.9596
H108: Total da Equipe de Produção de Topografia | I108: =I107+H103 -> 17430.5382
A110: Composição de custo do setor de medicina e segurança do trabalho
A111: Código | B111: Discriminação | C111: Unidade | D111: Quantidade | F111: Custo Unitário (R$) | H111: Custo Total (R$)
A112: 4 | B112: Setor de Medicina e Segurança do Trabalho
A113: P9876 | B113: Técnico de segurança do trabalho | C113: mês | D113: 1 | F113: =VLOOKUP(A113,'Pessoal Sicro'!A:G,4,0) -> 7384.0628 | H113: =F113*D113 -> 7384.0628
A114: P9864 | B114: Engenheiro de segurança do trabalho | C114: mês | D114: 0 | F114: =VLOOKUP(A114,'Pessoal Sicro'!A:G,4,0) -> 24424.838 | H114: =F114*D114 -> 0
A115: P9851 | B115: Médico do trabalho | C115: mês | D115: 0 | F115: =VLOOKUP(A115,'Pessoal Sicro'!A:G,4,0) -> 18579.8422 | H115: =F115*D115 -> 0
A116: P9951 | B116: Médico de câmara hiperbárica | C116: mês | D116: 0 | F116: =VLOOKUP(A116,'Pessoal Sicro'!A:G,4,0) -> 21152.0773 | H116: =F116*D116 -> 0
F117: Subtotal do Item 4 | H117: =SUM(H113:I116) -> 7384.0628
A119: Parcela Variável - Composição de custo da equipe de frente de serviço
A120: Código | B120: Discriminação | C120: Unidade | D120: Quantidade | F120: Custo Unitário (R$) | H120: Custo Total (R$)
A121: 5 | B121: Equipe de Frente de Serviço | C121: equipexmês
A122: P9875 | B122: Encarregado de Turma | C122: mês | D122: 1 | F122: =VLOOKUP(A122,'Pessoal Sicro'!A:G,4,0) -> 7431.4238 | H122: =F122*D122 -> 7431.4238
A123: P9804 | B123: Apontador | C123: mês | D123: 0.5 | F123: =VLOOKUP(A123,'Pessoal Sicro'!A:G,4,0) -> 5564.5409 | H123: =F123*D123 -> 2782.27045
F124: Subtotal do Item 5 | H124: =SUM(H122:I123) -> 10213.69425
A126: Parcela Variável - Composição de custo da equipe de frente de serviço (Terraplenagem) - Somente Compactação
A127: Código | B127: Discriminação | C127: Unidade | D127: Quantidade | F127: Produção Horária (und/h) | H127: Efs
A128: 5.1 | B128: Equipe de Frente de Serviço | C128: equipexmês
C129: mês | H129: =(D129)/(F129*182.49) -> 
C130: mês | H130: =(D130)/(F130*182.49) -> 
C131: mês | H131: =(D131)/(F131*182.49) -> 
F132: Total de Equipes para Terraplenagem | H132: =SUM(H131:I131) -> 
A134: Parcela Variável - Composição de custo da acompanhamento das frentes de serviço de pavimentação
A135: Código | B135: Discriminação | C135: Unidade | D135: Quantidade | F135: Produção Horária (und/h) | H135: Efs
A136: 5.2 | B136: Equipe de Frente de Serviço | C136: equipe x mês
A137: ='RESUMO MODULO TOTAL'!C23 -> 36170 | B137: ='RESUMO MODULO TOTAL'!E23 -> bloquete/piso intertravado de concreto - modelo onda/16 faces/retangular/t ijolinho/paver/holandes/paralelepipedo, *22 cm x 11* cm, e = 8 cm, resistencia de 35 mpa (nbr 9781), cor natural | C137: ='RESUMO MODULO TOTAL'!G23 -> m² | D137: ='RESUMO MODULO TOTAL'!H23 -> 105420 | F137: 9.69 | H137: =(D137)/(F137*182.49) -> 59.61563355
A138: ='RESUMO MODULO TOTAL'!C24 -> 92404 ADAPTADA | B138: ='RESUMO MODULO TOTAL'!E24 -> execução de pavimento em piso intertravado, com bloco 16 faces de 22 x 11 cm, espessura 8 cm. af_10/2022 - exclusive fornecimento de bloquete | C138: ='RESUMO MODULO TOTAL'!G24 -> m² | D138: ='RESUMO MODULO TOTAL'!H24 -> 105000 | F138: =F137 -> 9.69 | H138: 59.37812106
A139: ='RESUMO MODULO TOTAL'!C25 -> 5914640 | B139: ='RESUMO MODULO TOTAL'!E25 -> Transporte com cavalo mecânico com semirreboque com capacidade de 30 t - rodovia pavimentada | C139: ='RESUMO MODULO TOTAL'!G25 -> tkm | D139: ='RESUMO MODULO TOTAL'!H25 -> 2125200 | F139: 3500 | H139: 3.327305606
A140: ='RESUMO MODULO TOTAL'!C26 -> 5915373 | B140: ='RESUMO MODULO TOTAL'!E26 -> Carga, manobra e descarga de materiais diversos em caminhão carroceria com capacidade de 7 t e com guindauto de 20 t.m | C140: ='RESUMO MODULO TOTAL'!G26 -> t | D140: ='RESUMO MODULO TOTAL'!H26 -> 21252 | F140: 3500 | H140: =(D140)/(F140*182.49) -> 0.03327305606
A141: ='RESUMO MODULO TOTAL'!C27 -> 5915321 | B141: ='RESUMO MODULO TOTAL'!E27 -> Transporte com caminhão basculante de 14 m³ - rodovia pavimentada (areia) | C141: ='RESUMO MODULO TOTAL'!G27 -> tkm | D141: ='RESUMO MODULO TOTAL'!H27 -> 315000 | F141: 340.7 | H141: =(D141)/(F141*182.49) -> 5.06639853
A142: ='RESUMO MODULO TOTAL'!C28 -> 5915321 | B142: ='RESUMO MODULO TOTAL'!E28 -> Transporte com caminhão basculante de 14 m³ - rodovia pavimentada (pó de pedra) | C142: ='RESUMO MODULO TOTAL'!G28 -> tkm | D142: ='RESUMO MODULO TOTAL'!H28 -> 99225 | F142: 340.7 | H142: 1.595915537
A143: ='RESUMO MODULO TOTAL'!C29 -> 4011318 | B143: ='RESUMO MODULO TOTAL'!E29 -> Base ou sub-base estabilizada granulometricamente com mistura solo brita (70% - 30%) em usina com material de jazida e brita comercial - 100% Proctor modificado | C143: ='RESUMO MODULO TOTAL'!G29 -> m³ | D143: ='RESUMO MODULO TOTAL'!H29 -> 15750 | F143: 226.36 | H143: 0.3812780481
A144: ='RESUMO MODULO TOTAL'!C30 -> 4011209 | B144: ='RESUMO MODULO TOTAL'!E30 -> Regularização do subleito - 100% Proctor intermediário | C144: ='RESUMO MODULO TOTAL'!G30 -> m² | D144: ='RESUMO MODULO TOTAL'!H30 -> 105000 | F144: 2842.66 | H144: 0.2024068982
F145: Total de Equipes para Pavimentação | H145: =SUM(H137:I144) -> 129.6003323
A147: Parcela Variável - Composição de custo da acompanhamento das frentes de serviço de drenagem
A148: Código | B148: Discriminação | C148: Unidade | D148: Quantidade | F148: Efsdu | H148: Efs
A149: 5.3 | B149: Frentes de Serviço para Drenagem | C149: equipe x mês
A150: 2003373 | B150: =VLOOKUP(A150,'SINTÉTICO SICRO'!$A$4:$D$6373,2,0) -> Meio-fio de concreto - MFC 03 - areia e brita comerciais - fôrma de madeira | C150: m | D150: ='RESUMO MODULO TOTAL'!H37 -> 30000 | F150: 0.00021 | H150: =D150*F150 -> 6.3
F151: Total de Equipes para Drenagem | H151: =H150 -> 6.3
A153: Parcela Variável - Composição de custo da acompanhamento das frentes de serviço de sinalização
A154: Código | B154: Discriminação | C154: Unidade | D154: Quantidade | F154: Produção Horária (und/h) | H154: Efs
A155: 5.4 | B155: Frentes de Serviço para Sinalização | C155: equipe x mês
A156: 5213440 | B156: =VLOOKUP(A156,'SINTÉTICO SICRO'!$A$4:$D$6373,2,0) -> Placa de regulamentação em aço D = 0,60 m - película retrorrefletiva tipo I + SI - fornecimento e implantação | C156: ='RESUMO MODULO TOTAL'!G32 -> und | D156: ='RESUMO MODULO TOTAL'!H32 -> 45 | F156: 3 | H156: =0.2*((D156)/(F156*182.49)) -> 0.01643925695
A157: 5213464 | B157: =VLOOKUP(A157,'SINTÉTICO SICRO'!$A$4:$D$6373,2,0) -> Placa de advertência em aço, lado de 0,60 m - película retrorrefletiva tipo I + SI - fornecimento e implantação | C157: ='RESUMO MODULO TOTAL'!G33 -> und | D157: ='RESUMO MODULO TOTAL'!H33 -> 45 | F157: 3 | H157: =0.2*((D157)/(F157*182.49)) -> 0.01643925695
A158: 5213863 | B158: =VLOOKUP(A158,'SINTÉTICO SICRO'!$A$4:$D$6373,2,0) -> Suporte metálico galvanizado para placa de advertência ou regulamentação - lado ou diâmetro de 0,60 m - fornecimento e implantação | C158: ='RESUMO MODULO TOTAL'!G34 -> und | D158: ='RESUMO MODULO TOTAL'!H34 -> 90 | F158: 3 | H158: =0.2*((D158)/(F158*182.49)) -> 0.03287851389
A159: 5213400 | B159: =VLOOKUP(A159,'SINTÉTICO SICRO'!$A$4:$D$6373,2,0) -> Pintura de faixa com tinta acrílica - espessura de 0,4 mm | C159: ='RESUMO MODULO TOTAL'!G35 -> m² | D159: ='RESUMO MODULO TOTAL'!H35 -> 3600 | F159: 39.52 | H159: 0.0998335442
F160: Total de Equipes para Sinalização | H160: =SUM(H156:I159) -> 0.165590572
A162: 3. PARCELA VARIÁVEL - EQUIPE DE CONTROLE TECNOLÓGICO
A163: LABORATÓRIO DE SOLOS
A164: Item | B164: Discriminação | F164: Unidade | G164: Quantidade | H164: Custo Unitário (R$) | I164: Custo Total (R$)
B165: Laboratório de Solos (equipe x mês)
B166: Mão de Obra
A167: P9858 | B167: Laboratorista | F167: func./mês | G167: 1 | H167: =VLOOKUP(A167,'Pessoal Sicro'!A:G,4,0) -> 7485.1279 | I167: =TRUNC(G167*H167,2) -> 7485.12
A168: P9833 | B168: Auxiliar de laboratório | F168: func./mês | G168: 1 | H168: =VLOOKUP(A168,'Pessoal Sicro'!A:G,4,0) -> 5732.5326 | I168: =TRUNC(G168*H168,2) -> 5732.53
H169: Subtotal do Item | I169: =SUM(I167:I168) -> 13217.65
A170: Item | B170: Discriminação | C170: Und | D170: Quant | E170: Utilização Produtiva | F170: Utilização Improdutiva | G170: Horário Produtivo (R$) | H170: Horário Improdutivo (R$) | I170: Total (R$)
B171: Equipe de Controle Tecnológico
B172: Veículos
A173: E9125 | B173: Van furgão a diesel - 93 kW | C173: veic./mês | D173: 0.5 | E173: 44 | F173: 176 | G173: =VLOOKUP(A173,Equipamentos!A:K,10,0) -> 87.9809 | H173: =VLOOKUP(A173,Equipamentos!A:K,11,0) -> 48.2864 | I173: =D173*((E173*G173)+(F173*H173)) -> 6184.783
H174: Subtotal do Item | I174: =SUM(I173:I173) -> 6184.783
H175: Total da Equipe do Laboratório de Solos | I175: =I169+I174 -> 19402.433
A177: 3. PARCELA VARIÁVEL - EQUIPE DE CONTROLE TECNOLÓGICO
A178: LABORATÓRIO DE CONCRETO
A179: Item | B179: Discriminação | F179: Unidade | G179: Quantidade | H179: Custo Unitário (R$) | I179: Custo Total (R$)
B180: Laboratório de Solos (equipe x mês)
B181: Mão de Obra
A182: P9858 | B182: Laboratorista | F182: func./mês | G182: 1 | H182: =VLOOKUP(A182,'Pessoal Sicro'!A:G,4,0) -> 7485.1279 | I182: =TRUNC(G182*H182,2) -> 7485.12
A183: P9833 | B183: Auxiliar de laboratório | F183: func./mês | G183: 1 | H183: =VLOOKUP(A183,'Pessoal Sicro'!A:G,4,0) -> 5732.5326 | I183: =TRUNC(G183*H183,2) -> 5732.53
H184: Subtotal do Item | I184: =SUM(I182:I183) -> 13217.65
A185: Item | B185: Discriminação | C185: Und | D185: Quant | E185: Utilização Produtiva | F185: Utilização Improdutiva | G185: Horário Produtivo (R$) | H185: Horário Improdutivo (R$) | I185: Total (R$)
B186: Equipe de Controle Tecnológico
B187: Veículos
A188: E9125 | B188: Van furgão a diesel - 93 kW | C188: veic./mês | D188: 0.5 | E188: 44 | F188: 176 | G188: =VLOOKUP(A188,Equipamentos!A:K,10,0) -> 87.9809 | H188: =VLOOKUP(A188,Equipamentos!A:K,11,0) -> 48.2864 | I188: =D188*((E188*G188)+(F188*H188)) -> 6184.783
H189: Subtotal do Item | I189: =SUM(I188:I188) -> 6184.783
H190: Total da Equipe do Laboratório de Concreto | I190: =I184+I189 -> 19402.433
A192: Equipes de laboratório de solos para pavimentação
A193: Item | B193: Discriminação | F193: Und | G193: Quant | H193: QE | I193: Els
A194: ='RESUMO MODULO TOTAL'!C29 -> 4011318 | B194: =VLOOKUP(A194,'SINTÉTICO SICRO'!A:D,2,0) -> Base ou sub-base estabilizada granulometricamente com mistura solo brita (70% - 30%) em usina com material de jazida e brita comercial - 100% Proctor modificado | F194: =VLOOKUP(A194,'SINTÉTICO SICRO'!A:D,3,0) -> m³ | G194: ='RESUMO MODULO TOTAL'!H29 -> 15750 | H194: 21900 | I194: =G194/H194 -> 0.7191780822
H195: Total de equipes de Laboratório de Solos para Pavimentação | I195: =I194 -> 0.7191780822
A197: Equipes de laboratório de Concreto
A198: Item | B198: Discriminação | F198: Und | G198: Quant | H198: QE | I198: Ela
A199: ='RESUMO MODULO TOTAL'!C23 -> 36170 | B199: BLOQUETE/PISO INTERTRAVADO DE CONCRETO - MODELO ONDA/16 FACES/RETANGULAR/T IJOLINHO/PAVER/HOLANDES/PARALELEPIPEDO, *22 CM X 11* CM, E = 8 CM, RESISTENCIA DE 35 MPA (NBR 9781), COR NATURAL | F199: ='RESUMO MODULO TOTAL'!G23 -> m² | G199: ='RESUMO MODULO TOTAL'!H24 -> 105000 | H199: 9000 | I199: =G199/H199 -> 11.66666667
H200: Total de equipes de Laboratório de Concreto | I200: =SUM(I199:I199) -> 11.66666667
A202: manutenção do canteiro de obras e acampamentos
A203: Código | B203: Discriminação | C203: Unidade | D203: Quantidade | F203: Custo Unitário (R$) | H203: Custo Total (R$)
B204: Manutenção do Canteiro de Obras e Acampamentos
A205: 6.1 | B205: Mão de Obra
A206: P9952 | B206: Pedreiro | C206: mês | D206: 0 | F206: =VLOOKUP(A206,'Pessoal Sicro'!A:G,4,0) -> 5575.4161 | H206: =F206*D206 -> 0
A207: P9954 | B207: Servente | C207: mês | D207: 0 | F207: =VLOOKUP(A207,'Pessoal Sicro'!A:G,4,0) -> 4148.4864 | H207: =F207*D207 -> 0
A208: P9953 | B208: Eletricista | C208: mês | D208: 0 | F208: =VLOOKUP(A208,'Pessoal Sicro'!A:G,4,0) -> 5792.8074 | H208: =F208*D208 -> 0
F209: Subtotal do Item 6.1 | H209: =SUM(H206:I208) -> 0
A211: Código | B211: Discriminação | C211: Unidade | D211: Quantidade | F211: Custo Produtivo (R$) | H211: Custo Total (R$)
A212: 6.2 | B212: Equipamentos
B213: Caminhão guindauto de 6 toneladas | C213: h/mês | D213: 0 | H213: =F213*D213 -> 0
B214: Caminhão tanque de 8.000 litros | C214: h/mês | D214: 0 | H214: =F214*D214 -> 0
A215: E9524 | B215: Motoniveladora | C215: h/mês | D215: 0 | F215: =Equipamentos!J168 -> 298.3018 | H215: =F215*D215 -> 0
F216: Subtotal do Item 6.2 | H216: =SUM(H213:I215) -> 0
G217: Total da Manutenção do Canteiro de Obras e Acampamentos | H217: =H216+H209 -> 0
A221: Resumo das parcelas de administração local
A222: Código | B222: Discriminação | C222: Unidade | D222: Quantidade | F222: Custo Unitário (R$) | H222: Custo Total (R$)
B223: Parcela Fixa
B224: Mão de Obra | C224: mês | D224: 2 | F224: =H14+H18+H26+H30 -> 57421.1854 | H224: =F224*D224 -> 114842.3708
... 27 more rows

Sheet Projeto Executivo
E1: Ministério da Integração e do Desenvolvimento Regional
A4: COMPOSIÇAO PREÇO PROJETO EXECUTIVO
A6: DISCRIMINAÇAO | F6: Pr. Unit. | G6: Pr. Total
A8: A· EOUIPE TECNICA | G8: =G9+G12 -> 17901.64951
B9: A. 1 - Pessoal de Nível Superior | C9: Unidade | D9: Quantitativo | E9: SICRO e Rel.Custos Gerais | G9: =G10+G11 -> 14797.41863
B10: Engenheiro | C10: mês | D10: 0.5 | E10: P9812 | F10: =VLOOKUP(E10,'Pessoal Sicro'!A:G,4,0) -> 25173.4059 | G10: =F10*D10 -> 12586.70295
B11: Topógrafo | C11: mês | D11: 0.25 | E11: P9949 | F11: =VLOOKUP(E11,'Pessoal Sicro'!A:G,4,0) -> 8842.8627 | G11: =F11*D11 -> 2210.715675
B12: A.2 - Pessoal de Nível Técnico e Aux. | G12: =G13+G14 -> 3104.230887
B13: Auxiliar de topógrafo | C13: mês | D13: 0.125 | E13: P9950 | F13: =VLOOKUP(E13,'Pessoal Sicro'!A:G,4,0) -> 5752.7159 | G13: =F13*D13 -> 719.0894875
B14: Auxiliar Técnico/Assistente de Engenharia | C14: mês | D14: 0.5 | E14: P9903 | F14: =VLOOKUP(E14,'Pessoal Sicro'!A:G,4,0) -> 4770.2828 | G14: =F14*D14 -> 2385.1414
A15: B - ENCARGOS SOCIAIS | G15: =G16 -> 0
B16: =CONCATENATE("Taxas ",'ENC. SOCIAIS'!E51,"%") -> Taxas 115,1% | C16: JÁ INCLUSAS EM "A"
A17: C - DESPESAS GERAIS | G17: =G18+G20+G19 -> 13107.75558
B18: C.1 - MATERIAIS DE CONSUMO | C18: Estimativa % como referência de equipe técnica com encargos sociais | D18: 0.03 | F18: =G8+G16 -> 17901.64951 | G18: =F18*D18 -> 537.0494854
B19: C.2 - VEÍCULOS (Veículo leve picape 4 x 4 com capacidade de 1,10 t - 147 kW) | C19: h | D19: 110 | E19: E9684 | F19: =VLOOKUP(E19,Equipamentos!A:K,10,0) -> 111.5778 | G19: =F19*D19 -> 12273.558
B20: C.3 - Estação total eletrônica com alcance máximo de 3.000 m | C20: h | D20: 38.09884009 | E20: E9553 | F20: =VLOOKUP(E20,Equipamentos!A:K,10,0) -> 7.7994 | G20: =F20*D20 -> 297.1480934
A21: D - ENSAIOS | G21: =SUM(G22:G25) -> 3771.95855
B22: Laboratorista | C22: mês | D22: =1/4 -> 0.25 | E22: P9858 | F22: =VLOOKUP(E22,'Pessoal Sicro'!A:G,4,0) -> 7485.1279 | G22: =F22*D22 -> 1871.281975
B23: Auxiliar de Laboratório | C23: mês | D23: =1/8 -> 0.125 | E23: P9833 | F23: =VLOOKUP(E23,'Pessoal Sicro'!A:G,4,0) -> 5732.5326 | G23: =F23*D23 -> 716.566575
B24: Laboratório de solos | C24: mês | D24: =1/8 -> 0.125 | E24: B8957 | F24: =VLOOKUP(E24,'Tabelas 1 e 2'!C14:G23,5,0) -> 3520.5 | G24: =F24*D24 -> 440.0625
B25: Laboratório de asfalto | C25: mês | D25: 0.125 | E25: B8955 | F25: =VLOOKUP(E25,'Tabelas 1 e 2'!C15:G24,5,0) -> 5952.38 | G25: =F25*D25 -> 744.0475
A26: I - SOMA (A+B+C+D) | G26: =G8+G15+G17+G21 -> 34781.36364
A27: II - CUSTOS ADMINISTRATIVOS | D27: =BDI!C14 -> 0.2206 | G27: =D27*G26 -> 7672.768819
A28: TOTAL | G28: =G26+G27 -> 42454.13246
F29: Por m²: | G29: =G28/('MC MODULO'!C1*'MC MODULO'!C2) -> 6.064876066

Sheet CPU CODEVASF
A4: ='RESUMO MODULO TOTAL'!B56 -> EXECUÇÃO DE SERVIÇOS DE IMPLANTAÇÃO DE PAVIMENTAÇÃO EM BLOCO DE CONCRETO INTERTRAVADO, EM VIAS URBANAS E RURAIS INSERIDAS NA ÁREA DE ATUAÇÃO DA CODEVASF, NO ESTADO DO CEARÁ
F5: BDI %: | G5: =BDI!$C$14 -> 0.2206
E6: Encargos Sociais: | G6: Horista | H6: Mensalista
G7: ='ENC. SOCIAIS'!E51/100 -> 1.151 | H7: ='ENC. SOCIAIS'!F51/100 -> 0.7184
A8: COMPOSIÇÕES DE CUSTO UNITARIO
A9: CPU-02 | B9: CODEVASF | D9: Correção de vazamentos no ramal na rua sem pavimento com fornecimento do material hidráulico | E9: m | F9: COEF. | G9: PRECO UNITÁRIO (R$) | H9: TOTAL (R$)
A11: SICRO | B11: SICRO | C11: P9824 | D11: =VLOOKUP(C11,'Pessoal Sicro'!$A$5:$G$1048576,2,0) -> Servente | E11: H | F11: 0.2 | G11: =VLOOKUP(C11,'Pessoal Sicro'!A:G,4,0) -> 22.4008 | H11: =F11*G11 -> 4.48016
A12: SICRO | B12: SICRO | C12: P9807 | D12: =VLOOKUP(C12,'Pessoal Sicro'!$A$5:$G$1048576,2,0) -> Bombeiro hidráulico | E12: H | F12: 0.1 | G12: =VLOOKUP(C12,'Pessoal Sicro'!A:G,4,0) -> 31.8033 | H12: 3.18033
A13: INS. SINAPI | B13: SINAPI | C13: 9867 | D13: TUBO PVC, SOLDAVEL, DN 20 MM, AGUA FRIA (NBR-5648) | E13: m | F13: 1 | G13: =IFERROR(VLOOKUP(C13,'INSUMOS SINAPI'!$A:$E,5,FALSE),VLOOKUP(C13,'COMP Sint. Sinapi'!A:E,4,FALSE)) -> 3.44 | H13: 3.44
A14: INSUMO | B14: ORSE | C14: 10585 | D14: Arco de serra | E14: un | F14: 0.1 | G14: 19.9 | H14: 1.99
A15: INS. SINAPI | B15: SINAPI | C15: 3859 | D15: LUVA SOLDAVEL COM ROSCA, PVC, 20 MM X 1/2", PARA AGUA FRIA PREDIAL | E15: un | F15: 2 | G15: =IFERROR(VLOOKUP(C15,'INSUMOS SINAPI'!$A:$E,5,FALSE),VLOOKUP(C15,'COMP Sint. Sinapi'!A:E,4,FALSE)) -> 1.24 | H15: 2.48
E16: Sub total: | H16: =SUM(H11:H15) -> 15.57049
F17: BDI | G17: =BDI!$C$14 -> 0.2206 | H17: =H16*G17 -> 3.434850094
G18: Total Serviços: | H18: =H16+H17 -> 19.00534009
E19: =A9 -> CPU-02 | F19: PREÇO UNITÁRIO TOTAL: | H19: =H18 -> 19.00534009 | I19: =H16 -> 15.57049
A21: CPU-04 | B21: CODEVASF | D21: CONTROLE TECNOLÓGICO - PROJETO | E21: m² | F21: COEF. | G21: PRECO UNITÁRIO (R$) | H21: TOTAL (R$)
A23: Insumo | B23: SICRO | C23: P9858 | D23: Laboratorista | E23: mês | F23: =0.15/14000 -> 1.071428571e-05 | G23: =VLOOKUP(C23,'Pessoal Sicro'!A:G,4,0) -> 7485.1279 | H23: =F23*G23 -> 0.08019779893
A24: Composição | B24: SICRO | C24: P9833 | D24: Auxiliar de Laboratório | E24: mês | F24: =0.15/14000 -> 1.071428571e-05 | G24: =VLOOKUP(C24,'Pessoal Sicro'!A:G,4,0) -> 5732.5326 | H24: 0.06141999214
A25: Composição | B25: SICRO | C25: *B8957 | D25: Laboratório de Solos | E25: mês | F25: 1.071428571e-05 | G25: ='Tabelas 1 e 2'!G22 -> 3520.5 | H25: 0.03771964286
A26: Composição | B26: SICRO | C26: *B8956 | D26: Laboratório de concreto | E26: mês | F26: 1.071428571e-05 | G26: ='Tabelas 1 e 2'!G21 -> 4642.56 | H26: 0.04974171429
B27: *Relatório de Custos Gerais do DNIT, página 1 | E27: Sub total: | H27: =SUM(H23:H26) -> 0.2290791482
F28: BDI | G28: =BDI!$C$14 -> 0.2206 | H28: =H27*G28 -> 0.0505348601
E29: CPU-20 | F29: PREÇO UNITÁRIO TOTAL: | H29: =H27+H28 -> 0.2796140083 | I29: =H27 -> 0.2290791482

Sheet CPU SINAPI
A1: SINAPI - SISTEMA NACIONAL DE PESQUISA DE CUSTOS E ÍNDICES DA CONSTRUÇÃO CIVIL
A2: PCI.818.01 - COMPOSIÇÕES ATIVAS ANALÍTICAS COM CUSTO | C2: ABRANGENCIA: NACIONAL DATA DE PREÇO : 05/2025 DATA REFERENCIA TECNICA: 12/2024
A3: * Composições constantes nos Relatórios publicados de Composições Analíticas para as 27 Unidades da Federação
A4: MACROCLASSE.CLASSE.GRUPO | B4: CÓDIGOS | C4: DESCRIÇÃO | D4: UNIDADE | E4: COEFICIENTE | F4: PREÇO UNITÁRIO | G4: PREÇO TOTAL
A5: 03.PAVI.INTE.004/001 | B5: 92404 ADAPTADA | C5: EXECUÇÃO DE PAVIMENTO EM PISO INTERTRAVADO, COM BLOCO 16 FACES DE 22 X 11 CM, ESPESSURA 8 CM. AF_10/2022 - EXCLUSIVE FORNECIMENTO DE BLOQUETE | D5: M2 | F5: Pavimento Intertravado | G5: =G17 -> 19.3
A6: INSUMO | B6: 370 | C6: JUNHO / 2025 | D6: M3 | E6: 0.0568 | F6: =VLOOKUP($B6,'INSUMOS SINAPI'!$A:$E,5,0) -> 130 | G6: =ROUND(ROUND(E6,5)*ROUND(F6,2),2) -> 7.38
A7: INSUMO | B7: 4741 | C7: PO DE PEDRA (POSTO PEDREIRA/FORNECEDOR, SEM FRETE) | D7: M3 | E7: 0.0098 | F7: =VLOOKUP($B7,'INSUMOS SINAPI'!$A:$E,5,0) -> 107.26 | G7: =ROUND(ROUND(E7,5)*ROUND(F7,2),2) -> 1.05
A8: INSUMO | B8: 36170 | C8: BLOQUETE/PISO INTERTRAVADO DE CONCRETO - MODELO ONDA/16 FACES/RETANGULAR/T IJOLINHO/PAVER/HOLANDES/PARALELEPIPEDO, *22 CM X 11* CM, E = 8 CM, RESISTENCIA DE 35 MPA (NBR 9781), COR NATURAL | D8: M2 | E8: 1.004 | F8: 0 | G8: 0
A9: COMPOSICAO | B9: 88260 | C9: CALCETEIRO COM ENCARGOS COMPLEMENTARES | D9: H | E9: 0.2129 | F9: =VLOOKUP($B9,'COMP Sint. Sinapi'!$A:$E,4,0) -> 17.93 | G9: 3.82
A10: COMPOSICAO | B10: 88316 | C10: SERVENTE COM ENCARGOS COMPLEMENTARES | D10: H | E10: 0.2129 | F10: =VLOOKUP($B10,'COMP Sint. Sinapi'!$A:$E,4,0) -> 15.26 | G10: 3.25
A11: COMPOSICAO | B11: 91277 | C11: PLACA VIBRATÓRIA REVERSÍVEL COM MOTOR 4 TEMPOS A GASOLINA, FORÇA CENTRÍFUG A DE 25 KN (2500 KGF), POTÊNCIA 5,5 CV - CHP DIURNO. AF_08/2015 | D11: CHP | E11: 0.0055 | F11: =VLOOKUP($B11,'COMP Sint. Sinapi'!$A:$E,4,0) -> 10.76 | G11: 0.06
A12: COMPOSICAO | B12: 91278 | C12: =VLOOKUP($B12,'COMP Sint. Sinapi'!$A:$E,2,0) -> PLACA VIBRATÓRIA REVERSÍVEL COM MOTOR 4 TEMPOS A GASOLINA, FORÇA CENTRÍFUGA DE 25 KN (2500 KGF), POTÊNCIA 5,5 CV - CHI DIURNO. AF_08/2015 | D12: CHP | E12: 0.101 | F12: =VLOOKUP($B12,'COMP Sint. Sinapi'!$A:$E,4,0) -> 0.72 | G12: 0.07
A13: COMPOSICAO | B13: 91283 | C13: =VLOOKUP($B13,'COMP Sint. Sinapi'!$A:$E,2,0) -> CORTADORA DE PISO COM MOTOR 4 TEMPOS A GASOLINA, POTÊNCIA DE 13 HP, COM DISCO DE CORTE DIAMANTADO SEGMENTADO PARA CONCRETO, DIÂMETRO DE 350 MM, FURO DE 1" (14 X 1") - CHP DIURNO. AF_08/2015 | D13: CHI | E13: 0.0038 | F13: =VLOOKUP($B13,'COMP Sint. Sinapi'!$A:$E,4,0) -> 12.04 | G13: =ROUND(ROUND(E13,5)*ROUND(F13,2),2) -> 0.05
A14: COMPOSICAO | B14: 91285 | C14: =VLOOKUP($B14,'COMP Sint. Sinapi'!$A:$E,2,0) -> CORTADORA DE PISO COM MOTOR 4 TEMPOS A GASOLINA, POTÊNCIA DE 13 HP, COM DISCO DE CORTE DIAMANTADO SEGMENTADO PARA CONCRETO, DIÂMETRO DE 350 MM, FURO DE 1" (14 X 1") - CHI DIURNO. AF_08/2015 | D14: CHI | E14: 0.1027 | F14: =VLOOKUP($B14,'COMP Sint. Sinapi'!$A:$E,4,0) -> 1.31 | G14: 0.13
D15: Sub total: | G15: =SUM(G6:G14) -> 15.81
F16: BDI | G16: =BDI!C14 -> 0.2206
D17: Total Serviços: | G17: =ROUND(ROUND(G15,2)*ROUND(1+G16,4),2) -> 19.3

Sheet BDI
A2: DETALHAMENTO DO BDI - SEM DESONERAÇÃO
A3: ='RESUMO MODULO TOTAL'!B56 -> EXECUÇÃO DE SERVIÇOS DE IMPLANTAÇÃO DE PAVIMENTAÇÃO EM BLOCO DE CONCRETO INTERTRAVADO, EM VIAS URBANAS E RURAIS INSERIDAS NA ÁREA DE ATUAÇÃO DA CODEVASF, NO ESTADO DO CEARÁ
A4: DESCRIÇÃO DOS SERVIÇOS | B4: PREÇO DE VENDA (%) | C4: CUSTO DIRETO (%)
A5: ADMINISTRAÇÃO CENTRAL | C5: 0.06
A6: DESPESAS FINANCEIRAS | B6: 0.0102 | C6: JUNHO / 2025
A7: SEGUROS E GARANTIAS CONTRATUAIS | B7: 0.0025
A8: RISCOS | B8: 0.005
A9: LUCRO OPERACIONAL | C9: 0.07
A10: PIS | B10: 0.0065
A11: COFINS | B11: 0.03
A12: ISSQN | B12: 0.02
A13: Contribuição Previdenciaria | B13: 0
B14: BDI | C14: =ROUND((1+(C5+C9))/(1-(B6+B7+B8+B10+B11+B12+B13))-1,4) -> 0.2206
A15: Observação: O percentual de ISSQN aqui utilizado consiste apenas em um referencial médio.
A16: O valor real do ISSQN a ser adotado deve ser aquele proveniente das alíquotas dos municípios situados na área de influência das obras.
A56: DETALHAMENTO DO BDI DIFERENCIADO - SEM DESONERAÇÃO
A57: =A3 -> EXECUÇÃO DE SERVIÇOS DE IMPLANTAÇÃO DE PAVIMENTAÇÃO EM BLOCO DE CONCRETO INTERTRAVADO, EM VIAS URBANAS E RURAIS INSERIDAS NA ÁREA DE ATUAÇÃO DA CODEVASF, NO ESTADO DO CEARÁ
A59: DESCRIÇÃO DOS SERVIÇOS | B59: PREÇO DE VENDA (%) | C59: CUSTO DIRETO (%)
A60: ADMINISTRAÇÃO CENTRAL | C60: 0.0377
A61: DESPESA FINANCEIRAS | B61: 0.0102
A62: SEGUROS E GARANTIAS CONTRATUAIS | B62: 0.0025
A63: RISCOS | B63: 0.005
A64: LUCRO OPERACIONAL | C64: 0.05
A65: PIS | B65: 0.0065
A66: COFINS | B66: 0.03
A67: ISSQN | B67: 0
A68: Contribuição Previdenciaria | B68: 0
B69: BDI | C69: =ROUND((1+(C60+C64))/(1-(B61+B62+B63+B65+B66+B67+B68))-1,4) -> 0.15
A70: Fonte da composição, valores de referência e fórmula do BDI: Instrução Normativa N° 62/DNIT SEDE

Sheet ENC. SOCIAIS
A6: NOME DA CONCORRENTE: | C6: JUNHO / 2025
A7: EDITAL:
A8: FOLHA:
A9: ='RESUMO MODULO TOTAL'!B56 -> EXECUÇÃO DE SERVIÇOS DE IMPLANTAÇÃO DE PAVIMENTAÇÃO EM BLOCO DE CONCRETO INTERTRAVADO, EM VIAS URBANAS E RURAIS INSERIDAS NA ÁREA DE ATUAÇÃO DA CODEVASF, NO ESTADO DO CEARÁ
A11: DETALHAMENTO DOS ENCARGOS SOCIAIS (%)
A12: VIGÊNCIA A PARTIR DE 01/2025 | C12: COM DESONERAÇÃO | E12: SEM DESONERAÇÃO
C14: HORISTA | D14: MENSALISTA | E14: HORISTA | F14: MENSALISTA
A16: GRUPO A
A17: A1 | B17: INSS | C17: 0 | D17: 0 | E17: 20 | F17: 20
A18: A2 | B18: SESI | C18: 1.5 | D18: 1.5 | E18: 1.5 | F18: 1.5
A19: A3 | B19: SENAI | C19: 1 | D19: 1 | E19: 1 | F19: 1
A20: A4 | B20: INCRA | C20: 0.2 | D20: 0.2 | E20: 0.2 | F20: 0.2
A21: A5 | B21: SEBRAE | C21: 0.6 | D21: 0.6 | E21: 0.6 | F21: 0.6
A22: A6 | B22: Salário Educação | C22: 2.5 | D22: 2.5 | E22: 2.5 | F22: 2.5
A23: A7 | B23: Seguro Contra Acidentes de Trabalho | C23: 3 | D23: 3 | E23: 3 | F23: 3
A24: A8 | B24: FGTS | C24: 8 | D24: 8 | E24: 8 | F24: 8
A25: A9 | B25: SECONCI | C25: 1 | D25: 1 | E25: 0
A26: A | B26: Total | C26: =SUM(C17:C25) -> 17.8 | D26: =SUM(D17:D25) -> 17.8 | E26: =SUM(E17:E25) -> 36.8 | F26: =SUM(F17:F25) -> 36.8
A27: GRUPO B
A28: B1 | B28: Repouso Semanal Remunerado | C28: 17.88 | D28: - | E28: 17.86 | F28: -
A29: B2 | B29: Feriados | C29: 3.94 | D29: - | E29: 3.71 | F29: -
A30: B3 | B30: Auxílio-enfermidade | C30: 0.91 | D30: 0.69 | E30: 0.86 | F30: 0.65
A31: B4 | B31: 13° salário | C31: 10.98 | D31: 8.33 | E31: 11.07 | F31: 8.33
A32: B5 | B32: Licença-paternidade | C32: 0.07 | D32: 0.06 | E32: 0.07 | F32: 0.05
A33: B6 | B33: Faltas Justificadas | C33: 0.73 | D33: 0.56 | E33: 0.74 | F33: 0.56
A34: B7 | B34: Dias de chuva | C34: 1.45 | D34: - | E34: 1.64 | F34: -
A35: B8 | B35: Auxílio Acidente de Trabalho | C35: 0.11 | D35: 0.09 | E35: 0.1 | F35: 0.07
A36: B9 | B36: Férias Gozadas | C36: 11.35 | D36: 8.62 | E36: 12.98 | F36: 9.77
A37: B10 | B37: Salário Maternidade | C37: 0.03 | D37: 0.03 | E37: 0.03 | F37: 0.03
A38: B | B38: Total | C38: =SUM(C28:C37) -> 47.45 | D38: =SUM(D28:D37) -> 18.38 | E38: =SUM(E28:E37) -> 49.06 | F38: =SUM(F28:F37) -> 19.46
A39: GRUPO C
A40: C1 | B40: Aviso Prévio Indenizado | C40: 6.76 | D40: 5.14 | E40: 5.54 | F40: 4.17
A41: C2 | B41: Aviso Prévio Trabalhado | C41: 0.16 | D41: 0.12 | E41: 0.13 | F41: 0.1
A42: C3 | B42: Férias Indenizadas | C42: 2.28 | D42: 1.73 | E42: 1.81 | F42: 1.36
A43: C4 | B43: Depósito Rescisão Sem Justa Causa | C43: 3.81 | D43: 2.89 | E43: 2.75 | F43: 2.07
A44: C5 | B44: Indenização Adicional | C44: 0.57 | D44: 0.43 | E44: 0.47 | F44: 0.35
A45: C | B45: Total | C45: =SUM(C40:C44) -> 13.58 | D45: =SUM(D40:D44) -> 10.31 | E45: =SUM(E40:E44) -> 10.7 | F45: =SUM(F40:F44) -> 8.05
A46: GRUPO D
A47: D1 | B47: Reincidência de A sobre B | C47: 8.45 | D47: 3.27 | E47: 18.05 | F47: 7.16
A48: D2 | B48: Reincidência de Grupo A sobre Aviso Prévio Trabalhado e Reincidência do FGTS sobre Aviso Prévio Indenizado | C48: 0.57 | D48: 0.43 | E48: 0.49 | F48: 0.37
A49: D | B49: Total | C49: =SUM(C47:C48) -> 9.02 | D49: =SUM(D47:D48) -> 3.7 | E49: =SUM(E47:E48) -> 18.54 | F49: =SUM(F47:F48) -> 7.53
A51: T O T A L (%) | C51: =C26+C38+C45+C49 -> 87.85 | D51: =D26+D38+D45+D49 -> 50.19 | E51: =E26+E38+E45+E49 -> 115.1 | F51: =F26+F38+F45+F49 -> 71.84
H55: Fonte: Sinapi Cálculos e Parâmetros7ª Edição - Atualizada em 2025

Sheet MOMENTO DE TRANSPORTE - AUX
E1: Ministério da Integração e do Desenvolvimento Regional
B5: ='RESUMO MODULO TOTAL'!B56 -> EXECUÇÃO DE SERVIÇOS DE IMPLANTAÇÃO DE PAVIMENTAÇÃO EM BLOCO DE CONCRETO INTERTRAVADO, EM VIAS URBANAS E RURAIS INSERIDAS NA ÁREA DE ATUAÇÃO DA CODEVASF, NO ESTADO DO CEARÁ
B6: DATA BASE: | C6: JUNHO / 2025
C8: RESUMO DO TRANSPORTE AUXILIAR
B9: CODIGO | C9: DESCRIÇÃO | D9: TKM
B10: 5914359 | C10: =VLOOKUP(B10,'SINTÉTICO SICRO'!$A:$D,2,0) -> Transporte com caminhão basculante de 10 m³ - rodovia em leito natural | D10: =ROUND(SUMIF($A:$A,B10,$K:$K),2) -> 69690.77
B11: 5914374 | C11: =VLOOKUP(B11,'SINTÉTICO SICRO'!$A:$D,2,0) -> Transporte com caminhão basculante de 10 m³ - rodovia em revestimento primário | D11: 69690.77
B12: 5914389 | C12: =VLOOKUP(B12,'SINTÉTICO SICRO'!$A:$D,2,0) -> Transporte com caminhão basculante de 10 m³ - rodovia pavimentada | D12: 6225110.08
B13: 5914449 | C13: =VLOOKUP(B13,'SINTÉTICO SICRO'!$A:$D,2,0) -> Transporte com caminhão carroceria de 15 t - rodovia em leito natural | D13: 35.88
B14: 5914464 | C14: =VLOOKUP(B14,'SINTÉTICO SICRO'!$A:$D,2,0) -> Transporte com caminhão carroceria de 15 t - rodovia em revestimento primário | D14: 35.88
B15: 5914479 | C15: =VLOOKUP(B15,'SINTÉTICO SICRO'!$A:$D,2,0) -> Transporte com caminhão carroceria de 15 t - rodovia pavimentada | D15: 2870.21
B17: TIPO (P, RP ou LN) | C17: DMT ATÉ 50 KM NÃO DEVE SER PAGA | D17: SOMENTE DEVE SER ADICIONADO A DISTÂNCIA EXCEDENTE A 50 KM
B18: P | D18: 100
B20: SISTEMA DE CUSTOS REFERENCIAIS DE OBRAS - SICRO | I20: Quantitivo
B21: Custo Unitário de Referência | E21: =$C$6 -> JUNHO / 2025 | I21: (Coeficiente na composição principal) x (quantidade da principal no orçamento) | K21: t
B22: 3713608 | C22: =VLOOKUP(B22,'SINTÉTICO SICRO'!A:D,2,0) -> Cerca com 4 fios de arame farpado e mourão de madeira a cada 2,5 m e esticador a cada 50 m | I22: ='MOMENTO DE TRANSPORTE - PRINC'!D24*(VLOOKUP(C30,'RESUMO MODULO TOTAL'!C9:H52,6,0)*0.8) -> 3624
B23: F - MOMENTO DE TRANSPORTE | D23: Quantidade | E23: Unidade | F23: DMT
F24: LN | G24: RP | H24: P | I24: TIPO (P, RP ou LN) | J24: DMT ESTIMADA (km) | K24: QUANTITATIVO TOTAL DE TRANSPORTE DE MATERIAL (tkm)
A25: =IF(I25="P",H25,IF(I25="RP",G25,IF(I25="LN",F25,""))) -> 5914479 | B25: M0069 | C25: Arame farpado em aço galvanizado - D = 1,60 mm - Caminhão carroceria 15 t | D25: 0.0002 | E25: tkm | F25: 5914449 | G25: 5914464 | H25: 5914479 | I25: =$B$18 -> P | J25: =$D$18 -> 100 | K25: =IF(ISBLANK(J25),"",J25*(D25*I$22)) -> 72.48
A26: =IF(I26="P",H26,IF(I26="RP",G26,IF(I26="LN",F26,""))) -> 5914479 | B26: M0745 | C26: Grampo em aço galvanizado para cerca - C = 25,4 mm e E = 3,76 mm (1" x 9 BWG) - Caminhão carroceria 15 t | D26: 1e-05 | E26: tkm | F26: 5914449 | G26: 5914464 | H26: 5914479 | I26: =$B$18 -> P | J26: =$D$18 -> 100 | K26: =IF(ISBLANK(J26),"",J26*(D26*I$22)) -> 3.624
A27: 5914479 | B27: M1638 | C27: Mourão de madeira - H = 2,10 m e D = 0,10 m - Caminhão carroceria 15 t | D27: 0.00693 | E27: tkm | F27: 5914449 | G27: 5914464 | H27: 5914479 | I27: P | J27: 100 | K27: 2511.432
A28: 5914479 | B28: M1639 | C28: Mourão de madeira - H = 2,20 m e D = 0,15 m - Caminhão carroceria 15 t | D28: 0.00078 | E28: tkm | F28: 5914449 | G28: 5914464 | H28: 5914479 | I28: P | J28: 100 | K28: 282.672
B30: PRINCIPAL: | C30: 903808
B32: SISTEMA DE CUSTOS REFERENCIAIS DE OBRAS - SICRO | I32: Quantitivo
B33: Custo Unitário de Referência | E33: =$C$6 -> JUNHO / 2025 | I33: (Coeficiente na composição principal) x (quantidade da principal no orçamento) | K33: t
B34: 903845 | C34: =VLOOKUP(B34,'SINTÉTICO SICRO'!A:D,2,0) -> Lastro de brita comercial - espalhamento mecânico | I34: ='MOMENTO DE TRANSPORTE - PRINC'!D26*(VLOOKUP(C39,'RESUMO MODULO TOTAL'!C9:H52,6,0)*0.8) -> 1321.55112
B35: F - MOMENTO DE TRANSPORTE | D35: Quantidade | E35: Unidade | F35: DMT
F36: LN | G36: RP | H36: P | I36: TIPO (P, RP ou LN) | J36: DMT ESTIMADA (km) | K36: QUANTITATIVO TOTAL DE TRANSPORTE DE MATERIAL (tkm)
A37: =IF(I37="P",H37,IF(I37="RP",G37,IF(I37="LN",F37,""))) -> 5914389 | B37: M0192 | C37: Brita 2 - Caminhão basculante 10 m³ | D37: 1.5 | E37: tkm | F37: 5914359 | G37: 5914374 | H37: 5914389 | I37: =$B$18 -> P | J37: =$D$18 -> 100 | K37: =IF(ISBLANK(J37),"",J37*(D37*$I$34)) -> 198232.668
A38: =IF(I38="P",H38,IF(I38="RP",G38,IF(I38="LN",F38,""))) -> 
B39: PRINCIPAL: | C39: 903808
B41: SISTEMA DE CUSTOS REFERENCIAIS DE OBRAS - SICRO | I41: Quantitivo
B42: Custo Unitário de Referência | E42: =$C$6 -> JUNHO / 2025 | I42: (Coeficiente na composição principal) x (quantidade da principal no orçamento) | K42: t
B43: 4011211 | C43: =VLOOKUP(B43,'SINTÉTICO SICRO'!A:D,2,0) -> Reforço do subleito com material de jazida - 100% Proctor intermediário | I43: ='MOMENTO DE TRANSPORTE - PRINC'!D29*(VLOOKUP(C48,'RESUMO MODULO TOTAL'!C9:H52,6,0)*0.8) -> 13464
B44: F - MOMENTO DE TRANSPORTE | D44: Quantidade | E44: Unidade | F44: DMT
F45: LN | G45: RP | H45: P | I45: TIPO (P, RP ou LN) | J45: DMT ESTIMADA (km) | K45: QUANTITATIVO TOTAL DE TRANSPORTE DE MATERIAL (tkm)
A46: =IF(I46="P",H46,IF(I46="RP",G46,IF(I46="LN",F46,""))) -> 5914389 | B46: 4016096 | C46: =VLOOKUP(B46,'SINTÉTICO SICRO'!A:D,2,0) -> Escavação e carga de material de jazida com escavadeira hidráulica de 1,56 m³ | D46: 2.06301 | E46: tkm | F46: 5914359 | G46: 5914374 | H46: 5914389 | I46: =$B$18 -> P | J46: =$D$18 -> 100 | K46: =IF(ISBLANK(J46),"",J46*(D46*$I$43)) -> 2777636.664
A47: =IF(I47="P",H47,IF(I47="RP",G47,IF(I47="LN",F47,""))) -> 
B48: PRINCIPAL: | C48: 903808
A50: =IF(I50="P",H50,IF(I50="RP",G50,IF(I50="LN",F50,""))) ->  | B50: SISTEMA DE CUSTOS REFERENCIAIS DE OBRAS - SICRO | I50: Quantitivo
B51: Custo Unitário de Referência | E51: =$C$6 -> JUNHO / 2025 | I51: (Coeficiente na composição principal) x (quantidade da principal no orçamento) | K51: m³
B52: 6416030 | C52: =VLOOKUP(B52,'SINTÉTICO SICRO'!$A$4:$D$1048576,2,0) -> Usinagem de solo brita (70% - 30%) com material de jazida e brita comercial em usina de 300 t/h | I52: =('MOMENTO DE TRANSPORTE - PRINC'!D40*VLOOKUP(C58,'RESUMO MODULO TOTAL'!$C$10:$L$52,6,0)) -> 15750
B53: F - MOMENTO DE TRANSPORTE | D53: Quantidade | E53: Unidade | F53: DMT
F54: LN | G54: RP | H54: P | I54: TIPO (P, RP ou LN) | J54: DMT ESTIMADA (km) | K54: QUANTITATIVO TOTAL DE TRANSPORTE DE MATERIAL (tkm)
A55: 5914389 | B55: 4016096 | C55: Escavação e carga de material de jazida com escavadeira hidráulica de 1,56 m³ - Caminhão basculante 10 m³ | D55: 1.44411 | E55: tkm | F55: 5914359 | G55: 5914374 | H55: 5914389 | I55: =$B$18 -> P | J55: =D18 -> 100 | K55: =IF(ISBLANK(J55),"",J55*(D55*$I$52)) -> 2274473.25
A56: 5914389 | B56: M0191 | C56: Brita 1 - Caminhão basculante 10 m³ | D56: 0.6189 | E56: tkm | F56: 5914359 | G56: 5914374 | H56: 5914389 | I56: P | J56: =D18 -> 100 | K56: =IF(ISBLANK(J56),"",J56*(D56*$I$52)) -> 974767.5
B58: PRINCIPAL: | C58: 4011318
B60: TIPO (P, RP ou LN) | C60: DMT ATÉ 50 KM NÃO DEVE SER PAGA | D60: SOMENTE DEVE SER ADICIONADO A DISTÂNCIA EXCEDENTE A 50 KM
B61: LN | D61: 10
B63: SISTEMA DE CUSTOS REFERENCIAIS DE OBRAS - SICRO | I63: Quantitivo
B64: Custo Unitário de Referência | E64: =$C$6 -> JUNHO / 2025 | I64: (Coeficiente na composição principal) x (quantidade da principal no orçamento) | K64: t
B65: 3713608 | C65: =VLOOKUP(B65,'SINTÉTICO SICRO'!A:D,2,0) -> Cerca com 4 fios de arame farpado e mourão de madeira a cada 2,5 m e esticador a cada 50 m | I65: ='MOMENTO DE TRANSPORTE - PRINC'!D55*(VLOOKUP(C73,'RESUMO MODULO TOTAL'!C9:H52,6,0)*0.1) -> 453
B66: F - MOMENTO DE TRANSPORTE | D66: Quantidade | E66: Unidade | F66: DMT
F67: LN | G67: RP | H67: P | I67: TIPO (P, RP ou LN) | J67: DMT ESTIMADA (km) | K67: QUANTITATIVO TOTAL DE TRANSPORTE DE MATERIAL (tkm)
A68: =IF(I68="P",H68,IF(I68="RP",G68,IF(I68="LN",F68,""))) -> 5914449 | B68: M0069 | C68: Arame farpado em aço galvanizado - D = 1,60 mm - Caminhão carroceria 15 t | D68: 0.0002 | E68: tkm | F68: 5914449 | G68: 5914464 | H68: 5914479 | I68: =$B$61 -> LN | J68: =$D$61 -> 10 | K68: =IF(ISBLANK(J68),"",J68*(D68*$I$65)) -> 0.906
A69: =IF(I69="P",H69,IF(I69="RP",G69,IF(I69="LN",F69,""))) -> 5914449 | B69: M0745 | C69: Grampo em aço galvanizado para cerca - C = 25,4 mm e E = 3,76 mm (1" x 9 BWG) - Caminhão carroceria 15 t | D69: 1e-05 | E69: tkm | F69: 5914449 | G69: 5914464 | H69: 5914479 | I69: =$B$61 -> LN | J69: =$D$61 -> 10 | K69: =IF(ISBLANK(J69),"",J69*(D69*$I$65)) -> 0.0453
A70: 5914449 | B70: M1638 | C70: Mourão de madeira - H = 2,10 m e D = 0,10 m - Caminhão carroceria 15 t | D70: 0.00693 | E70: tkm | F70: 5914449 | G70: 5914464 | H70: 5914479 | I70: LN | J70: 10 | K70: 31.3929
A71: 5914449 | B71: M1639 | C71: Mourão de madeira - H = 2,20 m e D = 0,15 m - Caminhão carroceria 15 t | D71: 0.00078 | E71: tkm | F71: 5914449 | G71: 5914464 | H71: 5914479 | I71: LN | J71: 10 | K71: 3.5334
B73: PRINCIPAL: | C73: 903808
B75: SISTEMA DE CUSTOS REFERENCIAIS DE OBRAS - SICRO | I75: Quantitivo
B76: Custo Unitário de Referência | E76: =$C$6 -> JUNHO / 2025 | I76: (Coeficiente na composição principal) x (quantidade da principal no orçamento) | K76: t
B77: 903845 | C77: =VLOOKUP(B77,'SINTÉTICO SICRO'!A:D,2,0) -> Lastro de brita comercial - espalhamento mecânico | I77: ='MOMENTO DE TRANSPORTE - PRINC'!D57*(VLOOKUP(C82,'RESUMO MODULO TOTAL'!$C$10:$L$52,6,0))*0.1 -> 165.19389
B78: F - MOMENTO DE TRANSPORTE | D78: Quantidade | E78: Unidade | F78: DMT
F79: LN | G79: RP | H79: P | I79: TIPO (P, RP ou LN) | J79: DMT ESTIMADA (km) | K79: QUANTITATIVO TOTAL DE TRANSPORTE DE MATERIAL (tkm)
A80: =IF(I80="P",H80,IF(I80="RP",G80,IF(I80="LN",F80,""))) -> 5914359 | B80: M0192 | C80: Brita 2 - Caminhão basculante 10 m³ | D80: 1.5 | E80: tkm | F80: 5914359 | G80: 5914374 | H80: 5914389 | I80: =$B$61 -> LN | J80: =$D$61 -> 10 | K80: =IF(ISBLANK(J80),"",J80*(D80*$I$77)) -> 2477.90835
A81: =IF(I81="P",H81,IF(I81="RP",G81,IF(I81="LN",F81,""))) -> 
B82: PRINCIPAL: | C82: 903808
B84: SISTEMA DE CUSTOS REFERENCIAIS DE OBRAS - SICRO | I84: Quantitivo
B85: Custo Unitário de Referência | E85: =$C$6 -> JUNHO / 2025 | I85: (Coeficiente na composição principal) x (quantidade da principal no orçamento) | K85: t
B86: 4011211 | C86: =VLOOKUP(B86,'SINTÉTICO SICRO'!A:D,2,0) -> Reforço do subleito com material de jazida - 100% Proctor intermediário | I86: ='MOMENTO DE TRANSPORTE - PRINC'!D60*(VLOOKUP(C91,'RESUMO MODULO TOTAL'!$C$10:$L$52,6,0))*0.1 -> 1683
B87: F - MOMENTO DE TRANSPORTE | D87: Quantidade | E87: Unidade | F87: DMT
F88: LN | G88: RP | H88: P | I88: TIPO (P, RP ou LN) | J88: DMT ESTIMADA (km) | K88: QUANTITATIVO TOTAL DE TRANSPORTE DE MATERIAL (tkm)
A89: =IF(I89="P",H89,IF(I89="RP",G89,IF(I89="LN",F89,""))) -> 5914359 | B89: 4016096 | C89: =VLOOKUP(B89,'SINTÉTICO SICRO'!A:D,2,0) -> Escavação e carga de material de jazida com escavadeira hidráulica de 1,56 m³ | D89: 2.06301 | E89: tkm | F89: 5914359 | G89: 5914374 | H89: 5914389 | I89: =$B$61 -> LN | J89: =$D$61 -> 10 | K89: =IF(ISBLANK(J89),"",J89*(D89*$I$86)) -> 34720.4583
A90: =IF(I90="P",H90,IF(I90="RP",G90,IF(I90="LN",F90,""))) -> 
B91: PRINCIPAL: | C91: 903808
A93: =IF(I93="P",H93,IF(I93="RP",G93,IF(I93="LN",F93,""))) ->  | B93: SISTEMA DE CUSTOS REFERENCIAIS DE OBRAS - SICRO | I93: Quantitivo
B94: Custo Unitário de Referência | E94: =$C$6 -> JUNHO / 2025 | I94: (Coeficiente na composição principal) x (quantidade da principal no orçamento) | K94: m³
B95: 6416030 | C95: =VLOOKUP(B95,'SINTÉTICO SICRO'!$A$4:$D$1048576,2,0) -> Usinagem de solo brita (70% - 30%) com material de jazida e brita comercial em usina de 300 t/h | I95: =('MOMENTO DE TRANSPORTE - PRINC'!D71*VLOOKUP(C101,'RESUMO MODULO TOTAL'!$C$10:$L$52,6,0))*0.1 -> 1575
B96: F - MOMENTO DE TRANSPORTE | D96: Quantidade | E96: Unidade | F96: DMT
F97: LN | G97: RP | H97: P | I97: TIPO (P, RP ou LN) | J97: DMT ESTIMADA (km) | K97: QUANTITATIVO TOTAL DE TRANSPORTE DE MATERIAL (tkm)
A98: 5914359 | B98: 4016096 | C98: Escavação e carga de material de jazida com escavadeira hidráulica de 1,56 m³ - Caminhão basculante 10 m³ | D98: 1.44411 | E98: tkm | F98: 5914359 | G98: 5914374 | H98: 5914389 | I98: =$B$61 -> LN | J98: =$D$61 -> 10 | K98: =IF(ISBLANK(J98),"",J98*(D98*$I$95)) -> 22744.7325
A99: 5914359 | B99: M0191 | C99: Brita 1 - Caminhão basculante 10 m³ | D99: 0.6189 | E99: tkm | F99: 5914359 | G99: 5914374 | H99: 5914389 | I99: LN | J99: =$D$61 -> 10 | K99: =IF(ISBLANK(J99),"",J99*(D99*$I$95)) -> 9747.675
B101: PRINCIPAL: | C101: 4011318
B102: TIPO (P, RP ou LN) | C102: DMT ATÉ 50 KM NÃO DEVE SER PAGA | D102: SOMENTE DEVE SER ADICIONADO A DISTÂNCIA EXCEDENTE A 50 KM
B103: RP | D103: 10
B105: SISTEMA DE CUSTOS REFERENCIAIS DE OBRAS - SICRO | I105: Quantitivo
B106: Custo Unitário de Referência | E106: =$C$6 -> JUNHO / 2025 | I106: (Coeficiente na composição principal) x (quantidade da principal no orçamento) | K106: t
B107: 3713608 | C107: =VLOOKUP(B107,'SINTÉTICO SICRO'!A:D,2,0) -> Cerca com 4 fios de arame farpado e mourão de madeira a cada 2,5 m e esticador a cada 50 m | I107: ='MOMENTO DE TRANSPORTE - PRINC'!D85*(VLOOKUP(C115,'RESUMO MODULO TOTAL'!$C$10:$L$52,6,0))*0.1 -> 453
B108: F - MOMENTO DE TRANSPORTE | D108: Quantidade | E108: Unidade | F108: DMT
F109: LN | G109: RP | H109: P | I109: TIPO (P, RP ou LN) | J109: DMT ESTIMADA (km) | K109: QUANTITATIVO TOTAL DE TRANSPORTE DE MATERIAL (tkm)
A110: =IF(I110="P",H110,IF(I110="RP",G110,IF(I110="LN",F110,""))) -> 5914464 | B110: M0069 | C110: Arame farpado em aço galvanizado - D = 1,60 mm - Caminhão carroceria 15 t | D110: 0.0002 | E110: tkm | F110: 5914449 | G110: 5914464 | H110: 5914479 | I110: =$B$103 -> RP | J110: =$D$103 -> 10 | K110: =IF(ISBLANK(J110),"",J110*(D110*$I$107)) -> 0.906
A111: =IF(I111="P",H111,IF(I111="RP",G111,IF(I111="LN",F111,""))) -> 5914464 | B111: M0745 | C111: Grampo em aço galvanizado para cerca - C = 25,4 mm e E = 3,76 mm (1" x 9 BWG) - Caminhão carroceria 15 t | D111: 1e-05 | E111: tkm | F111: 5914449 | G111: 5914464 | H111: 5914479 | I111: =$B$103 -> RP | J111: =$D$103 -> 10 | K111: =IF(ISBLANK(J111),"",J111*(D111*$I$107)) -> 0.0453
A112: 5914464 | B112: M1638 | C112: Mourão de madeira - H = 2,10 m e D = 0,10 m - Caminhão carroceria 15 t | D112: 0.00693 | E112: tkm | F112: 5914449 | G112: 5914464 | H112: 5914479 | I112: RP | J112: 10 | K112: 31.3929
A113: 5914464 | B113: M1639 | C113: Mourão de madeira - H = 2,20 m e D = 0,15 m - Caminhão carroceria 15 t | D113: 0.00078 | E113: tkm | F113: 5914449 | G113: 5914464 | H113: 5914479 | I113: RP | J113: 10 | K113: 3.5334
B115: PRINCIPAL: | C115: 903808
B117: SISTEMA DE CUSTOS REFERENCIAIS DE OBRAS - SICRO | I117: Quantitivo
B118: Custo Unitário de Referência | E118: =$C$6 -> JUNHO / 2025 | I118: (Coeficiente na composição principal) x (quantidade da principal no orçamento) | K118: t
B119: 903845 | C119: =VLOOKUP(B119,'SINTÉTICO SICRO'!A:D,2,0) -> Lastro de brita comercial - espalhamento mecânico | I119: ='MOMENTO DE TRANSPORTE - PRINC'!D87*(VLOOKUP(C124,'RESUMO MODULO TOTAL'!$C$10:$L$52,6,0)*0.1) -> 165.19389
B120: F - MOMENTO DE TRANSPORTE | D120: Quantidade | E120: Unidade | F120: DMT
F121: LN | G121: RP | H121: P | I121: TIPO (P, RP ou LN) | J121: DMT ESTIMADA (km) | K121: QUANTITATIVO TOTAL DE TRANSPORTE DE MATERIAL (tkm)
A122: =IF(I122="P",H122,IF(I122="RP",G122,IF(I122="LN",F122,""))) -> 5914374 | B122: M0192 | C122: Brita 2 - Caminhão basculante 10 m³ | D122: 1.5 | E122: tkm | F122: 5914359 | G122: 5914374 | H122: 5914389 | I122: =$B$103 -> RP | J122: =$D$103 -> 10 | K122: =IF(ISBLANK(J122),"",J122*(D122*$I$119)) -> 2477.90835
A123: =IF(I123="P",H123,IF(I123="RP",G123,IF(I123="LN",F123,""))) -> 
B124: PRINCIPAL: | C124: 903808
B126: SISTEMA DE CUSTOS REFERENCIAIS DE OBRAS - SICRO | I126: Quantitivo
B127: Custo Unitário de Referência | E127: =$C$6 -> JUNHO / 2025 | I127: (Coeficiente na composição principal) x (quantidade da principal no orçamento) | K127: t
B128: 4011211 | C128: =VLOOKUP(B128,'SINTÉTICO SICRO'!A:D,2,0) -> Reforço do subleito com material de jazida - 100% Proctor intermediário | I128: ='MOMENTO DE TRANSPORTE - PRINC'!D60*(VLOOKUP(C133,'RESUMO MODULO TOTAL'!$C$10:$L$52,6,0))*0.1 -> 1683
B129: F - MOMENTO DE TRANSPORTE | D129: Quantidade | E129: Unidade | F129: DMT
F130: LN | G130: RP | H130: P | I130: TIPO (P, RP ou LN) | J130: DMT ESTIMADA (km) | K130: QUANTITATIVO TOTAL DE TRANSPORTE DE MATERIAL (tkm)
A131: =IF(I131="P",H131,IF(I131="RP",G131,IF(I131="LN",F131,""))) -> 5914374 | B131: 4016096 | C131: =VLOOKUP(B131,'SINTÉTICO SICRO'!A:D,2,0) -> Escavação e carga de material de jazida com escavadeira hidráulica de 1,56 m³ | D131: 2.06301 | E131: tkm | F131: 5914359 | G131: 5914374 | H131: 5914389 | I131: =$B$103 -> RP | J131: =$D$103 -> 10 | K131: =IF(ISBLANK(J131),"",J131*(D131*$I$128)) -> 34720.4583
A132: =IF(I132="P",H132,IF(I132="RP",G132,IF(I132="LN",F132,""))) -> 
B133: PRINCIPAL: | C133: 903808
A135: =IF(I135="P",H135,IF(I135="RP",G135,IF(I135="LN",F135,""))) ->  | B135: SISTEMA DE CUSTOS REFERENCIAIS DE OBRAS - SICRO | I135: Quantitivo
B136: Custo Unitário de Referência | E136: =$C$6 -> JUNHO / 2025 | I136: (Coeficiente na composição principal) x (quantidade da principal no orçamento) | K136: m³
B137: 6416030 | C137: =VLOOKUP(B137,'SINTÉTICO SICRO'!$A$4:$D$1048576,2,0) -> Usinagem de solo brita (70% - 30%) com material de jazida e brita comercial em usina de 300 t/h | I137: =('MOMENTO DE TRANSPORTE - PRINC'!D101*VLOOKUP(C143,'RESUMO MODULO TOTAL'!$C$10:$L$52,6,0)*0.1) -> 1575
B138: F - MOMENTO DE TRANSPORTE | D138: Quantidade | E138: Unidade | F138: DMT
F139: LN | G139: RP | H139: P | I139: TIPO (P, RP ou LN) | J139: DMT ESTIMADA (km) | K139: QUANTITATIVO TOTAL DE TRANSPORTE DE MATERIAL (tkm)
A140: 5914374 | B140: 4016096 | C140: Escavação e carga de material de jazida com escavadeira hidráulica de 1,56 m³ - Caminhão basculante 10 m³ | D140: 1.44411 | E140: tkm | F140: 5914359 | G140: 5914374 | H140: 5914389 | I140: =$B$103 -> RP | J140: =D103 -> 10 | K140: =IF(ISBLANK(J140),"",J140*(D140*$I$137)) -> 22744.7325
A141: 5914374 | B141: M0191 | C141: Brita 1 - Caminhão basculante 10 m³ | D141: 0.6189 | E141: tkm | F141: 5914359 | G141: 5914374 | H141: 5914389 | I141: RP | J141: =D103 -> 10 | K141: =IF(ISBLANK(J141),"",J141*(D141*$I$137)) -> 9747.675
B143: PRINCIPAL: | C143: 4011318
A145: =IF(I145="P",H145,IF(I145="RP",G145,IF(I145="LN",F145,""))) -> 

Sheet MOMENTO DE TRANSPORTE - PRINC
E1: Ministério da Integração e do Desenvolvimento Regional
B5: ='RESUMO MODULO TOTAL'!B56 -> EXECUÇÃO DE SERVIÇOS DE IMPLANTAÇÃO DE PAVIMENTAÇÃO EM BLOCO DE CONCRETO INTERTRAVADO, EM VIAS URBANAS E RURAIS INSERIDAS NA ÁREA DE ATUAÇÃO DA CODEVASF, NO ESTADO DO CEARÁ
B6: DATA BASE: | C6: JUNHO / 2025
C8: RESUMO DO TRANSPORTE PRINCIPAL
B9: CODIGO | C9: DESCRIÇÃO | D9: TKM
B10: 5914359 | C10: =VLOOKUP(B10,'SINTÉTICO SICRO'!$A:$D,2,0) -> Transporte com caminhão basculante de 10 m³ - rodovia em leito natural | D10: =ROUND(SUMIF('MOMENTO DE TRANSPORTE - PRINC'!A:A,B10,'MOMENTO DE TRANSPORTE - PRINC'!K:K),2) -> 32492.25
B11: 5914374 | C11: =VLOOKUP(B11,'SINTÉTICO SICRO'!$A:$D,2,0) -> Transporte com caminhão basculante de 10 m³ - rodovia em revestimento primário | D11: =ROUND(SUMIF('MOMENTO DE TRANSPORTE - PRINC'!A:A,B11,'MOMENTO DE TRANSPORTE - PRINC'!K:K),2) -> 32492.25
B12: 5914389 | C12: =VLOOKUP(B12,'SINTÉTICO SICRO'!$A:$D,2,0) -> Transporte com caminhão basculante de 10 m³ - rodovia pavimentada | D12: =ROUND(SUMIF('MOMENTO DE TRANSPORTE - PRINC'!A:A,B12,'MOMENTO DE TRANSPORTE - PRINC'!K:K),2) -> 1299690
B13: 5914539 | C13: =VLOOKUP(B13,'SINTÉTICO SICRO'!$A:$D,2,0) -> Transporte com caminhão betoneira - rodovia em leito natural | D13: =ROUND(SUMIF('MOMENTO DE TRANSPORTE - PRINC'!A:A,B13,'MOMENTO DE TRANSPORTE - PRINC'!K:K),2) -> 0
B14: 5914554 | C14: =VLOOKUP(B14,'SINTÉTICO SICRO'!$A:$D,2,0) -> Transporte com caminhão betoneira - rodovia em revestimento primário | D14: =ROUND(SUMIF('MOMENTO DE TRANSPORTE - PRINC'!A:A,B14,'MOMENTO DE TRANSPORTE - PRINC'!K:K),2) -> 0
B15: 5914569 | C15: =VLOOKUP(B15,'SINTÉTICO SICRO'!$A:$D,2,0) -> Transporte com caminhão betoneira - rodovia pavimentada | D15: =ROUND(SUMIF('MOMENTO DE TRANSPORTE - PRINC'!A:A,B15,'MOMENTO DE TRANSPORTE - PRINC'!K:K),2) -> 0
B17: TIPO (P, RP ou LN) | C17: DMT ESTIMADA (DISTRIBUIÇÃO DO ITEM NA PISTA)
B18: P | C18: 50
B20: SISTEMA DE CUSTOS REFERENCIAIS DE OBRAS - SICRO
B21: Custo Unitário de Referência | I21: Quantitativo | K21: um
B22: 903808 | C22: =VLOOKUP(B22,'SINTÉTICO SICRO'!A:D,2,0) -> Instalação da usina misturadora de solos com capacidade de 300 t/h | I22: =SUMIF('RESUMO MODULO TOTAL'!C:C,'MOMENTO DE TRANSPORTE - PRINC'!B22,'RESUMO MODULO TOTAL'!H:H)*0.8 -> 12
B23: D - ATIVIDADES AUXILIARES | D23: Quantidade | E23: Unidade
B24: 3713608 | C24: Cerca com 4 fios de arame farpado e mourão de madeira a cada 2,5 m e esticador a cada 50 m | D24: 302 | E24: m
B25: 5502986 | C25: Expurgo de jazida | D25: 1402.5 | E25: m³
B26: 903845 | C26: Lastro de brita comercial - espalhamento mecânico | D26: 110.12926 | E26: m³
B27: 5502985 | C27: Limpeza mecanizada da camada vegetal | D27: 5610 | E27: m²
B28: 919012 | C28: Montagem e desmontagem da usina misturadora de solos com capacidade de 300 t/h - inclusive construção e demolição de bases, rampas e depósitos de agregados | D28: 1 | E28: un
B29: 4011211 | C29: Reforço do subleito com material de jazida - 100% Proctor intermediário | D29: 1122 | E29: m³
B30: 4011209 | C30: Regularização do subleito - 100% Proctor intermediário | D30: 5610 | E30: m²
B32: F - MOMENTO DE TRANSPORTE | D32: Quantidade | E32: Unidade | F32: CÓDIGO TRANSPORTE
F33: LN | G33: RP | H33: P | I33: TIPO (P, RP ou LN) | J33: DMT ESTIMADA (km) | K33: QUANTITATIVO TOTAL DE TRANSPORTE (tkm)
B35: Obs.
B36: SISTEMA DE CUSTOS REFERENCIAIS DE OBRAS - SICRO
B37: Custo Unitário de Referência | D37: =$C$6 -> JUNHO / 2025 | I37: Quantitativo | K37: un
B38: 4011318 | C38: =VLOOKUP(B38,'SINTÉTICO SICRO'!$A$4:$D$1048576,2,0) -> Base ou sub-base estabilizada granulometricamente com mistura solo brita (70% - 30%) em usina com material de jazida e brita comercial - 100% Proctor modificado | I38: =SUMIF('RESUMO MODULO TOTAL'!C:C,'MOMENTO DE TRANSPORTE - PRINC'!B38,'RESUMO MODULO TOTAL'!H:H)*0.8 -> 12600
B39: D - ATIVIDADES AUXILIARES | D39: Quantidade | E39: Unidade
B40: 6416030 | C40: =VLOOKUP(B40,'SINTÉTICO SICRO'!$A$4:$D$1048576,2,0) -> Usinagem de solo brita (70% - 30%) com material de jazida e brita comercial em usina de 300 t/h | D40: 1 | E40: m³
B42: F - MOMENTO DE TRANSPORTE | D42: Quantidade | E42: Unidade | F42: CÓDIGO TRANSPORTE
F43: LN | G43: RP | H43: P | I43: TIPO (P, RP ou LN) | J43: DMT ESTIMADA (km) | K43: QUANTITATIVO TOTAL DE TRANSPORTE (tkm)
A44: =IF(I44="P",H44,IF(I44="RP",G44,IF(I44="LN",F44,""))) -> 5914389 | B44: 6416030 | C44: =VLOOKUP(B44,'SINTÉTICO SICRO'!$A$4:$D$1048576,2,0) -> Usinagem de solo brita (70% - 30%) com material de jazida e brita comercial em usina de 300 t/h | D44: 2.063 | E44: tkm | F44: 5914359 | G44: 5914374 | H44: 5914389 | I44: =$B$18 -> P | J44: =C18 -> 50 | K44: =IF(ISBLANK(J44),"",J44*D44)*I38 -> 1299690
B46: Obs.
B48: TIPO (P, RP ou LN) | C48: DMT ESTIMADA (DISTRIBUIÇÃO DO ITEM NA PISTA
B49: LN | C49: 10
B51: SISTEMA DE CUSTOS REFERENCIAIS DE OBRAS - SICRO
B52: Custo Unitário de Referência | I52: Quantitativo | K52: um
B53: 903808 | C53: =VLOOKUP(B53,'SINTÉTICO SICRO'!A:D,2,0) -> Instalação da usina misturadora de solos com capacidade de 300 t/h | I53: =SUMIF('RESUMO MODULO TOTAL'!C:C,'MOMENTO DE TRANSPORTE - PRINC'!B53,'RESUMO MODULO TOTAL'!H:H)*0.1 -> 1.5
B54: D - ATIVIDADES AUXILIARES | D54: Quantidade | E54: Unidade
B55: 3713608 | C55: Cerca com 4 fios de arame farpado e mourão de madeira a cada 2,5 m e esticador a cada 50 m | D55: 302 | E55: m
B56: 5502986 | C56: Expurgo de jazida | D56: 1402.5 | E56: m³
B57: 0903845 | C57: Lastro de brita comercial - espalhamento mecânico | D57: 110.12926 | E57: m³
B58: 5502985 | C58: Limpeza mecanizada da camada vegetal | D58: 5610 | E58: m²
B59: 0919012 | C59: Montagem e desmontagem da usina misturadora de solos com capacidade de 300 t/h - inclusive construção e demolição de bases, rampas e depósitos de agregados | D59: 1 | E59: un
B60: 4011211 | C60: Reforço do subleito com material de jazida - 100% Proctor intermediário | D60: 1122 | E60: m³
B61: 4011209 | C61: Regularização do subleito - 100% Proctor intermediário | D61: 5610 | E61: m²
B63: F - MOMENTO DE TRANSPORTE | D63: Quantidade | E63: Unidade | F63: CÓDIGO TRANSPORTE
F64: LN | G64: RP | H64: P | I64: TIPO (P, RP ou LN) | J64: DMT ESTIMADA (km) | K64: QUANTITATIVO TOTAL DE TRANSPORTE (tkm)
B66: Obs.
B67: SISTEMA DE CUSTOS REFERENCIAIS DE OBRAS - SICRO
B68: Custo Unitário de Referência | D68: =$C$6 -> JUNHO / 2025 | I68: Quantitativo | K68: un
B69: 4011318 | C69: =VLOOKUP(B69,'SINTÉTICO SICRO'!$A$4:$D$1048576,2,0) -> Base ou sub-base estabilizada granulometricamente com mistura solo brita (70% - 30%) em usina com material de jazida e brita comercial - 100% Proctor modificado | I69: =SUMIF('RESUMO MODULO TOTAL'!C:C,'MOMENTO DE TRANSPORTE - PRINC'!B69,'RESUMO MODULO TOTAL'!H:H)*0.1 -> 1575
B70: D - ATIVIDADES AUXILIARES | D70: Quantidade | E70: Unidade
B71: 6416030 | C71: =VLOOKUP(B71,'SINTÉTICO SICRO'!$A$4:$D$1048576,2,0) -> Usinagem de solo brita (70% - 30%) com material de jazida e brita comercial em usina de 300 t/h | D71: 1 | E71: m³
B73: F - MOMENTO DE TRANSPORTE | D73: Quantidade | E73: Unidade | F73: CÓDIGO TRANSPORTE
F74: LN | G74: RP | H74: P | I74: TIPO (P, RP ou LN) | J74: DMT ESTIMADA (km) | K74: QUANTITATIVO TOTAL DE TRANSPORTE (tkm)
A75: =IF(I75="P",H75,IF(I75="RP",G75,IF(I75="LN",F75,""))) -> 5914359 | B75: 6416030 | C75: =VLOOKUP(B75,'SINTÉTICO SICRO'!$A$4:$D$1048576,2,0) -> Usinagem de solo brita (70% - 30%) com material de jazida e brita comercial em usina de 300 t/h | D75: 2.063 | E75: tkm | F75: 5914359 | G75: 5914374 | H75: 5914389 | I75: =$B$49 -> LN | J75: =C49 -> 10 | K75: =IF(ISBLANK(J75),"",J75*D75)*I69 -> 32492.25
B77: Obs.
B78: TIPO (P, RP ou LN) | C78: DMT ESTIMADA (DISTRIBUIÇÃO DO ITEM NA PISTA
B79: RP | C79: 10
B81: SISTEMA DE CUSTOS REFERENCIAIS DE OBRAS - SICRO
B82: Custo Unitário de Referência | I82: Quantitativo | K82: um
B83: 903808 | C83: =VLOOKUP(B83,'SINTÉTICO SICRO'!A:D,2,0) -> Instalação da usina misturadora de solos com capacidade de 300 t/h | I83: =SUMIF('RESUMO MODULO TOTAL'!C:C,'MOMENTO DE TRANSPORTE - PRINC'!B83,'RESUMO MODULO TOTAL'!H:H)*0.1 -> 1.5
B84: D - ATIVIDADES AUXILIARES | D84: Quantidade | E84: Unidade
B85: 3713608 | C85: Cerca com 4 fios de arame farpado e mourão de madeira a cada 2,5 m e esticador a cada 50 m | D85: 302 | E85: m
B86: 5502986 | C86: Expurgo de jazida | D86: 1402.5 | E86: m³
B87: 0903845 | C87: Lastro de brita comercial - espalhamento mecânico | D87: 110.12926 | E87: m³
B88: 5502985 | C88: Limpeza mecanizada da camada vegetal | D88: 5610 | E88: m²
B89: 0919012 | C89: Montagem e desmontagem da usina misturadora de solos com capacidade de 300 t/h - inclusive construção e demolição de bases, rampas e depósitos de agregados | D89: 1 | E89: un
B90: 4011211 | C90: Reforço do subleito com material de jazida - 100% Proctor intermediário | D90: 1122 | E90: m³
B91: 4011209 | C91: Regularização do subleito - 100% Proctor intermediário | D91: 5610 | E91: m²
B93: F - MOMENTO DE TRANSPORTE | D93: Quantidade | E93: Unidade | F93: CÓDIGO TRANSPORTE
F94: LN | G94: RP | H94: P | I94: TIPO (P, RP ou LN) | J94: DMT ESTIMADA (km) | K94: QUANTITATIVO TOTAL DE TRANSPORTE (tkm)
B96: Obs.
B97: SISTEMA DE CUSTOS REFERENCIAIS DE OBRAS - SICRO
B98: Custo Unitário de Referência | D98: =$C$6 -> JUNHO / 2025 | I98: Quantitativo | K98: un
B99: 4011318 | C99: =VLOOKUP(B99,'SINTÉTICO SICRO'!$A$4:$D$1048576,2,0) -> Base ou sub-base estabilizada granulometricamente com mistura solo brita (70% - 30%) em usina com material de jazida e brita comercial - 100% Proctor modificado | I99: =SUMIF('RESUMO MODULO TOTAL'!C:C,'MOMENTO DE TRANSPORTE - PRINC'!B99,'RESUMO MODULO TOTAL'!H:H)*0.1 -> 1575
B100: D - ATIVIDADES AUXILIARES | D100: Quantidade | E100: Unidade
B101: 6416030 | C101: =VLOOKUP(B101,'SINTÉTICO SICRO'!$A$4:$D$1048576,2,0) -> Usinagem de solo brita (70% - 30%) com material de jazida e brita comercial em usina de 300 t/h | D101: 1 | E101: m³
B103: F - MOMENTO DE TRANSPORTE | D103: Quantidade | E103: Unidade | F103: CÓDIGO TRANSPORTE
F104: LN | G104: RP | H104: P | I104: TIPO (P, RP ou LN) | J104: DMT ESTIMADA (km) | K104: QUANTITATIVO TOTAL DE TRANSPORTE (tkm)
A105: =IF(I105="P",H105,IF(I105="RP",G105,IF(I105="LN",F105,""))) -> 5914374 | B105: 6416030 | C105: =VLOOKUP(B105,'SINTÉTICO SICRO'!$A$4:$D$1048576,2,0) -> Usinagem de solo brita (70% - 30%) com material de jazida e brita comercial em usina de 300 t/h | D105: 2.063 | E105: tkm | F105: 5914359 | G105: 5914374 | H105: 5914389 | I105: =$B$79 -> RP | J105: =C79 -> 10 | K105: =IF(ISBLANK(J105),"",J105*D105)*I99 -> 32492.25
B107: Obs.

Sheet MEDICAO EM TKM
A5: PLANILHA DE MEDIÇAO DE TKM
A6: 903808 | B6: =VLOOKUP(A6,'SINTÉTICO SICRO'!A:D,2,0) -> Instalação da usina misturadora de solos com capacidade de 300 t/h
A7: MOMENTO DE TRANSPORTE | D7: Quantidade (tkm) | E7: quantidade medida(un.)
E8: 1
A9: 5914479 | B9: =VLOOKUP(A9,'SINTÉTICO SICRO'!A:D,2,0) -> Transporte com caminhão carroceria de 15 t - rodovia pavimentada | D9: =SUMIF('MOMENTO DE TRANSPORTE - AUX'!$A$25:$A$29,'MEDICAO EM TKM'!A9,'MOMENTO DE TRANSPORTE - AUX'!$K$25:$K$29) -> 2870.208 | E9: =D9*$E$8 -> 2870.208
A10: 5914389 | B10: =VLOOKUP(A10,'SINTÉTICO SICRO'!A:D,2,0) -> Transporte com caminhão basculante de 10 m³ - rodovia pavimentada | D10: =SUMIF('MOMENTO DE TRANSPORTE - AUX'!$A$37,'MEDICAO EM TKM'!A10,'MOMENTO DE TRANSPORTE - AUX'!K37) -> 198232.668 | E10: 198232.668
A11: 5914449 | B11: =VLOOKUP(A11,'SINTÉTICO SICRO'!A:D,2,0) -> Transporte com caminhão carroceria de 15 t - rodovia em leito natural | D11: =SUMIF('MOMENTO DE TRANSPORTE - AUX'!A68:A71,'MEDICAO EM TKM'!A11,'MOMENTO DE TRANSPORTE - AUX'!K68:K71) -> 35.8776 | E11: 35.8776
A12: 5914359 | B12: =VLOOKUP(A12,'SINTÉTICO SICRO'!A:D,2,0) -> Transporte com caminhão basculante de 10 m³ - rodovia em leito natural | D12: =SUMIF('MOMENTO DE TRANSPORTE - AUX'!A80,'MEDICAO EM TKM'!A12,'MOMENTO DE TRANSPORTE - AUX'!K80) -> 2477.90835 | E12: 2477.90835
A13: 5914464 | B13: =VLOOKUP(A13,'SINTÉTICO SICRO'!A:D,2,0) -> Transporte com caminhão carroceria de 15 t - rodovia em revestimento primário | D13: =SUMIF('MOMENTO DE TRANSPORTE - AUX'!A110:A113,'MEDICAO EM TKM'!A13,'MOMENTO DE TRANSPORTE - AUX'!K110:K113) -> 35.8776 | E13: 35.8776
A14: 5914374 | B14: =VLOOKUP(A14,'SINTÉTICO SICRO'!A:D,2,0) -> Transporte com caminhão basculante de 10 m³ - rodovia em revestimento primário | D14: =SUMIF('MOMENTO DE TRANSPORTE - AUX'!A122,'MEDICAO EM TKM'!A14,'MOMENTO DE TRANSPORTE - AUX'!K122) -> 2477.90835 | E14: 2477.90835
A16: 5502114 | B16: =VLOOKUP(A16,'SINTÉTICO SICRO'!A:D,2,0) -> Escavação, carga e transporte de material de 1ª categoria - DMT de 1.000 a 1.200 m - caminho de serviço em leito natural - com escavadeira e caminhão basculante de 14 m³
A17: MOMENTO DE TRANSPORTE | D17: Quantidade (tkm) | E17: -
E18: -
A21: 4413942 | B21: =VLOOKUP(A21,'SINTÉTICO SICRO'!A:D,2,0) -> Espalhamento de material em bota-fora
A22: MOMENTO DE TRANSPORTE | D22: Quantidade (tkm) | E22: -
E23: -
A25: 4011318 | B25: =VLOOKUP(A25,'SINTÉTICO SICRO'!A:D,2,0) -> Base ou sub-base estabilizada granulometricamente com mistura solo brita (70% - 30%) em usina com material de jazida e brita comercial - 100% Proctor modificado
A26: MOMENTO DE TRANSPORTE | C26: Quantidade (tkm) | D26: Área Executada (m2) | E26: =('MC MODULO'!C1*'MC MODULO'!C2)*'MC MODULO'!G1 -> 105000
D27: espessura (m) | E27: 0.15 | F27: =(E26*E27)/'RESUMO MODULO TOTAL'!H29 -> 1
A28: 5914389 | B28: =VLOOKUP(A28,'SINTÉTICO SICRO'!A:D,2,0) -> Transporte com caminhão basculante de 10 m³ - rodovia pavimentada | C28: ='MOMENTO DE TRANSPORTE - PRINC'!K44+SUMIF('MOMENTO DE TRANSPORTE - AUX'!$A$55:$A$56,'MEDICAO EM TKM'!A28,'MOMENTO DE TRANSPORTE - AUX'!$K$55:$K$57) -> 4548930.75 | D28: =C28*$F$27 -> 4548930.75
A29: 5914359 | B29: =VLOOKUP(A29,'SINTÉTICO SICRO'!A:D,2,0) -> Transporte com caminhão basculante de 10 m³ - rodovia em leito natural | C29: ='MOMENTO DE TRANSPORTE - PRINC'!K75+SUMIF('MOMENTO DE TRANSPORTE - AUX'!A98:A99,'MEDICAO EM TKM'!A29,'MOMENTO DE TRANSPORTE - AUX'!K98:K99) -> 64984.6575 | D29: =C29*$F$27 -> 64984.6575
A30: 5914374 | B30: =VLOOKUP(A30,'SINTÉTICO SICRO'!A:D,2,0) -> Transporte com caminhão basculante de 10 m³ - rodovia em revestimento primário | C30: ='MOMENTO DE TRANSPORTE - PRINC'!I99+SUMIF('MOMENTO DE TRANSPORTE - AUX'!A140:A141,'MEDICAO EM TKM'!A30,'MOMENTO DE TRANSPORTE - AUX'!K140:K141) -> 34067.4075 | D30: =C30*$F$27 -> 34067.4075
A32: 4011209 | B32: =VLOOKUP(A32,'SINTÉTICO SICRO'!A:D,2,0) -> Regularização do subleito - 100% Proctor intermediário
A33: MOMENTO DE TRANSPORTE | D33: Quantidade (tkm)
A37: 5213440 | B37: Placa de regulamentação em aço D = 0,60 m - película retrorrefletiva tipo I + SI - fornecimento e implantação
A38: MOMENTO DE TRANSPORTE | D38: Quantidade (tkm)
A42: 5213464 | B42: =VLOOKUP(A42,'SINTÉTICO SICRO'!A:D,2,0) -> Placa de advertência em aço, lado de 0,60 m - película retrorrefletiva tipo I + SI - fornecimento e implantação
A43: MOMENTO DE TRANSPORTE | D43: Quantidade (tkm)
A47: 5213863 | B47: =VLOOKUP(A47,'SINTÉTICO SICRO'!A:D,2,0) -> Suporte metálico galvanizado para placa de advertência ou regulamentação - lado ou diâmetro de 0,60 m - fornecimento e implantação
A48: MOMENTO DE TRANSPORTE | D48: Quantidade (tkm)
A52: 5213400 | B52: =VLOOKUP(A52,'SINTÉTICO SICRO'!A:D,2,0) -> Pintura de faixa com tinta acrílica - espessura de 0,4 mm
A53: MOMENTO DE TRANSPORTE | D53: Quantidade (tkm)
A57: 2003943 | B57: =VLOOKUP(A57,'SINTÉTICO SICRO'!A:D,2,0) -> Meio-fio de concreto - MFC 03 moldado no local com extrusora e concreto usinado - areia e brita comerciais
A58: MOMENTO DE TRANSPORTE | D58: Quantidade (tkm) | E58: Extensao executada (m)
E59: 100 | F59: =E59/('MC MODULO'!C1*2) -> 0.05
A60: 5914569 | B60: =VLOOKUP(A60,'SINTÉTICO SICRO'!A:D,2,0) -> Transporte com caminhão betoneira - rodovia pavimentada | D60: ='MOMENTO DE TRANSPORTE - PRINC'!#REF! ->  | E60: =D60*$F$59 -> 
A61: 5914539 | B61: =VLOOKUP(A61,'SINTÉTICO SICRO'!A:D,2,0) -> Transporte com caminhão betoneira - rodovia em leito natural | D61: ='MOMENTO DE TRANSPORTE - PRINC'!#REF! -> 
A62: 5914554 | B62: =VLOOKUP(A62,'SINTÉTICO SICRO'!A:D,2,0) -> Transporte com caminhão betoneira - rodovia em revestimento primário | D62: ='MOMENTO DE TRANSPORTE - PRINC'!#REF! -> 
A63: 5914479 | B63: =VLOOKUP(A63,'SINTÉTICO SICRO'!A:D,2,0) -> Transporte com caminhão carroceria de 15 t - rodovia pavimentada | D63: =SUMIF('MOMENTO DE TRANSPORTE - AUX'!#REF!,'MEDICAO EM TKM'!A63,'MOMENTO DE TRANSPORTE - AUX'!#REF!)+'MOMENTO DE TRANSPORTE - AUX'!#REF! -> 
A64: 5914389 | B64: =VLOOKUP(A64,'SINTÉTICO SICRO'!A:D,2,0) -> Transporte com caminhão basculante de 10 m³ - rodovia pavimentada | D64: =SUMIF('MOMENTO DE TRANSPORTE - AUX'!#REF!,'MEDICAO EM TKM'!A64,'MOMENTO DE TRANSPORTE - AUX'!#REF!) -> 
A65: 5914449 | B65: =VLOOKUP(A65,'SINTÉTICO SICRO'!A:D,2,0) -> Transporte com caminhão carroceria de 15 t - rodovia em leito natural | D65: =SUMIF('MOMENTO DE TRANSPORTE - AUX'!#REF!,'MEDICAO EM TKM'!A65,'MOMENTO DE TRANSPORTE - AUX'!#REF!)+'MOMENTO DE TRANSPORTE - AUX'!#REF! -> 
A66: 5914359 | B66: =VLOOKUP(A66,'SINTÉTICO SICRO'!A:D,2,0) -> Transporte com caminhão basculante de 10 m³ - rodovia em leito natural | D66: =SUMIF('MOMENTO DE TRANSPORTE - AUX'!#REF!,'MEDICAO EM TKM'!A66,'MOMENTO DE TRANSPORTE - AUX'!#REF!) -> 
A67: 5914464 | B67: =VLOOKUP(A67,'SINTÉTICO SICRO'!A:D,2,0) -> Transporte com caminhão carroceria de 15 t - rodovia em revestimento primário | D67: =SUMIF('MOMENTO DE TRANSPORTE - AUX'!#REF!,'MEDICAO EM TKM'!A67,'MOMENTO DE TRANSPORTE - AUX'!#REF!)+'MOMENTO DE TRANSPORTE - AUX'!#REF! -> 
A68: 5914374 | B68: =VLOOKUP(A68,'SINTÉTICO SICRO'!A:D,2,0) -> Transporte com caminhão basculante de 10 m³ - rodovia em revestimento primário | D68: =SUMIF('MOMENTO DE TRANSPORTE - AUX'!#REF!,'MEDICAO EM TKM'!A67,'MOMENTO DE TRANSPORTE - AUX'!#REF!) -> 
A70: 4915724 | B70: =VLOOKUP(A70,'SINTÉTICO SICRO'!A:D,2,0) -> Caiação mecanizada com fixador de cal
A71: MOMENTO DE TRANSPORTE | D71: Quantidade (tkm)

Sheet MC MODULO
A1: Extensão | B1: = | C1: 1000 | D1: m | F1: QUANTIDADE DE MODULOS | G1: 15
A2: Largura | B2: = | C2: 7 | D2: m
A4: Extensão | B4: = | C4: 1 | D4: km
B6: MOBUILIZAÇÃO
A7: 1 | B7: Implantação da obra
B9: Módulos(un) | D9: Módulos(un)
B10: =G1 -> 15 | C10: = | D10: =B10 -> 15
A12: 2 | B12: Administração da obra
B14: Módulos(un) | D14: Módulos(un)
B15: =G1 -> 15 | C15: = | D15: =B15 -> 15
A17: 3 | B17: Canteiro de Obras e Almoxarifado
B19: Módulos(un) | D19: Módulos(un)
B20: =G1 -> 15 | C20: = | D20: =B20 -> 15
A22: 4 | B22: Placa de Obra em Chapa de Aço Galvanizado
B24: Módulos(un) | C24: Comprimento(m) | D24: Largura (m) | H24: Total de Area de placa (m²)
B25: =G1 -> 15 | C25: 2 | D25: 4 | H25: =C25*D25*B25*2 -> 240
B27: TERRAPLENAGEM
A29: 5 | B29: serviços topográficos para pavimentação, inclusive notas de serviços, acompanhamento e greide
B31: Extensão (m) | D31: Largura (m) | H31: area (m2)
B32: =C1*$G$1 -> 15000 | C32: x | D32: =$C$2 -> 7 | G32: = | H32: =B32*D32 -> 105000
A34: 6 | B34: Escavação, carga e transporte de material de 1ª categoria - DMT de 1.000 a 1.200 m - caminho de serviço em leito natural - com escavadeira e caminhão basculante de 14 m³
B36: Extensão (m) | D36: Largura (m) | F36: Espessura (m) | H36: Volume (m3)
B37: =C1*$G$1 -> 15000 | C37: x | D37: =$C$2 -> 7 | E37: x | F37: =0.15+0.08+0.04 -> 0.27 | G37: = | H37: =B37*D37*F37 -> 28350
A41: 7 | B41: Espalhamento de material em bota-fora
B43: Extensão (m) | D43: Largura (m) | F43: Espessura (m) | H43: Volume (m3)
B44: =C1*$G$1 -> 15000 | C44: x | D44: =$C$2 -> 7 | E44: x | F44: 0.27 | G44: = | H44: =B44*D44*F44 -> 28350
B46: PAVIMENTAÇÃO
A48: 8 | B48: Execução de Pavimento em Piso Intertravado, com Bloco Sextavado de 25 X 25 cm, espessura 8 cm. AF_12/2015
B50: Extensão (m) | C50: Largura (m) | H50: area (m2)
B51: =$C$1*G1 -> 15000 | C51: =$C$2 -> 7 | G51: = | H51: =C51*B51 -> 105000
A53: 8 | B53: Transporte com cavalo mecânico com semirreboque com capacidade de 30 t - rodovia pavimentada
B55: Dimensoes (m³) | C55: Densidade bloco Intertravado (t/m³) | D55: Peso total (t) | E55: Distancia (km) | H55: TKM
B56: =H51*0.08 -> 8400 | C56: 2.2 | D56: =C56*B56 -> 18480 | E56: 100 | G56: = | H56: =D56*E56 -> 1848000
B57: =H118*0.042 -> 1260 | C57: 2.2 | D57: =C57*B57 -> 2772 | E57: 100 | G57: = | H57: =D57*E57 -> 277200
H58: =SUM(H56:H57) -> 2125200
A59: 8 | B59: Carga, manobra e descarga de materiais diversos em caminhão carroceria com capacidade de 7 t e com guindauto de 20 t.m
B61: Dimensoes (m³) | C61: Densidade bloco Intertravado (t/m³) | D61: Peso total (t) | H61: TKM
B62: =H51*0.08 -> 8400 | C62: 2.2 | D62: =C62*B62 -> 18480 | G62: = | H62: =D62 -> 18480
B63: =H118*0.042 -> 1260 | C63: 2.2 | D63: =C63*B63 -> 2772 | G63: = | H63: =D63 -> 2772
H64: =SUM(H62:H63) -> 21252
A65: 8 | B65: TRANSPORTE COM CAMINHÃO BASCULANTE DE 10 M³, EM VIA URBANA PAVIMENTADA , DMT ATÉ 30 KM (UNIDADE: TXKM). AF_07/2020 (areia) | U65: =7*20 -> 140
U66: =26*5 -> 130
B67: Area | C67: Densidade areia (t/m³) | D67: Peso total (t) | E67: Distancia (km) | H67: TKM | U67: =23*5 -> 115
B68: =H51 -> 105000 | C68: 1.5 | D68: =B68*C68*0.04 -> 6300 | E68: 50 | G68: = | H68: =D68*E68 -> 315000 | U68: =U65+U66+U67 -> 385
A70: 8 | B70: TRANSPORTE COM CAMINHÃO BASCULANTE DE 10 M³, EM VIA URBANA PAVIMENTADA , DMT ATÉ 30 KM (UNIDADE: TXKM). AF_07/2020 (PO DE PEDRA) | U70: =7*20 -> 140
D71: 0.009 | U71: =26*5 -> 130
B72: Area | C72: Densidade pó de pedra (t/m³) | D72: Quantidade total de pó de pedra (m³) | E72: Peso total (t) | F72: Distancia (km) | H72: TKM | U72: =23*5 -> 115
B73: =H51 -> 105000 | C73: 1.5 | D73: =B73*D71 -> 945 | E73: =D73*C73 -> 1417.5 | F73: 70 | G73: = | H73: =E73*F73 -> 99225 | U73: =U70+U71+U72 -> 385
A75: 9 | B75: Base ou sub-base de brita graduada com brita comercial
B77: Extensão (m) | D77: Largura (m) | F77: Espessura (m) | H77: Volume (m3)
B78: =C1*$G$1 -> 15000 | C78: x | D78: =$C$2 -> 7 | E78: x | F78: 0.15 | G78: = | H78: =B78*D78*F78 -> 15750
A80: 10 | B80: Regularização do subleito
B82: Extensão (m) | D82: Largura (m) | H82: area (m2)
B83: =C1*$G$1 -> 15000 | C83: x | D83: =$C$2 -> 7 | G83: = | H83: =B83*D83 -> 105000
B85: SINALIZAÇÃO
A87: 11 | B87: Fornecimento e implantação de placa de regulamentação em aço D = 0,60 m - película retrorrefletiva tipo I + SI
B89: Extensão (km) | D89: Quant. (un) | H89: Quant. (un)
B90: =$C$4*$G$1 -> 15 | C90: x | D90: 3 | G90: = | H90: =B90*D90 -> 45
A92: 11 | B92: Fornecimento e implantação de placa de advertencia
B94: Extensão (km) | D94: Quant. (un) | H94: Quant. (un)
B95: =$C$4*$G$1 -> 15 | C95: x | D95: 3 | G95: = | H95: =B95*D95 -> 45
A98: 12 | B98: Fornecimento e implantação de suporte metálico galvanizado para placa de regulamentação - D = 0,60 m
B100: Extensão (km) | D100: Quant. (un) | H100: Quant. (un)
B101: =$C$4*$G$1 -> 15 | C101: x | D101: 0.5 | G101: = | H101: =H95+H90 -> 90
A103: 13 | B103: Pintura de faixa com tinta acrílica - espessura de 0,4 mm (bordos)
B105: Extensão (m) | D105: Espessura (m) | H105: Quant. (m²)
B106: =C1*G1 -> 15000 | C106: x | D106: 0.1 | G106: = | H106: =B106*D106*2 -> 3000
B108: Pintura de faixa com tinta acrílica - espessura de 0,4 mm (faixa central)
H110: Quant. (m²)
H111: =B106*D106*0.4 -> 600
B114: DRENAGEM
A115: 14 | B115: Meio-fio de concreto
B117: Extensão (m) | D117: Quant. (un) | H117: Extensão(m)
B118: =$C$1*$G$1 -> 15000 | C118: x | D118: 2 | G118: = | H118: =B118*D118 -> 30000
A120: 19 | B120: Caiação mecanizada com fixador de cal
B122: Extensão (m) | D122: Perimetro (m) | H122: Area (m²)
B123: =$C$1*$G$1 -> 15000 | C123: x | D123: =0.24 -> 0.24 | G123: = | H123: =B123*D123 -> 3600
B126: SERVIÇOS COMPLEMENTARES
A127: 15
B129: Extensão (m) | D129: Largura (m) | G129: 0.1 | H129: extensão (m)
B130: =$C$1*G1 -> 15000 | C130: x | D130: 1 | E130: x | G130: = | H130: =G129*B130 -> 1500
B133: PROJETO EXECUTIVO
A134: 16 | B134: Projeto Executivo
B136: Extensão (m) | D136: Largura (m) | F136: Quant. (un) | H136: Área (m²)
B137: =$C$1*G1 -> 15000 | C137: x | D137: =C2 -> 7 | E137: x | F137: 1 | G137: = | H137: =B137*D137 -> 105000
B139: CONTROLE TECNOLOGICO - OBRA
A140: 17 | B140: Projeto Executivo
B142: Extensão (m) | D142: Largura (m) | F142: Quant. (un) | H142: meses
G143: = | H143: =0.5*G1 -> 7.5

Sheet Material Sicro (hidden)
A1: CGCIT | B1: SISTEMA DE CUSTOS REFERENCIAIS DE OBRAS - SICRO | D1: DNIT
B2: Ceará - Janeiro/2025
A3: Código | B3: Descrição | C3: Unidade | D3: Preço Unitário (R$)
A4: M0003 | B4: Aço CA 25 | C4: kg | D4: 6.5194
A5: M0004 | B5: Aço CA 50 | C5: kg | D5: 6.4464
A6: M0005 | B6: Brita 0 | C6: m³ | D6: 156.6829
A7: M0006 | B7: Fibra de poliamida para concreto | C7: kg | D7: 27.9701
A8: M0007 | B8: Fibra de aço para concreto | C8: kg | D8: 17.0709
A9: M0008 | B9: Detergente líquido neutro | C9: l | D9: 4.3643
A10: M0009 | B10: Aço CP 175 RB | C10: kg | D10: 9.2747
A11: M0010 | B11: Aditivo superplastificante para concreto e argamassa | C11: kg | D11: 15.575
A12: M0011 | B12: Aditivo modificador de viscosidade para concreto e argamassa | C12: kg | D12: 10.8807
A13: M0012 | B13: Silicato de alumínio | C13: kg | D13: 2.374
A14: M0013 | B14: Grampo de ancoragem em aço CA 50 - D = 12,5 mm | C14: kg | D14: 6.4464
A15: M0014 | B15: Aço CA 60 | C15: kg | D15: 7.6737
A16: M0015 | B16: Espoleta elétrica Nº 8 - D = 6,0 mm | C16: un | D16: 20.4463
A17: M0016 | B17: Grampo sargento em ferro fundido tipo C com abertura útil de 105 mm (4") | C17: un | D17: 41.3999
A18: M0017 | B18: Saco de aniagem ou de ráfia de 50 kg - C = 95 cm e L = 65 cm | C18: un | D18: 2.7097
A19: M0018 | B19: Grampo pesado em aço-carbono para cabo de aço - D = 13 mm (1/2") | C19: un | D19: 18.2429
A20: M0019 | B20: Esticador em aço tipo olhal x olhal para cabo de aço - D = 13 mm | C20: un | D20: 142.0384
A21: M0020 | B21: Grampo de ancoragem em aço CA 50 - D = 6,3 mm | C21: kg | D21: 7.0207
A22: M0021 | B22: Herbicida glifosato para áreas contínuas | C22: l | D22: 27.5174
A23: M0025 | B23: Adesivo plástico para tubos de PVC | C23: kg | D23: 50.1956
A24: M0026 | B24: Aditivo aglutinante para argamassa | C24: l | D24: 8.801
A25: M0028 | B25: Areia média | C25: m³ | D25: 120.4519
A26: M0029 | B26: Sílica ativa para concreto e argamassa (microssílica) | C26: kg | D26: 2.2401
A27: M0030 | B27: Aditivo plastificante e retardador de pega para concreto e argamassa | C27: kg | D27: 6.9833
A28: M0032 | B28: Adesivo de contato para laminado elastoplástico | C28: kg | D28: 48.079
A29: M0035 | B29: Diluente tipo aguarrás para tintas e vernizes | C29: l | D29: 15.2
A30: M0039 | B30: Gasolina comum | C30: l | D30: 5.3698
A31: M0041 | B31: Contêiner com 2 banheiros - L = 2,44 m e C = 6,09 m (1 TEU) | C31: un | D31: 99933.0729
A32: M0042 | B32: Contêiner com janela - L = 2,44 m e C = 6,09 m (1 TEU) | C32: un | D32: 45649.0674
A33: M0043 | B33: Óleo diesel | C33: l | D33: 5.5251
A34: M0044 | B34: Abrasivo de vidro com granulometria de 210 a 420 micra | C34: kg | D34: 10.2407
A35: M0045 | B35: Barreira plástica monobloco para canalização de trânsito - C = 100 cm, L = 50 cm e H = 55 cm | C35: un | D35: 483.8018
A36: M0046 | B36: Barreira plástica para canalização de trânsito - C = 60 cm, L = 45 cm e H = 60 cm | C36: un | D36: 336.2505
A37: M0047 | B37: Cone de sinalização em polietileno - H = 75 cm e base quadrada de 40 x 40 cm | C37: un | D37: 96.915
A38: M0048 | B38: Balizador cônico refletivo em polietileno semiflexível - H = 114 cm e base octogonal de D = 40 cm | C38: un | D38: 163.4552
A39: M0049 | B39: Delimitador de tráfego flexível com chumbador e duas faixas refletivas - H = 77 cm e D = 21 cm | C39: un | D39: 174.944
A40: M0050 | B40: Aditivo natural tipo goma xantana para hidrossemeadura | C40: kg | D40: 96.5985
A41: M0051 | B41: Cilindro canalizador de tráfego em polietileno - H = 117 cm e base quadrada de 60 x 60 cm | C41: un | D41: 216.9289
A42: M0052 | B42: Fita adesiva de PVC - L = 50 mm e C = 50 m | C42: m | D42: 0.1109
A43: M0053 | B43: Tela plástica em polipropileno na cor laranja para tapume - L = 1,2 m | C43: m | D43: 1.775
A44: M0054 | B44: Fita zebrada de cor laranja e branca - L = 7 a 8 cm | C44: m | D44: 0.071
A45: M0055 | B45: Barreira plástica articulável modular - C = 240 cm e H = 100 cm | C45: un | D45: 1277.8461
A46: M0056 | B46: Ferramenta de corte para removedora de faixa de sinalização (Smith Cutter) | C46: un | D46: 7564.148
A47: M0057 | B47: Contêiner com janela - L = 4,88 m e C = 6,09 m (1 TEU duplo) | C47: un | D47: 145505.0603
A48: M0058 | B48: Contêiner com janela e 2 banheiros - L = 4,88 m e C = 6,09 m (1 TEU duplo) | C48: un | D48: 151282.0896
A49: M0059 | B49: Contêiner com revestimento térmico, janela e banheiro - L = 2,44 m e C = 6,09 m (1 TEU) | C49: un | D49: 60694.0674
A50: M0060 | B50: Contêiner com janela - L = 2,44 m e C = 4,58 m (3/4 TEU) | C50: un | D50: 64057.6786
A51: M0065 | B51: Contêiner com janela e banheiro - L = 2,44 m e 4,58 m (3/4 TEU) | C51: un | D51: 77953.6518
A52: M0066 | B52: Contêiner com revestimento térmico, janela e banheiro - L = 2,44 m e C = 12,90 m (2 TEU) | C52: un | D52: 136243.1477
A53: M0067 | B53: Tubo PEAD PE 100 PN 10 com flanges - D = 160 mm | C53: m | D53: 174.4858
A54: M0068 | B54: Caibro de pinho - L = 7,5 cm e E = 10,0 cm | C54: m | D54: 25.5177
A55: M0069 | B55: Arame farpado em aço galvanizado - D = 1,60 mm | C55: m | D55: 0.7785
A56: M0071 | B56: Contêiner com 3 janelas para guarita - L = 2,44 m e C = 3,05 m (1/2 TEU) | C56: un | D56: 52157.0692
A57: M0072 | B57: Arame liso em aço galvanizado - D = 2,10 mm (14 BWG) | C57: kg | D57: 16.2479
A58: M0073 | B58: Muda de árvore com altura de 0,30 a 0,80 m | C58: un | D58: 17.8197
A59: M0074 | B59: Muda de arbusto com altura até 0,50 m | C59: un | D59: 21.161
A60: M0075 | B60: Arame liso recozido em aço-carbono - D = 1,24 mm (18 BWG) | C60: kg | D60: 11.4847
A61: M0076 | B61: Disco de corte abrasivo para policorte - D = 300 mm | C61: un | D61: 17.9287
A62: M0080 | B62: Areia fina | C62: m³ | D62: 124.6504
A63: M0081 | B63: Areia grossa | C63: m³ | D63: 111.7646
A64: M0082 | B64: Areia média lavada | C64: m³ | D64: 124.7944
A65: M0083 | B65: Argamassa pré-dosada para grauteamento | C65: kg | D65: 1.8463
A66: M0084 | B66: Argamassa pré-dosada autoadensável para grauteamento | C66: kg | D66: 1.8345
A67: M0085 | B67: Ancoragem ativa para 4 cordoalhas - D = 12,7 mm | C67: un | D67: 382.2678
A68: M0086 | B68: Ancoragem ativa para 6 cordoalhas - D = 12,7 mm | C68: un | D68: 494.4343
A69: M0087 | B69: Ancoragem ativa para 7 cordoalhas - D = 12,7 mm | C69: un | D69: 571.1738
A70: M0088 | B70: Ancoragem ativa para 8 cordoalhas - D = 12,7 mm | C70: un | D70: 737.9651
A71: M0089 | B71: Ancoragem ativa para 9 cordoalhas - D = 12,7 mm | C71: un | D71: 753.8803
A72: M0091 | B72: Ancoragem ativa para 10 cordoalhas - D = 12,7 mm | C72: un | D72: 837.5062
A73: M0092 | B73: Ancoragem ativa para 12 cordoalhas - D = 12,7 mm | C73: un | D73: 1058.6275
A74: M0093 | B74: Ancoragem ativa para 15 cordoalhas - D = 12,7 mm | C74: un | D74: 1468.8574
A75: M0094 | B75: Ancoragem ativa para 19 cordoalhas - D = 12,7 mm | C75: un | D75: 1867.2571
A76: M0098 | B76: Bambu com diâmetro médio de 10 cm | C76: m | D76: 23.5922
A77: M0099 | B77: Equipamentos para a fábrica de dormentes de concreto protendido | C77: ISF | D77: 576.417
A78: M0100 | B78: Ancoragem ativa para 22 cordoalhas - D = 12,7 mm | C78: un | D78: 2417.9503
A79: M0101 | B79: Ancoragem ativa para 27 cordoalhas - D = 12,7 mm | C79: un | D79: 2956.0075
A80: M0102 | B80: Ancoragem ativa para 31 cordoalhas - D = 12,7 mm | C80: un | D80: 3122.4327
A81: M0103 | B81: Aditivo acelerador de pega para concreto e argamassa projetados | C81: kg | D81: 7.0129
A82: M0104 | B82: Asfalto diluído de petróleo - CM-30 | C82: t | D82: -
A83: M0105 | B83: Ancoragem ativa para 4 cordoalhas - D = 15,2 mm | C83: un | D83: 474.1305
A84: M0106 | B84: Ancoragem ativa para 6 cordoalhas - D = 15,2 mm | C84: un | D84: 630.9111
A85: M0107 | B85: Geocomposto para drenagem | C85: m² | D85: 46.1432
A86: M0108 | B86: Ancoragem ativa para 7 cordoalhas - D = 15,2 mm | C86: un | D86: 742.4447
A87: M0109 | B87: Geodreno vertical - L = 10 cm e E = 5 mm | C87: m | D87: 5.18
A88: M0110 | B88: Ancoragem ativa para 10 cordoalhas - D = 15,2 mm | C88: un | D88: 1146.4932
A89: M0111 | B89: Ancoragem ativa para 9 cordoalhas - D = 15,2 mm | C89: un | D89: 1021.9407
A90: M0112 | B90: Disco diamantado segmentado para corte de pavimento - D = 1.000 mm | C90: un | D90: 5881.0011
A91: M0113 | B91: Ancoragem ativa para 12 cordoalhas - D = 15,2 mm | C91: un | D91: 1400.7638
A92: M0114 | B92: Disco diamantado segmentado para corte de pavimento - D = 1.500 mm | C92: un | D92: 26165.4944
A93: M0115 | B93: Biomanta vegetal de fibras de coco entrelaçadas com fios de polipropileno biodegradáveis - densidade 0,4 kg/m² | C93: m² | D93: 6.5
A94: M0116 | B94: Mangote flangeado de borracha reforçada com lonas sintéticas - C = 1,80 m e D = 0,30 m | C94: un | D94: 16796.7124
A95: M0117 | B95: Mangote flangeado de borracha reforçada com lonas sintéticas - C = 1,80 m e D = 0,40 m | C95: un | D95: 23297.6662
A96: M0118 | B96: Mangote flangeado de borracha reforçada com lonas sintéticas - C = 1,80 m e D = 0,45 m | C96: un | D96: 25844.1941
A97: M0119 | B97: Mangote flangeado de borracha reforçada com lonas sintéticas - C = 1,80 m e D = 0,50 m | C97: un | D97: 29582.4849
A98: M0120 | B98: Tubo PEAD PE 100 PN 8 com flanges - D = 250 mm | C98: m | D98: 318.3805
A99: M0121 | B99: Tubo PEAD PE 100 PN 8 com flanges - D = 400 mm | C99: m | D99: 2042.0996
A100: M0122 | B100: Tubo PEAD PE 100 PN 8 com flanges - D = 450 mm | C100: m | D100: 2565.179
A101: M0123 | B101: Tubo PEAD PE 100 PN 8 com flanges - D = 500 mm | C101: m | D101: 2872.5412
A102: M0124 | B102: Flutuador bipartido em polietileno com núcleo de espuma em poliuretano para tubos - D = 0,30 m | C102: un | D102: 4795.9401
A103: M0125 | B103: Flutuador bipartido em polietileno com núcleo de espuma em poliuretano para tubos - D = 0,40 m | C103: un | D103: 6595.5631
A104: M0126 | B104: Flutuador bipartido em polietileno com núcleo de espuma em poliuretano para tubos - D = 0,45 m | C104: un | D104: 7601.5095
A105: M0127 | B105: Flutuador bipartido em polietileno com núcleo de espuma em poliuretano para tubos - D = 0,50 m | C105: un | D105: 8170.7462
A106: M0128 | B106: Biomanta vegetal de fibras de palha entrelaçadas com fios de polipropileno biodegradáveis - densidade 0,6 kg/m² | C106: m² | D106: 5.7
A107: M0129 | B107: Retentor de sedimento em fibras vegetais - D = 20 cm | C107: m | D107: 67.8501
A108: M0130 | B108: Ancoragem ativa para 15 cordoalhas - D = 15,2 mm | C108: un | D108: 1844.5251
A109: M0131 | B109: Tubo PEAD corrugado com paredes estruturadas para drenagem - D = 400 mm | C109: m | D109: 251.3602
A110: M0132 | B110: Tubo PEAD corrugado com paredes estruturadas para drenagem - D = 450 mm | C110: m | D110: 322.3974
A111: M0133 | B111: Tubo PEAD corrugado com paredes estruturadas para drenagem - D = 500 mm | C111: m | D111: 414.0324
A112: M0134 | B112: Tubo PEAD corrugado com paredes estruturadas para drenagem - D = 600 mm | C112: m | D112: 603.3207
A113: M0135 | B113: Tubo PEAD corrugado com paredes estruturadas para drenagem - D = 750 mm | C113: m | D113: 844.9312
A114: M0136 | B114: Tubo PEAD corrugado com paredes estruturadas para drenagem - D = 800 mm | C114: m | D114: 902.2217
A115: M0137 | B115: Tubo PEAD corrugado com paredes estruturadas para drenagem - D = 900 mm | C115: m | D115: 1140.1785
A116: M0138 | B116: Ancoragem ativa para 19 cordoalhas - D = 15,2 mm | C116: un | D116: 2399.4203
A117: M0139 | B117: Tubo PEAD corrugado com paredes estruturadas para drenagem - D = 1.000 mm | C117: m | D117: 1581.6869
A118: M0140 | B118: Bentonita | C118: kg | D118: 3.2059
A119: M0141 | B119: Tubo PEAD corrugado com paredes estruturadas para drenagem - D = 1.050 mm | C119: m | D119: 1624.0764
A120: M0142 | B120: Tubo PEAD corrugado com paredes estruturadas para drenagem - D = 1.200 mm | C120: m | D120: 2233.2191
A121: M0143 | B121: Tubo PEAD corrugado com paredes estruturadas para drenagem - D = 1.500 mm | C121: m | D121: 2509.869
A122: M0145 | B122: Ancoragem ativa para 22 cordoalhas - D = 15,2 mm | C122: un | D122: 3110.981
A123: M0146 | B123: Ancoragem ativa para 27 cordoalhas - D = 15,2 mm | C123: un | D123: 4073.083
A124: M0148 | B124: Ancoragem ativa para lajes para 1 cordoalha - D = 12,7 mm | C124: un | D124: 82.8581
A125: M0151 | B125: Ancoragem ativa para lajes para 2 cordoalhas - D = 12,7 mm | C125: un | D125: 162.3351
A126: M0152 | B126: Ancoragem ativa para lajes para 3 cordoalhas - D = 12,7 mm | C126: un | D126: 232.8425
A127: M0153 | B127: Ancoragem ativa para lajes para 4 cordoalhas - D = 12,7 mm | C127: un | D127: 311.0896
A128: M0156 | B128: Bloco de concreto - L = 19 cm, A = 19 cm e C = 39 cm | C128: un | D128: 5.4786
A129: M0158 | B129: Tela metálica galvanizada dobrada em L - C = 2,0 m, L = 0,4 m e H = 0,4 m | C129: un | D129: 429.2839
A130: M0160 | B130: Extintor de incêndio tipo espuma mecânica - V = 10 l | C130: un | D130: 616.6247
A131: M0161 | B131: Barra de fibra de vidro (vergalhão) - D = 25,0 mm | C131: m | D131: 58.5699
A132: M0162 | B132: Corrente de elo soldado em aço galvanizado com acabamento polido - D = 3,18 mm (1/8") | C132: m | D132: 6.9331
A133: M0163 | B133: Gonzo com aba em aço galvanizado - D = 12,7 mm (1/2") | C133: un | D133: 2.6428
A134: M0164 | B134: Tubo em aço galvanizado - E = 1,50 mm e seção de 20 x 20 mm | C134: m | D134: 12.3053
A135: M0166 | B135: Tubo em aço galvanizado - E = 2,25 mm e D = 20 mm (3/4") | C135: m | D135: 29.8447
A136: M0167 | B136: Tela de poliamida industrial - E = 0,40 mm e malha de 1,6 mm | C136: m² | D136: 14.6422
A137: M0168 | B137: Abraçadeira de poliamida - E = 3,6 mm e C = 200 mm | C137: un | D137: 0.2023
A138: M0169 | B138: Roda em aço e pneu com câmara de ar 83/203 mm (3,25"/8") para carrinho de mão | C138: un | D138: 76.7897
A139: M0173 | B139: Ancoragem ativa para lajes para 1 cordoalha - D = 15,2 mm | C139: un | D139: 92.8889
A140: M0178 | B140: Ancoragem ativa para lajes para 2 cordoalhas - D = 15,2 mm | C140: un | D140: 206.8875
A141: M0181 | B141: Ancoragem ativa para lajes para 3 cordoalhas - D = 15,2 mm | C141: un | D141: 254.7899
A142: M0184 | B142: Ancoragem ativa para lajes para 4 cordoalhas - D = 15,2 mm | C142: un | D142: 376.2175
A143: M0191 | B143: Brita 1 | C143: m³ | D143: 135.9202
A144: M0192 | B144: Brita 2 | C144: m³ | D144: 134.1829
A145: M0193 | B145: Brita 3 | C145: m³ | D145: 131.1829
A146: M0194 | B146: Escória de aciaria | C146: m³ | D146: 13.4736
A147: M0198 | B147: Parafuso de cabeça chata em aço - D = 4,5 mm e bucha plástica - D = 8 mm (S8) | C147: un | D147: 0.3455
A148: M0199 | B148: Coroa de botões cruzados linha R32 - D = 43 mm (1 11/16’’) | C148: un | D148: 323.9554
A149: M0201 | B149: Coroa de botões esféricos linha T38 - D = 89 mm (3 1/2") | C149: un | D149: 788.1256
A150: M0202 | B150: Coroa de botões esféricos linha T45 - D = 76 mm (3") | C150: un | D150: 746.1814
A151: M0204 | B151: Instalações físicas para a central de pré-moldagem de dormentes de concreto protendido | C151: CMCC | D151: 1762.16
A152: M0217 | B152: Enxofre | C152: kg | D152: 4.0282
A153: M0220 | B153: Adubo à base de nitrogênio, fósforo e potássio (NPK) | C153: kg | D153: 3.2311
A154: M0222 | B154: Filer calcário | C154: kg | D154: 0.1888
A155: M0223 | B155: Sementes para hidrossemeadura | C155: kg | D155: 28.892
A156: M0224 | B156: Guia-chapéu pré-moldada - C = 120 cm | C156: un | D156: 68.204
A157: M0225 | B157: Adubo orgânico composto | C157: kg | D157: 0.2641
A158: M0229 | B158: Gabião tipo colchão em liga de zinco e alumínio revestido com polímero de malha hexagonal - E = 0,17 m | C158: m² | D158: 190.9189
A159: M0230 | B159: Gabião tipo caixa em liga de zinco e alumínio de malha hexagonal - C = 2,00 m, L = 1,00 m e H = 0,50 m | C159: un | D159: 602.4177
A160: M0231 | B160: Gabião tipo caixa em liga de zinco e alumínio de malha hexagonal - C = 2,00 m, L = 1,00 m e H = 1,00 m | C160: un | D160: 902.9417
A161: M0232 | B161: Gabião tipo caixa em liga de zinco e alumínio revestido com polímero de malha hexagonal - C = 2,00 m, L = 1,00 m e H = 0,50 m | C161: un | D161: 751.6541
A162: M0233 | B162: Gabião tipo caixa em liga de zinco e alumínio revestido com polímero de malha hexagonal - C = 2,00 m, L = 1,00 m e H = 1,00 m | C162: un | D162: 1051.3737
A163: M0234 | B163: Gabião tipo saco em liga de zinco e alumínio revestido com polímero de malha hexagonal - D = 0,65 m | C163: m³ | D163: 544.705
A164: M0235 | B164: Gabião tipo colchão em liga de zinco e alumínio revestido com polímero de malha hexagonal - E = 0,23 m | C164: m² | D164: 199.6715
A165: M0236 | B165: Gabião tipo colchão em liga de zinco e alumínio revestido com polímero de malha hexagonal - E = 0,30 m | C165: m² | D165: 229.0396
A166: M0237 | B166: Energia elétrica | C166: kWh | D166: 0.9563
A167: M0253 | B167: Cabo de cobre flexível antichama isolado em PVC - tensão de 450/750 V e seção de 16 mm² | C167: m | D167: 13.3359
A168: M0254 | B168: Mistura gasosa de argônio e dióxido de carbono para solda MIG/MAG | C168: m³ | D168: 50.3932
A169: M0256 | B169: Tinta à base de etil silicato de zinco bicomponente para fundo preparador de pintura | C169: l | D169: 84.6308
A170: M0257 | B170: Diluente para tinta à base de etil silicato de zinco | C170: l | D170: 36.4023
A171: M0260 | B171: Cabo de cobre PP flexível isolado em PVC - tensão de 300/500 V e seção de 3 x 1,5 mm² | C171: m | D171: 4.5119
A172: M0264 | B172: Bomba de combustível industrial eletrônica simples | C172: un | D172: 27514.0437
A173: M0265 | B173: Tanque de combustível aéreo horizontal com escada para visita - capacidade de 5.000 l | C173: un | D173: 20893.2749
A174: M0266 | B174: Cabo de cobre flexível antichama isolado em PVC - tensão de 0,6/1,0 kV e seção de 240 mm² | C174: m | D174: 156.1595
A175: M0267 | B175: Módulo de torre de elevador de cremalheira | C175: un | D175: 4029.5069
A176: M0268 | B176: Módulo de ancoragem de torre de elevador de cremalheira | C176: un | D176: 3026.806
A177: M0269 | B177: Cabo de cobre flexível antichama isolado em PVC - tensão de 0,6/1,0 kV e seção de 50 mm² | C177: m | D177: 36.3385
A178: M0284 | B178: Caibro de pinho - L = 7,5 cm e E = 7,5 cm | C178: m | D178: 17.7008
A179: M0285 | B179: Pontalete para escoramento - D = 15 cm | C179: m | D179: 8.4703
A180: M0286 | B180: Tábua - E = 2,5 cm e L = 30 cm | C180: m | D180: 21.2534
A181: M0289 | B181: Tábua - E = 2,5 cm e L = 15 cm | C181: m | D181: 10.6267
A182: M0290 | B182: Tábua - E = 2,5 cm e L = 10 cm | C182: m | D182: 7.0845
A183: M0291 | B183: Estrutura modular com 2 banheiros - L = 2,44 m e C = 6,06 m (1 TEU) | C183: un | D183: 81214.477
A184: M0292 | B184: Estrutura modular com janela - L = 2,44 m e C = 6,06 m (1 TEU) | C184: un | D184: 66197.5962
A185: M0293 | B185: Estrutura modular com janela - L = 4,88 m e C = 6,06 m (1 TEU duplo) | C185: un | D185: 134167.9261
A186: M0294 | B186: Estrutura modular com janela e 2 banheiros - L = 4,88 m e C = 6,06 m (1 TEU duplo) | C186: un | D186: 134716.9591
A187: M0295 | B187: Estrutura modular com revestimento térmico, janela e banheiro - L = 2,44 m e C = 6,06 m (1 TEU) | C187: un | D187: 74407.1512
A188: M0296 | B188: Estrutura modular com revestimento térmico, janela e banheiro - L = 2,44 m e C = 12,19 m (2 TEU) | C188: un | D188: 141907.6445
A189: M0297 | B189: Estrutura modular com 3 janelas para guarita - L = 2,44 m e C = 3,05 m (1/2 TEU) | C189: un | D189: 41157.9031
A190: M0301 | B190: Pontalete para escoramento - D = 10 cm | C190: m | D190: 3.7664
A191: M0310 | B191: Peça de madeira - L = 7,5 cm e E = 2,5 cm | C191: m | D191: 6.3794
A192: M0311 | B192: Filtro de aspiração de ar externo com capacidade 3,58 l/s para compressor de ar respirável | C192: un | D192: 259.1707
A193: M0312 | B193: Filtro de purificação de ar comprimido com capacidade de 35 MPa para compressor de ar respirável | C193: un | D193: 270.2049
A194: M0344 | B194: Cal hidratada - a granel | C194: kg | D194: 0.4976
A195: M0345 | B195: Cal hidratada - saco | C195: kg | D195: 0.7668
A196: M0346 | B196: Disco de aço para bomba de projeção via seca | C196: un | D196: 376.799
A197: M0347 | B197: Disco de aço para bomba de projeção via úmida | C197: un | D197: 1434.9068
A198: M0348 | B198: Disco de borracha para bomba de projeção via seca | C198: un | D198: 293.7145
A199: M0349 | B199: Disco de borracha para bomba de projeção via úmida | C199: un | D199: 646.8422
A200: M0350 | B200: Bico para bomba de projeção | C200: un | D200: 298.8692
... 1477 more rows

Sheet Pessoal Sicro (hidden)
A1: CGCIT | B1: SISTEMA DE CUSTOS REFERENCIAIS DE OBRAS - SICRO | G1: DNIT
A3: Ceará - Janeiro/2025
A4: Sem desoneração
A5: Código | B5: Descrição | C5: Unidade | D5: Salário (R$)
A6: P9801 | B6: Ajudante | C6: h | D6: 22.8971
A7: P9802 | B7: Ajudante especializado | C7: h | D7: 26.6399
A8: P9803 | B8: Almoxarife | C8: mês | D8: 6314.127
A9: P9804 | B9: Apontador | C9: mês | D9: 5564.5409
A10: P9805 | B10: Armador | C10: h | D10: 31.254
A11: P9806 | B11: Auxiliar administrativo | C11: mês | D11: 4450.8519
A12: P9807 | B12: Bombeiro hidráulico | C12: h | D12: 31.8033
A13: P9808 | B13: Carpinteiro | C13: h | D13: 30.1738
A14: P9809 | B14: Encarregado administrativo | C14: mês | D14: 7661.3137
A15: P9810 | B15: Eletricista | C15: h | D15: 31.3898
A16: P9811 | B16: Encarregado especializado | C16: mês | D16: 8326.019
A17: P9812 | B17: Engenheiro | C17: mês | D17: 25173.4059
A18: P9814 | B18: Operacional | C18: mês | D18: 4222.9112
A19: P9815 | B19: Jardineiro | C19: h | D19: 29.264
A20: P9819 | B20: Engenheiro supervisor | C20: mês | D20: 25173.4059
A21: P9821 | B21: Pedreiro | C21: h | D21: 30.1267
A22: P9822 | B22: Pintor | C22: h | D22: 31.2324
A23: P9823 | B23: Serralheiro | C23: h | D23: 29.1935
A24: P9824 | B24: Servente | C24: h | D24: 22.4008
A25: P9825 | B25: Soldador | C25: h | D25: 35.7632
A26: P9826 | B26: Chefe setor de finanças | C26: mês | D26: 26216.942
A27: P9827 | B27: Vigia | C27: mês | D27: 5270.4444
A28: P9830 | B28: Montador | C28: h | D28: 32.0874
A29: P9833 | B29: Auxiliar de laboratório | C29: mês | D29: 5732.5326
A30: P9837 | B30: Oceanógrafo | C30: mês | D30: 12409.2716
A31: P9840 | B31: Encarregado geral | C31: mês | D31: 11842.5433
A32: P9842 | B32: Faxineiro | C32: mês | D32: 4119.051
A33: P9843 | B33: Operador de equipamento leve | C33: h | D33: 29.972
A34: P9845 | B34: Operador de equipamento pesado | C34: h | D34: 37.1225
A35: P9846 | B35: Operador de equipamento especial | C35: h | D35: 44.5974
A36: P9847 | B36: Perfurador de tubulão | C36: h | D36: 22.8767
A37: P9848 | B37: Desenhista | C37: mês | D37: 8016.5442
A38: P9849 | B38: Condutor maquinista fluvial | C38: mês | D38: 5793.809
A39: P9850 | B39: Copeiro | C39: mês | D39: 4370.5316
A40: P9851 | B40: Médico do trabalho | C40: mês | D40: 18579.8422
A41: P9852 | B41: Blaster | C41: h | D41: 41.4493
A42: P9853 | B42: Pré-marcador | C42: h | D42: 22.7598
A43: P9854 | B43: Recepcionista | C43: mês | D43: 4239.248
A44: P9855 | B44: Marinheiro de máquinas | C44: mês | D44: 5392.5519
A45: P9856 | B45: Marinheiro de convés | C45: h | D45: 29.1508
A46: P9857 | B46: Marinheiro de convés - mensalista | C46: mês | D46: 5362.8194
A47: P9858 | B47: Laboratorista | C47: mês | D47: 7485.1279
A48: P9859 | B48: Trabalhador de via | C48: h | D48: 22.4244
A49: P9861 | B49: Selecionador de material pétreo | C49: h | D49: 22.806
A50: P9864 | B50: Engenheiro de segurança do trabalho | C50: mês | D50: 24424.838
A51: P9866 | B51: Motorista de caminhão | C51: h | D51: 36.6693
A52: P9867 | B52: Técnico especializado - mensalista | C52: mês | D52: 7180.7585
A53: P9869 | B53: Encarregado de obras de artes especiais | C53: mês | D53: 8326.019
A54: P9870 | B54: Motorista de veículo leve | C54: h | D54: 30.8852
A55: P9871 | B55: Motorista de veículo especial | C55: h | D55: 40.227
A56: P9875 | B56: Encarregado de turma | C56: mês | D56: 7431.4238
A57: P9876 | B57: Técnico de segurança do trabalho | C57: mês | D57: 7384.0628
A58: P9878 | B58: Secretária | C58: mês | D58: 6804.0415
A59: P9880 | B59: Piloto fluvial | C59: mês | D59: 7681.1978
A60: P9882 | B60: Técnico especializado | C60: h | D60: 38.8618
A61: P9883 | B61: Chefe do setor administrativo | C61: mês | D61: 7661.4187
A62: P9884 | B62: Encarregado de terraplenagem | C62: mês | D62: 8326.019
A63: P9885 | B63: Frentista de túnel | C63: h | D63: 23.265
A64: P9889 | B64: Técnico da qualidade | C64: mês | D64: 7982.7861
A65: P9892 | B65: Auxiliar de blaster | C65: h | D65: 36.3856
A66: P9893 | B66: Encarregado de pavimentação | C66: mês | D66: 8326.019
A67: P9896 | B67: Porteiro | C67: mês | D67: 4111.7836
A68: P9897 | B68: Técnico de meio ambiente | C68: mês | D68: 7967.5844
A69: P9900 | B69: Comprador | C69: mês | D69: 7483.3932
A70: P9901 | B70: Encarregado de superestrutura ferroviária | C70: mês | D70: 8326.019
A71: P9903 | B71: Auxiliar técnico | C71: mês | D71: 4770.2828
A72: P9907 | B72: Comandante de longo curso | C72: mês | D72: 20406.5748
A73: P9908 | B73: Imediato | C73: mês | D73: 16496.0338
A74: P9909 | B74: Oficial de náutica | C74: mês | D74: 6710.0394
A75: P9910 | B75: Oficial de máquinas | C75: mês | D75: 6537.6874
A76: P9913 | B76: Draguista | C76: mês | D76: 6517.2139
A77: P9915 | B77: Maquinista | C77: h | D77: 34.701
A78: P9916 | B78: Encarregado de conservação rodoviária | C78: mês | D78: 8326.019
A79: P9920 | B79: Mestre fluvial | C79: mês | D79: 8583.8884
A80: P9921 | B80: Mergulhador raso autônomo de emergência | C80: h | D80: 38.9431
A81: P9922 | B81: Mergulhador raso dependente de emergência | C81: h | D81: 40.5121
A82: P9924 | B82: Mergulhador raso dependente | C82: h | D82: 52.6832
A83: P9925 | B83: Mergulhador raso autônomo | C83: h | D83: 48.9012
A84: P9926 | B84: Mergulhador raso auxiliar de superfície | C84: h | D84: 36.8397
A85: P9927 | B85: Frentista de túnel com periculosidade | C85: h | D85: 27.9265
A86: P9930 | B86: Eletricista com periculosidade | C86: h | D86: 38.4756
A87: P9931 | B87: Operador de equipamento de mergulho | C87: h | D87: 58.7273
A88: P9932 | B88: Operador de equipamento pesado com periculosidade | C88: h | D88: 46.0851
A89: P9933 | B89: Supervisor de mergulho raso | C89: mês | D89: 10832.5565
A90: P9934 | B90: Motorista de veículo especial com periculosidade | C90: h | D90: 50.1469
A91: P9938 | B91: Operador de equipamento leve com periculosidade | C91: h | D91: 36.785
A92: P9939 | B92: Operador de equipamento leve com insalubridade | C92: h | D92: 37.9894
A93: P9942 | B93: Marinheiro de convés com periculosidade | C93: h | D93: 35.9468
A94: P9944 | B94: Operador de equipamento especial com periculosidade | C94: h | D94: 55.8286
A95: P9946 | B95: Engenheiro auxiliar | C95: mês | D95: 23596.8902
A96: P9947 | B96: Técnico florestal | C96: mês | D96: 7967.5844
A97: P9948 | B97: Motorista de veículo leve - mensalista | C97: mês | D97: 5700.4662
A98: P9949 | B98: Topógrafo | C98: mês | D98: 8842.8627
A99: P9950 | B99: Auxiliar de topografia | C99: mês | D99: 5752.7159
A100: P9951 | B100: Médico de câmara hiperbárica | C100: mês | D100: 21152.0773
A101: P9952 | B101: Pedreiro - mensalista | C101: mês | D101: 5575.4161
A102: P9953 | B102: Eletricista - mensalista | C102: mês | D102: 5792.8074
A103: P9954 | B103: Servente - mensalista | C103: mês | D103: 4148.4864
A104: P9955 | B104: Engenheiro chefe | C104: mês | D104: 31581.5059
A105: P9956 | B105: Motorista de caminhão com periculosidade | C105: h | D105: 45.5218
A106: P9972 | B106: Técnico de batimetria | C106: mês | D106: 6696.4841

Sheet Equipamentos (hidden)
A1: CGCIT | B1: SISTEMA DE CUSTOS REFERENCIAIS DE OBRAS - SICRO | K1: DNIT
B2: Ceará - Abril/2025
A3: Código | B3: Descrição | C3: Valor de Aquisição (R$) | D3: Depreciação (R$/h) | E3: Oportunidade de Capital (R$/h) | F3: Seguros e Impostos (R$/h) | G3: Manutenção (R$/h) | H3: Operação (R$/h) | I3: Mão de Obra de Operação (R$/h) | J3: Custo Produtivo (R$/h) | K3: Custo Improdutivo (R$/h)
A4: E9001 | B4: Conjunto vibratório para tubos de concreto com encaixe PB e 3 jogos de fôrmas - D = 0,60 m - 2,20 kW | C4: 73210.4926 | D4: 9.7614 | E4: 2.2585 | F4: 0 | G4: 7.321 | H4: 0 | I4: 0 | J4: 19.3409 | K4: 12.0199
A5: E9002 | B5: Conjunto vibratório para tubos de concreto com encaixe PB e 3 jogos de fôrmas - D = 0,80 m - 2,20 kW | C5: 95358.7141 | D5: 12.7145 | E5: 2.9418 | F5: 0 | G5: 9.5359 | H5: 0 | I5: 0 | J5: 25.1922 | K5: 15.6563
A6: E9003 | B6: Conjunto vibratório para tubos de concreto com encaixe PB e 3 jogos de fôrmas - D = 1,00 m - 2,20 kW | C6: 99812.8201 | D6: 13.3084 | E6: 3.0792 | F6: 0 | G6: 9.9813 | H6: 0 | I6: 0 | J6: 26.3689 | K6: 16.3876
A7: E9004 | B7: Conjunto vibratório para tubos de concreto com encaixe PB e 3 jogos de fôrmas - D = 1,20 m - 2,20 kW | C7: 125309.9806 | D7: 16.708 | E7: 3.8658 | F7: 0 | G7: 12.531 | H7: 0 | I7: 0 | J7: 33.1048 | K7: 20.5738
A8: E9005 | B8: Conjunto vibratório para tubos de concreto com encaixe PB e 3 jogos de fôrmas - D = 1,50 m - 2,20 kW | C8: 148200.258 | D8: 19.76 | E8: 4.572 | F8: 0 | G8: 14.82 | H8: 0 | I8: 0 | J8: 39.152 | K8: 24.332
A9: E9006 | B9: Equipamento para sondagem manual | C9: 4860.8069 | D9: 0.8263 | E9: 0.1799 | F9: 0 | G9: 0.4861 | H9: 0 | I9: 0 | J9: 1.4923 | K9: 1.0062
A10: E9007 | B10: Bomba de pistão triplex com capacidade de 7,80 m³/h (130 l/min) - 8,20 kW | C10: 161988.9578 | D10: 12.9591 | E10: 2.9984 | F10: 0 | G10: 11.3392 | H10: 8.7678 | I10: 0 | J10: 36.0645 | K10: 15.9575
A11: E9008 | B11: Transportador manual de tubos de concreto com capacidade de 1 t | C11: 1718.657 | D11: 1.5468 | E11: 0.106 | F11: 0 | G11: 0.8593 | H11: 0 | I11: 0 | J11: 2.5121 | K11: 1.6528
A12: E9009 | B12: Embarcação rebocadora - 268 kW | C12: 682645.8607 | D12: 8.8886 | E12: 3.9609 | F12: 0 | G12: 19.7525 | H12: 286.5574 | I12: 137.4867 | J12: 456.6461 | K12: 150.3362
A13: E9010 | B13: Balança plataforma digital à bateria, com mesa de 75 x 75 cm e capacidade de 500 kg | C13: 4937.6883 | D13: 0.7407 | E13: 0.1016 | F13: 0 | G13: 0.4115 | H13: 0 | I13: 0 | J13: 1.2538 | K13: 0.8423
A14: E9011 | B14: Carro manual modelo plataforma de 200 x 80 cm com capacidade de 800 kg | C14: 1897.7304 | D14: 0.3416 | E14: 0.0703 | F14: 0 | G14: 0.1898 | H14: 0 | I14: 0 | J14: 0.6017 | K14: 0.4119
A15: E9014 | B15: Deflectômetro de impacto (FWD) instalado em picape com reboque e faixa de carga de 7 a 120 kN - 147 kW | C15: 2261753.223 | D15: 180.9403 | E15: 41.8651 | F15: 0 | G15: 113.0877 | H15: 0 | I15: 40.227 | J15: 376.1201 | K15: 263.0324
A16: E9015 | B16: Elevador de obra com capacidade de 1.000 kg - 9 kW | C16: 67946.8469 | D16: 5.4357 | E16: 1.2577 | F16: 0 | G16: 4.7563 | H16: 0 | I16: 29.972 | J16: 41.4217 | K16: 36.6654
A17: E9016 | B17: Usina misturadora móvel de reciclagem a frio com sistema de espuma de asfalto - 129,40 kW | C17: 9896496.111 | D17: 577.2956 | E17: 178.0957 | F17: 0 | G17: 742.2372 | H17: 101.9496 | I17: 44.5974 | J17: 1644.1755 | K17: 799.9887
A18: E9017 | B18: Escavadeira hidráulica sobre esteira com capacidade de 0,4 m³ - 64 kW | C18: 723352.3905 | D18: 50.6347 | E18: 13.3893 | F18: 0 | G18: 50.6347 | H18: 46.8216 | I18: 37.1225 | J18: 198.6028 | K18: 101.1465
A19: E9020 | B19: Recicladora a frio - 455 kW | C19: 5333929.484 | D19: 311.1459 | E19: 95.9885 | F19: 0 | G19: 444.4941 | H19: 512.1116 | I19: 44.5974 | J19: 1408.3375 | K19: 451.7318
A20: E9021 | B20: Grupo gerador - 456 kVA | C20: 356675.4086 | D20: 17.8338 | E20: 6.2877 | F20: 0 | G20: 12.7384 | H20: 390.2741 | I20: 0 | J20: 427.134 | K20: 24.1215
A21: E9022 | B21: Pórtico metálico rolante com capacidade de 25 t - 30 kW | C21: 815642.4833 | D21: 36.7039 | E21: 13.8394 | F21: 0 | G21: 28.5475 | H21: 0 | I21: 29.972 | J21: 109.0628 | K21: 80.5153
A22: E9023 | B22: Guindaste móvel sobre esteiras com dragline com capacidade de 1,9 a 2,3 m³ - 270 kW | C22: 4047853.389 | D22: 141.6749 | E22: 68.682 | F22: 0 | G22: 202.3927 | H22: 75.9726 | I22: 44.5974 | J22: 533.3196 | K22: 254.9543
A23: E9024 | B23: Misturador de nata cimento - 1,50 kW | C23: 9536.2344 | D23: 0.7629 | E23: 0.1765 | F23: 0 | G23: 0.6675 | H23: 0 | I23: 29.972 | J23: 31.5789 | K23: 30.9114
A24: E9025 | B24: Conjunto bomba e macaco hidráulico para protensão com capacidade de 7.000 kN - 15 kW | C24: 105267.3732 | D24: 6.0153 | E24: 1.8557 | F24: 0 | G24: 6.0153 | H24: 0 | I24: 44.5974 | J24: 58.4837 | K24: 52.4684
A25: E9026 | B25: Bomba para injeção de nata de cimento com capacidade de 2 MPa - 2,20 kW | C25: 33283.5601 | D25: 2.6627 | E25: 0.6161 | F25: 0 | G25: 2.3298 | H25: 0 | I25: 0 | J25: 5.6086 | K25: 3.2788
A26: E9028 | B26: Bomba de alta pressão para hidrojateamento com capacidade de 18 MPa - 5,20 kW | C26: 5665.2629 | D26: 0.4532 | E26: 0.1049 | F26: 0 | G26: 0.5099 | H26: 10.1032 | I26: 29.972 | J26: 41.1432 | K26: 30.5301
A27: E9029 | B27: Conjunto bomba e macaco hidráulico para protensão com capacidade de 8.000 kN - 20 kW | C27: 133859.3485 | D27: 7.6491 | E27: 2.3597 | F27: 0 | G27: 7.6491 | H27: 0 | I27: 44.5974 | J27: 62.2553 | K27: 54.6062
A28: E9030 | B28: Bomba de protensão com leitura digital para tensionamento de estais - 3 kW | C28: 14699.7557 | D28: 0.84 | E28: 0.2591 | F28: 0 | G28: 0.84 | H28: 0 | I28: 0 | J28: 1.9391 | K28: 1.0991
A29: E9031 | B29: Elevador de cremalheira com cabine simples, com capacidade de 1.500 kg e altura de até 100 m - 15 kW | C29: 339818.5521 | D29: 27.1855 | E29: 6.29 | F29: 0 | G29: 23.7873 | H29: 0 | I29: 29.972 | J29: 87.2348 | K29: 63.4475
A30: E9032 | B30: Equipamento para regulagem final de estais com até 37 cordoalhas - D = 15,7 mm - 20 kW | C30: 78730.9373 | D30: 4.4989 | E30: 1.3879 | F30: 0 | G30: 4.4989 | H30: 0 | I30: 44.5974 | J30: 54.9831 | K30: 50.4842
A31: E9033 | B31: Equipamento para regulagem final de estais de 38 a 55 cordoalhas - D = 15,7 mm - 30 kW | C31: 112454.9938 | D31: 6.426 | E31: 1.9824 | F31: 0 | G31: 6.426 | H31: 0 | I31: 44.5974 | J31: 59.4318 | K31: 53.0058
A32: E9034 | B32: Equipamento para regulagem final de estais de 56 a 73 cordoalhas - D = 15,7 mm - 40 kW | C32: 168629.6222 | D32: 9.636 | E32: 2.9727 | F32: 0 | G32: 9.636 | H32: 0 | I32: 44.5974 | J32: 66.8421 | K32: 57.2061
A33: E9035 | B33: Equipamento para regulagem final de estais de 74 a 91 cordoalhas - D = 15,7 mm - 50 kW | C33: 224805.1677 | D33: 12.846 | E33: 3.963 | F33: 0 | G33: 12.846 | H33: 0 | I33: 44.5974 | J33: 74.2524 | K33: 61.4064
A34: E9036 | B34: Grua fixa para alturas de 60 a 102 m, com alcance de 60 m com capacidade de 1.500 kg na ponta da lança - 37 kW | C34: 3746433.889 | D34: 187.3217 | E34: 66.0443 | F34: 0 | G34: 214.0819 | H34: 0 | I34: 44.5974 | J34: 512.0453 | K34: 297.9634
A35: E9038 | B35: Macaco hidráulico monocordoalha para tensionamento de estais - 3 kW | C35: 18389.4739 | D35: 1.0508 | E35: 0.3242 | F35: 0 | G35: 1.0508 | H35: 0 | I35: 44.5974 | J35: 47.0232 | K35: 45.9724
A36: E9039 | B36: Máquina de solda por termofusão para tubos PEAD com gerador de 4 kW | C36: 115671.9834 | D36: 6.6098 | E36: 2.0391 | F36: 0 | G36: 6.6098 | H36: 4.277 | I36: 44.5974 | J36: 64.1331 | K36: 53.2463
A37: E9040 | B37: Serra mármore - 1,45 kW | C37: 489.7852 | D37: 0.0441 | E37: 0.0091 | F37: 0 | G37: 0.0245 | H37: 0 | I37: 0 | J37: 0.0777 | K37: 0.0532
A38: E9042 | B38: Trator sobre esteiras com lâmina - 97 kW | C38: 1335319.56 | D38: 51.9291 | E38: 22.8859 | F38: 0 | G38: 74.1844 | H38: 76.4228 | I38: 37.1225 | J38: 262.5447 | K38: 111.9375
A39: E9043 | B39: Embarcação de alumínio com comprimento de 6 m e motor de popa - 18,60 kW | C39: 32867.0131 | D39: 0.5135 | E39: 0.1936 | F39: 0 | G39: 0.5706 | H39: 41.3009 | I39: 42.091 | J39: 84.6696 | K39: 42.7981
A40: E9044 | B40: Central de concreto com capacidade de 150 m³/h - dosadora e misturadora | C40: 1887015.918 | D40: 107.8295 | E40: 33.2654 | F40: 0 | G40: 94.3508 | H40: 0 | I40: 44.5974 | J40: 280.0431 | K40: 185.6923
A41: E9045 | B41: Conjunto bomba e macaco hidráulico para elevação com capacidade de 496 kN | C41: 68446.4822 | D41: 5.4757 | E41: 1.2669 | F41: 0 | G41: 5.4757 | H41: 6.395 | I41: 44.5974 | J41: 63.2107 | K41: 51.34
A42: E9046 | B42: Conjunto bomba e macaco hidráulico para elevação com capacidade de 929 kN | C42: 86546.1531 | D42: 6.9237 | E42: 1.602 | F42: 0 | G42: 6.9237 | H42: 6.395 | I42: 44.5974 | J42: 66.4418 | K42: 53.1231
A43: E9047 | B43: Conjunto bomba e macaco hidráulico para elevação com capacidade de 1.390 kN | C43: 118000.0089 | D43: 9.44 | E43: 2.1842 | F43: 0 | G43: 9.44 | H43: 6.395 | I43: 44.5974 | J43: 72.0566 | K43: 56.2216
A44: E9048 | B44: Conjunto bomba e macaco hidráulico para elevação com capacidade de 1.859 kN | C44: 136603.3333 | D44: 10.9283 | E44: 2.5285 | F44: 0 | G44: 10.9283 | H44: 6.395 | I44: 44.5974 | J44: 75.3775 | K44: 58.0542
A45: E9049 | B45: Bomba de alta pressão para hidrojateamento com capacidade de 250 MPa - 72 kW | C45: 713973.1252 | D45: 57.1179 | E45: 13.2156 | F45: 0 | G45: 64.2576 | H45: 60.7781 | I45: 29.972 | J45: 225.3412 | K45: 100.3055
A46: E9050 | B46: Guindaste móvel sobre pneus com 2 eixos com capacidade de 18 t - 97 kW | C46: 3351726.688 | D46: 167.5863 | E46: 59.0862 | F46: 0 | G46: 215.4681 | H46: 27.2939 | I46: 40.227 | J46: 509.6615 | K46: 266.8995
A47: E9051 | B47: Máquina levantadora e posicionadora de via - 7,40 kW | C47: 1044969.095 | D47: 83.5975 | E47: 19.3424 | F47: 0 | G47: 73.1478 | H47: 11.5021 | I47: 29.972 | J47: 217.5618 | K47: 132.9119
A48: E9052 | B48: Empilhadeira a diesel com capacidade de 10 t - 82 kW | C48: 783637.4451 | D48: 62.691 | E48: 14.5051 | F48: 0 | G48: 54.8546 | H48: 69.2195 | I48: 29.972 | J48: 231.2422 | K48: 107.1681
A49: E9053 | B49: Perfuratriz hidráulica montada em flutuante - 32 kW | C49: 539491.6344 | D49: 16.8591 | E49: 3.4674 | F49: 0 | G49: 14.9859 | H49: 18.0083 | I49: 36.785 | J49: 90.1057 | K49: 57.1115
A50: E9054 | B50: Equipamento sobre forma-trilho para execução e acabamento de pavimento de concreto - 13,40 kW | C50: 1743737.672 | D50: 139.499 | E50: 32.2766 | F50: 0 | G50: 87.1869 | H50: 20.8281 | I50: 29.972 | J50: 309.7626 | K50: 201.7476
A51: E9055 | B51: Guincho pneumático com capacidade de 2,5 t | C51: 535495.4635 | D51: 48.1946 | E51: 9.912 | F51: 0 | G51: 26.7748 | H51: 0 | I51: 0 | J51: 84.8814 | K51: 58.1066
A52: E9056 | B52: Plataforma autoelevatória de 12 x 24 m com capacidade de 150 t | C52: 834256.4703 | D52: 6.5176 | E52: 4.6916 | F52: 0 | G52: 14.4836 | H52: 0 | I52: 113.3429 | J52: 139.0357 | K52: 124.5521
A53: E9057 | B53: Batelão sem propulsão com capacidade de 66 m³ | C53: 223092.8147 | D53: 1.7429 | E53: 1.2546 | F53: 0 | G53: 2.9049 | H53: 0 | I53: 29.1508 | J53: 35.0532 | K53: 32.1483
A54: E9058 | B54: Plataforma flutuante de 12 x 24 x 1,8 m com capacidade de 150 t | C54: 667232.654 | D54: 5.2128 | E54: 3.7523 | F54: 0 | G54: 8.6879 | H54: 0 | I54: 29.1508 | J54: 46.8038 | K54: 38.1159
A55: E9059 | B55: Plataforma autoelevatória de 12 x 24 m montada na obra com capacidade de 150 t | C55: 834256.4703 | D55: 6.5176 | E55: 4.6916 | F55: 0 | G55: 14.4836 | H55: 0 | I55: 113.3429 | J55: 139.0357 | K55: 124.5521
A56: E9060 | B56: Perfuratriz pneumática rotopercussiva montada em flutuante com pressão de 0,70 MPa e capacidade de 2.500 gpm | C56: 39222.837 | D56: 1.2257 | E56: 0.2521 | F56: 0 | G56: 1.0895 | H56: 0 | I56: 73.57 | J56: 76.1373 | K56: 75.0478
A57: E9061 | B57: Lixadeira elétrica manual angular - 2 kW | C57: 1520.8694 | D57: 0.1217 | E57: 0.0282 | F57: 0 | G57: 0.076 | H57: 0 | I57: 0 | J57: 0.2259 | K57: 0.1499
A58: E9062 | B58: Soprador de ar quente manual - 1,60 kW | C58: 5491.6013 | D58: 0.7322 | E58: 0.1129 | F58: 0 | G58: 0.4576 | H58: 0 | I58: 0 | J58: 1.3027 | K58: 0.8451
A59: E9063 | B59: Equipamento de estabilização dinâmica da via - 300 kW | C59: 28415688.86 | D59: 1136.6276 | E59: 482.1432 | F59: 0 | G59: 1136.6276 | H59: 202.5936 | I59: 44.5974 | J59: 3002.5894 | K59: 1663.3682
A60: E9064 | B60: Transportador manual gerica com capacidade de 180 l | C60: 1110.1394 | D60: 1.1101 | E60: 0.0685 | F60: 0 | G60: 0.5551 | H60: 0 | I60: 0 | J60: 1.7337 | K60: 1.1786
A61: E9065 | B61: Carro controle ferroviário - 186 kW | C61: 30499999.95 | D61: 1220 | E61: 517.5087 | F61: 0 | G61: 1067.5 | H61: 125.608 | I61: 44.5974 | J61: 2975.2141 | K61: 1782.1061
A62: E9066 | B62: Grupo gerador - 14 kVA | C62: 70581.608 | D62: 3.5291 | E62: 1.2443 | F62: 0 | G62: 2.5208 | H62: 11.7617 | I62: 0 | J62: 19.0559 | K62: 4.7734
A63: E9067 | B63: Veículo ferroviário para capina química com capacidade de 12.000 l - 115 kW | C63: 1707307.675 | D63: 68.2923 | E63: 28.9687 | F63: 0 | G63: 42.6827 | H63: 77.6609 | I63: 29.972 | J63: 247.5766 | K63: 127.233
A64: E9068 | B64: Perfuratriz hidráulica rotopercussiva para CCPH - 123 kW | C64: 5429872.771 | D64: 361.9915 | E64: 97.7151 | F64: 0 | G64: 361.9915 | H64: 103.8292 | I64: 37.1225 | J64: 962.6498 | K64: 496.8291
A65: E9069 | B65: Vibrador de imersão para concreto - 4,10 kW | C65: 4145.9703 | D65: 0.6634 | E65: 0.1535 | F65: 0 | G65: 0.4146 | H65: 7.966 | I65: 0 | J65: 9.1975 | K65: 0.8169
A66: E9070 | B66: Ponte rolante com capacidade de 5 t e vão de até 15 m - 10 kW | C66: 418660.8086 | D66: 16.7464 | E66: 7.1036 | F66: 0 | G66: 10.4665 | H66: 0 | I66: 29.972 | J66: 64.2885 | K66: 53.822
A67: E9071 | B67: Transportador manual carrinho de mão com capacidade de 80 l | C67: 481.3458 | D67: 0.4813 | E67: 0.0297 | F67: 0 | G67: 0.2407 | H67: 0 | I67: 0 | J67: 0.7517 | K67: 0.511
A68: E9072 | B68: Martelo hidráulico vibratório com unidade hidráulica - 486 kW | C68: 3280905.373 | D68: 218.727 | E68: 59.0426 | F68: 0 | G68: 191.3861 | H68: 410.252 | I68: 44.5974 | J68: 924.0051 | K68: 322.367
A69: E9073 | B69: Bomba de concreto rebocável com capacidade de 30 m³/h - 74 kW | C69: 486664.2086 | D69: 38.9331 | E69: 9.0082 | F69: 0 | G69: 38.9331 | H69: 79.1241 | I69: 29.972 | J69: 195.9705 | K69: 77.9133
A70: E9074 | B70: Tanque de estocagem de asfalto com agitadores de 60.000 l | C70: 930665.0647 | D70: 38.7777 | E70: 13.4583 | F70: 0 | G70: 24.2361 | H70: 0 | I70: 0 | J70: 76.4721 | K70: 52.236
A71: E9075 | B71: Trado cavadeira de 12" | C71: 156.8338 | D71: 0.0784 | E71: 0.0073 | F71: 0 | G71: 0.0392 | H71: 0 | I71: 0 | J71: 0.1249 | K71: 0.0857
A72: E9076 | B72: Equipamento para pintura eletrostática com cabine dupla de 7,00 kW e estufa de 80.000 kCal | C72: 162203.663 | D72: 10.4274 | E72: 2.8594 | F72: 0 | G72: 5.793 | H72: 0 | I72: 29.972 | J72: 49.0518 | K72: 43.2588
A73: E9077 | B73: Perfuratriz de circulação reversa tipo Wirth ou similar com unidade hidráulica (Power Pack) - 273 kW | C73: 4706249.23 | D73: 313.7499 | E73: 84.6929 | F73: 0 | G73: 313.7499 | H73: 153.6335 | I73: 37.1225 | J73: 902.9487 | K73: 435.5653
A74: E9078 | B74: Treliça lançadeira com capacidade de carga de 100 a 120 t e vão máximo de 45 m - 110 kW | C74: 3551592.186 | D74: 94.7091 | E74: 58.4355 | F74: 0 | G74: 59.1932 | H74: 0 | I74: 44.5974 | J74: 256.9352 | K74: 197.742
A75: E9079 | B75: Bomba submersível com capacidade de 360 m³/h - 23 kW | C75: 179408.6629 | D75: 14.3527 | E75: 3.3209 | F75: 0 | G75: 12.5586 | H75: 0 | I75: 0 | J75: 30.2322 | K75: 17.6736
A76: E9080 | B76: Carrelone com capacidade máxima de 70 t | C76: 1840783.921 | D76: 82.8353 | E76: 31.2335 | F76: 0 | G76: 46.0196 | H76: 0 | I76: 29.972 | J76: 190.0604 | K76: 144.0408
A77: E9081 | B77: Fischietti simples com capacidade de 70 t | C77: 108982.3952 | D77: 4.9042 | E77: 1.8492 | F77: 0 | G77: 2.7246 | H77: 0 | I77: 29.972 | J77: 39.45 | K77: 36.7254
A78: E9083 | B78: Vagão fechado FLT com capacidade de 99 t | C78: 845000 | D78: 13.3792 | E78: 13.4686 | F78: 0 | G78: 7.0417 | H78: 0 | I78: 0 | J78: 33.8895 | K78: 26.8478
A79: E9084 | B79: Vagão tanque convencional TCT com capacidade de 97 t e 103.000 l | C79: 1230000 | D79: 19.475 | E79: 19.6052 | F79: 0 | G79: 10.25 | H79: 0 | I79: 0 | J79: 49.3302 | K79: 39.0802
A80: E9085 | B80: Vagão gôndola GDE com capacidade de 93,5 t / 29 m³ | C80: 620000 | D80: 9.8167 | E80: 9.8823 | F80: 0 | G80: 5.1667 | H80: 0 | I80: 0 | J80: 24.8657 | K80: 19.699
A81: E9086 | B81: Bomba de concreto rebocável com capacidade de 41 m³/h - 74 kW | C81: 546453.731 | D81: 43.7163 | E81: 10.1149 | F81: 0 | G81: 43.7163 | H81: 79.1241 | I81: 29.972 | J81: 206.6436 | K81: 83.8032
A82: E9089 | B82: Roçadeira costal - 1,40 kW | C82: 3253.5865 | D82: 0.488 | E82: 0.0669 | F82: 0 | G82: 0.3796 | H82: 8.5488 | I82: 0 | J82: 9.4833 | K82: 0.5549
A83: E9093 | B83: Veículo leve - 53 kW (sem motorista) | C83: 77445.5823 | D83: 4.6467 | E83: 1.4335 | F83: 0.5808 | G83: 4.6467 | H83: 26.4792 | I83: 0 | J83: 37.7869 | K83: 6.661
A84: E9094 | B84: Guindaste móvel sobre pneus com 6 eixos com capacidade máxima de 350 t - 450 kW | C84: 20433370 | D84: 1021.6685 | E84: 360.2111 | F84: 145.9526 | G84: 1313.5738 | H84: 126.621 | I84: 40.227 | J84: 3008.254 | K84: 1568.0592
A85: E9095 | B85: Guindaste móvel sobre pneus com 8 eixos com capacidade máxima de 500 t - 500 kW | C85: 34395254.74 | D85: 1719.7627 | E85: 606.3392 | F85: 245.6804 | G85: 2211.1235 | H85: 140.69 | I85: 40.227 | J85: 4963.8228 | K85: 2612.0093
A86: E9096 | B86: Minicarregadeira de pneus - 45,50 kW | C86: 407878.6912 | D86: 28.5515 | E86: 7.5498 | F86: 0 | G86: 28.5515 | H86: 64.014 | I86: 37.1225 | J86: 165.7893 | K86: 73.2238
A87: E9101 | B87: Removedora de faixas de sinalização viária - 9,69 kW | C87: 51098.062 | D87: 4.0878 | E87: 0.9458 | F87: 0 | G87: 3.5769 | H87: 18.8269 | I87: 0 | J87: 27.4374 | K87: 5.0336
A88: E9102 | B88: Extrusora para sarjeta de concreto - 10,44 kW | C88: 82325.6865 | D88: 6.5861 | E88: 1.5238 | F88: 0 | G88: 5.7628 | H88: 8.8128 | I88: 29.972 | J88: 52.6575 | K88: 38.0819
A89: E9103 | B89: Extrusora para meio-fio de concreto - 10,44 kW | C89: 67882.4865 | D89: 5.4306 | E89: 1.2565 | F89: 0 | G89: 4.7518 | H89: 8.8128 | I89: 29.972 | J89: 50.2237 | K89: 36.6591
A90: E9105 | B90: Embarcação empurradora multipropósito - 2 x 186 kW | C90: 5497137.858 | D90: 71.5773 | E90: 31.8956 | F90: 0 | G90: 159.0607 | H90: 397.7588 | I90: 137.4867 | J90: 797.7791 | K90: 240.9596
A91: E9106 | B91: Balsa de convés com capacidade de 200 t | C91: 1910080.724 | D91: 14.9225 | E91: 10.7417 | F91: 0 | G91: 24.8708 | H91: 0 | I91: 29.1508 | J91: 79.6858 | K91: 54.815
A92: E9107 | B92: Compactador manual com soquete vibratório - 2,24 kW | C92: 11279.2123 | D92: 0.7519 | E92: 0.203 | F92: 0 | G92: 0.7519 | H92: 4.3521 | I92: 0 | J92: 6.0589 | K92: 0.9549
A93: E9108 | B93: Soldadora de trilho por caldeamento na via - 400 kW | C93: 10000000 | D93: 160 | E93: 160.42 | F93: 0 | G93: 200 | H93: 270.1248 | I93: 89.1948 | J93: 879.7396 | K93: 409.6148
A94: E9110 | B94: Escavadeira hidráulica sobre esteiras para rocha com caçamba com capacidade de 1,56 m³ - 118 kW | C94: 1199381.967 | D94: 119.9382 | E94: 23.7863 | F94: 0 | G94: 119.9382 | H94: 126.1708 | I94: 37.1225 | J94: 426.956 | K94: 180.847
A95: E9111 | B95: Jateador abrasivo úmido com capacidade de 350 kg de abrasivo | C95: 325466.1454 | D95: 29.292 | E95: 6.0244 | F95: 0 | G95: 29.292 | H95: 0 | I95: 29.972 | J95: 94.5804 | K95: 65.2884
A96: E9112 | B96: Sinalizador direcional móvel com sistema fotovoltaico de energia e montado em chassi sobre pneus | C96: 23024.9004 | D96: 2.0722 | E96: 0.4262 | F96: 0 | G96: 1.1512 | H96: 0 | I96: 0 | J96: 3.6496 | K96: 2.4984
A97: E9113 | B97: Painel de Mensagem Variável - PMV móvel, com sistema fotovoltaico de energia e montado em chassi sobre pneus | C97: 175734.2086 | D97: 15.8161 | E97: 3.2528 | F97: 0 | G97: 8.7867 | H97: 0 | I97: 0 | J97: 27.8556 | K97: 19.0689
A98: E9116 | B98: Semáforo móvel com 3 lentes e bateria - D = 200 mm | C98: 8126.9108 | D98: 0.7314 | E98: 0.1504 | F98: 0 | G98: 0.4063 | H98: 0 | I98: 0 | J98: 1.2881 | K98: 0.8818
A99: E9117 | B99: Carregadeira de pneus para rocha com capacidade de 2,50 m³ - 105 kW | C99: 1005537.172 | D99: 100.5537 | E99: 19.942 | F99: 0 | G99: 100.5537 | H99: 112.2706 | I99: 37.1225 | J99: 370.4425 | K99: 157.6182
A100: E9118 | B100: Cortadora de pavimento com disco diamantado de 450 a 1.500 mm - 55,40 kW | C100: 488602.3661 | D100: 39.0882 | E100: 9.044 | F100: 0 | G100: 39.0882 | H100: 46.7654 | I100: 29.972 | J100: 163.9578 | K100: 78.1042
A101: E9119 | B101: Minicarregadeira sobre pneus com valetadeira - 55,40 kW | C101: 801293.7616 | D101: 56.0906 | E101: 14.8319 | F101: 0 | G101: 56.0906 | H101: 77.9423 | I101: 37.1225 | J101: 242.0779 | K101: 108.045
A102: E9120 | B102: Equipamento de cravação sobre esteira para geodreno com haste para profundidade de até 20 m - 258 kW | C102: 2586021.689 | D102: 181.0215 | E102: 47.8673 | F102: 0 | G102: 181.0215 | H102: 188.7497 | I102: 29.972 | J102: 628.632 | K102: 258.8608
A103: E9122 | B103: Perfuratriz tipo Bottom Feed para coluna de brita - 194 kW | C103: 7004372.185 | D103: 466.9581 | E103: 126.0495 | F103: 0 | G103: 466.9581 | H103: 109.1754 | I103: 37.1225 | J103: 1206.2636 | K103: 630.1301
A104: E9125 | B104: Veículo tipo van furgão com capacidade de 1,38 t - 100 kW | C104: 231130.9115 | D104: 11.5565 | E104: 4.1594 | F104: 1.6853 | G104: 11.5565 | H104: 28.138 | I104: 30.8852 | J104: 87.9809 | K104: 48.2864
A105: E9126 | B105: Draga backhoe com capacidade de 7 m³ - 1.000 kW | C105: 187404795.6 | D105: 2108.304 | E105: 1517.6275 | F105: 0 | G105: 4685.1199 | H105: 1069.244 | I105: 64.8635 | J105: 9445.1589 | K105: 3690.795
A106: E9127 | B106: Escavadeira hidráulica com martelo hidráulico de 520 kg - 75 kW | C106: 902386.7173 | D106: 103.1299 | E106: 17.8963 | F106: 0 | G106: 128.9124 | H106: 54.8691 | I106: 37.1225 | J106: 341.9302 | K106: 158.1487
A107: E9134 | B107: Miniônibus com capacidade para 30 passageiros - 111 kW | C107: 681480.4069 | D107: 29.2063 | E107: 12.0135 | F107: 4.8677 | G107: 43.8095 | H107: 118.6861 | I107: 36.6693 | J107: 245.2524 | K107: 82.7568
A108: E9141 | B108: Rebarbador hidráulico com bomba manual com capacidade de força de 9.000 kgf | C108: 96017.581 | D108: 7.6814 | E108: 1.7773 | F108: 0 | G108: 4.8009 | H108: 0 | I108: 0 | J108: 14.2596 | K108: 9.4587
A109: E9144 | B109: Pórtico metálico rolante com talha com capacidade de 5 t - 10 kW | C109: 306964.479 | D109: 12.2786 | E109: 5.2084 | F109: 0 | G109: 7.6741 | H109: 0 | I109: 29.972 | J109: 55.1331 | K109: 47.459
A110: E9148 | B110: Macaco de protensão de fios com bomba - 3,72 kW | C110: 100947.5327 | D110: 5.7684 | E110: 1.7796 | F110: 0 | G110: 5.7684 | H110: 0 | I110: 44.5974 | J110: 57.9138 | K110: 52.1454
A111: E9149 | B111: Máquina de aplicação e extração de grampo elástico tipo Pandrol - 6,70 kW | C111: 265525.5525 | D111: 21.242 | E111: 4.9149 | F111: 0 | G111: 21.242 | H111: 10.4141 | I111: 0 | J111: 57.813 | K111: 26.1569
A112: E9151 | B112: Britador de mandíbulas móvel sobre esteiras, sem peneira, com capacidade de 140 m³/h - 170 kW | C112: 2982514.253 | D112: 170.4294 | E112: 52.5775 | F112: 0 | G112: 170.4294 | H112: 172.2046 | I112: 44.5974 | J112: 610.2383 | K112: 267.6043
A113: E9152 | B113: Ferramenta de fixação à pólvora de ação direta | C113: 1057.4972 | D113: 0.0899 | E113: 0.0196 | F113: 0 | G113: 0.0846 | H113: 0 | I113: 0 | J113: 0.1941 | K113: 0.1095
A114: E9153 | B114: Ferramenta de fixação à pólvora e sistema à pistão | C114: 1001.236 | D114: 0.0851 | E114: 0.0185 | F114: 0 | G114: 0.0801 | H114: 0 | I114: 0 | J114: 0.1837 | K114: 0.1036
A115: E9154 | B115: Equipamento para selagem com material asfáltico rebocável com capacidade de 370 l - 35 kW | C115: 459894.8739 | D115: 29.5647 | E115: 8.1073 | F115: 0 | G115: 9.8549 | H115: 29.5449 | I115: 29.972 | J115: 107.0438 | K115: 67.644
A116: E9155 | B116: Caldeira de asfalto rebocável com capacidade de 600 l - 5,20 kW | C116: 147502.3562 | D116: 9.4823 | E116: 2.6003 | F116: 0 | G116: 3.1608 | H116: 4.0969 | I116: 0 | J116: 19.3403 | K116: 12.0826
A117: E9156 | B117: Soprador de ar costal - 2,6 kW | C117: 2703.9832 | D117: 0.4326 | E117: 0.1001 | F117: 0 | G117: 0.3786 | H117: 5.0516 | I117: 0 | J117: 5.9629 | K117: 0.5327
A118: E9157 | B118: Locomotiva diesel-elétrica CC - bitola métrica - 2.237 kW | C118: 8737202.288 | D118: 139.7952 | E118: 140.1622 | F118: 0 | G118: 174.744 | H118: 1510.6729 | I118: 34.701 | J118: 2000.0753 | K118: 314.6584
A119: E9158 | B119: Locomotiva diesel-elétrica CC - bitola larga - 2.237 kW | C119: 9123489.3 | D119: 145.9758 | E119: 146.359 | F119: 0 | G119: 182.4698 | H119: 1510.6729 | I119: 34.701 | J119: 2020.1785 | K119: 327.0358
A120: E9159 | B120: Vagão plataforma PNE com capacidade de 82 t - bitola métrica | C120: 736000 | D120: 11.6533 | E120: 11.7312 | F120: 0 | G120: 6.1333 | H120: 0 | I120: 0 | J120: 29.5178 | K120: 23.3845
A121: E9160 | B121: Vagão plataforma PNT com capacidade de 98 t - bitola larga | C121: 960000 | D121: 15.2 | E121: 15.3016 | F121: 0 | G121: 8 | H121: 0 | I121: 0 | J121: 38.5016 | K121: 30.5016
A122: E9161 | B122: Vagão fechado com porta para carga e descarga de paletes FLD com capacidade de 64 t - bitola métrica | C122: 730000 | D122: 11.5583 | E122: 11.6356 | F122: 0 | G122: 6.0833 | H122: 0 | I122: 0 | J122: 29.2772 | K122: 23.1939
A123: E9162 | B123: Vagão fechado com porta para carga e descarga de paletes FLT com capacidade de 99 t - bitola larga | C123: 845000 | D123: 13.3792 | E123: 13.4686 | F123: 0 | G123: 7.0417 | H123: 0 | I123: 0 | J123: 33.8895 | K123: 26.8478
A124: E9163 | B124: Vagão hopper aberto com descarga automática HNE com capacidade de 45 m³ - bitola métrica | C124: 880000 | D124: 13.9333 | E124: 14.0265 | F124: 0 | G124: 7.3333 | H124: 0 | I124: 0 | J124: 35.2931 | K124: 27.9598
A125: E9164 | B125: Vagão hopper aberto com descarga automática HNT com capacidade de 63 m³ - bitola larga | C125: 1065641.667 | D125: 16.8727 | E125: 16.9854 | F125: 0 | G125: 8.8803 | H125: 0 | I125: 0 | J125: 42.7384 | K125: 33.8581
A126: E9167 | B126: Equipamento para carga e descarga de TLS de até 250 m - 90 kW | C126: 2827375.564 | D126: 45.238 | E126: 45.3568 | F126: 0 | G126: 56.5475 | H126: 60.7781 | I126: 44.5974 | J126: 252.5178 | K126: 135.1922
A127: E9168 | B127: Carregadeira de pneus com implemento de garfo - 195 kW | C127: 1551286.759 | D127: 108.5901 | E127: 28.7143 | F127: 0 | G127: 108.5901 | H127: 87.7906 | I127: 37.1225 | J127: 370.8076 | K127: 174.4269
A128: E9200 | B128: Carregadeira de pneus para rocha com capacidade de 2,50 m³ - 105 kW com periculosidade | C128: 1005537.172 | D128: 100.5537 | E128: 19.942 | F128: 0 | G128: 100.5537 | H128: 112.2706 | I128: 46.0851 | J128: 379.4051 | K128: 166.5808
A129: E9203 | B129: Escavadeira hidráulica com martelo hidráulico de 1.700 kg - 103 kW com periculosidade | C129: 2089765.42 | D129: 238.8303 | E129: 41.4445 | F129: 0 | G129: 298.5379 | H129: 75.3536 | I129: 46.0851 | J129: 700.2514 | K129: 326.3599
A130: E9204 | B130: Perfuratriz sobre esteiras - 145 kW com periculosidade | C130: 2040039.729 | D130: 136.0026 | E130: 36.7122 | F130: 0 | G130: 136.0026 | H130: 122.4003 | I130: 46.0851 | J130: 477.2028 | K130: 218.7999
A131: E9205 | B131: Equipamento de corte a plasma CNC - 12.000 x 5.500 mm - 19,5 kW | C131: 1089893.373 | D131: 87.1915 | E131: 20.1739 | F131: 0 | G131: 65.3936 | H131: 0 | I131: 0 | J131: 172.759 | K131: 107.3654
A132: E9206 | B132: Equipamento de solda MIG automática com acessórios - 14,6 kVA | C132: 86464.7231 | D132: 6.9172 | E132: 1.6005 | F132: 0 | G132: 6.9172 | H132: 0 | I132: 0 | J132: 15.4349 | K132: 8.5177
A133: E9207 | B133: Máquina de solda elétrica retificadora 425 A - 18,70 kW | C133: 7244.7645 | D133: 0.5796 | E133: 0.1341 | F133: 0 | G133: 0.5796 | H133: 0 | I133: 0 | J133: 1.2933 | K133: 0.7137
A134: E9209 | B134: Martelete perfurador/rompedor a ar comprimido de 25 kg para rocha, com insalubridade, com capacidade de 2.040 gpm | C134: 30576.2582 | D134: 2.4461 | E134: 0.566 | F134: 0 | G134: 2.4461 | H134: 0 | I134: 37.9894 | J134: 43.4476 | K134: 41.0015
A135: E9213 | B135: Jumbo eletro-hidráulico com 3 braços - 155 kW/237 kW com periculosidade | C135: 13587453.66 | D135: 905.8302 | E135: 244.5176 | F135: 0 | G135: 1132.2878 | H135: 183.1784 | I135: 55.8286 | J135: 2521.6426 | K135: 1206.1764
A136: E9231 | B136: Maçarico lança-chamas a gás liquefeito de petróleo (GLP) | C136: 89.2341 | D136: 0.0071 | E136: 0.0017 | F136: 0 | G136: 0.0071 | H136: 0 | I136: 0 | J136: 0.0159 | K136: 0.0088
A137: E9242 | B137: Estação transmissora de superfície para televisionamento | C137: 14951.598 | D137: 0.9612 | E137: 0.2636 | F137: 0 | G137: 0.534 | H137: 0 | I137: 0 | J137: 1.7588 | K137: 1.2248
A138: E9243 | B138: Câmara hiperbárica com filtro, serpentina e reservatório de ar para mergulho raso - D = 1,80 m e H = 2,22 m | C138: 602138.6062 | D138: 10.5374 | E138: 9.7524 | F138: 0 | G138: 15.0535 | H138: 0 | I138: 58.7273 | J138: 94.0706 | K138: 79.0171
A139: E9244 | B139: Estação transmissora de superfície para comunicação sem fio | C139: 40168.574 | D139: 2.5823 | E139: 0.7081 | F139: 0 | G139: 1.4346 | H139: 0 | I139: 0 | J139: 4.725 | K139: 3.2904
A140: E9245 | B140: Estação transmissora de superfície para comunicação com fio | C140: 6732.4443 | D140: 0.4328 | E140: 0.1187 | F140: 0 | G140: 0.2404 | H140: 0 | I140: 0 | J140: 0.7919 | K140: 0.5515
A141: E9246 | B141: Painel de controle de ar com manômetros e pneufatômetros | C141: 12919.6854 | D141: 0.8306 | E141: 0.2278 | F141: 0 | G141: 0.4614 | H141: 0 | I141: 0 | J141: 1.5198 | K141: 1.0584
A142: E9247 | B142: Sistema de Sino aberto (sinete) para mergulho até 50 m - 33,50 kW | C142: 438386.2668 | D142: 11.6903 | E142: 7.2129 | F142: 0 | G142: 11.6903 | H142: 0 | I142: 58.7273 | J142: 89.3208 | K142: 77.6305
A143: E9248 | B143: Sistema de ar comprimido para mergulho até 30 m com pressão de trabalho de 1,4 MPa - 7,46 kW | C143: 52003.896 | D143: 3.4669 | E143: 0.9359 | F143: 0 | G143: 3.4669 | H143: 7.1369 | I143: 0 | J143: 15.0066 | K143: 4.4028
A144: E9249 | B144: Sistema de ar comprimido para mergulho até 50 m com pressão de trabalho de 1,7 MPa - 16,18 kW | C144: 81964.3503 | D144: 5.4643 | E144: 1.475 | F144: 0 | G144: 5.4643 | H144: 15.4793 | I144: 0 | J144: 27.8829 | K144: 6.9393
A145: E9251 | B145: Fonte de plasma para corte manual - 65A - 15 kW | C145: 32642.7746 | D145: 2.6114 | E145: 0.6042 | F145: 0 | G145: 2.6114 | H145: 0 | I145: 0 | J145: 5.827 | K145: 3.2156
A146: E9252 | B146: Serra de esquadria com braço telescópico - D = 250 mm (10") - 1,80 kW | C146: 4333.3271 | D146: 0.39 | E146: 0.0802 | F146: 0 | G146: 0.2167 | H146: 0 | I146: 0 | J146: 0.6869 | K146: 0.4702
A147: E9253 | B147: Rebordeadeira diâmetro máximo 3,00 m - 4,85 kW | C147: 67145.3441 | D147: 2.6858 | E147: 1.1393 | F147: 0 | G147: 2.3501 | H147: 0 | I147: 0 | J147: 6.1752 | K147: 3.8251
A148: E9254 | B148: Dobradeira viradeira manual comprimento máximo de dobra de até 2.000 mm | C148: 19477.33 | D148: 0.7791 | E148: 0.3305 | F148: 0 | G148: 0.6817 | H148: 0 | I148: 0 | J148: 1.7913 | K148: 1.1096
A149: E9255 | B149: Fonte de plasma para corte manual - 45A - 10 kW | C149: 21609.7746 | D149: 1.7288 | E149: 0.4 | F149: 0 | G149: 1.7288 | H149: 0 | I149: 0 | J149: 3.8576 | K149: 2.1288
A150: E9256 | B150: Equipamento para pintura com cal rebocável com dois bicos aplicadores e capacidade de 2.200 l | C150: 68351.938 | D150: 3.9058 | E150: 1.2049 | F150: 0 | G150: 3.9058 | H150: 0 | I150: 29.972 | J150: 38.9885 | K150: 35.0827
A151: E9259 | B151: Ventilador centrífugo média pressão com capacidade de 38 m³/min - 2,21 kW | C151: 17076.8221 | D151: 1.5369 | E151: 0.3161 | F151: 0 | G151: 1.0246 | H151: 0 | I151: 0 | J151: 2.8776 | K151: 1.853
A152: E9260 | B152: Detector de gases com bomba elétrica para espaço confinado | C152: 4279.4165 | D152: 0.3424 | E152: 0.0792 | F152: 0 | G152: 0.214 | H152: 0 | I152: 0 | J152: 0.6356 | K152: 0.4216
A153: E9261 | B153: Equipamento de pintura com pistola airless - 0,90 kW | C153: 2353.5006 | D153: 0.2118 | E153: 0.0436 | F153: 0 | G153: 0.1177 | H153: 0 | I153: 0 | J153: 0.3731 | K153: 0.2554
A154: E9262 | B154: Escova rotativa com cerdas de aço para tratamento de superfície - 0,91 kW | C154: 20558.9567 | D154: 1.6447 | E154: 0.3805 | F154: 0 | G154: 1.0279 | H154: 0 | I154: 29.972 | J154: 33.0251 | K154: 31.9972
A155: E9263 | B155: Tripé com guincho para espaço confinado | C155: 10050.4331 | D155: 0.804 | E155: 0.186 | F155: 0 | G155: 0.603 | H155: 0 | I155: 0 | J155: 1.593 | K155: 0.99
A156: E9264 | B156: Respirador purificador de ar motorizado | C156: 8868.3915 | D156: 0.7095 | E156: 0.1642 | F156: 0 | G156: 0.4434 | H156: 0 | I156: 0 | J156: 1.3171 | K156: 0.8737
A157: E9265 | B157: Respirador de adução de ar tipo linha de ar comprimido para jateamento | C157: 18103.3549 | D157: 1.4483 | E157: 0.3351 | F157: 0 | G157: 0.9052 | H157: 0 | I157: 0 | J157: 2.6886 | K157: 1.7834
A158: E9267 | B158: Exaustor centrífugo alta pressão com capacidade de 35 m³/min - 1,47 kW | C158: 5973.4461 | D158: 0.5376 | E158: 0.1106 | F158: 0 | G158: 0.3584 | H158: 0 | I158: 0 | J158: 1.0066 | K158: 0.6482
A159: E9501 | B159: Ventilador axial para ventilação forçada com velocidade de saída de 32,8 m/s - D = 1.000 mm - 30 kW | C159: 458540.7734 | D159: 41.2687 | E159: 8.4876 | F159: 0 | G159: 27.5124 | H159: 0 | I159: 0 | J159: 77.2687 | K159: 49.7563
A160: E9502 | B160: Bate-estaca de gravidade para 6 t - 119 kW | C160: 984189.9467 | D160: 56.2394 | E160: 17.3499 | F160: 0 | G160: 42.1796 | H160: 87.059 | I160: 37.1225 | J160: 239.9504 | K160: 110.7118
A161: E9503 | B161: Guilhotina hidráulica 16 x 6.100 mm - 30 kW | C161: 1333284.626 | D161: 53.3314 | E161: 22.6225 | F161: 0 | G161: 46.665 | H161: 0 | I161: 29.972 | J161: 152.5909 | K161: 105.9259
A162: E9505 | B162: Prensa dobradeira capacidade 320 t - comprimento até 3.100 mm - 30 kW | C162: 910797.0425 | D162: 36.4319 | E162: 15.4539 | F162: 0 | G162: 31.8779 | H162: 0 | I162: 29.972 | J162: 113.7357 | K162: 81.8578
A163: E9507 | B163: Plotadora de recorte com computador e programa computacional | C163: 95530.1353 | D163: 14.3295 | E163: 1.9647 | F163: 0 | G163: 9.553 | H163: 0 | I163: 0 | J163: 25.8472 | K163: 16.2942
A164: E9510 | B164: Ventilador centrífugo baixa pressão com capacidade de 58 m³/min - 3,68 kW | C164: 13993.3558 | D164: 1.2594 | E164: 0.259 | F164: 0 | G164: 0.8396 | H164: 0 | I164: 0 | J164: 2.358 | K164: 1.5184
A165: E9511 | B165: Carregadeira de pneus com capacidade de 3,40 m³ - 195 kW | C165: 2163083.405 | D165: 151.4158 | E165: 40.0387 | F165: 0 | G165: 151.4158 | H165: 87.7906 | I165: 37.1225 | J165: 467.7834 | K165: 228.577
A166: E9512 | B166: Veículo leve - 53 kW | C166: 77445.5823 | D166: 4.6467 | E166: 1.4335 | F166: 0.5808 | G166: 4.6467 | H166: 26.4792 | I166: 30.8852 | J166: 68.6721 | K166: 37.5462
A167: E9513 | B167: Compressor de ar portátil de 160,46 l/s (340 PCM) - 81 kW | C167: 319777.7553 | D167: 21.3185 | E167: 5.7547 | F167: 0 | G167: 21.3185 | H167: 77.4921 | I167: 0 | J167: 125.8838 | K167: 27.0732
A168: E9514 | B168: Distribuidor de agregados sobre pneus autopropelido - 130 kW | C168: 979211.4462 | D168: 55.9549 | E168: 17.2621 | F168: 0 | G168: 48.9606 | H168: 139.0017 | I168: 37.1225 | J168: 298.3018 | K168: 110.3395
A169: E9515 | B169: Escavadeira hidráulica sobre esteiras com caçamba com capacidade de 1,56 m³ - 118 kW | C169: 1199381.967 | D169: 83.9567 | E169: 22.2006 | F169: 0 | G169: 83.9567 | H169: 86.3274 | I169: 37.1225 | J169: 313.5639 | K169: 143.2798
A170: E9516 | B170: Perfuratriz hidráulica sobre esteiras - 283 kW | C170: 7728932.346 | D170: 515.2622 | E170: 139.0886 | F170: 0 | G170: 515.2622 | H170: 159.2611 | I170: 37.1225 | J170: 1365.9966 | K170: 691.4733
A171: E9518 | B171: Grade de 24 discos rebocável de D = 60 cm (24") | C171: 43219.0436 | D171: 2.7784 | E171: 0.7619 | F171: 0 | G171: 1.5435 | H171: 0 | I171: 0 | J171: 5.0838 | K171: 3.5403
A172: E9519 | B172: Betoneira com motor a gasolina com capacidade de 600 l - 10 kW | C172: 39355.1933 | D172: 3.1484 | E172: 0.7285 | F172: 0 | G172: 2.3613 | H172: 19.4292 | I172: 29.972 | J172: 55.6394 | K172: 33.8489
A173: E9521 | B173: Grupo gerador - 3,2 kVA | C173: 3579.068 | D173: 0.179 | E173: 0.0631 | F173: 0 | G173: 0.1278 | H173: 4.6186 | I173: 0 | J173: 4.9885 | K173: 0.2421
A174: E9522 | B174: Caldeira de asfalto rebocável com capacidade de 1.500 l - 6,5 kW | C174: 212385.1417 | D174: 13.6533 | E174: 3.744 | F174: 0 | G174: 4.5511 | H174: 5.1211 | I174: 0 | J174: 27.0695 | K174: 17.3973
A175: E9523 | B175: Motoscraper - 304 kW | C175: 6163448.373 | D175: 290.0446 | E175: 106.256 | F175: 0 | G175: 326.3002 | H175: 273.7265 | I175: 37.1225 | J175: 1033.4498 | K175: 433.4231
A176: E9524 | B176: Motoniveladora - 93 kW | C176: 1305876.189 | D176: 65.2938 | E176: 23.0207 | F176: 0 | G176: 83.9492 | H176: 78.505 | I176: 37.1225 | J176: 287.8912 | K176: 125.437
A177: E9525 | B177: Ponte rolante com capacidade de 15 t e vão de até 15 m - 20 kW | C177: 3547725.296 | D177: 141.909 | E177: 60.196 | F177: 0 | G177: 88.6931 | H177: 0 | I177: 59.944 | J177: 350.7421 | K177: 262.049
A178: E9526 | B178: Retroescavadeira de pneus - capacidade da caçamba da pá-carregadeira de 0,76 m³ e da retroescavadeira de 0,29 m³ - 58 kW | C178: 486697.5495 | D178: 34.0688 | E178: 9.0088 | F178: 0 | G178: 34.0688 | H178: 42.4321 | I178: 37.1225 | J178: 156.701 | K178: 80.2001
A179: E9527 | B179: Martelete perfurador/rompedor a ar comprimido de 25 kg para rocha com capacidade de 2.040 gpm | C179: 30576.2582 | D179: 2.4461 | E179: 0.566 | F179: 0 | G179: 2.4461 | H179: 0 | I179: 29.972 | J179: 35.4302 | K179: 32.9841
A180: E9528 | B180: Empilhadeira a diesel com capacidade de 4 t - 60 kW | C180: 588641.2953 | D180: 47.0913 | E180: 10.8958 | F180: 0 | G180: 41.2049 | H180: 50.6484 | I180: 29.972 | J180: 179.8124 | K180: 87.9591
A181: E9529 | B181: Jateador para estruturas metálicas com transportador a roletes - 22 kW | C181: 4653023.5 | D181: 310.2016 | E181: 83.735 | F181: 0 | G181: 232.6512 | H181: 0 | I181: 29.972 | J181: 656.5598 | K181: 423.9086
A182: E9530 | B182: Rolo compactador liso vibratório autopropelido por pneus de 11 t - 97 kW | C182: 964928.7106 | D182: 64.3286 | E182: 17.3647 | F182: 0 | G182: 64.3286 | H182: 87.3404 | I182: 37.1225 | J182: 270.4848 | K182: 118.8158
A183: E9532 | B183: Equipamento de solda MIG com acessórios - 14,6 kVA | C183: 82980.9373 | D183: 6.6385 | E183: 1.536 | F183: 0 | G183: 6.6385 | H183: 0 | I183: 0 | J183: 14.813 | K183: 8.1745
A184: E9535 | B184: Serra circular com bancada - D = 30 cm - 4 kW | C184: 7246.8837 | D184: 0.6522 | E184: 0.1341 | F184: 0 | G184: 0.3623 | H184: 0 | I184: 29.972 | J184: 31.1206 | K184: 30.7583
A185: E9536 | B185: Embarcação de transporte de pessoal e apoio logístico - 30 kW | C185: 154238.2436 | D185: 2.41 | E185: 0.9087 | F185: 0 | G185: 2.6777 | H185: 66.6144 | I185: 42.091 | J185: 114.7018 | K185: 45.4097
A186: E9538 | B186: Conjunto vibratório para meio tubo de concreto com encaixe PB e 3 jogos de fôrmas - D = 0,30 m - 2,20 kW | C186: 15939.3024 | D186: 2.1252 | E186: 0.4917 | F186: 0 | G186: 1.5939 | H186: 0 | I186: 0 | J186: 4.2108 | K186: 2.6169
A187: E9539 | B187: Equipamento de batimetria monofeixe | C187: 108602.8502 | D187: 6.9816 | E187: 1.9145 | F187: 0 | G187: 3.8787 | H187: 0 | I187: 36.695 | J187: 49.4698 | K187: 45.5911
A188: E9540 | B188: Trator sobre esteiras com lâmina - 127 kW | C188: 1732952.892 | D188: 67.3926 | E188: 29.7009 | F188: 0 | G188: 96.2752 | H188: 100.0587 | I188: 37.1225 | J188: 330.5499 | K188: 134.216
A189: E9541 | B189: Trator sobre esteiras com lâmina - 259 kW | C189: 4844983.058 | D189: 188.416 | E189: 83.0376 | F189: 0 | G189: 269.1657 | H189: 204.0568 | I189: 37.1225 | J189: 781.7986 | K189: 308.5761
A190: E9543 | B190: Compressor de ar respirável com capacidade de até 35 MPa e 3,58 l/s - 5,52 kW | C190: 73355.4649 | D190: 4.8904 | E190: 1.3201 | F190: 0 | G190: 4.8904 | H190: 0 | I190: 0 | J190: 11.1009 | K190: 6.2105
A191: E9544 | B191: Vassoura mecânica rebocável com largura de 2,44 m | C191: 86523.3304 | D191: 7.7871 | E191: 1.6015 | F191: 0 | G191: 5.1914 | H191: 0 | I191: 0 | J191: 14.58 | K191: 9.3886
A192: E9545 | B192: Vibroacabadora de asfalto sobre esteiras - 97 kW | C192: 1619299.944 | D192: 80.965 | E192: 28.5459 | F192: 0 | G192: 104.0979 | H192: 103.7167 | I192: 44.5974 | J192: 361.9229 | K192: 154.1083
A193: E9547 | B193: Máquina de solda elétrica transformadora 250 A - 9,20 kW | C193: 1221.1871 | D193: 0.0977 | E193: 0.0226 | F193: 0 | G193: 0.0977 | H193: 0 | I193: 0 | J193: 0.218 | K193: 0.1203
A194: E9548 | B194: Bomba centrífuga com capacidade de 7,1 a 22 m³/h - 1,50 kW | C194: 2378.1132 | D194: 0.1902 | E194: 0.044 | F194: 0 | G194: 0.1665 | H194: 0 | I194: 0 | J194: 0.4007 | K194: 0.2342
A195: E9551 | B195: Obturador mecânico simples com extensão de 12 m | C195: 4901.5873 | D195: 0.4411 | E195: 0.0907 | F195: 0 | G195: 0.2451 | H195: 0 | I195: 0 | J195: 0.7769 | K195: 0.5318
A196: E9552 | B196: Nível ótico com capacidade de aumento de 32x | C196: 14153.5581 | D196: 1.1323 | E196: 0.262 | F196: 0 | G196: 0.7077 | H196: 0 | I196: 0 | J196: 2.102 | K196: 1.3943
A197: E9553 | B197: Estação total eletrônica com alcance máximo de 3.000 m | C197: 49204.0789 | D197: 4.4284 | E197: 0.9108 | F197: 0 | G197: 2.4602 | H197: 0 | I197: 0 | J197: 7.7994 | K197: 5.3392
A198: E9556 | B198: Compactador manual de placa vibratória - 3,00 kW | C198: 10609.2902 | D198: 0.7073 | E198: 0.1909 | F198: 0 | G198: 0.7073 | H198: 5.8288 | I198: 0 | J198: 7.4343 | K198: 0.8982
A199: E9558 | B199: Tanque de estocagem de asfalto com capacidade de 30.000 l | C199: 747140.1361 | D199: 31.1308 | E199: 10.8043 | F199: 0 | G199: 19.4568 | H199: 0 | I199: 0 | J199: 61.3919 | K199: 41.9351
A200: E9559 | B200: Aquecedor de fluido térmico - 12 kW | C200: 756659.3341 | D200: 34.0497 | E200: 10.5043 | F200: 0 | G200: 22.6998 | H200: 10.1297 | I200: 0 | J200: 77.3835 | K200: 44.554
... 338 more rows

Sheet SINTÉTICO SICRO (hidden)
A1: CGCIT | B1: SISTEMA DE CUSTOS REFERENCIAIS DE OBRAS - SICRO | D1: DNIT
B2: Ceará - Abril/2025
A3: Código | B3: Descrição do Serviço | C3: Unidade | D3: Custo Unitário (R$)
A4: 307731 | B4: Aparelho de apoio de neoprene fretado para estruturas moldadas no local - fornecimento e instalação | C4: dm³ | D4: 147.17
A5: 307732 | B5: Aparelho de apoio de neoprene fretado para estruturas pré-moldadas - fornecimento e instalação | C5: dm³ | D5: 119.74
A6: 308308 | B6: Aparelho de apoio metálico elastomérico fixo com capacidade de 1.500 kN - fornecimento e instalação | C6: un | D6: 5437.88
A7: 308313 | B7: Aparelho de apoio metálico elastomérico fixo com capacidade de 10.000 kN - fornecimento e instalação | C7: un | D7: 33644.52
A8: 308309 | B8: Aparelho de apoio metálico elastomérico fixo com capacidade de 2.500 kN - fornecimento e instalação | C8: un | D8: 8979.36
A9: 308310 | B9: Aparelho de apoio metálico elastomérico fixo com capacidade de 4.000 kN - fornecimento e instalação | C9: un | D9: 12212.17
A10: 308311 | B10: Aparelho de apoio metálico elastomérico fixo com capacidade de 5.500 kN - fornecimento e instalação | C10: un | D10: 17232.07
A11: 308312 | B11: Aparelho de apoio metálico elastomérico fixo com capacidade de 7.500 kN - fornecimento e instalação | C11: un | D11: 24026.67
A12: 308307 | B12: Aparelho de apoio metálico elastomérico fixo com capacidade de 700 kN - fornecimento e instalação | C12: un | D12: 3301.49
A13: 308322 | B13: Aparelho de apoio metálico elastomérico multidirecional com capacidade de 1.500 kN - fornecimento e instalação | C13: un | D13: 4958.24
A14: 308327 | B14: Aparelho de apoio metálico elastomérico multidirecional com capacidade de 10.000 kN - fornecimento e instalação | C14: un | D14: 29978.79
A15: 308323 | B15: Aparelho de apoio metálico elastomérico multidirecional com capacidade de 2.500 kN - fornecimento e instalação | C15: un | D15: 7691.21
A16: 308324 | B16: Aparelho de apoio metálico elastomérico multidirecional com capacidade de 4.000 kN - fornecimento e instalação | C16: un | D16: 11374.83
A17: 308325 | B17: Aparelho de apoio metálico elastomérico multidirecional com capacidade de 5.500 kN - fornecimento e instalação | C17: un | D17: 16037.88
A18: 308326 | B18: Aparelho de apoio metálico elastomérico multidirecional com capacidade de 7.500 kN - fornecimento e instalação | C18: un | D18: 22234.91
A19: 308321 | B19: Aparelho de apoio metálico elastomérico multidirecional com capacidade de 700 kN - fornecimento e instalação | C19: un | D19: 4673.3
A20: 308315 | B20: Aparelho de apoio metálico elastomérico unidirecional com capacidade de 1.500 kN - fornecimento e instalação | C20: un | D20: 6398.71
A21: 308320 | B21: Aparelho de apoio metálico elastomérico unidirecional com capacidade de 10.000 kN - fornecimento e instalação | C21: un | D21: 45411.91
A22: 308316 | B22: Aparelho de apoio metálico elastomérico unidirecional com capacidade de 2.500 kN - fornecimento e instalação | C22: un | D22: 9186.33
A23: 308317 | B23: Aparelho de apoio metálico elastomérico unidirecional com capacidade de 4.000 kN - fornecimento e instalação | C23: un | D23: 17726.52
A24: 308318 | B24: Aparelho de apoio metálico elastomérico unidirecional com capacidade de 5.500 kN - fornecimento e instalação | C24: un | D24: 23323.46
A25: 308319 | B25: Aparelho de apoio metálico elastomérico unidirecional com capacidade de 7.500 kN - fornecimento e instalação | C25: un | D25: 25777.59
A26: 308314 | B26: Aparelho de apoio metálico elastomérico unidirecional com capacidade de 700 kN - fornecimento e instalação | C26: un | D26: 4697.6
A27: 308250 | B27: Aparelho de apoio metálico esférico fixo com capacidade de 1.000 kN - fornecimento e instalação | C27: un | D27: 7393.5
A28: 308251 | B28: Aparelho de apoio metálico esférico fixo com capacidade de 1.500 kN - fornecimento e instalação | C28: un | D28: 11509.63
A29: 308268 | B29: Aparelho de apoio metálico esférico fixo com capacidade de 10.000 kN - fornecimento e instalação | C29: un | D29: 75505.79
A30: 308252 | B30: Aparelho de apoio metálico esférico fixo com capacidade de 2.000 kN - fornecimento e instalação | C30: un | D30: 13355.09
A31: 308253 | B31: Aparelho de apoio metálico esférico fixo com capacidade de 2.500 kN - fornecimento e instalação | C31: un | D31: 16173.92
A32: 308254 | B32: Aparelho de apoio metálico esférico fixo com capacidade de 3.000 kN - fornecimento e instalação | C32: un | D32: 19037.63
A33: 308255 | B33: Aparelho de apoio metálico esférico fixo com capacidade de 3.500 kN - fornecimento e instalação | C33: un | D33: 22297.98
A34: 308256 | B34: Aparelho de apoio metálico esférico fixo com capacidade de 4.000 kN - fornecimento e instalação | C34: un | D34: 29942.75
A35: 308257 | B35: Aparelho de apoio metálico esférico fixo com capacidade de 4.500 kN - fornecimento e instalação | C35: un | D35: 32339.68
A36: 308258 | B36: Aparelho de apoio metálico esférico fixo com capacidade de 5.000 kN - fornecimento e instalação | C36: un | D36: 36112.84
A37: 308259 | B37: Aparelho de apoio metálico esférico fixo com capacidade de 5.500 kN - fornecimento e instalação | C37: un | D37: 38172.53
A38: 308260 | B38: Aparelho de apoio metálico esférico fixo com capacidade de 6.000 kN - fornecimento e instalação | C38: un | D38: 42961.03
A39: 308261 | B39: Aparelho de apoio metálico esférico fixo com capacidade de 6.500 kN - fornecimento e instalação | C39: un | D39: 46387.26
A40: 308262 | B40: Aparelho de apoio metálico esférico fixo com capacidade de 7.000 kN - fornecimento e instalação | C40: un | D40: 54975.53
A41: 308263 | B41: Aparelho de apoio metálico esférico fixo com capacidade de 7.500 kN - fornecimento e instalação | C41: un | D41: 55029.44
A42: 308264 | B42: Aparelho de apoio metálico esférico fixo com capacidade de 8.000 kN - fornecimento e instalação | C42: un | D42: 57423.23
A43: 308265 | B43: Aparelho de apoio metálico esférico fixo com capacidade de 8.500 kN - fornecimento e instalação | C43: un | D43: 58978.59
A44: 308266 | B44: Aparelho de apoio metálico esférico fixo com capacidade de 9.000 kN - fornecimento e instalação | C44: un | D44: 67776.66
A45: 308267 | B45: Aparelho de apoio metálico esférico fixo com capacidade de 9.500 kN - fornecimento e instalação | C45: un | D45: 71900.42
A46: 308288 | B46: Aparelho de apoio metálico esférico multidirecional com capacidade de 1.000 kN - fornecimento e instalação | C46: un | D46: 8313.57
A47: 308289 | B47: Aparelho de apoio metálico esférico multidirecional com capacidade de 1.500 kN - fornecimento e instalação | C47: un | D47: 11518.17
A48: 308306 | B48: Aparelho de apoio metálico esférico multidirecional com capacidade de 10.000 kN - fornecimento e instalação | C48: un | D48: 74468.46
A49: 308290 | B49: Aparelho de apoio metálico esférico multidirecional com capacidade de 2.000 kN - fornecimento e instalação | C49: un | D49: 15090.79
A50: 308291 | B50: Aparelho de apoio metálico esférico multidirecional com capacidade de 2.500 kN - fornecimento e instalação | C50: un | D50: 18047.03
A51: 308292 | B51: Aparelho de apoio metálico esférico multidirecional com capacidade de 3.000 kN - fornecimento e instalação | C51: un | D51: 20837.19
A52: 308293 | B52: Aparelho de apoio metálico esférico multidirecional com capacidade de 3.500 kN - fornecimento e instalação | C52: un | D52: 23559.41
A53: 308294 | B53: Aparelho de apoio metálico esférico multidirecional com capacidade de 4.000 kN - fornecimento e instalação | C53: un | D53: 26706.92
A54: 308295 | B54: Aparelho de apoio metálico esférico multidirecional com capacidade de 4.500 kN - fornecimento e instalação | C54: un | D54: 30819.36
A55: 308296 | B55: Aparelho de apoio metálico esférico multidirecional com capacidade de 5.000 kN - fornecimento e instalação | C55: un | D55: 34315.59
A56: 308297 | B56: Aparelho de apoio metálico esférico multidirecional com capacidade de 5.500 kN - fornecimento e instalação | C56: un | D56: 37151.43
A57: 308298 | B57: Aparelho de apoio metálico esférico multidirecional com capacidade de 6.000 kN - fornecimento e instalação | C57: un | D57: 43042.93
A58: 308299 | B58: Aparelho de apoio metálico esférico multidirecional com capacidade de 6.500 kN - fornecimento e instalação | C58: un | D58: 46486.06
A59: 308300 | B59: Aparelho de apoio metálico esférico multidirecional com capacidade de 7.000 kN - fornecimento e instalação | C59: un | D59: 50018.27
A60: 308301 | B60: Aparelho de apoio metálico esférico multidirecional com capacidade de 7.500 kN - fornecimento e instalação | C60: un | D60: 53945.91
A61: 308302 | B61: Aparelho de apoio metálico esférico multidirecional com capacidade de 8.000 kN - fornecimento e instalação | C61: un | D61: 58037.05
A62: 308303 | B62: Aparelho de apoio metálico esférico multidirecional com capacidade de 8.500 kN - fornecimento e instalação | C62: un | D62: 63283.62
A63: 308304 | B63: Aparelho de apoio metálico esférico multidirecional com capacidade de 9.000 kN - fornecimento e instalação | C63: un | D63: 66861.01
A64: 308305 | B64: Aparelho de apoio metálico esférico multidirecional com capacidade de 9.500 kN - fornecimento e instalação | C64: un | D64: 70931.13
A65: 308269 | B65: Aparelho de apoio metálico esférico unidirecional com capacidade de 1.000 kN - fornecimento e instalação | C65: un | D65: 11036.45
A66: 308270 | B66: Aparelho de apoio metálico esférico unidirecional com capacidade de 1.500 kN - fornecimento e instalação | C66: un | D66: 14980.19
A67: 308287 | B67: Aparelho de apoio metálico esférico unidirecional com capacidade de 10.000 kN - fornecimento e instalação | C67: un | D67: 82181.04
A68: 308271 | B68: Aparelho de apoio metálico esférico unidirecional com capacidade de 2.000 kN - fornecimento e instalação | C68: un | D68: 18243.25
A69: 308272 | B69: Aparelho de apoio metálico esférico unidirecional com capacidade de 2.500 kN - fornecimento e instalação | C69: un | D69: 21652.17
A70: 308273 | B70: Aparelho de apoio metálico esférico unidirecional com capacidade de 3.000 kN - fornecimento e instalação | C70: un | D70: 24757.33
A71: 308274 | B71: Aparelho de apoio metálico esférico unidirecional com capacidade de 3.500 kN - fornecimento e instalação | C71: un | D71: 28697.06
A72: 308275 | B72: Aparelho de apoio metálico esférico unidirecional com capacidade de 4.000 kN - fornecimento e instalação | C72: un | D72: 32089.65
A73: 308276 | B73: Aparelho de apoio metálico esférico unidirecional com capacidade de 4.500 kN - fornecimento e instalação | C73: un | D73: 36847.05
A74: 308277 | B74: Aparelho de apoio metálico esférico unidirecional com capacidade de 5.000 kN - fornecimento e instalação | C74: un | D74: 41607.93
A75: 308278 | B75: Aparelho de apoio metálico esférico unidirecional com capacidade de 5.500 kN - fornecimento e instalação | C75: un | D75: 44099.25
A76: 308279 | B76: Aparelho de apoio metálico esférico unidirecional com capacidade de 6.000 kN - fornecimento e instalação | C76: un | D76: 49313.59
A77: 308280 | B77: Aparelho de apoio metálico esférico unidirecional com capacidade de 6.500 kN - fornecimento e instalação | C77: un | D77: 52806.32
A78: 308281 | B78: Aparelho de apoio metálico esférico unidirecional com capacidade de 7.000 kN - fornecimento e instalação | C78: un | D78: 56724.87
A79: 308282 | B79: Aparelho de apoio metálico esférico unidirecional com capacidade de 7.500 kN - fornecimento e instalação | C79: un | D79: 60862.74
A80: 308283 | B80: Aparelho de apoio metálico esférico unidirecional com capacidade de 8.000 kN - fornecimento e instalação | C80: un | D80: 64701.61
A81: 308284 | B81: Aparelho de apoio metálico esférico unidirecional com capacidade de 8.500 kN - fornecimento e instalação | C81: un | D81: 69701.96
A82: 308285 | B82: Aparelho de apoio metálico esférico unidirecional com capacidade de 9.000 kN - fornecimento e instalação | C82: un | D82: 73793.92
A83: 308286 | B83: Aparelho de apoio metálico esférico unidirecional com capacidade de 9.500 kN - fornecimento e instalação | C83: un | D83: 78036.91
A84: 307733 | B84: Junta de dilatação em elastômero e perfil VV - L = 20 mm e H = 40 mm - fornecimento e instalação | C84: m | D84: 272.49
A85: 307734 | B85: Junta de dilatação em elastômero e perfil VV - L = 25 mm e H = 50 mm - fornecimento e instalação | C85: m | D85: 321.41
A86: 307735 | B86: Junta de dilatação em elastômero e perfil VV - L = 35 mm e H = 60 mm - fornecimento e instalação | C86: m | D86: 421.24
A87: 307736 | B87: Junta de dilatação em elastômero e perfil VV - L = 40 mm e H = 70 mm - fornecimento e instalação | C87: m | D87: 561.39
A88: 307737 | B88: Junta de dilatação em elastômero e perfil VV - L = 50 mm e H = 80 mm - fornecimento e instalação | C88: m | D88: 591.73
A89: 307730 | B89: Junta de dilatação em perfil extrudado de borracha vulcanizada | C89: m | D89: 0
A90: 307084 | B90: Lábios poliméricos em junta de pavimento de concreto - L = 20 mm e H = 30 mm - confecção e assentamento | C90: m | D90: 35.35
A91: 407818 | B91: Armação em aço CA-25 - fornecimento, preparo e colocação | C91: kg | D91: 12.27
A92: 407819 | B92: Armação em aço CA-50 - fornecimento, preparo e colocação | C92: kg | D92: 12.6
A93: 407820 | B93: Armação em aço CA-60 - fornecimento, preparo e colocação | C93: kg | D93: 13.15
A94: 407740 | B94: Chumbador tipo espera em aço CA-25 para fixação de estrutura metálica em concreto - fornecimento e instalação | C94: kg | D94: 15.34
A95: 408037 | B95: Luva de emenda com rosca cônica para aço CA-50 - D = 12,5 mm - fornecimento e instalação | C95: un | D95: 20.72
A96: 408038 | B96: Luva de emenda com rosca cônica para aço CA-50 - D = 16 mm - fornecimento e instalação | C96: un | D96: 31.57
A97: 408039 | B97: Luva de emenda com rosca cônica para aço CA-50 - D = 20 mm - fornecimento e instalação | C97: un | D97: 43.98
A98: 408041 | B98: Luva de emenda com rosca cônica para aço CA-50 - D = 25 mm - fornecimento e instalação | C98: un | D98: 56.38
A99: 408042 | B99: Luva de emenda com rosca cônica para aço CA-50 - D = 32 mm - fornecimento e instalação | C99: un | D99: 81
A100: 408031 | B100: Luva de emenda prensada para aço CA-50 - D = 12,5 mm - fornecimento e instalação | C100: un | D100: 22.59
A101: 408032 | B101: Luva de emenda prensada para aço CA-50 - D = 16 mm - fornecimento e instalação | C101: un | D101: 30.73
A102: 408033 | B102: Luva de emenda prensada para aço CA-50 - D = 20 mm - fornecimento e instalação | C102: un | D102: 41.91
A103: 408035 | B103: Luva de emenda prensada para aço CA-50 - D = 25 mm - fornecimento e instalação | C103: un | D103: 70.32
A104: 408036 | B104: Luva de emenda prensada para aço CA-50 - D = 32 mm - fornecimento e instalação | C104: un | D104: 153.13
A105: 408067 | B105: Tela de aço eletrossoldada - fornecimento, preparo e colocação | C105: kg | D105: 11.33
A106: 407743 | B106: Treliça nervurada três barras longitudinais interligadas por duas diagonais sinusoidal - fornecimento e instalação | C106: kg | D106: 11.62
A107: 607137 | B107: Arco metálico galvanizado tipo MP 152S - arco alto - vão = 10,08 m e altura = 6,12 m - aterro rodoviário mínimo = 0,90 m e máximo = 5,00 m - areia e brita comerciais | C107: m | D107: 55595.32
A108: 606785 | B108: Arco metálico galvanizado tipo MP 152S - arco alto - vão = 10,08 m e altura = 6,12 m - aterro rodoviário mínimo = 0,90 m e máximo = 5,00 m - areia extraída e brita produzida | C108: m | D108: 54973.21
A109: 607139 | B109: Arco metálico galvanizado tipo MP 152S - arco alto - vão = 10,31 m e altura = 6,17 m - aterro rodoviário mínimo = 0,90 m e máximo = 4,90 m - areia e brita comerciais | C109: m | D109: 56358.57
A110: 606787 | B110: Arco metálico galvanizado tipo MP 152S - arco alto - vão = 10,31 m e altura = 6,17 m - aterro rodoviário mínimo = 0,90 m e máximo = 4,90 m - areia extraída e brita produzida | C110: m | D110: 55404.21
A111: 607140 | B111: Arco metálico galvanizado tipo MP 152S - arco alto - vão = 10,36 m e altura = 5,38 m - aterro rodoviário mínimo = 1,20 m e máximo = 3,60 m - areia e brita comerciais | C111: m | D111: 51382.65
A112: 606788 | B112: Arco metálico galvanizado tipo MP 152S - arco alto - vão = 10,36 m e altura = 5,38 m - aterro rodoviário mínimo = 1,20 m e máximo = 3,60 m - areia extraída e brita produzida | C112: m | D112: 51155.54
A113: 607141 | B113: Arco metálico galvanizado tipo MP 152S - arco alto - vão = 10,54 m e altura = 6,05 m - aterro rodoviário mínimo = 1,20 m e máximo = 4,20 m - areia e brita comerciais | C113: m | D113: 57408.32
A114: 606789 | B114: Arco metálico galvanizado tipo MP 152S - arco alto - vão = 10,54 m e altura = 6,05 m - aterro rodoviário mínimo = 1,20 m e máximo = 4,20 m - areia extraída e brita produzida | C114: m | D114: 56761.79
A115: 607144 | B115: Arco metálico galvanizado tipo MP 152S - arco alto - vão = 10,57 m e altura = 5,41 m - aterro rodoviário mínimo = 1,20 m e máximo = 4,10 m - areia e brita comerciais | C115: m | D115: 66395.26
A116: 606792 | B116: Arco metálico galvanizado tipo MP 152S - arco alto - vão = 10,57 m e altura = 5,41 m - aterro rodoviário mínimo = 1,20 m e máximo = 4,10 m - areia extraída e brita produzida | C116: m | D116: 65804.73
A117: 607142 | B117: Arco metálico galvanizado tipo MP 152S - arco alto - vão = 10,74 m e altura = 6,48 m - aterro rodoviário mínimo = 1,20 m e máximo = 4,70 m - areia e brita comerciais | C117: m | D117: 60267.29
A118: 606790 | B118: Arco metálico galvanizado tipo MP 152S - arco alto - vão = 10,74 m e altura = 6,48 m - aterro rodoviário mínimo = 1,20 m e máximo = 4,70 m - areia extraída e brita produzida | C118: m | D118: 59571.88
A119: 607145 | B119: Arco metálico galvanizado tipo MP 152S - arco alto - vão = 10,77 m e altura = 6,10 m - aterro rodoviário mínimo = 1,20 m e máximo = 4,70 m - areia e brita comerciais | C119: m | D119: 73449.18
A120: 606793 | B120: Arco metálico galvanizado tipo MP 152S - arco alto - vão = 10,77 m e altura = 6,10 m - aterro rodoviário mínimo = 1,20 m e máximo = 4,70 m - areia extraída e brita produzida | C120: m | D120: 72788.72
A121: 607146 | B121: Arco metálico galvanizado tipo MP 152S - arco alto - vão = 10,97 m e altura = 6,53 m - aterro rodoviário mínimo = 1,20 m e máximo = 4,70 m - areia e brita comerciais | C121: m | D121: 76636.53
A122: 606794 | B122: Arco metálico galvanizado tipo MP 152S - arco alto - vão = 10,97 m e altura = 6,53 m - aterro rodoviário mínimo = 1,20 m e máximo = 4,70 m - areia extraída e brita produzida | C122: m | D122: 75919.69
A123: 607143 | B123: Arco metálico galvanizado tipo MP 152S - arco alto - vão = 11,35 m e altura = 7,12 m - aterro rodoviário mínimo = 1,20 m e máximo = 4,70 m - areia e brita comerciais | C123: m | D123: 65126.25
A124: 606791 | B124: Arco metálico galvanizado tipo MP 152S - arco alto - vão = 11,35 m e altura = 7,12 m - aterro rodoviário mínimo = 1,20 m e máximo = 4,70 m - areia extraída e brita produzida | C124: m | D124: 64325.63
A125: 607147 | B125: Arco metálico galvanizado tipo MP 152S - arco alto - vão = 11,58 m e altura = 7,16 m - aterro rodoviário mínimo = 1,20 m e máximo = 6,40 m - areia e brita comerciais | C125: m | D125: 82714.6
A126: 606795 | B126: Arco metálico galvanizado tipo MP 152S - arco alto - vão = 11,58 m e altura = 7,16 m - aterro rodoviário mínimo = 1,20 m e máximo = 6,40 m - areia extraída e brita produzida | C126: m | D126: 81888.58
A127: 607112 | B127: Arco metálico galvanizado tipo MP 152S - arco alto - vão = 6,12 m e altura = 2,77 m - aterro rodoviário mínimo = 0,75 m e máximo = 5,40 m - areia e brita comerciais | C127: m | D127: 27016.95
A128: 606760 | B128: Arco metálico galvanizado tipo MP 152S - arco alto - vão = 6,12 m e altura = 2,77 m - aterro rodoviário mínimo = 0,75 m e máximo = 5,40 m - areia extraída e brita produzida | C128: m | D128: 26800.42
A129: 607113 | B129: Arco metálico galvanizado tipo MP 152S - arco alto - vão = 6,30 m e altura = 3,68 m - aterro rodoviário mínimo = 0,75 m e máximo = 7,50 m - areia e brita comerciais | C129: m | D129: 31848.78
A130: 606761 | B130: Arco metálico galvanizado tipo MP 152S - arco alto - vão = 6,30 m e altura = 3,68 m - aterro rodoviário mínimo = 0,75 m e máximo = 7,50 m - areia extraída e brita produzida | C130: m | D130: 31599.88
A131: 606762 | B131: Arco metálico galvanizado tipo MP 152S - arco alto - vão = 6,55 m e altura = 3,56 m - aterro rodoviário mínimo = 0,75 m e máximo = 4,9 m - areia extraída e brita produzida | C131: m | D131: 31873.38
A132: 607114 | B132: Arco metálico galvanizado tipo MP 152S - arco alto - vão = 6,55 m e altura = 3,56 m - aterro rodoviário mínimo = 0,75 m e máximo = 4,90 m - areia e brita comerciais | C132: m | D132: 32126.98
A133: 607116 | B133: Arco metálico galvanizado tipo MP 152S - arco alto - vão = 6,78 m e altura = 3,61 m - aterro rodoviário mínimo = 0,75 m e máximo = 4,80 m - areia e brita comerciais | C133: m | D133: 33283.01
A134: 606764 | B134: Arco metálico galvanizado tipo MP 152S - arco alto - vão = 6,78 m e altura = 3,61 m - aterro rodoviário mínimo = 0,75 m e máximo = 4,80 m - areia extraída e brita produzida | C134: m | D134: 33018.73
A135: 607115 | B135: Arco metálico galvanizado tipo MP 152S - arco alto - vão = 6,96 m e altura = 4,42 m - aterro rodoviário mínimo = 0,75 m e máximo = 8,10 m - areia e brita comerciais | C135: m | D135: 37807.7
A136: 606763 | B136: Arco metálico galvanizado tipo MP 152S - arco alto - vão = 6,96 m e altura = 4,42 m - aterro rodoviário mínimo = 0,75 m e máximo = 8,10 m - areia extraída e brita produzida | C136: m | D136: 37489.77
A137: 607117 | B137: Arco metálico galvanizado tipo MP 152S - arco alto - vão = 6,99 m e altura = 4,27 m - aterro rodoviário mínimo = 0,75 m e máximo = 5,70 m - areia e brita comerciais | C137: m | D137: 37808.73
A138: 606765 | B138: Arco metálico galvanizado tipo MP 152S - arco alto - vão = 6,99 m e altura = 4,27 m - aterro rodoviário mínimo = 0,75 m e máximo = 5,70 m - areia extraída e brita produzida | C138: m | D138: 37499.52
A139: 607118 | B139: Arco metálico galvanizado tipo MP 152S - arco alto - vão = 7,01 m e altura = 3,63 m - aterro rodoviário mínimo = 0,75 m e máximo = 4,60 m - areia e brita comerciais | C139: m | D139: 33868.86
A140: 606766 | B140: Arco metálico galvanizado tipo MP 152S - arco alto - vão = 7,01 m e altura = 3,63 m - aterro rodoviário mínimo = 0,75 m e máximo = 4,60 m - areia extraída e brita produzida | C140: m | D140: 33596.03
A141: 607120 | B141: Arco metálico galvanizado tipo MP 152S - arco alto - vão = 7,24 m e altura = 3,68 m - aterro rodoviário mínimo = 0,90 m e máximo = 4,4 m - areia e brita comerciais | C141: m | D141: 34497.05
A142: 606768 | B142: Arco metálico galvanizado tipo MP 152S - arco alto - vão = 7,24 m e altura = 3,68 m - aterro rodoviário mínimo = 0,90 m e máximo = 4,40 m - areia extraída e brita produzida | C142: m | D142: 34209.75
A143: 607119 | B143: Arco metálico galvanizado tipo MP 152S - arco alto - vão = 7,42 m e altura = 4,52 m - aterro rodoviário mínimo = 0,90 m e máximo = 6,40 m - areia e brita comerciais | C143: m | D143: 39686.94
A144: 606767 | B144: Arco metálico galvanizado tipo MP 152S - arco alto - vão = 7,42 m e altura = 4,52 m - aterro rodoviário mínimo = 0,90 m e máximo = 6,40 m - areia extraída e brita produzida | C144: m | D144: 39336.57
A145: 607121 | B145: Arco metálico galvanizado tipo MP 152S - arco alto - vão = 7,47 m e altura = 4,19 m - aterro rodoviário mínimo = 0,90 m e máximo = 4,30 m - areia e brita comerciais | C145: m | D145: 37360.34
A146: 606769 | B146: Arco metálico galvanizado tipo MP 152S - arco alto - vão = 7,47 m e altura = 4,19 m - aterro rodoviário mínimo = 0,90 m e máximo = 4,30 m - areia extraída e brita produzida | C146: m | D146: 37032.78
A147: 607123 | B147: Arco metálico galvanizado tipo MP 152S - arco alto - vão = 7,67 m e altura = 3,99 m - aterro rodoviário mínimo = 0,90 m e máximo = 4,10 m - areia e brita comerciais | C147: m | D147: 36871.4
A148: 606771 | B148: Arco metálico galvanizado tipo MP 152S - arco alto - vão = 7,67 m e altura = 3,99 m - aterro rodoviário mínimo = 0,90 m e máximo = 4,10 m - areia extraída e brita produzida | C148: m | D148: 36545.07
A149: 607122 | B149: Arco metálico galvanizado tipo MP 152S - arco alto - vão = 7,85 m e altura = 4,60 m - aterro rodoviário mínimo = 0,90 m e máximo = 6,00 m - areia e brita comerciais | C149: m | D149: 40936.15
A150: 606770 | B150: Arco metálico galvanizado tipo MP 152S - arco alto - vão = 7,85 m e altura = 4,60 m - aterro rodoviário mínimo = 0,90 m e máximo = 6,00 m - areia extraída e brita produzida | C150: m | D150: 40559.79
A151: 607125 | B151: Arco metálico galvanizado tipo MP 152S - arco alto - vão = 7,90 m e altura = 4,04 m - aterro rodoviário mínimo = 0,90 m e máximo = 4,00 m - areia e brita comerciais | C151: m | D151: 38142.62
A152: 606773 | B152: Arco metálico galvanizado tipo MP 152S - arco alto - vão = 7,90 m e altura = 4,04 m - aterro rodoviário mínimo = 0,90 m e máximo = 4,00 m - areia extraída e brita produzida | C152: m | D152: 37799.27
A153: 607124 | B153: Arco metálico galvanizado tipo MP 152S - arco alto - vão = 8,08 m e altura = 4,65 m - aterro rodoviário mínimo = 0,90 m e máximo = 5,80 m - areia e brita comerciais | C153: m | D153: 41556.62
A154: 606772 | B154: Arco metálico galvanizado tipo MP 152S - arco alto - vão = 8,08 m e altura = 4,65 m - aterro rodoviário mínimo = 0,90 m e máximo = 5,80 m - areia extraída e brita produzida | C154: m | D154: 41168.22
A155: 607126 | B155: Arco metálico galvanizado tipo MP 152S - arco alto - vão = 8,31 m e altura = 4,70 m - aterro rodoviário mínimo = 0,90 m e máximo = 5,60 m - areia e brita comerciais | C155: m | D155: 42726.78
A156: 606774 | B156: Arco metálico galvanizado tipo MP 152S - arco alto - vão = 8,31 m e altura = 4,70 m - aterro rodoviário mínimo = 0,90 m e máximo = 5,60 m - areia extraída e brita produzida | C156: m | D156: 42319.67
A157: 607127 | B157: Arco metálico galvanizado tipo MP 152S - arco alto - vão = 8,36 m e altura = 4,11 m - aterro rodoviário mínimo = 0,90 m e máximo = 3,70 m - areia e brita comerciais | C157: m | D157: 39324.2
A158: 606775 | B158: Arco metálico galvanizado tipo MP 152S - arco alto - vão = 8,36 m e altura = 4,11 m - aterro rodoviário mínimo = 0,90 m e máximo = 3,70 m - areia extraída e brita produzida | C158: m | D158: 38960.22
A159: 607129 | B159: Arco metálico galvanizado tipo MP 152S - arco alto - vão = 8,59 m e altura = 4,39 m - aterro rodoviário mínimo = 0,90 m e máximo = 3,60 m - areia e brita comerciais | C159: m | D159: 41165.54
A160: 606777 | B160: Arco metálico galvanizado tipo MP 152S - arco alto - vão = 8,59 m e altura = 4,39 m - aterro rodoviário mínimo = 0,90 m e máximo = 3,60 m - areia extraída e brita produzida | C160: m | D160: 40766.92
A161: 607128 | B161: Arco metálico galvanizado tipo MP 152S - arco alto - vão = 8,97 m e altura = 5,00 m - aterro rodoviário mínimo = 0,90 m e máximo = 5,80 m - areia e brita comerciais | C161: m | D161: 45311.19
A162: 606776 | B162: Arco metálico galvanizado tipo MP 152S - arco alto - vão = 8,97 m e altura = 5,00 m - aterro rodoviário mínimo = 0,90 m e máximo = 5,80 m - areia extraída e brita produzida | C162: m | D162: 44845.43
A163: 607130 | B163: Arco metálico galvanizado tipo MP 152S - arco alto - vão = 9,17 m e altura = 5,49 m - aterro rodoviário mínimo = 0,90 m e máximo = 5,60 m - areia e brita comerciais | C163: m | D163: 48306.16
A164: 606778 | B164: Arco metálico galvanizado tipo MP 152S - arco alto - vão = 9,17 m e altura = 5,49 m - aterro rodoviário mínimo = 0,90 m e máximo = 5,60 m - areia extraída e brita produzida | C164: m | D164: 47794.21
A165: 607131 | B165: Arco metálico galvanizado tipo MP 152S - arco alto - vão = 9,22 m e altura = 4,70 m - aterro rodoviário mínimo = 0,90 m e máximo = 4,10 m - areia e brita comerciais | C165: m | D165: 45329.66
A166: 606779 | B166: Arco metálico galvanizado tipo MP 152S - arco alto - vão = 9,22 m e altura = 4,70 m - aterro rodoviário mínimo = 0,90 m e máximo = 4,10 m - areia extraída e brita produzida | C166: m | D166: 44876.75
A167: 607133 | B167: Arco metálico galvanizado tipo MP 152S - arco alto - vão = 9,45 m e altura = 4,75 m - aterro rodoviário mínimo = 0,90 m e máximo = 4,00 m - areia e brita comerciais | C167: m | D167: 46025.09
A168: 606781 | B168: Arco metálico galvanizado tipo MP 152S - arco alto - vão = 9,45 m e altura = 4,75 m - aterro rodoviário mínimo = 0,90 m e máximo = 4,00 m - areia extraída e brita produzida | C168: m | D168: 45558.56
A169: 607132 | B169: Arco metálico galvanizado tipo MP 152S - arco alto - vão = 9,63 m e altura = 5,59 m - aterro rodoviário mínimo = 0,90 m e máximo = 5,30 m - areia e brita comerciais | C169: m | D169: 50201
A170: 606780 | B170: Arco metálico galvanizado tipo MP 152S - arco alto - vão = 9,63 m e altura = 5,59 m - aterro rodoviário mínimo = 0,90 m e máximo = 5,30 m - areia extraída e brita produzida | C170: m | D170: 49653.16
A171: 607134 | B171: Arco metálico galvanizado tipo MP 152S - arco alto - vão = 9,65 m e altura = 5,41 m - aterro rodoviário mínimo = 0,90 m e máximo = 4,70 m - areia e brita comerciais | C171: m | D171: 49714.77
A172: 606782 | B172: Arco metálico galvanizado tipo MP 152S - arco alto - vão = 9,65 m e altura = 5,41 m - aterro rodoviário mínimo = 0,90 m e máximo = 4,70 m - areia extraída e brita produzida | C172: m | D172: 49179.46
A173: 607136 | B173: Arco metálico galvanizado tipo MP 152S - arco alto - vão = 9,68 m e altura = 5,23 m - aterro rodoviário mínimo = 0,90 m e máximo = 3,90 m - areia e brita comerciais | C173: m | D173: 49039.9
A174: 606784 | B174: Arco metálico galvanizado tipo MP 152S - arco alto - vão = 9,68 m e altura = 5,23 m - aterro rodoviário mínimo = 0,90 m e máximo = 3,90 m - areia extraída e brita produzida | C174: m | D174: 48521.69
A175: 607135 | B175: Arco metálico galvanizado tipo MP 152S - arco alto - vão = 9,86 m e altura = 6,07 m - aterro rodoviário mínimo = 0,90 m e máximo = 5,20 m - areia e brita comerciais | C175: m | D175: 54781.46
A176: 606783 | B176: Arco metálico galvanizado tipo MP 152S - arco alto - vão = 9,86 m e altura = 6,07 m - aterro rodoviário mínimo = 0,90 m e máximo = 5,20 m - areia extraída e brita produzida | C176: m | D176: 54180.72
A177: 607138 | B177: Arco metálico galvanizado tipo MP 152S - arco alto - vão = 9,91 m e altura = 5,28 m - aterro rodoviário mínimo = 0,90 m e máximo = 3,80 m - areia e brita comerciais | C177: m | D177: 49914.77
A178: 606786 | B178: Arco metálico galvanizado tipo MP 152S - arco alto - vão = 9,91 m e altura = 5,28 m - aterro rodoviário mínimo = 0,90 m e máximo = 3,80 m - areia extraída e brita produzida | C178: m | D178: 49362.73
A179: 606842 | B179: Arco metálico galvanizado tipo MP 152S - ovoide - vão = 7,21 m e altura = 7,82 m - aterro rodoviário mínimo = 0,75 m e máximo = 6,70 m - areia e brita comerciais | C179: m | D179: 61486.24
A180: 606832 | B180: Arco metálico galvanizado tipo MP 152S - ovoide - vão = 7,21 m e altura = 7,82 m - aterro rodoviário mínimo = 0,75 m e máximo = 6,70 m - areia extraída e brita produzida | C180: m | D180: 61162.4
A181: 606843 | B181: Arco metálico galvanizado tipo MP 152S - ovoide - vão = 7,31 m e altura = 7,87 m - aterro rodoviário mínimo = 0,90 m e máximo = 6,80 m - areia e brita comerciais | C181: m | D181: 63899.71
A182: 606833 | B182: Arco metálico galvanizado tipo MP 152S - ovoide - vão = 7,31 m e altura = 7,87 m - aterro rodoviário mínimo = 0,90 m e máximo = 6,80 m - areia extraída e brita produzida | C182: m | D182: 63559.88
A183: 606845 | B183: Arco metálico galvanizado tipo MP 152S - ovoide - vão = 7,57 m e altura = 8,44 m - aterro rodoviário mínimo = 0,90 m e máximo = 5,60 m - areia e brita comerciais | C183: m | D183: 66258.96
A184: 606835 | B184: Arco metálico galvanizado tipo MP 152S - ovoide - vão = 7,57 m e altura = 8,44 m - aterro rodoviário mínimo = 0,90 m e máximo = 5,60 m - areia extraída e brita produzida | C184: m | D184: 65919.88
A185: 606844 | B185: Arco metálico galvanizado tipo MP 152S - ovoide - vão = 7,77 m e altura = 7,90 m - aterro rodoviário mínimo = 0,90 m e máximo = 6,80 m - areia e brita comerciais | C185: m | D185: 64878.23
A186: 606834 | B186: Arco metálico galvanizado tipo MP 152S - ovoide - vão = 7,77 m e altura = 7,90 m - aterro rodoviário mínimo = 0,90 m e máximo = 6,80 m - areia extraída e brita produzida | C186: m | D186: 64529.29
A187: 606847 | B187: Arco metálico galvanizado tipo MP 152S - ovoide - vão = 8,13 m e altura = 8,01 m - aterro rodoviário mínimo = 0,90 m e máximo = 3,50 m - areia e brita comerciais | C187: m | D187: 69286.36
A188: 606837 | B188: Arco metálico galvanizado tipo MP 152S - ovoide - vão = 8,13 m e altura = 8,01 m - aterro rodoviário mínimo = 0,90 m e máximo = 3,50 m - areia extraída e brita produzida | C188: m | D188: 68905.6
A189: 606846 | B189: Arco metálico galvanizado tipo MP 152S - ovoide - vão = 8,36 m e altura = 8,23 m - aterro rodoviário mínimo = 0,90 m e máximo = 4,30 m - areia e brita comerciais | C189: m | D189: 71006.27
A190: 606836 | B190: Arco metálico galvanizado tipo MP 152S - ovoide - vão = 8,36 m e altura = 8,23 m - aterro rodoviário mínimo = 0,90 m e máximo = 4,30 m - areia extraída e brita produzida | C190: m | D190: 70621.17
A191: 606848 | B191: Arco metálico galvanizado tipo MP 152S - ovoide - vão = 8,56 m e altura = 8,48 m - aterro rodoviário mínimo = 0,90 m e máximo = 5,30 m - areia e brita comerciais | C191: m | D191: 74115.89
A192: 606838 | B192: Arco metálico galvanizado tipo MP 152S - ovoide - vão = 8,56 m e altura = 8,48 m - aterro rodoviário mínimo = 0,90 m e máximo = 5,30 m - areia extraída e brita produzida | C192: m | D192: 73715.6
A193: 606849 | B193: Arco metálico galvanizado tipo MP 152S - ovoide - vão = 8,71 m e altura = 9,32 m - aterro rodoviário mínimo = 0,90 m e máximo = 6,00 m - areia e brita comerciais | C193: m | D193: 75712.18
A194: 606839 | B194: Arco metálico galvanizado tipo MP 152S - ovoide - vão = 8,71 m e altura = 9,32 m - aterro rodoviário mínimo = 0,90 m e máximo = 6,00 m - areia extraída e brita produzida | C194: m | D194: 75321.23
A195: 606850 | B195: Arco metálico galvanizado tipo MP 152S - ovoide - vão = 9,15 m e altura = 9,04 m - aterro rodoviário mínimo = 0,90 m e máximo = 4,70 m - areia e brita comerciais | C195: m | D195: 76356.48
A196: 606840 | B196: Arco metálico galvanizado tipo MP 152S - ovoide - vão = 9,15 m e altura = 9,04 m - aterro rodoviário mínimo = 0,90 m e máximo = 4,70 m - areia extraída e brita produzida | C196: m | D196: 75929.63
A197: 606851 | B197: Arco metálico galvanizado tipo MP 152S - ovoide - vão = 9,15 m e altura = 9,50 m - aterro rodoviário mínimo = 0,90 m e máximo = 5,70 m - areia e brita comerciais | C197: m | D197: 78582.42
A198: 606841 | B198: Arco metálico galvanizado tipo MP 152S - ovoide - vão = 9,15 m e altura = 9,50 m - aterro rodoviário mínimo = 0,90 m e máximo = 5,70 m - areia extraída e brita produzida | C198: m | D198: 78173.18
A199: 605604 | B199: Argamassa de solo-cimento com 10% de cimento e material de jazida - preparo e injeção em tunnel liner | C199: m³ | D199: 316.32
A200: 605695 | B200: Bueiro metálico com chapas múltiplas MP 100 com revestimento em epóxi - D = 0,60 m - brita comercial | C200: m | D200: 1463.25
... 6292 more rows

Sheet INSUMOS SINAPI (hidden)
A1: SINAPI - Sistema Nacional de Pesquisa de Custos e Índices da Construção Civil
A2: RELATÓRIO DE PREÇOS DE INSUMOS - ENGARGOS SOCIAIS SEM DESONERAÇÃO
A3: Mês de Referência: | B3: 05/2025 | E3: Encargos sociais sobre a mão de obra:
A4: Data de emissão: | B4: 10/06/2025 | E4: (SEM DESONERAÇÃO) | F4: CE
E5: Localidade | F5: FORTALEZA
A6: Origem de preço: | B6: C = COLETADO | C6: CR = COEFICIENTE DE REPRESENTATIVIDADE | E6: Horista | F6: 1.151
A7: Preço em branco para determinado estado significa que não houve coleta mínima de preços no mês de referência | E7: Mensalista | F7: 0.7184
A9: Acessar Fichas de Especificação Técnico dos Insumos | E9: Preços Medianos (R$):
A10: Código do Insumo | B10: Descrição do Insumo | C10: Unidade | D10: Origem de Preço | E10: CE
A11: 45333 | B11: ABERTURA PARA ENCAIXE DE CUBA OU LAVATORIO EM BANCADA DE MARMORE/ GRANITO OU OUTRO TIPO DE PEDRA NATURAL | C11: UN | D11: CR | E11: 143.16
A12: 11270 | B12: ABRACADEIRA DE LATAO PARA FIXACAO DE CABO PARA-RAIO, DIMENSOES 32 X 24 X 24 MM | C12: UN | D12: CR | E12: 3.3
A13: 412 | B13: ABRACADEIRA DE NYLON PARA AMARRACAO DE CABOS, COMPRIMENTO DE *230* X *7,6* MM | C13: UN | D13: CR | E13: 0.87
A14: 414 | B14: ABRACADEIRA DE NYLON PARA AMARRACAO DE CABOS, COMPRIMENTO DE 100 X 2,5 MM | C14: UN | D14: CR | E14: 0.05
A15: 410 | B15: ABRACADEIRA DE NYLON PARA AMARRACAO DE CABOS, COMPRIMENTO DE 150 X *3,6* MM | C15: UN | D15: CR | E15: 0.13
A16: 411 | B16: ABRACADEIRA DE NYLON PARA AMARRACAO DE CABOS, COMPRIMENTO DE 200 X *4,6* MM | C16: UN | D16: C | E16: 0.17
A17: 408 | B17: ABRACADEIRA DE NYLON PARA AMARRACAO DE CABOS, COMPRIMENTO DE 390 X *4,6* MM | C17: UN | D17: CR | E17: 0.84
A18: 39131 | B18: ABRACADEIRA EM ACO PARA AMARRACAO DE ELETRODUTOS, TIPO D, COM 1 1/2" E CUNHA DE FIXACAO | C18: UN | D18: CR | E18: 6.4
A19: 394 | B19: ABRACADEIRA EM ACO PARA AMARRACAO DE ELETRODUTOS, TIPO D, COM 1 1/2" E PARAFUSO DE FIXACAO | C19: UN | D19: CR | E19: 6.48
A20: 39130 | B20: ABRACADEIRA EM ACO PARA AMARRACAO DE ELETRODUTOS, TIPO D, COM 1 1/4" E CUNHA DE FIXACAO | C20: UN | D20: CR | E20: 5.84
A21: 395 | B21: ABRACADEIRA EM ACO PARA AMARRACAO DE ELETRODUTOS, TIPO D, COM 1 1/4" E PARAFUSO DE FIXACAO | C21: UN | D21: CR | E21: 6.24
A22: 39129 | B22: ABRACADEIRA EM ACO PARA AMARRACAO DE ELETRODUTOS, TIPO D, COM 1" E CUNHA DE FIXACAO | C22: UN | D22: CR | E22: 3.59
A23: 393 | B23: ABRACADEIRA EM ACO PARA AMARRACAO DE ELETRODUTOS, TIPO D, COM 1" E PARAFUSO DE FIXACAO | C23: UN | D23: C | E23: 3.76
A24: 39127 | B24: ABRACADEIRA EM ACO PARA AMARRACAO DE ELETRODUTOS, TIPO D, COM 1/2" E CUNHA DE FIXACAO | C24: UN | D24: CR | E24: 3.07
A25: 392 | B25: ABRACADEIRA EM ACO PARA AMARRACAO DE ELETRODUTOS, TIPO D, COM 1/2" E PARAFUSO DE FIXACAO | C25: UN | D25: CR | E25: 3.15
A26: 39133 | B26: ABRACADEIRA EM ACO PARA AMARRACAO DE ELETRODUTOS, TIPO D, COM 2 1/2" E CUNHA DE FIXACAO | C26: UN | D26: CR | E26: 8.4
A27: 397 | B27: ABRACADEIRA EM ACO PARA AMARRACAO DE ELETRODUTOS, TIPO D, COM 2 1/2" E PARAFUSO DE FIXACAO | C27: UN | D27: CR | E27: 9.27
A28: 39132 | B28: ABRACADEIRA EM ACO PARA AMARRACAO DE ELETRODUTOS, TIPO D, COM 2" E CUNHA DE FIXACAO | C28: UN | D28: CR | E28: 6.71
A29: 396 | B29: ABRACADEIRA EM ACO PARA AMARRACAO DE ELETRODUTOS, TIPO D, COM 2" E PARAFUSO DE FIXACAO | C29: UN | D29: CR | E29: 7.19
A30: 39135 | B30: ABRACADEIRA EM ACO PARA AMARRACAO DE ELETRODUTOS, TIPO D, COM 3 1/2" E CUNHA DE FIXACAO | C30: UN | D30: CR | E30: 13.44
A31: 39134 | B31: ABRACADEIRA EM ACO PARA AMARRACAO DE ELETRODUTOS, TIPO D, COM 3" E CUNHA DE FIXACAO | C31: UN | D31: CR | E31: 11.19
A32: 398 | B32: ABRACADEIRA EM ACO PARA AMARRACAO DE ELETRODUTOS, TIPO D, COM 3" E PARAFUSO DE FIXACAO | C32: UN | D32: CR | E32: 10.32
A33: 39128 | B33: ABRACADEIRA EM ACO PARA AMARRACAO DE ELETRODUTOS, TIPO D, COM 3/4" E CUNHA DE FIXACAO | C33: UN | D33: CR | E33: 3.35
A34: 400 | B34: ABRACADEIRA EM ACO PARA AMARRACAO DE ELETRODUTOS, TIPO D, COM 3/4" E PARAFUSO DE FIXACAO | C34: UN | D34: CR | E34: 3.27
A35: 39125 | B35: ABRACADEIRA EM ACO PARA AMARRACAO DE ELETRODUTOS, TIPO D, COM 3/8" E PARAFUSO DE FIXACAO | C35: UN | D35: CR | E35: 3.35
A36: 39126 | B36: ABRACADEIRA EM ACO PARA AMARRACAO DE ELETRODUTOS, TIPO D, COM 4" E CUNHA DE FIXACAO | C36: UN | D36: CR | E36: 15.12
A37: 399 | B37: ABRACADEIRA EM ACO PARA AMARRACAO DE ELETRODUTOS, TIPO D, COM 4" E PARAFUSO DE FIXACAO | C37: UN | D37: CR | E37: 13.32
A38: 39158 | B38: ABRACADEIRA EM ACO PARA AMARRACAO DE ELETRODUTOS, TIPO ECONOMICA (GOTA), COM 8" | C38: UN | D38: CR | E38: 35.76
A39: 39141 | B39: ABRACADEIRA EM ACO PARA AMARRACAO DE ELETRODUTOS, TIPO U SIMPLES, COM 1 1/2" | C39: UN | D39: CR | E39: 2.6
A40: 39140 | B40: ABRACADEIRA EM ACO PARA AMARRACAO DE ELETRODUTOS, TIPO U SIMPLES, COM 1 1/4" | C40: UN | D40: CR | E40: 2.36
A41: 39139 | B41: ABRACADEIRA EM ACO PARA AMARRACAO DE ELETRODUTOS, TIPO U SIMPLES, COM 1" | C41: UN | D41: CR | E41: 1.96
A42: 39137 | B42: ABRACADEIRA EM ACO PARA AMARRACAO DE ELETRODUTOS, TIPO U SIMPLES, COM 1/2" | C42: UN | D42: CR | E42: 1.35
A43: 39143 | B43: ABRACADEIRA EM ACO PARA AMARRACAO DE ELETRODUTOS, TIPO U SIMPLES, COM 2 1/2" | C43: UN | D43: CR | E43: 5.35
A44: 39142 | B44: ABRACADEIRA EM ACO PARA AMARRACAO DE ELETRODUTOS, TIPO U SIMPLES, COM 2" | C44: UN | D44: CR | E44: 3.84
A45: 39144 | B45: ABRACADEIRA EM ACO PARA AMARRACAO DE ELETRODUTOS, TIPO U SIMPLES, COM 3" | C45: UN | D45: CR | E45: 6.24
A46: 39138 | B46: ABRACADEIRA EM ACO PARA AMARRACAO DE ELETRODUTOS, TIPO U SIMPLES, COM 3/4" | C46: UN | D46: CR | E46: 1.43
A47: 39136 | B47: ABRACADEIRA EM ACO PARA AMARRACAO DE ELETRODUTOS, TIPO U SIMPLES, COM 3/8" | C47: UN | D47: CR | E47: 0.95
A48: 39145 | B48: ABRACADEIRA EM ACO PARA AMARRACAO DE ELETRODUTOS, TIPO U SIMPLES, COM 4" | C48: UN | D48: CR | E48: 10.28
A49: 12615 | B49: ABRACADEIRA PVC, PARA CALHA PLUVIAL, DIAMETRO ENTRE *80 E 100* MM, PARA DRENAGEM PLUVIAL PREDIAL | C49: UN | D49: CR | E49: 12.58
A50: 11927 | B50: ABRACADEIRA, GALVANIZADA/ZINCADA, ROSCA SEM FIM, PARAFUSO INOX, LARGURA FITA *12,6 A *14 MM, D = 2" A 2 1/2" | C50: UN | D50: CR | E50: 9.85
A51: 11928 | B51: ABRACADEIRA, GALVANIZADA/ZINCADA, ROSCA SEM FIM, PARAFUSO INOX, LARGURA FITA *12,6 A *14 MM, D = 3" A 3 3/4" | C51: UN | D51: CR | E51: 11.28
A52: 11929 | B52: ABRACADEIRA, GALVANIZADA/ZINCADA, ROSCA SEM FIM, PARAFUSO INOX, LARGURA FITA *12,6 A *14 MM, D = 4" A 4 3/4" | C52: UN | D52: CR | E52: 17.45
A53: 36801 | B53: ACABAMENTO DE METAL CROMADO PARA REGISTRO PEQUENO, DE PAREDE, 1/2" OU 3/4" | C53: UN | D53: CR | E53: 33.08
A54: 36246 | B54: ACABAMENTO SIMPLES/CONVENCIONAL PARA FORRO PVC, TIPO "U" OU "C", COR BRANCA, COMPRIMENTO 6 M | C54: M | D54: CR
A55: 37600 | B55: ACESSORIO DE LIGACAO NAO ELETRICO PARA CARGAS EXPLOSIVAS, TUBO DE 6 M | C55: UN | D55: CR
A56: 37599 | B56: ACESSORIO INICIADOR NAO ELETRICO, TUBO DE 6 M, TEMPO DE RETARDO DE *160* MS | C56: UN | D56: CR
A57: 1 | B57: ACETILENO - RECARGA DE GAS PARA CILINDRO (NAO INCLUI TROCA/MANUTENCAO DO CILINDRO) | C57: KG | D57: C | E57: 90.35
A58: 3 | B58: ACIDO CLORIDRICO / ACIDO MURIATICO, DILUICAO 10% A 12% PARA USO EM LIMPEZA | C58: L | D58: CR | E58: 19.66
A59: 43054 | B59: ACO CA-25, 10,0 MM, OU 12,5 MM, OU 16,0 MM, OU 20,0 MM, OU 25,0 MM, VERGALHAO | C59: KG | D59: CR | E59: 8.97
A60: 42402 | B60: ACO CA-25, 16,0 MM, BARRA DE TRANSFERENCIA | C60: KG | D60: CR | E60: 8.57
A61: 42403 | B61: ACO CA-25, 20,0 MM, BARRA DE TRANSFERENCIA | C61: KG | D61: CR | E61: 10.99
A62: 42404 | B62: ACO CA-25, 25,0 MM, BARRA DE TRANSFERENCIA | C62: KG | D62: CR | E62: 10.93
A63: 42405 | B63: ACO CA-25, 32,0 MM, BARRA DE TRANSFERENCIA | C63: KG | D63: CR | E63: 11.64
A64: 34341 | B64: ACO CA-25, 32,0 MM, VERGALHAO | C64: KG | D64: CR | E64: 10.11
A65: 43053 | B65: ACO CA-25, 6,3 MM OU 8,0 MM, VERGALHAO | C65: KG | D65: CR | E65: 8.01
A66: 43058 | B66: ACO CA-50, 10,0 MM, OU 12,5 MM, OU 16,0 MM, OU 20,0 MM, DOBRADO E CORTADO | C66: KG | D66: CR | E66: 8.3
A67: 34 | B67: ACO CA-50, 10,0 MM, VERGALHAO | C67: KG | D67: CR | E67: 8.35
A68: 43055 | B68: ACO CA-50, 12,5 MM OU 16,0 MM, VERGALHAO | C68: KG | D68: C | E68: 7.23
A69: 43056 | B69: ACO CA-50, 20,0 MM OU 25,0 MM, VERGALHAO | C69: KG | D69: CR | E69: 8.33
A70: 43057 | B70: ACO CA-50, 32,0 MM, VERGALHAO | C70: KG | D70: CR | E70: 9.16
A71: 34449 | B71: ACO CA-50, 6,3 MM, DOBRADO E CORTADO | C71: KG | D71: CR | E71: 9.79
A72: 32 | B72: ACO CA-50, 6,3 MM, VERGALHAO | C72: KG | D72: CR | E72: 8.8
A73: 33 | B73: ACO CA-50, 8,0 MM, VERGALHAO | C73: KG | D73: CR | E73: 8.85
A74: 43061 | B74: ACO CA-60, 4,2 MM OU 5,0 MM, DOBRADO E CORTADO | C74: KG | D74: CR | E74: 8.27
A75: 43059 | B75: ACO CA-60, 4,2 MM, OU 5,0 MM, OU 6,0 MM, OU 7,0 MM, VERGALHAO | C75: KG | D75: CR | E75: 7.9
A76: 43062 | B76: ACO CA-60, 6,0 MM OU 7,0 MM, DOBRADO E CORTADO | C76: KG | D76: CR | E76: 8.75
A77: 43060 | B77: ACO CA-60, 8,0 MM OU 9,5 MM, VERGALHAO | C77: KG | D77: CR | E77: 6.88
A78: 40410 | B78: ACOPLAMENTO RIGIDO EM FERRO FUNDIDO PARA SISTEMA DE TUBULACAO RANHURADA, DN 50 MM (2") | C78: UN | D78: C
A79: 40411 | B79: ACOPLAMENTO RIGIDO EM FERRO FUNDIDO PARA SISTEMA DE TUBULACAO RANHURADA, DN 65 MM (2 1/2") | C79: UN | D79: CR
A80: 40412 | B80: ACOPLAMENTO RIGIDO EM FERRO FUNDIDO PARA SISTEMA DE TUBULACAO RANHURADA, DN 80 MM (3") | C80: UN | D80: CR
A81: 44254 | B81: ADAPTADOR CPVC, ROSCAVEL, COM FLANGES E ANEL DE VEDACAO, 15 MM, CAIXA D'AGUA PARA AGUA QUENTE | C81: UN | D81: CR | E81: 30.23
A82: 44255 | B82: ADAPTADOR CPVC, ROSCAVEL, COM FLANGES E ANEL DE VEDACAO, 22 MM, CAIXA D'AGUA PARA AGUA QUENTE | C82: UN | D82: CR | E82: 33.51
A83: 44256 | B83: ADAPTADOR CPVC, ROSCAVEL, COM FLANGES E ANEL DE VEDACAO, 28 MM, CAIXA D'AGUA PARA AGUA QUENTE | C83: UN | D83: CR | E83: 37.85
A84: 44257 | B84: ADAPTADOR CPVC, ROSCAVEL, COM FLANGES E ANEL DE VEDACAO, 35 MM, CAIXA D'AGUA PARA AGUA QUENTE | C84: UN | D84: CR | E84: 59.88
A85: 44258 | B85: ADAPTADOR CPVC, ROSCAVEL, COM FLANGES E ANEL DE VEDACAO, 42 MM, CAIXA D'AGUA PARA AGUA QUENTE | C85: UN | D85: CR | E85: 68.43
A86: 44259 | B86: ADAPTADOR CPVC, ROSCAVEL, COM FLANGES E ANEL DE VEDACAO, 54 MM, CAIXA D'AGUA PARA AGUA QUENTE | C86: UN | D86: CR | E86: 93.93
A87: 37997 | B87: ADAPTADOR CPVC, SOLDAVEL, 15 MM, PARA AGUA QUENTE | C87: UN | D87: CR | E87: 18.01
A88: 37998 | B88: ADAPTADOR CPVC, SOLDAVEL, 22 MM, PARA AGUA QUENTE | C88: UN | D88: CR | E88: 24.11
A89: 55 | B89: ADAPTADOR DE COMPRESSAO EM POLIPROPILENO (PP), PARA TUBO EM PEAD, 20 MM X 1/2", PARA LIGACAO PREDIAL DE AGUA (NTS 179) | C89: UN | D89: C
A90: 61 | B90: ADAPTADOR DE COMPRESSAO EM POLIPROPILENO (PP), PARA TUBO EM PEAD, 20 MM X 3/4", PARA LIGACAO PREDIAL DE AGUA (NTS 179) | C90: UN | D90: CR
A91: 62 | B91: ADAPTADOR DE COMPRESSAO EM POLIPROPILENO (PP), PARA TUBO EM PEAD, 32 MM X 1", PARA LIGACAO PREDIAL DE AGUA (NTS 179) | C91: UN | D91: CR
A92: 10899 | B92: ADAPTADOR EM LATAO, ENGATE RAPIDO 2 1/2" X ROSCA INTERNA 5 FIOS 2 1/2", PARA INSTALACAO PREDIAL DE COMBATE A INCENDIO | C92: UN | D92: CR | E92: 89.37
A93: 10900 | B93: ADAPTADOR EM LATAO, ENGATE RAPIDO1 1/2" X ROSCA INTERNA 5 FIOS 2 1/2", PARA INSTALACAO PREDIAL DE COMBATE A INCENDIO | C93: UN | D93: CR | E93: 69.94
A94: 47 | B94: ADAPTADOR PVC PBA, BOLSA/ROSCA, JE, DN 100 / DE 110 MM | C94: UN | D94: CR
A95: 48 | B95: ADAPTADOR PVC PBA, BOLSA/ROSCA, JE, DN 50 / DE 60 MM | C95: UN | D95: CR
A96: 46 | B96: ADAPTADOR PVC PBA, BOLSA/ROSCA, JE, DN 75 / DE 85 MM | C96: UN | D96: CR
A97: 52 | B97: ADAPTADOR PVC PBA, PONTA/ROSCA, JE, DN 50 / DE 60 MM | C97: UN | D97: CR
A98: 43 | B98: ADAPTADOR PVC PBA, PONTA/ROSCA, JE, DN 75 / DE 85 MM | C98: UN | D98: CR
A99: 103 | B99: ADAPTADOR PVC SOLDAVEL CURTO COM BOLSA E ROSCA, 110 MM X 4", PARA AGUA FRIA | C99: UN | D99: CR | E99: 40.41
A100: 107 | B100: ADAPTADOR PVC SOLDAVEL CURTO COM BOLSA E ROSCA, 20 MM X 1/2", PARA AGUA FRIA | C100: UN | D100: CR | E100: 0.76
A101: 65 | B101: ADAPTADOR PVC SOLDAVEL CURTO COM BOLSA E ROSCA, 25 MM X 3/4", PARA AGUA FRIA | C101: UN | D101: CR | E101: 0.83
A102: 108 | B102: ADAPTADOR PVC SOLDAVEL CURTO COM BOLSA E ROSCA, 32 MM X 1", PARA AGUA FRIA | C102: UN | D102: CR | E102: 1.67
A103: 110 | B103: ADAPTADOR PVC SOLDAVEL CURTO COM BOLSA E ROSCA, 40 MM X 1 1/2", PARA AGUA FRIA | C103: UN | D103: CR | E103: 5.81
A104: 109 | B104: ADAPTADOR PVC SOLDAVEL CURTO COM BOLSA E ROSCA, 40 MM X 1 1/4", PARA AGUA FRIA | C104: UN | D104: CR | E104: 3.46
A105: 111 | B105: ADAPTADOR PVC SOLDAVEL CURTO COM BOLSA E ROSCA, 50 MM X 1 1/4", PARA AGUA FRIA | C105: UN | D105: CR | E105: 7.86
A106: 112 | B106: ADAPTADOR PVC SOLDAVEL CURTO COM BOLSA E ROSCA, 50 MM X1 1/2", PARA AGUA FRIA | C106: UN | D106: CR | E106: 4.17
A107: 113 | B107: ADAPTADOR PVC SOLDAVEL CURTO COM BOLSA E ROSCA, 60 MM X 2", PARA AGUA FRIA | C107: UN | D107: CR | E107: 10.43
A108: 104 | B108: ADAPTADOR PVC SOLDAVEL CURTO COM BOLSA E ROSCA, 75 MM X 2 1/2", PARA AGUA FRIA | C108: UN | D108: CR | E108: 18.16
A109: 102 | B109: ADAPTADOR PVC SOLDAVEL CURTO COM BOLSA E ROSCA, 85 MM X 3", PARA AGUA FRIA | C109: UN | D109: CR | E109: 25.04
A110: 95 | B110: ADAPTADOR PVC SOLDAVEL, COM FLANGE E ANEL DE VEDACAO, 20 MM X 1/2", PARA CAIXA D'AGUA | C110: UN | D110: CR | E110: 10.58
A111: 96 | B111: ADAPTADOR PVC SOLDAVEL, COM FLANGE E ANEL DE VEDACAO, 25 MM X 3/4", PARA CAIXA D'AGUA | C111: UN | D111: CR | E111: 11.51
A112: 97 | B112: ADAPTADOR PVC SOLDAVEL, COM FLANGE E ANEL DE VEDACAO, 32 MM X 1", PARA CAIXA D'AGUA | C112: UN | D112: CR | E112: 17.32
A113: 98 | B113: ADAPTADOR PVC SOLDAVEL, COM FLANGE E ANEL DE VEDACAO, 40 MM X 1 1/4", PARA CAIXA D'AGUA | C113: UN | D113: CR | E113: 25.92
A114: 99 | B114: ADAPTADOR PVC SOLDAVEL, COM FLANGE E ANEL DE VEDACAO, 50 MM X 1 1/2", PARA CAIXA D'AGUA | C114: UN | D114: CR | E114: 24.5
A115: 60 | B115: ADAPTADOR PVC, COM REGISTRO, PARA PEAD, 20 MM X 3/4", PARA LIGACAO PREDIAL DE AGUA | C115: UN | D115: CR
A116: 72 | B116: ADAPTADOR PVC, ROSCAVEL, COM FLANGES E ANEL DE VEDACAO, 1 1/2", PARA CAIXA D'AGUA | C116: UN | D116: CR | E116: 46.99
A117: 71 | B117: ADAPTADOR PVC, ROSCAVEL, COM FLANGES E ANEL DE VEDACAO, 1", PARA CAIXA D'AGUA | C117: UN | D117: CR | E117: 29.02
A118: 67 | B118: ADAPTADOR PVC, ROSCAVEL, COM FLANGES E ANEL DE VEDACAO, 1/2", PARA CAIXA D'AGUA | C118: UN | D118: CR | E118: 15.19
A119: 73 | B119: ADAPTADOR PVC, ROSCAVEL, COM FLANGES E ANEL DE VEDACAO, 3/4", PARA CAIXA D'AGUA | C119: UN | D119: CR | E119: 14.54
A120: 100 | B120: ADAPTADOR PVC, SOLDAVEL, COM FLANGES E ANEL DE VEDACAO, 60 MM X 2", PARA CAIXA D'AGUA | C120: UN | D120: CR | E120: 42.8
A121: 75 | B121: ADAPTADOR PVC, SOLDAVEL, COM FLANGES LIVRES, 110 MM X 4", PARA CAIXA D'AGUA | C121: UN | D121: CR | E121: 249.56
A122: 83 | B122: ADAPTADOR PVC, SOLDAVEL, COM FLANGES LIVRES, 75 MM X 2 1/2", PARA CAIXA D'AGUA | C122: UN | D122: CR | E122: 199.52
A123: 74 | B123: ADAPTADOR PVC, SOLDAVEL, COM FLANGES LIVRES, 85 MM X 3", PARA CAIXA D'AGUA | C123: UN | D123: CR | E123: 285.25
A124: 106 | B124: ADAPTADOR PVC, SOLDAVEL, LONGO, COM FLANGE LIVRE, 110 MM X 4", PARA CAIXA D'AGUA | C124: UN | D124: CR | E124: 360.72
A125: 88 | B125: ADAPTADOR PVC, SOLDAVEL, LONGO, COM FLANGE LIVRE, 32 MM X 1", PARA CAIXA D'AGUA | C125: UN | D125: CR | E125: 10.14
A126: 82 | B126: ADAPTADOR PVC, SOLDAVEL, LONGO, COM FLANGE LIVRE, 75 MM X 2 1/2", PARA CAIXA D'AGUA | C126: UN | D126: CR | E126: 189.82
A127: 105 | B127: ADAPTADOR PVC, SOLDAVEL, LONGO, COM FLANGE LIVRE, 85 MM X 3", PARA CAIXA D'AGUA | C127: UN | D127: CR | E127: 268.98
A128: 39719 | B128: ADESIVO / COLA DE CONTATO LIQUIDO, A BASE DE RESINAS, PARA COLAGEM DE ESPUMA PARA ISOLAMENTO TERMICO FLEXIVEL | C128: L | D128: CR | E128: 161.72
A129: 3410 | B129: ADESIVO / COLA PARA EPS (ISOPOR) E OUTROS MATERIAIS | C129: KG | D129: CR | E129: 36.38
A130: 4791 | B130: ADESIVO ACRILICO DE BASE AQUOSA / COLA DE CONTATO | C130: KG | D130: CR | E130: 50.28
A131: 157 | B131: ADESIVO ESTRUTURAL A BASE DE RESINA EPOXI PARA INJECAO EM TRINCAS, BICOMPONENTE, BAIXA VISCOSIDADE | C131: KG | D131: CR | E131: 215.65
A132: 156 | B132: ADESIVO ESTRUTURAL A BASE DE RESINA EPOXI, BICOMPONENTE, FLUIDO | C132: KG | D132: CR | E132: 76.78
A133: 131 | B133: ADESIVO ESTRUTURAL A BASE DE RESINA EPOXI, BICOMPONENTE, PASTOSO (TIXOTROPICO) | C133: KG | D133: CR | E133: 65.66
A134: 21114 | B134: ADESIVO PARA TUBOS CPVC, *75* G | C134: UN | D134: CR | E134: 31.88
A135: 119 | B135: ADESIVO PLASTICO PARA PVC, BISNAGA COM 75 GR | C135: UN | D135: C | E135: 8.08
A136: 122 | B136: ADESIVO PLASTICO PARA PVC, FRASCO COM *850* GR | C136: UN | D136: CR | E136: 62.17
A137: 20080 | B137: ADESIVO PLASTICO PARA PVC, FRASCO COM 175 GR | C137: UN | D137: CR | E137: 20.29
A138: 124 | B138: ADITIVO ACELERADOR DE PEGA E ENDURECIMENTO PARA ARGAMASSAS E CONCRETOS, LIQUIDO E ISENTO DE CLORETOS | C138: L | D138: CR | E138: 25.32
A139: 7334 | B139: ADITIVO ADESIVO LIQUIDO PARA ARGAMASSAS DE REVESTIMENTOS CIMENTICIOS | C139: L | D139: CR
A140: 45146 | B140: ADITIVO IMPERMEABILIZANTE CRISTALIZANTE PARA CONCRETO | C140: KG | D140: CR | E140: 48.56
A141: 123 | B141: ADITIVO IMPERMEABILIZANTE DE PEGA NORMAL PARA ARGAMASSAS E CONCRETOS SEM ARMACAO, LIQUIDO E ISENTO DE CLORETOS | C141: L | D141: C | E141: 10.36
A142: 127 | B142: ADITIVO IMPERMEABILIZANTE DE PEGA ULTRARRAPIDA, LIQUIDO E ISENTO DE CLORETOS | C142: L | D142: CR | E142: 24.73
A143: 133 | B143: ADITIVO LIQUIDO INCORPORADOR DE AR PARA CONCRETO E ARGAMASSA, LIQUIDO E ISENTO DE CLORETOS | C143: L | D143: CR | E143: 10.27
A144: 43617 | B144: ADITIVO PLASTIFICANTE E ESTABILIZADOR PARA ARGAMASSAS DE ASSENTAMENTO E REBOCO, LIQUIDO E ISENTO DE CLORETOS | C144: L | D144: CR | E144: 11.48
A145: 132 | B145: ADITIVO PLASTIFICANTE RETARDADOR DE PEGA E REDUTOR DE AGUA PARA CONCRETO, LIQUIDO E ISENTO DE CLORETOS | C145: L | D145: CR | E145: 10.65
A146: 43618 | B146: ADITIVO SUPERPLASTIFICANTE DE PEGA NORMAL PARA CONCRETO, LIQUIDO E ISENTO DE CLORETOS | C146: KG | D146: CR | E146: 26.81
A147: 37476 | B147: ADUELA/ GALERIA PRE-MOLDADA DE CONCRETO ARMADO, SECAO QUADRADA INTERNA DE 1,50 X 1,50 M (L X A), MISULA DE 20 X 20 CM, C = 1,00 M, ESPESSURA MIN = 15 CM, TB-45 E FCK DO CONCRETO = 30 MPA | C147: UN | D147: CR
A148: 37478 | B148: ADUELA/ GALERIA PRE-MOLDADA DE CONCRETO ARMADO, SECAO RETANGULAR INTERNA DE 2,00 X 2,00 M (L X A), MISULA DE 20 X 20 CM, C = 1,00 M, ESPESSURA MIN = 15 CM, TB-45 E FCK DO CONCRETO = 30 MPA | C148: UN | D148: CR
A149: 37477 | B149: ADUELA/ GALERIA PRE-MOLDADA DE CONCRETO ARMADO, SECAO RETANGULAR INTERNA DE 2,50 X 2,50 M (L X A), MISULA DE 20 X 20 CM, C = 1,00 M, ESPESSURA MIN = 15 CM, TB-45 E FCK DO CONCRETO = 30 MPA | C149: UN | D149: CR
A150: 37479 | B150: ADUELA/ GALERIA PRE-MOLDADA DE CONCRETO ARMADO, SECAO RETANGULAR INTERNA DE 3,00 X 3,00 M (L X A), MISULA DE 20 X 20 CM, C = 1.00 M, ESPESSURA MIN = 20 CM, TB-45 E FCK DO CONCRETO = 30 MPA | C150: UN | D150: CR
A151: 4319 | B151: AFASTADOR PARA TELHA DE FIBROCIMENTO CANALETE 90 OU KALHETAO | C151: UN | D151: CR | E151: 1.27
A152: 42409 | B152: AGENTE DE CURA, PROTETOR DA EVAPORACAO DA AGUA DE HIDRATACAO DO CONCRETO | C152: KG | D152: CR | E152: 16.88
A153: 40553 | B153: AGREGADO RECICLADO, TIPO RACHAO RECICLADO CINZA, CLASSE A | C153: M3 | D153: C
A154: 6114 | B154: AJUDANTE DE ARMADOR (HORISTA) | C154: H | D154: CR | E154: 14.35
A155: 40912 | B155: AJUDANTE DE ARMADOR (MENSALISTA) | C155: MES | D155: CR | E155: 2523.52
A156: 247 | B156: AJUDANTE DE ELETRICISTA (HORISTA) | C156: H | D156: CR | E156: 14.35
A157: 40919 | B157: AJUDANTE DE ELETRICISTA (MENSALISTA) | C157: MES | D157: CR | E157: 2523.52
A158: 44499 | B158: AJUDANTE DE ESTRUTURAS METALICAS (HORISTA) | C158: H | D158: CR | E158: 14.35
A159: 40984 | B159: AJUDANTE DE ESTRUTURAS METALICAS (MENSALISTA) | C159: MES | D159: CR | E159: 2523.52
A160: 248 | B160: AJUDANTE DE OPERACAO EM GERAL (HORISTA) | C160: H | D160: CR | E160: 13.56
A161: 41086 | B161: AJUDANTE DE OPERACAO EM GERAL (MENSALISTA) | C161: MES | D161: CR | E161: 2385.83
A162: 34466 | B162: AJUDANTE DE PINTOR (HORISTA) | C162: H | D162: CR | E162: 14.35
A163: 41083 | B163: AJUDANTE DE PINTOR (MENSALISTA) | C163: MES | D163: CR | E163: 2523.52
A164: 252 | B164: AJUDANTE DE SERRALHEIRO (HORISTA) | C164: H | D164: CR | E164: 14.35
A165: 40909 | B165: AJUDANTE DE SERRALHEIRO (MENSALISTA) | C165: MES | D165: CR | E165: 2523.52
A166: 242 | B166: AJUDANTE ESPECIALIZADO (HORISTA) | C166: H | D166: CR | E166: 13.56
A167: 41085 | B167: AJUDANTE ESPECIALIZADO (MENSALISTA) | C167: MES | D167: CR | E167: 2385.83
A168: 427 | B168: ALCA PREFORMADA DE CONTRA POSTE, EM ACO GALVANIZADO, PARA CABO 3/16", COMPRIMENTO *860* MM | C168: UN | D168: CR
A169: 417 | B169: ALCA PREFORMADA DE DISTRIBUICAO, EM ACO GALVANIZADO, PARA CABO DE ALUMINIO DIAMETRO 16 A 25 MM | C169: UN | D169: CR
A170: 11273 | B170: ALCA PREFORMADA DE DISTRIBUICAO, EM ACO GALVANIZADO, PARA CONDUTORES DE ALUMINIO AWG 1/0 (CAA 6/1 OU CA 7 FIOS) | C170: UN | D170: CR
A171: 11272 | B171: ALCA PREFORMADA DE DISTRIBUICAO, EM ACO GALVANIZADO, PARA CONDUTORES DE ALUMINIO AWG 2 (CAA 6/1 OU CA 7 FIOS) | C171: UN | D171: CR
A172: 11275 | B172: ALCA PREFORMADA DE SERVICO, EM ACO GALVANIZADO, PARA CONDUTORES DE ALUMINIO AWG 4 (CAA 6/1) | C172: UN | D172: CR
A173: 11274 | B173: ALCA PREFORMADA DE SERVICO, EM ACO GALVANIZADO, PARA CONDUTORES DE ALUMINIO AWG 6 (CAA 6/1) | C173: UN | D173: CR
A174: 45250 | B174: ALICATE BICO LONGO (MEIA CANA) 6", COM ISOLAMENTO ATE 1000 V | C174: UN | D174: CR
A175: 38470 | B175: ALICATE DE CORTE DIAGONAL 6" COM ISOLAMENTO | C175: UN | D175: C | E175: 54.4
A176: 38547 | B176: ALICATE DE CRIMPAR RJ11, RJ12 E RJ45, COM CATRACA | C176: UN | D176: CR
A177: 38467 | B177: ALICATE DE PRESSAO 11" PARA SOLDA, TIPO C | C177: UN | D177: CR | E177: 89.81
A178: 38468 | B178: ALICATE DE PRESSAO 11" PARA SOLDA, TIPO U | C178: UN | D178: CR | E178: 98.83
A179: 38469 | B179: ALICATE DE PRESSAO PARA SOLDA DE CHAPA 18" | C179: UN | D179: CR
A180: 45197 | B180: ALICATE DESENCAPADOR AUTOMATICO 8" | C180: UN | D180: CR
A181: 38471 | B181: ALICATE PARA ANEIS DE PISTAO, CAPACIDADE *50* A 100 MM | C181: UN | D181: CR
A182: 45206 | B182: ALICATE PROFISSIONAL 8", UNIVERSAL, COM ISOLAMENTO ATE 1000 V | C182: UN | D182: CR
A183: 37370 | B183: ALIMENTACAO - HORISTA (COLETADO CAIXA - ENCARGOS COMPLEMENTARES) | C183: H | D183: C | E183: 3.62
A184: 40862 | B184: ALIMENTACAO - MENSALISTA (COLETADO CAIXA - ENCARGOS COMPLEMENTARES) | C184: MES | D184: C | E184: 682.64
A185: 10658 | B185: ALISADORA DE CONCRETO COM MOTOR A GASOLINA DE 5,5 HP, PESO COM MOTOR DE 78 KG, 4 PAS | C185: UN | D185: C
A186: 253 | B186: ALMOXARIFE (HORISTA) | C186: H | D186: C | E186: 18.29
A187: 40809 | B187: ALMOXARIFE (MENSALISTA) | C187: MES | D187: CR | E187: 3214.9
A188: 42428 | B188: ALONGADOR COM TRES ALTURAS, EM TUBO DE ACO CARBONO, PINTURA NO PROCESSO ELETROSTATICO - EQUIPAMENTO DE GINASTICA PARA ACADEMIA AO AR LIVRE / ACADEMIA DA TERCEIRA IDADE - ATI | C188: UN | D188: C
A189: 301 | B189: ANEL BORRACHA PARA TUBO ESGOTO PREDIAL, DN 100 MM (NBR 5688) | C189: UN | D189: C | E189: 4.5
A190: 296 | B190: ANEL BORRACHA PARA TUBO ESGOTO PREDIAL, DN 50 MM (NBR 5688) | C190: UN | D190: CR | E190: 2.54
A191: 297 | B191: ANEL BORRACHA PARA TUBO ESGOTO PREDIAL, DN 75 MM (NBR 5688) | C191: UN | D191: CR | E191: 3.74
A192: 299 | B192: ANEL BORRACHA, DN 100 MM, PARA TUBO SERIE REFORCADA ESGOTO PREDIAL | C192: UN | D192: CR | E192: 5.28
A193: 300 | B193: ANEL BORRACHA, DN 150 MM, PARA TUBO SERIE REFORCADA ESGOTO PREDIAL | C193: UN | D193: CR | E193: 18.27
A194: 20085 | B194: ANEL BORRACHA, DN 50 MM, PARA TUBO SERIE REFORCADA ESGOTO PREDIAL | C194: UN | D194: CR | E194: 3.34
A195: 298 | B195: ANEL BORRACHA, DN 75 MM, PARA TUBO SERIE REFORCADA ESGOTO PREDIAL | C195: UN | D195: CR | E195: 4.06
A196: 311 | B196: ANEL BORRACHA, PARA TUBO PVC DEFOFO, DN 100 MM (NBR 7665) | C196: UN | D196: CR | E196: 15.06
A197: 318 | B197: ANEL BORRACHA, PARA TUBO PVC DEFOFO, DN 150 MM (NBR 7665) | C197: UN | D197: CR | E197: 30.34
A198: 319 | B198: ANEL BORRACHA, PARA TUBO PVC DEFOFO, DN 200 MM (NBR 7665) | C198: UN | D198: CR | E198: 47.57
A199: 303 | B199: ANEL BORRACHA, PARA TUBO PVC, REDE COLETOR ESGOTO, DN 100 MM (NBR 7362) | C199: UN | D199: CR | E199: 4.98
A200: 305 | B200: ANEL BORRACHA, PARA TUBO PVC, REDE COLETOR ESGOTO, DN 150 MM (NBR 7362) | C200: UN | D200: CR | E200: 15.68
A201: 306 | B201: ANEL BORRACHA, PARA TUBO PVC, REDE COLETOR ESGOTO, DN 200 MM (NBR 7362) | C201: UN | D201: CR | E201: 23.78
... 4681 more rows

Sheet COMP Sint. Sinapi (hidden)
A1: SINAPI - Sistema Nacional de Pesquisa de Custos e Índices da Construção Civil
A2: RELATÓRIO DE CUSTOS DE COMPOSIÇÕES - ENCARGOS SOCIAIS SEM DESONERAÇÃO
A3: Mês de Referência: | B3: 05/2025 | D3: Encargos sociais sobre a mão de obra:
A4: Data de emissão: | B4: 10/06/2025 | D4: (SEM DESONERAÇÃO) | E4: CE
D5: Localidade | E5: FORTALEZA
A6: Observação: | B6: %AS (porcentagem Atribuído São Paulo) corresponde a porcentagem do custo total da | D6: Horista | E6: 1.151
B7: composição que foi obtida utilizando preços de insumos de São Paulo por indisponibilidade | D7: Mensalista | E7: 0.7184
B8: dos preços de insumos necessários à composição no estado em questão. Custo zerado (hífen)
B9: indica que pelo menos um dos itens da composição não tem custo/preço. | E9: CE
A10: Código da Composição | B10: Descrição | C10: Unidade | D10: Custo (R$) | E10: %AS
A11: 104658 | B11: PISO PODOTÁTIL DE ALERTA OU DIRECIONAL, DE CONCRETO, ASSENTADO SOBRE ARGAMASSA. AF_03/2024 | C11: M2 | D11: 135.89 | E11: 0
A12: 105002 | B12: RAMPA DE ACESSIBILIDADE EM CONCRETO MOLDADO IN LOCO, EM CALÇADA NOVA COM LARGURA MAIOR OU IGUAL À 3,00 M, FCK 25MPA, COM PISO PODOTÁTIL. AF_03/2024 | C12: UN | D12: 611.12 | E12: 0.0009
A13: 105004 | B13: RAMPA DE ACESSIBILIDADE EM CONCRETO MOLDADO IN LOCO, EM CALÇADA NOVA COM LARGURA MENOR À 3,00 M, FCK 25MPA, COM PISO PODOTÁTIL. AF_03/2024 | C13: M2 | D13: 103.31 | E13: 0.001
A14: 105003 | B14: RAMPA DE ACESSIBILIDADE EM CONCRETO MOLDADO IN LOCO, EM CALÇADA PRÉ EXISTENTE COM LARGURA MAIOR OU IGUAL À 3,00 M, FCK 25MPA, COM PISO PODOTÁTIL. AF_03/2024 | C14: UN | D14: 949.71 | E14: 0.0637
A15: 105005 | B15: RAMPA DE ACESSIBILIDADE EM CONCRETO MOLDADO IN LOCO, EM CALÇADA PRÉ EXISTENTE COM LARGURA MENOR À 3,00 M, FCK 25MPA, COM PISO PODOTÁTIL. AF_03/2024 | C15: M2 | D15: 165.99 | E15: 0.0674
A16: 105006 | B16: RAMPA DE ACESSIBILIDADE EM CONCRETO PRÉ MOLDADO, EM CALÇADA NOVA COM LARGURA MAIOR OU IGUAL À 3,00 M, FCK 25MPA, COM PISO PODOTÁTIL. AF_03/2024 | C16: UN | D16: 0
A17: 104999 | B17: RAMPA DE ACESSIBILIDADE EM CONCRETO PRÉ MOLDADO, EM CALÇADA PRÉ EXISTENTE COM LARGURA MAIOR OU IGUAL À 3,00 M, FCK 25MPA, COM PISO PODOTÁTIL. AF_03/2024 | C17: UN | D17: 0
A18: 105000 | B18: RAMPA DE ACESSIBILIDADE PARA ACESSO A EDIFICAÇÕES COM INCLINAÇÃO DE 8,33% EM CONCRETO MOLDADO IN LOCO, COM LARGURA DE 1,20M, FCK 25MPA, NÃO ARMADA, COM JUNTA A CADA 2M COM CORTE À SECO. AF_03/2024 | C18: M | D18: 1177.3 | E18: 0.5266
A19: 105001 | B19: RAMPA DE ACESSIBILIDADE PARA ACESSO A EDIFICAÇÕES COM INCLINAÇÃO DE 8,33% EM CONCRETO MOLDADO IN LOCO, COM LARGURA DE 1,50M, FCK 25MPA, NÃO ARMADA, COM JUNTA A CADA 2M COM CORTE À SECO. AF_03/2024 | C19: M | D19: 1207.08 | E19: 0.5136
A20: 89306 | B20: ALVENARIA ESTRUTURAL DE BLOCOS CERÂMICOS 14X19X29, (ESPESSURA DE 14 CM), UTILIZANDO COLHER DE PEDREIRO E ARGAMASSA DE ASSENTAMENTO COM PREPARO EM BETONEIRA. AF_03/2023 | C20: M2 | D20: 79.49 | E20: 0.0005
A21: 89307 | B21: ALVENARIA ESTRUTURAL DE BLOCOS CERÂMICOS 14X19X29, (ESPESSURA DE 14 CM), UTILIZANDO COLHER DE PEDREIRO E ARGAMASSA DE ASSENTAMENTO COM PREPARO MANUAL. AF_03/2023 | C21: M2 | D21: 81.01 | E21: 0
A22: 89290 | B22: ALVENARIA ESTRUTURAL DE BLOCOS CERÂMICOS 14X19X29, (ESPESSURA DE 14 CM), UTILIZANDO PALHETA E ARGAMASSA DE ASSENTAMENTO COM PREPARO EM BETONEIRA. AF_03/2023 | C22: M2 | D22: 67.94 | E22: 0.0004
A23: 89291 | B23: ALVENARIA ESTRUTURAL DE BLOCOS CERÂMICOS 14X19X29, (ESPESSURA DE 14 CM), UTILIZANDO PALHETA E ARGAMASSA DE ASSENTAMENTO COM PREPARO MANUAL. AF_03/2023 | C23: M2 | D23: 69.07 | E23: 0
A24: 89298 | B24: ALVENARIA ESTRUTURAL DE BLOCOS CERÂMICOS 14X19X39, (ESPESSURA DE 14 CM), UTILIZANDO COLHER DE PEDREIRO E ARGAMASSA DE ASSENTAMENTO COM PREPARO EM BETONEIRA. AF_03/2023 | C24: M2 | D24: 71.03 | E24: 0.0006
A25: 89299 | B25: ALVENARIA ESTRUTURAL DE BLOCOS CERÂMICOS 14X19X39, (ESPESSURA DE 14 CM), UTILIZANDO COLHER DE PEDREIRO E ARGAMASSA DE ASSENTAMENTO COM PREPARO MANUAL. AF_03/2023 | C25: M2 | D25: 72.4 | E25: 0
A26: 89282 | B26: ALVENARIA ESTRUTURAL DE BLOCOS CERÂMICOS 14X19X39, (ESPESSURA DE 14 CM), UTILIZANDO PALHETA E ARGAMASSA DE ASSENTAMENTO COM PREPARO EM BETONEIRA. AF_03/2023 | C26: M2 | D26: 62.72 | E26: 0.0005
A27: 89283 | B27: ALVENARIA ESTRUTURAL DE BLOCOS CERÂMICOS 14X19X39, (ESPESSURA DE 14 CM), UTILIZANDO PALHETA E ARGAMASSA DE ASSENTAMENTO COM PREPARO MANUAL. AF_03/2023 | C27: M2 | D27: 63.74 | E27: 0
A28: 89480 | B28: ALVENARIA DE BLOCOS DE CONCRETO ESTRUTURAL 14X19X29 CM (ESPESSURA 14 CM), FBK = 14 MPA, UTILIZANDO COLHER DE PEDREIRO. AF_10/2022 | C28: M2 | D28: 143.69 | E28: 0.0002
A29: 89464 | B29: ALVENARIA DE BLOCOS DE CONCRETO ESTRUTURAL 14X19X29 CM (ESPESSURA 14 CM), FBK = 14,0 MPA, UTILIZANDO PALHETA. AF_10/2022 | C29: M2 | D29: 129.26 | E29: 0.0002
A30: 89478 | B30: ALVENARIA DE BLOCOS DE CONCRETO ESTRUTURAL 14X19X29 CM (ESPESSURA 14 CM), FBK = 4,5 MPA, UTILIZANDO COLHER DE PEDREIRO. AF_10/2022 | C30: M2 | D30: 122.17 | E30: 0.0002
A31: 89462 | B31: ALVENARIA DE BLOCOS DE CONCRETO ESTRUTURAL 14X19X29 CM (ESPESSURA 14 CM), FBK = 4,5 MPA, UTILIZANDO PALHETA. AF_10/2022 | C31: M2 | D31: 108.41 | E31: 0.0002
A32: 104444 | B32: ALVENARIA DE BLOCOS DE CONCRETO ESTRUTURAL 14X19X29 CM (ESPESSURA 14 CM), FBK = 8 MPA, UTILIZANDO COLHER DE PEDREIRO. AF_10/2022 | C32: M2 | D32: 0
A33: 104442 | B33: ALVENARIA DE BLOCOS DE CONCRETO ESTRUTURAL 14X19X29 CM (ESPESSURA 14 CM), FBK = 8 MPA, UTILIZANDO PALHETA. AF_10/2022 | C33: M2 | D33: 0
A34: 89472 | B34: ALVENARIA DE BLOCOS DE CONCRETO ESTRUTURAL 14X19X39 CM (ESPESSURA 14 CM), FBK = 14 MPA, UTILIZANDO COLHER DE PEDREIRO. AF_10/2022 | C34: M2 | D34: 113.57 | E34: 0.0003
A35: 89455 | B35: ALVENARIA DE BLOCOS DE CONCRETO ESTRUTURAL 14X19X39 CM (ESPESSURA 14 CM), FBK = 14 MPA, UTILIZANDO PALHETA. AF_10/2022 | C35: M2 | D35: 104.19 | E35: 0.0002
A36: 89470 | B36: ALVENARIA DE BLOCOS DE CONCRETO ESTRUTURAL 14X19X39 CM (ESPESSURA 14 CM), FBK = 4,5 MPA, UTILIZANDO COLHER DE PEDREIRO. AF_10/2022 | C36: M2 | D36: 93.36 | E36: 0.0003
A37: 89453 | B37: ALVENARIA DE BLOCOS DE CONCRETO ESTRUTURAL 14X19X39 CM (ESPESSURA 14 CM), FBK = 4,5 MPA, UTILIZANDO PALHETA. AF_10/2022 | C37: M2 | D37: 84.65 | E37: 0.0002
A38: 104443 | B38: ALVENARIA DE BLOCOS DE CONCRETO ESTRUTURAL 14X19X39 CM (ESPESSURA 14 CM), FBK = 8 MPA, UTILIZANDO COLHER DE PEDREIRO. AF_10/2022 | C38: M2 | D38: 0
A39: 104441 | B39: ALVENARIA DE BLOCOS DE CONCRETO ESTRUTURAL 14X19X39 CM (ESPESSURA 14 CM), FBK = 8 MPA, UTILIZANDO PALHETA. AF_10/2022 | C39: M2 | D39: 0
A40: 103354 | B40: ALVENARIA DE VEDAÇÃO DE BLOCOS CERÂMICOS FURADOS NA HORIZONTAL DE 11,5X14X24 CM (ESPESSURA 11,5 CM) E ARGAMASSA DE ASSENTAMENTO COM PREPARO EM BETONEIRA. AF_12/2021 | C40: M2 | D40: 69.32 | E40: 0.0092
A41: 103355 | B41: ALVENARIA DE VEDAÇÃO DE BLOCOS CERÂMICOS FURADOS NA HORIZONTAL DE 11,5X14X24 CM (ESPESSURA 11,5 CM) E ARGAMASSA DE ASSENTAMENTO COM PREPARO MANUAL. AF_12/2021 | C41: M2 | D41: 70.19 | E41: 0.0088
A42: 103330 | B42: ALVENARIA DE VEDAÇÃO DE BLOCOS CERÂMICOS FURADOS NA HORIZONTAL DE 11,5X19X19 CM (ESPESSURA 11,5 CM) E ARGAMASSA DE ASSENTAMENTO COM PREPARO EM BETONEIRA. AF_12/2021 | C42: M2 | D42: 65.55 | E42: 0.007
A43: 103331 | B43: ALVENARIA DE VEDAÇÃO DE BLOCOS CERÂMICOS FURADOS NA HORIZONTAL DE 11,5X19X19 CM (ESPESSURA 11,5 CM) E ARGAMASSA DE ASSENTAMENTO COM PREPARO MANUAL. AF_12/2021 | C43: M2 | D43: 66.36 | E43: 0.0066
A44: 103358 | B44: ALVENARIA DE VEDAÇÃO DE BLOCOS CERÂMICOS FURADOS NA HORIZONTAL DE 11,5X19X29 CM (ESPESSURA 11,5 CM) E ARGAMASSA DE ASSENTAMENTO COM PREPARO EM BETONEIRA. AF_12/2021 | C44: M2 | D44: 56.14 | E44: 0.008
A45: 103359 | B45: ALVENARIA DE VEDAÇÃO DE BLOCOS CERÂMICOS FURADOS NA HORIZONTAL DE 11,5X19X29 CM (ESPESSURA 11,5 CM) E ARGAMASSA DE ASSENTAMENTO COM PREPARO MANUAL. AF_12/2021 | C45: M2 | D45: 56.83 | E45: 0.0077
A46: 103366 | B46: ALVENARIA DE VEDAÇÃO DE BLOCOS CERÂMICOS FURADOS NA HORIZONTAL DE 11,5X19X39 CM (ESPESSURA 11,5 CM) E ARGAMASSA DE ASSENTAMENTO COM PREPARO EM BETONEIRA. AF_12/2021 | C46: M2 | D46: 50.69 | E46: 0.0089
A47: 103367 | B47: ALVENARIA DE VEDAÇÃO DE BLOCOS CERÂMICOS FURADOS NA HORIZONTAL DE 11,5X19X39 CM (ESPESSURA 11,5 CM) E ARGAMASSA DE ASSENTAMENTO COM PREPARO MANUAL. AF_12/2021 | C47: M2 | D47: 51.31 | E47: 0.0086
A48: 103360 | B48: ALVENARIA DE VEDAÇÃO DE BLOCOS CERÂMICOS FURADOS NA HORIZONTAL DE 14X19X29 CM (ESPESSURA 14 CM) E ARGAMASSA DE ASSENTAMENTO COM PREPARO EM BETONEIRA. AF_12/2021 | C48: M2 | D48: 65.45 | E48: 0.007
A49: 103361 | B49: ALVENARIA DE VEDAÇÃO DE BLOCOS CERÂMICOS FURADOS NA HORIZONTAL DE 14X19X29 CM (ESPESSURA 14 CM) E ARGAMASSA DE ASSENTAMENTO COM PREPARO MANUAL. AF_12/2021 | C49: M2 | D49: 66.32 | E49: 0.0066
A50: 103368 | B50: ALVENARIA DE VEDAÇÃO DE BLOCOS CERÂMICOS FURADOS NA HORIZONTAL DE 14X19X39 CM (ESPESSURA 14 CM) E ARGAMASSA DE ASSENTAMENTO COM PREPARO EM BETONEIRA. AF_12/2021 | C50: M2 | D50: 57.03 | E50: 0.0081
A51: 103369 | B51: ALVENARIA DE VEDAÇÃO DE BLOCOS CERÂMICOS FURADOS NA HORIZONTAL DE 14X19X39 CM (ESPESSURA 14 CM) E ARGAMASSA DE ASSENTAMENTO COM PREPARO MANUAL. AF_12/2021 | C51: M2 | D51: 57.82 | E51: 0.0076
A52: 103334 | B52: ALVENARIA DE VEDAÇÃO DE BLOCOS CERÂMICOS FURADOS NA HORIZONTAL DE 14X9X19 CM (ESPESSURA 14 CM, BLOCO DEITADO) E ARGAMASSA DE ASSENTAMENTO COM PREPARO EM BETONEIRA. AF_12/2021 | C52: M2 | D52: 111.68 | E52: 0.008
A53: 103335 | B53: ALVENARIA DE VEDAÇÃO DE BLOCOS CERÂMICOS FURADOS NA HORIZONTAL DE 14X9X19 CM (ESPESSURA 14 CM, BLOCO DEITADO) E ARGAMASSA DE ASSENTAMENTO COM PREPARO MANUAL. AF_12/2021 | C53: M2 | D53: 113.21 | E53: 0.0076
A54: 103362 | B54: ALVENARIA DE VEDAÇÃO DE BLOCOS CERÂMICOS FURADOS NA HORIZONTAL DE 19X19X29 CM (ESPESSURA 19 CM) E ARGAMASSA DE ASSENTAMENTO COM PREPARO EM BETONEIRA. AF_12/2021 | C54: M2 | D54: 80.82 | E54: 0.0057
A55: 103363 | B55: ALVENARIA DE VEDAÇÃO DE BLOCOS CERÂMICOS FURADOS NA HORIZONTAL DE 19X19X29 CM (ESPESSURA 19 CM) E ARGAMASSA DE ASSENTAMENTO COM PREPARO MANUAL. AF_12/2021 | C55: M2 | D55: 81.8 | E55: 0.0054
A56: 103370 | B56: ALVENARIA DE VEDAÇÃO DE BLOCOS CERÂMICOS FURADOS NA HORIZONTAL DE 19X19X39 CM (ESPESSURA 19 CM) E ARGAMASSA DE ASSENTAMENTO COM PREPARO EM BETONEIRA. AF_12/2021 | C56: M2 | D56: 73.55 | E56: 0.0063
A57: 103371 | B57: ALVENARIA DE VEDAÇÃO DE BLOCOS CERÂMICOS FURADOS NA HORIZONTAL DE 19X19X39 CM (ESPESSURA 19 CM) E ARGAMASSA DE ASSENTAMENTO COM PREPARO MANUAL. AF_12/2021 | C57: M2 | D57: 74.45 | E57: 0.0059
A58: 103332 | B58: ALVENARIA DE VEDAÇÃO DE BLOCOS CERÂMICOS FURADOS NA HORIZONTAL DE 9X14X19 CM (ESPESSURA 9 CM) E ARGAMASSA DE ASSENTAMENTO COM PREPARO EM BETONEIRA. AF_12/2021 | C58: M2 | D58: 89.38 | E58: 0.0036
A59: 103333 | B59: ALVENARIA DE VEDAÇÃO DE BLOCOS CERÂMICOS FURADOS NA HORIZONTAL DE 9X14X19 CM (ESPESSURA 9 CM) E ARGAMASSA DE ASSENTAMENTO COM PREPARO MANUAL. AF_12/2021 | C59: M2 | D59: 90.25 | E59: 0.0033
A60: 103352 | B60: ALVENARIA DE VEDAÇÃO DE BLOCOS CERÂMICOS FURADOS NA HORIZONTAL DE 9X14X24 CM (ESPESSURA 9 CM) E ARGAMASSA DE ASSENTAMENTO COM PREPARO EM BETONEIRA. AF_12/2021 | C60: M2 | D60: 77.82 | E60: 0.0041
A61: 103353 | B61: ALVENARIA DE VEDAÇÃO DE BLOCOS CERÂMICOS FURADOS NA HORIZONTAL DE 9X14X24 CM (ESPESSURA 9 CM) E ARGAMASSA DE ASSENTAMENTO COM PREPARO MANUAL. AF_12/2021 | C61: M2 | D61: 78.63 | E61: 0.0038
A62: 103328 | B62: ALVENARIA DE VEDAÇÃO DE BLOCOS CERÂMICOS FURADOS NA HORIZONTAL DE 9X19X19 CM (ESPESSURA 9 CM) E ARGAMASSA DE ASSENTAMENTO COM PREPARO EM BETONEIRA. AF_12/2021 | C62: M2 | D62: 71.78 | E62: 0.0032
A63: 103329 | B63: ALVENARIA DE VEDAÇÃO DE BLOCOS CERÂMICOS FURADOS NA HORIZONTAL DE 9X19X19 CM (ESPESSURA 9 CM) E ARGAMASSA DE ASSENTAMENTO COM PREPARO MANUAL. AF_12/2021 | C63: M2 | D63: 72.54 | E63: 0.003
A64: 103356 | B64: ALVENARIA DE VEDAÇÃO DE BLOCOS CERÂMICOS FURADOS NA HORIZONTAL DE 9X19X29 CM (ESPESSURA 9 CM) E ARGAMASSA DE ASSENTAMENTO COM PREPARO EM BETONEIRA. AF_12/2021 | C64: M2 | D64: 50.25 | E64: 0.0046
A65: 103357 | B65: ALVENARIA DE VEDAÇÃO DE BLOCOS CERÂMICOS FURADOS NA HORIZONTAL DE 9X19X29 CM (ESPESSURA 9 CM) E ARGAMASSA DE ASSENTAMENTO COM PREPARO MANUAL. AF_12/2021 | C65: M2 | D65: 50.9 | E65: 0.0043
A66: 103364 | B66: ALVENARIA DE VEDAÇÃO DE BLOCOS CERÂMICOS FURADOS NA HORIZONTAL DE 9X19X39 CM (ESPESSURA 9 CM) E ARGAMASSA DE ASSENTAMENTO COM PREPARO EM BETONEIRA. AF_12/2021 | C66: M2 | D66: 42.69 | E66: 0.0105
A67: 103365 | B67: ALVENARIA DE VEDAÇÃO DE BLOCOS CERÂMICOS FURADOS NA HORIZONTAL DE 9X19X39 CM (ESPESSURA 9 CM) E ARGAMASSA DE ASSENTAMENTO COM PREPARO MANUAL. AF_12/2021 | C67: M2 | D67: 43.05 | E67: 0.0051
A68: 103350 | B68: ALVENARIA DE VEDAÇÃO DE BLOCOS CERÂMICOS FURADOS NA HORIZONTAL DE 9X9X19 CM (ESPESSURA 9 CM) E ARGAMASSA DE ASSENTAMENTO COM PREPARO EM BETONEIRA. AF_12/2021 | C68: M2 | D68: 132.42 | E68: 0.0034
A69: 103351 | B69: ALVENARIA DE VEDAÇÃO DE BLOCOS CERÂMICOS FURADOS NA HORIZONTAL DE 9X9X19 CM (ESPESSURA 9 CM) E ARGAMASSA DE ASSENTAMENTO COM PREPARO MANUAL. AF_12/2021 | C69: M2 | D69: 133.54 | E69: 0.0032
A70: 103344 | B70: ALVENARIA DE VEDAÇÃO DE BLOCOS CERÂMICOS FURADOS NA VERTICAL DE 11,5X19X29 CM (ESPESSURA 11,5 CM) E ARGAMASSA DE ASSENTAMENTO COM PREPARO EM BETONEIRA. AF_12/2021 | C70: M2 | D70: 69.06 | E70: 0.0067
A71: 103345 | B71: ALVENARIA DE VEDAÇÃO DE BLOCOS CERÂMICOS FURADOS NA VERTICAL DE 11,5X19X29 CM (ESPESSURA 11,5 CM) E ARGAMASSA DE ASSENTAMENTO COM PREPARO MANUAL. AF_12/2021 | C71: M2 | D71: 70.08 | E71: 0.0063
A72: 103348 | B72: ALVENARIA DE VEDAÇÃO DE BLOCOS CERÂMICOS FURADOS NA VERTICAL DE 11,5X19X39 CM (ESPESSURA 11,5 CM) E ARGAMASSA DE ASSENTAMENTO COM PREPARO EM BETONEIRA. AF_12/2021 | C72: M2 | D72: 59.28 | E72: 0.0078
A73: 103349 | B73: ALVENARIA DE VEDAÇÃO DE BLOCOS CERÂMICOS FURADOS NA VERTICAL DE 11,5X19X39 CM (ESPESSURA 11,5 CM) E ARGAMASSA DE ASSENTAMENTO COM PREPARO MANUAL. AF_12/2021 | C73: M2 | D73: 60.21 | E73: 0.0073
A74: 103346 | B74: ALVENARIA DE VEDAÇÃO DE BLOCOS CERÂMICOS FURADOS NA VERTICAL DE 14X19X29 CM (ESPESSURA 14 CM) E ARGAMASSA DE ASSENTAMENTO COM PREPARO EM BETONEIRA. AF_12/2021 | C74: M2 | D74: 75.78 | E74: 0.0061
A75: 103347 | B75: ALVENARIA DE VEDAÇÃO DE BLOCOS CERÂMICOS FURADOS NA VERTICAL DE 14X19X29 CM (ESPESSURA 14 CM) E ARGAMASSA DE ASSENTAMENTO COM PREPARO MANUAL. AF_12/2021 | C75: M2 | D75: 76.87 | E75: 0.0057
A76: 103324 | B76: ALVENARIA DE VEDAÇÃO DE BLOCOS CERÂMICOS FURADOS NA VERTICAL DE 14X19X39 CM (ESPESSURA 14 CM) E ARGAMASSA DE ASSENTAMENTO COM PREPARO EM BETONEIRA. AF_12/2021 | C76: M2 | D76: 66.83 | E76: 0.0069
A77: 103325 | B77: ALVENARIA DE VEDAÇÃO DE BLOCOS CERÂMICOS FURADOS NA VERTICAL DE 14X19X39 CM (ESPESSURA 14 CM) E ARGAMASSA DE ASSENTAMENTO COM PREPARO MANUAL. AF_12/2021 | C77: M2 | D77: 67.81 | E77: 0.0065
A78: 103326 | B78: ALVENARIA DE VEDAÇÃO DE BLOCOS CERÂMICOS FURADOS NA VERTICAL DE 19X19X39 CM (ESPESSURA 19 CM) E ARGAMASSA DE ASSENTAMENTO COM PREPARO EM BETONEIRA. AF_12/2021 | C78: M2 | D78: 79.02 | E78: 0.0058
A79: 103327 | B79: ALVENARIA DE VEDAÇÃO DE BLOCOS CERÂMICOS FURADOS NA VERTICAL DE 19X19X39 CM (ESPESSURA 19 CM) E ARGAMASSA DE ASSENTAMENTO COM PREPARO MANUAL. AF_12/2021 | C79: M2 | D79: 80.18 | E79: 0.0055
A80: 103322 | B80: ALVENARIA DE VEDAÇÃO DE BLOCOS CERÂMICOS FURADOS NA VERTICAL DE 9X19X39 CM (ESPESSURA 9 CM) E ARGAMASSA DE ASSENTAMENTO COM PREPARO EM BETONEIRA. AF_12/2021 | C80: M2 | D80: 50.88 | E80: 0.0047
A81: 103323 | B81: ALVENARIA DE VEDAÇÃO DE BLOCOS CERÂMICOS FURADOS NA VERTICAL DE 9X19X39 CM (ESPESSURA 9 CM) E ARGAMASSA DE ASSENTAMENTO COM PREPARO MANUAL. AF_12/2021 | C81: M2 | D81: 51.75 | E81: 0.0043
A82: 103338 | B82: ALVENARIA DE VEDAÇÃO DE BLOCOS VAZADOS DE CONCRETO APARENTE DE 14X19X39 CM (ESPESSURA 14 CM) E ARGAMASSA DE ASSENTAMENTO COM PREPARO EM BETONEIRA. AF_12/2021 | C82: M2 | D82: 99.33 | E82: 0.0046
A83: 103339 | B83: ALVENARIA DE VEDAÇÃO DE BLOCOS VAZADOS DE CONCRETO APARENTE DE 14X19X39 CM (ESPESSURA 14 CM) E ARGAMASSA DE ASSENTAMENTO COM PREPARO MANUAL. AF_12/2021 | C83: M2 | D83: 100.18 | E83: 0.0044
A84: 103340 | B84: ALVENARIA DE VEDAÇÃO DE BLOCOS VAZADOS DE CONCRETO APARENTE DE 19X19X39 CM (ESPESSURA 19 CM) E ARGAMASSA DE ASSENTAMENTO COM PREPARO EM BETONEIRA. AF_12/2021 | C84: M2 | D84: 121.9 | E84: 0.0038
A85: 103341 | B85: ALVENARIA DE VEDAÇÃO DE BLOCOS VAZADOS DE CONCRETO APARENTE DE 19X19X39 CM (ESPESSURA 19 CM) E ARGAMASSA DE ASSENTAMENTO COM PREPARO MANUAL. AF_12/2021 | C85: M2 | D85: 122.96 | E85: 0.0036
A86: 103336 | B86: ALVENARIA DE VEDAÇÃO DE BLOCOS VAZADOS DE CONCRETO APARENTE DE 9X19X39 CM (ESPESSURA 9 CM) E ARGAMASSA DE ASSENTAMENTO COM PREPARO EM BETONEIRA. AF_12/2021 | C86: M2 | D86: 76.24 | E86: 0.003
A87: 103337 | B87: ALVENARIA DE VEDAÇÃO DE BLOCOS VAZADOS DE CONCRETO APARENTE DE 9X19X39 CM (ESPESSURA 9 CM) E ARGAMASSA DE ASSENTAMENTO COM PREPARO MANUAL. AF_12/2021 | C87: M2 | D87: 76.97 | E87: 0.0029
A88: 103342 | B88: ALVENARIA DE VEDAÇÃO DE BLOCOS VAZADOS DE CONCRETO DE 14X19X29 CM (ESPESSURA 14 CM) E ARGAMASSA DE ASSENTAMENTO COM PREPARO EM BETONEIRA. AF_12/2021 | C88: M2 | D88: 105.27 | E88: 0.0044
A89: 103343 | B89: ALVENARIA DE VEDAÇÃO DE BLOCOS VAZADOS DE CONCRETO DE 14X19X29 CM (ESPESSURA 14 CM) E ARGAMASSA DE ASSENTAMENTO COM PREPARO MANUAL. AF_12/2021 | C89: M2 | D89: 106.21 | E89: 0.0041
A90: 103318 | B90: ALVENARIA DE VEDAÇÃO DE BLOCOS VAZADOS DE CONCRETO DE 14X19X39 CM (ESPESSURA 14 CM) E ARGAMASSA DE ASSENTAMENTO COM PREPARO EM BETONEIRA. AF_12/2021 | C90: M2 | D90: 89.61 | E90: 0.0051
A91: 103319 | B91: ALVENARIA DE VEDAÇÃO DE BLOCOS VAZADOS DE CONCRETO DE 14X19X39 CM (ESPESSURA 14 CM) E ARGAMASSA DE ASSENTAMENTO COM PREPARO MANUAL. AF_12/2021 | C91: M2 | D91: 90.46 | E91: 0.0049
A92: 103320 | B92: ALVENARIA DE VEDAÇÃO DE BLOCOS VAZADOS DE CONCRETO DE 19X19X39 CM (ESPESSURA 19 CM) E ARGAMASSA DE ASSENTAMENTO COM PREPARO EM BETONEIRA. AF_12/2021 | C92: M2 | D92: 108.69 | E92: 0.0042
A93: 103321 | B93: ALVENARIA DE VEDAÇÃO DE BLOCOS VAZADOS DE CONCRETO DE 19X19X39 CM (ESPESSURA 19 CM) E ARGAMASSA DE ASSENTAMENTO COM PREPARO MANUAL. AF_12/2021 | C93: M2 | D93: 109.75 | E93: 0.004
A94: 103316 | B94: ALVENARIA DE VEDAÇÃO DE BLOCOS VAZADOS DE CONCRETO DE 9X19X39 CM (ESPESSURA 9 CM) E ARGAMASSA DE ASSENTAMENTO COM PREPARO EM BETONEIRA. AF_12/2021 | C94: M2 | D94: 69.79 | E94: 0.0033
A95: 103317 | B95: ALVENARIA DE VEDAÇÃO DE BLOCOS VAZADOS DE CONCRETO DE 9X19X39 CM (ESPESSURA 9 CM) E ARGAMASSA DE ASSENTAMENTO COM PREPARO MANUAL. AF_12/2021 | C95: M2 | D95: 70.52 | E95: 0.0031
A96: 101166 | B96: ALVENARIA DE EMBASAMENTO COM BLOCO ESTRUTURAL DE CERÂMICA, DE 14X19X29CM E ARGAMASSA DE ASSENTAMENTO COM PREPARO EM BETONEIRA. AF_05/2020 | C96: M3 | D96: 547.14 | E96: 0.0005
A97: 101165 | B97: ALVENARIA DE EMBASAMENTO COM BLOCO ESTRUTURAL DE CONCRETO, DE 14X19X29CM E ARGAMASSA DE ASSENTAMENTO COM PREPARO EM BETONEIRA. AF_05/2020 | C97: M3 | D97: 886.17 | E97: 0.0003
A98: 101163 | B98: ALVENARIA DE VEDAÇÃO COM BLOCO DE VIDRO VAZADO, TIPO VENEZIANA, DE 6X20X20CM E ARGAMASSA DE ASSENTAMENTO COM PREPARO EM BETONEIRA. AF_05/2020 | C98: M2 | D98: 615.06 | E98: 0.8083
A99: 101164 | B99: ALVENARIA DE VEDAÇÃO COM BLOCO DE VIDRO, TIPO CANELADO, DE 8X19X19CM E ARGAMASSA DE ASSENTAMENTO COM PREPARO EM BETONEIRA. AF_05/2020 | C99: M2 | D99: 625.08 | E99: 0.8049
A100: 101162 | B100: ALVENARIA DE VEDAÇÃO COM ELEMENTO VAZADO DE CERÂMICA (COBOGÓ) DE 7X20X20CM E ARGAMASSA DE ASSENTAMENTO COM PREPARO EM BETONEIRA. AF_05/2020 | C100: M2 | D100: 124.55 | E100: 0.0008
A101: 101161 | B101: ALVENARIA DE VEDAÇÃO COM ELEMENTO VAZADO DE CONCRETO (COBOGÓ) DE 7X50X50CM E ARGAMASSA DE ASSENTAMENTO COM PREPARO EM BETONEIRA. AF_05/2020 | C101: M2 | D101: 211.16 | E101: 0.0002
A102: 101160 | B102: ALVENARIA DE VEDAÇÃO DE BLOCO DE SOLO-CIMENTO (TIJOLO ECOLÓGICO) DE 7X15X30CM (ESPESSURA 15CM). AF_05/2020 | C102: M2 | D102: 0
A103: 101159 | B103: ALVENARIA DE VEDAÇÃO DE BLOCOS CERÂMICOS MACIÇOS DE 5X10X20CM (ESPESSURA 10CM) E ARGAMASSA DE ASSENTAMENTO COM PREPARO EM BETONEIRA. AF_05/2020 | C103: M2 | D103: 108.8 | E103: 0.0005
A104: 101154 | B104: ALVENARIA DE VEDAÇÃO DE BLOCOS DE CONCRETO CELULAR DE 10X30X60CM (ESPESSURA 10CM) E ARGAMASSA DE ASSENTAMENTO COM PREPARO EM BETONEIRA. AF_05/2020 | C104: M2 | D104: 126.68 | E104: 0.7561
A105: 101155 | B105: ALVENARIA DE VEDAÇÃO DE BLOCOS DE CONCRETO CELULAR DE 15X30X60CM (ESPESSURA 15CM) E ARGAMASSA DE ASSENTAMENTO COM PREPARO EM BETONEIRA. AF_05/2020 | C105: M2 | D105: 179.1 | E105: 0.7854
A106: 101156 | B106: ALVENARIA DE VEDAÇÃO DE BLOCOS DE CONCRETO CELULAR DE 20X30X60CM (ESPESSURA 20CM) E ARGAMASSA DE ASSENTAMENTO COM PREPARO EM BETONEIRA. AF_05/2020 | C106: M2 | D106: 264.83 | E106: 0.8137
A107: 101158 | B107: ALVENARIA DE VEDAÇÃO DE BLOCOS DE GESSO DE 10X50X66CM (ESPESSURA 10CM). AF_05/2020 | C107: M2 | D107: 76.98 | E107: 0
A108: 101157 | B108: ALVENARIA DE VEDAÇÃO DE BLOCOS DE GESSO DE 7X50X66CM (ESPESSURA 7CM). AF_05/2020 | C108: M2 | D108: 58.19 | E108: 0
A109: 87382 | B109: ARGAMASSA INDUSTRIALIZADA MULTIUSO PARA REVESTIMENTOS E ASSENTAMENTO DA ALVENARIA, PREPARO COM MISTURADOR DE EIXO HORIZONTAL DE 160 KG. AF_08/2019 | C109: M3 | D109: 2416.63 | E109: 0.0022
A110: 87383 | B110: ARGAMASSA INDUSTRIALIZADA MULTIUSO PARA REVESTIMENTOS E ASSENTAMENTO DA ALVENARIA, PREPARO COM MISTURADOR DE EIXO HORIZONTAL DE 300 KG. AF_08/2019 | C110: M3 | D110: 2424.34 | E110: 0.0018
A111: 87384 | B111: ARGAMASSA INDUSTRIALIZADA MULTIUSO PARA REVESTIMENTOS E ASSENTAMENTO DA ALVENARIA, PREPARO COM MISTURADOR DE EIXO HORIZONTAL DE 600 KG. AF_08/2019 | C111: M3 | D111: 2425.01 | E111: 0.0013
A112: 87398 | B112: ARGAMASSA INDUSTRIALIZADA MULTIUSO PARA REVESTIMENTOS E ASSENTAMENTO DA ALVENARIA, PREPARO MANUAL. AF_08/2019 | C112: M3 | D112: 2592.42 | E112: 0
A113: 87395 | B113: ARGAMASSA INDUSTRIALIZADA PARA CHAPISCO COLANTE, PREPARO COM MISTURADOR DE EIXO HORIZONTAL DE 160 KG. AF_08/2019 | C113: M3 | D113: 4777.16 | E113: 0.0015
A114: 87396 | B114: ARGAMASSA INDUSTRIALIZADA PARA CHAPISCO COLANTE, PREPARO COM MISTURADOR DE EIXO HORIZONTAL DE 300 KG. AF_08/2019 | C114: M3 | D114: 4821.82 | E114: 0.0013
A115: 87397 | B115: ARGAMASSA INDUSTRIALIZADA PARA CHAPISCO COLANTE, PREPARO COM MISTURADOR DE EIXO HORIZONTAL DE 600 KG. AF_08/2019 | C115: M3 | D115: 4864.86 | E115: 0.0009
A116: 87402 | B116: ARGAMASSA INDUSTRIALIZADA PARA CHAPISCO COLANTE, PREPARO MANUAL. AF_08/2019 | C116: M3 | D116: 5008.85 | E116: 0
A117: 87391 | B117: ARGAMASSA INDUSTRIALIZADA PARA CHAPISCO ROLADO, PREPARO COM MISTURADOR DE EIXO HORIZONTAL DE 160 KG. AF_08/2019 | C117: M3 | D117: 7611.87 | E117: 0.0009
A118: 87393 | B118: ARGAMASSA INDUSTRIALIZADA PARA CHAPISCO ROLADO, PREPARO COM MISTURADOR DE EIXO HORIZONTAL DE 300 KG. AF_08/2019 | C118: M3 | D118: 7694.61 | E118: 0.0008
A119: 87394 | B119: ARGAMASSA INDUSTRIALIZADA PARA CHAPISCO ROLADO, PREPARO COM MISTURADOR DE EIXO HORIZONTAL DE 600 KG. AF_08/2019 | C119: M3 | D119: 7774.01 | E119: 0.0006
A120: 87401 | B120: ARGAMASSA INDUSTRIALIZADA PARA CHAPISCO ROLADO, PREPARO MANUAL. AF_08/2019 | C120: M3 | D120: 7901.6 | E120: 0
A121: 87407 | B121: ARGAMASSA INDUSTRIALIZADA PARA REVESTIMENTOS, MISTURA E PROJEÇÃO DE 1,5 M³/H DE ARGAMASSA. AF_08/2019 | C121: M3 | D121: 2460.85 | E121: 0.0131
A122: 87408 | B122: ARGAMASSA INDUSTRIALIZADA PARA REVESTIMENTOS, MISTURA E PROJEÇÃO DE 2 M³/H DE ARGAMASSA. AF_08/2019 | C122: M3 | D122: 2457.9 | E122: 0.013
A123: 87404 | B123: ARGAMASSA PARA REVESTIMENTO DECORATIVO MONOCAMADA (MONOCAPA), MISTURA E PROJEÇÃO DE 1,5 M3/H DE ARGAMASSA. AF_08/2019 | C123: M3 | D123: 7091.02 | E123: 0.0064
A124: 87405 | B124: ARGAMASSA PARA REVESTIMENTO DECORATIVO MONOCAMADA (MONOCAPA), MISTURA E PROJEÇÃO DE 2 M3/H DE ARGAMASSA. AF_08/2019 | C124: M3 | D124: 7128.47 | E124: 0.0064
A125: 87388 | B125: ARGAMASSA PARA REVESTIMENTO DECORATIVO MONOCAMADA (MONOCAPA), PREPARO COM MISTURADOR DE EIXO HORIZONTAL DE 160 KG. AF_08/2019 | C125: M3 | D125: 6856.86 | E125: 0.0008
A126: 87389 | B126: ARGAMASSA PARA REVESTIMENTO DECORATIVO MONOCAMADA (MONOCAPA), PREPARO COM MISTURADOR DE EIXO HORIZONTAL DE 300 KG. AF_08/2019 | C126: M3 | D126: 6896.99 | E126: 0.0006
A127: 87390 | B127: ARGAMASSA PARA REVESTIMENTO DECORATIVO MONOCAMADA (MONOCAPA), PREPARO COM MISTURADOR DE EIXO HORIZONTAL DE 600 KG. AF_08/2019 | C127: M3 | D127: 6943.09 | E127: 0.0005
A128: 87385 | B128: ARGAMASSA PRONTA PARA CONTRAPISO, PREPARO COM MISTURADOR DE EIXO HORIZONTAL DE 160 KG. AF_08/2019 | C128: M3 | D128: 2822.15 | E128: 0.0023
